{"text_format":"1","workbook":"xlsx","n_sheets":3,"sheets":["1. INFORMACION ACUMULADA","Proposito_programa","Tipo"],"not_rendered":{"charts":0,"images":1,"macros":1,"external_links":0,"defined_names":15,"comments":2,"pivot_tables":0},"unopened":[],"bounds":{"document_bytes":16777216,"sheet_cells":100000,"rows_first":2000,"rows_last":500,"rows_between":2000,"halvings":0,"cell_chars":16384,"cell_head_chars":4096},"cells_cut":0,"cells_raw":0,"read":"whole","date_system":"1900"}

{"sheet":"1. INFORMACION ACUMULADA","index":0,"n_rows":442,"n_cols":40,"rows_kept":442,"cut":false,"hidden":false,"merged":[[6,0,6,3],[6,8,6,10],[6,34,6,35],[7,34,7,35],[11,2,11,3],[11,8,11,12],[11,15,11,20],[10,0,10,20],[8,34,8,35],[9,34,9,35],[10,28,10,33],[10,34,10,37],[10,21,10,27],[1,0,1,38],[2,0,2,38],[4,0,4,3],[4,8,4,10],[5,0,5,3],[5,8,5,10],[5,34,5,35],[5,36,5,39],[430,22,430,24],[6,36,6,39],[7,36,7,39],[8,36,8,39],[9,36,9,39]]}
[]
["VEEDURIA DISTRITAL - INFORMACIÓN GESTION CONTRACTUAL"]
["DEL 1 DE ENERO AL 31 DE DICIEMBRE DE 2024"]
[]
["1. Entidad",null,null,null,"Alcaldia Local La Candelaria ",null,null,"2. Sector","Gobierno"]
["3. Presupuesto Disponible Inversión Directa  (BOGDATA)",null,null,null,26529820000,null,null,"5. Presupuesto Disponible Funcionamiento (BOGDATA)",3207018000,null,null,null,null,null,null,null,null,null,null,null,null,null,null,null,null,null,null,null,null,null,null,null,null,null,"7. Nombre de quien diligencia el formato",null,"PAULA ANDREA VILLOTA DELGADO\n"]
["4. Presupuesto Comprometido de Inversión Directa según (BOGDATA)",null,null,null,25645184341,null,null,"6. Presupuesto Comprometido Funcionamiento según (BOGDATA)",3106811147,null,null,null,null,null,null,null,null,null,null,null,null,null,null,null,null,null,null,null,null,null,null,null,null,null,"Cargo",null,"AUXILIAR ADMINISTRATIVO\n"]
[null,null,null,null,null,null,null,null,null,null,null,null,null,null,null,null,null,null,null,null,null,null,null,null,null,null,null,null,null,null,null,null,null,null,"Dependencia",null,"CONTRATACION\n"]
[null,null,null,null,null,null,null,null,null,null,null,null,null,null,null,null,null,null,null,null,null,null,null,null,null,null,null,null,null,null,null,null,null,null,"Teléfono",null,"3143208836\n"]
[null,null,null,null,null,null,null,null,null,null,null,null,null,null,null,null,null,null,null,null,null,null,null,null,null,null,null,null,null,null,null,null,null,null,"Correo Electrónico",null,"paula.villota@gobiernobogota.gov.co\n"]
[0,null,null,null,null,null,null,null,null,null,null,null,null,null,null,null,null,null,null,null,null,"2- INFORMACION FINANCIERA",null,null,null,null,null,null,"3 - PLAZOS ",null,null,null,null,null,"4. CESION",null,null,null,"5. ESTADO","6. %  Avance y/o cumplimiento"]
[1,2,3,null,4,5,6,7,8,null,null,null,null,9,10,11,null,null,null,null,null,12,13,14,15,16,17,18,19,20,21,22,23,24,25,26,27,28,29,30]
["Número Contrato","Año","Número de proceso contractual \nSECOP","Link proceso SECOP","Tipo de contrato ","Modalidad de Selección","Procedimiento o causal","Objeto","Afectación","Plan de Desarrollo Distrital","Número Programa","Equivalencia número de programa","Propósito","Número Proyecto","Número de proponentes","Número  de Identificación del contratista\n(Cédula o NIT sin puntos, comas ni caracteres especiales y sin digito de verificación)","Nombre del contratista\n  (según el caso: nombres y apellidos o Razón social y Tipo societario)","Naturaleza Jurídica","Número  de Identificación del integrante del Consorcio o U.T.\n(Cédula o NIT sin puntos, comas ni caracteres especiales y sin digito de verificación)","Nombre del Integrante del Consorcio o U.T. y Tipo societario\n (Según el caso: nombres y apellidos o razón social y tipo societario)","% Participación (indicar solo el numero del porcentaje, sin caracteres especiales)","Vigencias futuras","Valor Inicial del contrato","Valor total reducciones \n(En valor negativo)","Número de adiciones","Valor total de adiciones ","Valor Final ","Giros (Valor en pesos)","Fecha de suscripción (DD/MM/AAAA)","Fecha de inicio (DD/MM/AAAA)","Fecha de terminación (DD/MM/AAAA)","Plazo en días","Número de prórrogas","Prorroga en días","Número  de Identificación del cesionario\n(NIT sin digito de verificación)","Nombre cesionario","Fecha cesión\n(DD/MM/AAAA)","Valor cesión","Estado","% Avance y/o Cumplimiento"]
["FDLC-OC-001-2024",2024,"ORDEN DE COMPRA 124067","https://www.colombiacompra.gov.co/tienda-virtual-del-estado-colombiano/ordenes-compra/124067","ORDEN DE COMPRA","ACUERDO MARCO DE PRECIOS  INTRUMENTO AGREGACION DE DEMANDA","No aplica","PRESTACIÓN INTEGRAL DE LOS SERVICIOS DE ASEO CAFETERIA MANTENIMIENTO MENOR Y JARDINERIA REQUERIDOS PARA LAS DEPENDENCIAS A CARGO DEL FONDO DE DESARROLLO LOCAL DE LA CANDELARIA ","FUNCIONAMIENTO","Un nuevo contrato social y ambiental para la Bogotá del Siglo XXI",57,"Gestión Pública Local","Propósito 5. Construir Bogotà - Regiòn con gobierno abierto, transparente y ciudadanìa consciente. ","O23011605570000002021/O21202020080585330/O21202020060363399",1,1118545389,"UNION TEMPORAL CLEAN BOGOTA","Persona Natural",null,null,null,null,223695741,null,2,61857158,{"$f":"+W14+X14+Z14","v":285552899},246035351,"2022-01-13","2022-01-13","2022-11-09",210,1,"1 MES","N/A","N/A","N/A","N/A","TERMINADO",{"$f":"IF(ISERROR(AB14/AA14),\"-\",(AB14/AA14))","v":0.86161041215694334}]
["FDLC-CPS-002-2024",2024,"FDLC-CPS-002-2024","https://community.secop.gov.co/Public/Tendering/OpportunityDetail/Index?noticeUID=CO1.NTC.5632233&isFromPublicArea=True&isModal=true&asPopupView=true","CPS","CONTRATACION DIRECTA","Prestación de servicios profesionales y de apoyo a la gestión, o para la ejecución de trabajos artísticos que sólo puedan encomendarse a determinadas personas naturales","PRESTAR SERVICIOS TÉCNICOS DE APOYO AL FONDO DE DESARROLLO LOCAL DE LA CANDELARIA PARA LA GESTION DE LOS ASUNTOS RELACIONES CON SEGURIDAD CIUDADANA CONVIVENCIA PREVENCIÓN DE CONFLICTIVIDADES VIOLENCIAS Y DELITOS EN LA LOCALIDAD","INVERSION","Un nuevo contrato social y ambiental para la Bogotá del Siglo XXI",57,"Gestión Pública Local","Propósito 5. Construir Bogotà - Regiòn con gobierno abierto, transparente y ciudadanìa consciente. ","O23011605570000002021",1,1018418431,"YENCI CAMILA PASTOR BULLA","Persona Natural",null,null,null,null,12000000,null,2,6000000,{"$f":"+W15+X15+Z15","v":18000000},18000000,"2022-01-13","2022-01-13","2022-12-30",120,1,"2 MESES","N/A","N/A","N/A","N/A","TERMINADO",{"$f":"IF(ISERROR(AB15/AA15),\"-\",(AB15/AA15))","v":1}]
["FDLC-CPS-003-2024",2024,"FDLC-CPS-003-2024","https://community.secop.gov.co/Public/Tendering/OpportunityDetail/Index?noticeUID=CO1.NTC.5632041&isFromPublicArea=True&isModal=true&asPopupView=true","CPS","CONTRATACION DIRECTA","Prestación de servicios profesionales y de apoyo a la gestión, o para la ejecución de trabajos artísticos que sólo puedan encomendarse a determinadas personas naturales","PRESTACIÓN DE SERVICIOS PROFESIONALES AL FONDO DE DESARROLLO LOCAL DE LA CANDELARIA PARA ATENDER LAS PETICIONES QUEJAS RECLAMOS YO SOLICITUDES PRESENTADAS POR LA CIUDADANÍA DE CONFORMIDAD CON LOS TÉRMINOS LEGALES ESTABLECIDOS Y APOYAR LAS RESPUESTAS REQUERIDAS POR LOS ENTES DE CONTROL","INVERSION","Un nuevo contrato social y ambiental para la Bogotá del Siglo XXI",57,"Gestión Pública Local","Propósito 5. Construir Bogotà - Regiòn con gobierno abierto, transparente y ciudadanìa consciente. ","O23011605570000002021",1,1010175770,"LUIS ALFONSO ORJUELA ORTIZ","Persona Natural",null,null,null,null,20000000,null,2,10000000,30000000,30000000,"2022-01-13","2022-01-13","2022-10-27",120,2,"2 MESES","N/A","N/A","N/A","N/A","TERMINADO",1]
["FDLC-CPS-004-2024",2024,"FDLC-CPS-004-2024","https://community.secop.gov.co/Public/Tendering/OpportunityDetail/Index?noticeUID=CO1.NTC.5641640&isFromPublicArea=True&isModal=true&asPopupView=true","CPS","CONTRATACION DIRECTA","Prestación de servicios profesionales y de apoyo a la gestión, o para la ejecución de trabajos artísticos que sólo puedan encomendarse a determinadas personas naturales","PRESTAR SERVICIOS PROFESIONALES PARA APOYAR AL FONDO DE DESARROLLO LOCAL DE LA CANDELARIA EN LA FORMULACIÓN IMPLEMENTACIÓN Y SEGUIMIENTO DE LAS POLITICAS PLANES PROGRAMAS PROYECTOS Y ACTIVIDADES ARTÍSTICAS CULTURALES Y MUSICALES DE COMPETENCIA DE LA ENTIDAD\"","INVERSION","Un nuevo contrato social y ambiental para la Bogotá del Siglo XXI",21,"Creación y vida cotidiana: Apropiación ciudadana del arte, la cultura y el patrimonio, para la democracia cultural","Propósito 1. Hacer un nuevo contrato social con igualdad de oportunidades para la inclusiòn social, productiva y polìtica ","O23011601210000001625",1,52314352,"WILLIAM FERNANDO CUBILLOS MOLINA","Persona Natural",null,null,null,null,26000000,null,1,13000000,39000000,39000000,"2022-01-13","2022-01-13","2023-01-09",120,1,"2 MESES","N/A","N/A","N/A","N/A","TERMINADO",1]
["FDLC-CPS-005-2024",2024,"FDLC-CPS-005-2024","https://community.secop.gov.co/Public/Tendering/OpportunityDetail/Index?noticeUID=CO1.NTC.5640693&isFromPublicArea=True&isModal=true&asPopupView=true","CPS","CONTRATACION DIRECTA","Prestación de servicios profesionales y de apoyo a la gestión, o para la ejecución de trabajos artísticos que sólo puedan encomendarse a determinadas personas naturales","APOYAR LA FORMULACIÓN GESTIÓN Y SEGUIMIENTO DE ACTIVIDADES ENFOCADAS A LA GESTIÓN AMBIENTAL EXTERNA ENCAMINADAS A LA MITIGACIÓN DE LOS DIFERENTES IMPACTOS AMBIENTALES Y LA CONSERVACIÓN DE LOS RECURSOS NATURALES DE LA LOCALIDAD","INVERSION","Un nuevo contrato social y ambiental para la Bogotá del Siglo XXI",57,"Gestión Pública Local","Propósito 5. Construir Bogotà - Regiòn con gobierno abierto, transparente y ciudadanìa consciente. ","O23011605570000002021",1,52496566,"SANDRA MILENA SANCHEZ GAMBA","Persona Natural",null,null,null,null,29792000,null,1,14896000,44688000,44688000,"2022-01-13","2022-01-13","2022-12-24",120,1,"2 MESES","N/A","N/A","N/A","N/A","TERMINADO",1]
["FDLC-CPS-006-2024",2024,"FDLC-CPS-006-2024","https://community.secop.gov.co/Public/Tendering/OpportunityDetail/Index?noticeUID=CO1.NTC.5640839&isFromPublicArea=True&isModal=true&asPopupView=true","CPS","CONTRATACION DIRECTA","Prestación de servicios profesionales y de apoyo a la gestión, o para la ejecución de trabajos artísticos que sólo puedan encomendarse a determinadas personas naturales","PRESTAR SERVICIOS PROFESIONALES PARA EL SEGUIMIENTO JURÍDICO DE LOS PROYECTOS DE INFRAESTRUCTURA ASÍ COMO LOS DEMÁS ASUNTOS CONTRACTUALES QUE SE REQUIERAN","INVERSION","Un nuevo contrato social y ambiental para la Bogotá del Siglo XXI",49,"Movilidad segura, sostenible y accesible","Propòsito 4. Hacer de Bogotà - Region un modelo de movilidad multimodal, incluyente y sostenible ","O23011604490000002020",1,1026266066,"JAVIER EDUARDO SANTIAGO MÉNDEZ","Persona Natural",null,null,null,null,24000000,null,0,0,24000000,24000000,"2022-01-13","2022-01-13","2022-12-12",120,null,"NO APLICA","N/A","N/A","N/A","N/A","TERMINADO",1]
["FDLC-CPS-007-2024",2024,"FDLC-CPS-007-2024","https://community.secop.gov.co/Public/Tendering/OpportunityDetail/Index?noticeUID=CO1.NTC.5644365&isFromPublicArea=True&isModal=true&asPopupView=true","CPS","CONTRATACION DIRECTA","Prestación de servicios profesionales y de apoyo a la gestión, o para la ejecución de trabajos artísticos que sólo puedan encomendarse a determinadas personas naturales","PRESTACIÓN DE SERVICIOS PROFESIONALES AL FONDO DE DESARROLLO LOCAL DE LA CANDELARIA PARA ATENDER LAS PETICIONES QUEJAS RECLAMOS YO SOLICITUDES PRESENTADAS POR LA CIUDADANÍA DE CONFORMIDAD CON LOS TÉRMINOS LEGALES ESTABLECIDOS Y APOYAR LAS RESPUESTAS REQUERIDAS POR LOS ENTES DE CONTROL.","INVERSION","Un nuevo contrato social y ambiental para la Bogotá del Siglo XXI",57,"Gestión Pública Local","Propósito 5. Construir Bogotà - Regiòn con gobierno abierto, transparente y ciudadanìa consciente. ","O23011605570000002021",1,1024482565,"BRIAN DANILO DUARTE MONTAÑO","Persona Natural",null,null,null,null,20000000,null,2,10000000,30000000,30000000,"2022-01-14","2022-01-14","2023-01-09",120,1,"2 MESES","N/A","N/A","N/A","N/A","TERMINADO",1]
["FDLC-CPS-008-2024",2024,"FDLC-CPS-008-2024","https://community.secop.gov.co/Public/Tendering/OpportunityDetail/Index?noticeUID=CO1.NTC.5643570&isFromPublicArea=True&isModal=true&asPopupView=true","CPS","CONTRATACION DIRECTA","Prestación de servicios profesionales y de apoyo a la gestión, o para la ejecución de trabajos artísticos que sólo puedan encomendarse a determinadas personas naturales","PRESTAR SERVICIOS PROFESIONALES PARA EL SEGUIMIENTO JURÍDICO DE LOS PROYECTOS DE INFRAESTRUCTURA ASÍ COMO LOS DEMÁS ASUNTOS CONTRACTUALES QUE SE REQUIERAN","INVERSION","Un nuevo contrato social y ambiental para la Bogotá del Siglo XXI",49,"Movilidad segura, sostenible y accesible","Propòsito 4. Hacer de Bogotà - Region un modelo de movilidad multimodal, incluyente y sostenible ","O23011604490000002020",1,53032345,"JUAN PABLO ORTIZ MARTINEZ","Persona Natural",null,null,null,null,24000000,null,1,12000000,36000000,36000000,"2022-01-14","2022-01-14","2022-12-13",120,1,"2 MESES","N/A","N/A","N/A","N/A","TERMINADO",1]
["FDLC-CPS-009-2024",2024,"FDLC-CPS-009-2024","https://community.secop.gov.co/Public/Tendering/OpportunityDetail/Index?noticeUID=CO1.NTC.5643825&isFromPublicArea=True&isModal=true&asPopupView=true","CPS","CONTRATACION DIRECTA","Prestación de servicios profesionales y de apoyo a la gestión, o para la ejecución de trabajos artísticos que sólo puedan encomendarse a determinadas personas naturales"," PRESTAR SERVICIOS PROFESIONALES ESPECIALIZADOS PARA REALIZAR LA COORDINACION TÉCNICA Y OPERATIVA DEL SEGUIMIENTO DE PLANES POLÍTICAS PROGRAMAS Y PROYECTOS DE INFRAESTRUCTURA Y OBRAS CIVILES QUE DESARROLLE LA ALCALDÍA LOCAL DE LA CANDELARIA EN EL MARCO DEL PLAN DE DESARROLLO LOCAL 2021-2024.","INVERSION","Un nuevo contrato social y ambiental para la Bogotá del Siglo XXI",49,"Movilidad segura, sostenible y accesible","Propòsito 4. Hacer de Bogotà - Region un modelo de movilidad multimodal, incluyente y sostenible ","O23011604490000002020",1,1140864695,"FABIAN HUMBERTO SALAMANCA JIMENEZ","Persona Natural",null,null,null,null,36000000,null,1,18000000,54000000,54000000,"2022-01-14","2022-01-14","2022-12-13",120,1,"2 MESES","N/A","N/A","N/A","N/A","TERMINADO",1]
["FDLC-CPS-010-2024",2024,"FDLC-CPS-010-2024","https://community.secop.gov.co/Public/Tendering/OpportunityDetail/Index?noticeUID=CO1.NTC.5649233&isFromPublicArea=True&isModal=true&asPopupView=true","CPS","CONTRATACION DIRECTA","Prestación de servicios profesionales y de apoyo a la gestión, o para la ejecución de trabajos artísticos que sólo puedan encomendarse a determinadas personas naturales","PRESTAR SERVICIOS PROFESIONALES PARA EL SEGUIMIENTO JURÍDICO DE LOS PROYECTOS DE INFRAESTRUCTURA ASÍ COMO LOS DEMÁS ASUNTOS CONTRACTUALES QUE SE REQUIERAN","INVERSION","Un nuevo contrato social y ambiental para la Bogotá del Siglo XXI",49,"Movilidad segura, sostenible y accesible","Propòsito 4. Hacer de Bogotà - Region un modelo de movilidad multimodal, incluyente y sostenible ","O23011604490000002020",1,51879946,"DAVID RICARDO PEÑALOZA LOMBO ","Persona Natural",null,null,null,null,24000000,null,0,0,24000000,24000000,"2022-01-14","2022-01-14","2022-12-30",120,1,"NO APLICA","N/A","N/A","N/A","N/A","TERMINADO",1]
["FDLC-CPS-011-2024",2024,"FDLC-CPS-011-2024","https://community.secop.gov.co/Public/Tendering/OpportunityDetail/Index?noticeUID=CO1.NTC.5643454&isFromPublicArea=True&isModal=true&asPopupView=true","CPS","CONTRATACION DIRECTA","Prestación de servicios profesionales y de apoyo a la gestión, o para la ejecución de trabajos artísticos que sólo puedan encomendarse a determinadas personas naturales","PRESTAR SERVICIOS PROFESIONALES EN MATERIA JURIDICA Y EN ARTICULACIÓN INTERINSTITUCIONAL A LA ALCALDIA LOCAL DE LA CANDELARIA","INVERSION","Un nuevo contrato social y ambiental para la Bogotá del Siglo XXI",57,"Gestión Pública Local","Propósito 5. Construir Bogotà - Regiòn con gobierno abierto, transparente y ciudadanìa consciente. ","O23011605570000002021",1,79814029,"LINDA ALEXA PAOLA PRIETO GARZON","Persona Natural",null,null,null,null,26000000,null,1,13000000,39000000,36400000,"2022-01-14","2022-01-14","2022-12-26",120,1,"2 MESES","N/A","N/A","N/A","N/A","TERMINADO",0.93333333333333335]
["FDLC-CPS-012-2024",2024,"FDLC-CPS-012-2024","https://community.secop.gov.co/Public/Tendering/OpportunityDetail/Index?noticeUID=CO1.NTC.5647117&isFromPublicArea=True&isModal=true&asPopupView=true","CPS","CONTRATACION DIRECTA","Prestación de servicios profesionales y de apoyo a la gestión, o para la ejecución de trabajos artísticos que sólo puedan encomendarse a determinadas personas naturales","PRESTAR SERVICIOS PROFESIONALES AL FONDO DE DESARROLLO LOCAL DE LA CANDELARIA PARA APOYAR EL SEGUIMIENTO LIQUIDACIÓN DEPURACIÓN Y CONSOLIDACIÓN DE LA INFORMACIÓN DE LAS OBLIGACIONES POR PAGAR ASI COMO LAS DEMAS ACTIVIDADES DERIVADAS DE LA GESTIÓN CONTRACTUAL REQUERIDAS POR LA ENTIDAD","INVERSION","Un nuevo contrato social y ambiental para la Bogotá del Siglo XXI",57,"Gestión Pública Local","Propósito 5. Construir Bogotà - Regiòn con gobierno abierto, transparente y ciudadanìa consciente. ","O23011605570000002021",1,51875915,"YOSMILE RODRÍGUEZ CUARTAS","Persona Natural",null,null,null,null,20000000,null,1,10000000,{"$f":"+W25+X25+Z25","v":30000000},30000000,"2022-01-14","2022-01-14","2022-10-13",120,1,"2 MESES","N/A","N/A","N/A","N/A","TERMINADO",1]
["FDLC-CPS-013-2024",2024,"FDLC-CPS-013-2024","https://community.secop.gov.co/Public/Tendering/OpportunityDetail/Index?noticeUID=CO1.NTC.5667006&isFromPublicArea=True&isModal=true&asPopupView=true","CPS","CONTRATACION DIRECTA","Prestación de servicios profesionales y de apoyo a la gestión, o para la ejecución de trabajos artísticos que sólo puedan encomendarse a determinadas personas naturales","PRESTAR SERVICIOS ASISTENCIALES PARA APOYAR EN LAS TAREAS RELACIONADAS CON LA GESTIÓN DOCUMENTAL DE LA ALCALDIA LOCAL DE LA CANDELARIA","INVERSION","Un nuevo contrato social y ambiental para la Bogotá del Siglo XXI",57,"Gestión Pública Local","Propósito 5. Construir Bogotà - Regiòn con gobierno abierto, transparente y ciudadanìa consciente. ","O23011605570000002021",1,12139994,"LUIS BARRIGA PINZON","Persona Natural",null,null,null,null,7956000,null,1,1989000,9945000,{"$f":"+X26+Y26+AA26","v":9945001},"2022-01-18","2022-01-18","2022-12-30",120,1,"1 MES","N/A","N/A","N/A","N/A","TERMINADO",1.0000001005530417]
["FDLC-CPS-014-2024",2024,"FDLC-CPS-014-2024","https://community.secop.gov.co/Public/Tendering/OpportunityDetail/Index?noticeUID=CO1.NTC.5651948&isFromPublicArea=True&isModal=true&asPopupView=true","CPS","CONTRATACION DIRECTA","Prestación de servicios profesionales y de apoyo a la gestión, o para la ejecución de trabajos artísticos que sólo puedan encomendarse a determinadas personas naturales","APOYAR AL ALCALDE LOCAL EN LA FORMULACIÓN SEGUIMIENTO E IMPLEMENTACIÓN DE LA ESTRATEGIA LOCAL PARA LA TERMINACIÓN JURÍDICA DE LAS ACTUACIONES ADMINISTRATIVAS QUE CURSAN EN LA ALCALDÍA LOCAL.","INVERSION","Un nuevo contrato social y ambiental para la Bogotá del Siglo XXI",57,"Gestión Pública Local","Propósito 5. Construir Bogotà - Regiòn con gobierno abierto, transparente y ciudadanìa consciente. ","O23011605570000002023",1,1102807537,"YENNI LORENA INFANTE GARCIA ","Persona Natural",null,null,null,null,29792000,null,2,14896000,44688000,44688000,"2022-01-14","2022-01-14","2023-01-09",120,1,"2 MESES","N/A","N/A","N/A","N/A","TERMINADO",1]
["FDLC-CPS-015-2024",2024,"FDLC-CPS-015-2024","https://community.secop.gov.co/Public/Tendering/OpportunityDetail/Index?noticeUID=CO1.NTC.5651753&isFromPublicArea=True&isModal=true&asPopupView=true","CPS","CONTRATACION DIRECTA","Prestación de servicios profesionales y de apoyo a la gestión, o para la ejecución de trabajos artísticos que sólo puedan encomendarse a determinadas personas naturales","APOYAR AL ALCALDE LOCAL EN LA FORMULACIÓN SEGUIMIENTO E IMPLEMENTACIÓN DE LA ESTRATEGIA LOCAL PARA LA TERMINACIÓN JURÍDICA DE LAS ACTUACIONES ADMINISTRATIVAS QUE CURSAN EN LA ALCALDÍA LOCAL","INVERSION","Un nuevo contrato social y ambiental para la Bogotá del Siglo XXI",57,"Gestión Pública Local","Propósito 5. Construir Bogotà - Regiòn con gobierno abierto, transparente y ciudadanìa consciente. ","O23011605570000002023",1,1026255127,"YEIMIT YORYEY ROMERO HUERTAS ","Persona Natural",null,null,null,null,29792000,null,1,14896000,44688000,{"$f":"+X28+Y28+AA28","v":44688001},"2022-01-14","2022-01-14","2023-01-13",120,1,"2 MESES","N/A","N/A","N/A","N/A","TERMINADO",1.000000022377372]
["FDLC-CPS-016-2024",2024,"FDLC-CPS-016-2024","https://community.secop.gov.co/Public/Tendering/OpportunityDetail/Index?noticeUID=CO1.NTC.5652659&isFromPublicArea=True&isModal=true&asPopupView=true","CPS","CONTRATACION DIRECTA","Prestación de servicios profesionales y de apoyo a la gestión, o para la ejecución de trabajos artísticos que sólo puedan encomendarse a determinadas personas naturales","PRESTAR SERVICIOS PROFESIONALES EN MATERIA JURIDICA Y EN ARTICULACIÓN INTERINSTITUCIONAL A LA ALCALDIA LOCAL DE LA CANDELARIA","INVERSION","Un nuevo contrato social y ambiental para la Bogotá del Siglo XXI",57,"Gestión Pública Local","Propósito 5. Construir Bogotà - Regiòn con gobierno abierto, transparente y ciudadanìa consciente. ","O23011605570000002021",1,1022956077,"LEIDY KARINA CASTILLO PUENTES","Persona Natural",null,null,null,null,26000000,null,0,0,26000000,26000000,"2022-01-14","2022-01-14","2022-10-13",120,null,"NO APLICA","N/A","N/A","N/A","N/A","TERMINADO",1]
["FDLC-CPS-017-2024",2024,"FDLC-CPS-017-2024","https://community.secop.gov.co/Public/Tendering/OpportunityDetail/Index?noticeUID=CO1.NTC.5656582&isFromPublicArea=True&isModal=true&asPopupView=true","CPS","CONTRATACION DIRECTA","Prestación de servicios profesionales y de apoyo a la gestión, o para la ejecución de trabajos artísticos que sólo puedan encomendarse a determinadas personas naturales","PRESTAR SERVICIOS DE APOYO TÉCNICO EN LAS DISTINTAS ETAPAS DE LOS PROCESOS CONTRACTUALES BRINDANDO ACOMPAÑAMIENTO Y SEGUIMIENTO EN LA IMPLEMENTACIÓN DEL SISTEMA DE GESTIÓN DE SEGURIDAD Y SALUD EN EL TRABAJO DE LA ALCALDÍA LOCAL DE LA CANDELARIA Y LAS DEMÁS ACTIVIDADES QUE SE REQUIERAN EN LA REVISIÓN ACTUALIZACIÓN Y ARCHIVO DE DOCUMENTOS PRECONTRACTUALES CONTRACTUALES Y POSTCONTRACTUALES","INVERSION","Un nuevo contrato social y ambiental para la Bogotá del Siglo XXI",57,"Gestión Pública Local","Propósito 5. Construir Bogotà - Regiòn con gobierno abierto, transparente y ciudadanìa consciente. ","O23011605570000002021",1,41794885,"DIEGO JOHAN VARGAS TORRES","Persona Natural",null,null,null,null,13524000,null,2,6762000,20286000,20286000,"2022-01-17","2022-01-17","2022-10-16",120,2,"2 MESES","N/A","N/A","N/A","N/A","TERMINADO",1]
["FDLC-CPS-018-2024",2024,"FDLC-CPS-018-2024","https://community.secop.gov.co/Public/Tendering/OpportunityDetail/Index?noticeUID=CO1.NTC.5655594&isFromPublicArea=True&isModal=true&asPopupView=true","CPS","CONTRATACION DIRECTA","Prestación de servicios profesionales y de apoyo a la gestión, o para la ejecución de trabajos artísticos que sólo puedan encomendarse a determinadas personas naturales","PRESTAR SERVICIOS PROFESIONALES AL FONDO DE DESARROLLO LOCAL DE LA CANDELARIA EN LOS TRÁMITES RELACIONADOS CON LOS PROCESOS PRECONTRACTUALES CONTRACTUALES Y POS CONTRACTUALES QUE SE ADELANTEN A TRAVÉS DE SECOP I Y II ASÍ COMO LA ADQUISICIÓN DE BIENES Y SERVICIOS A TRAVÉS DE LA TIENDA VIRTUAL DEL ESTADO COLOMBIANO","INVERSION","Un nuevo contrato social y ambiental para la Bogotá del Siglo XXI",57,"Gestión Pública Local","Propósito 5. Construir Bogotà - Regiòn con gobierno abierto, transparente y ciudadanìa consciente. ","O23011605570000002021",1,52305372,"DIANA CATHERINE GONZALEZ MOLANO","Persona Natural",null,null,null,null,29792000,null,1,14896000,44688000,44688000,"2022-01-14","2022-01-14","2023-01-12",120,1,"2 MESES","N/A","N/A","N/A","N/A","TERMINADO",1]
["FDLC-CPS-019-2024",2024,"FDLC-CPS-019-2024","https://community.secop.gov.co/Public/Tendering/OpportunityDetail/Index?noticeUID=CO1.NTC.5655936&isFromPublicArea=True&isModal=true&asPopupView=true","CPS","CONTRATACION DIRECTA","Prestación de servicios profesionales y de apoyo a la gestión, o para la ejecución de trabajos artísticos que sólo puedan encomendarse a determinadas personas naturales","PRESTAR SERVICIOS PROFESIONALES AL FONDO DE DESARROLLO LOCAL DE LA CANDELARIA PARA APOYAR Y FORTALECER LAS GESTIONES CONTABLES  DE LA ENTIDAD","INVERSION","Un nuevo contrato social y ambiental para la Bogotá del Siglo XXI",57,"Gestión Pública Local","Propósito 5. Construir Bogotà - Regiòn con gobierno abierto, transparente y ciudadanìa consciente. ","O23011605570000002021",1,1022973767,"NHUR PERTUZ SANCHEZ","Persona Natural",null,null,null,null,23200000,null,1,11600000,34800000,34800000,"2022-01-14","2022-01-14","2022-10-13",120,1,"2 MESES","N/A","N/A","N/A","N/A","TERMINADO",1]
["FDLC-CPS-020-2024",2024,"FDLC-CPS-020-2024","https://community.secop.gov.co/Public/Tendering/OpportunityDetail/Index?noticeUID=CO1.NTC.5657390&isFromPublicArea=True&isModal=true&asPopupView=true","CPS","CONTRATACION DIRECTA","Prestación de servicios profesionales y de apoyo a la gestión, o para la ejecución de trabajos artísticos que sólo puedan encomendarse a determinadas personas naturales","PRESTAR SERVICIOS PROFESIONALES AL FONDO DE DESARROLLO LOCAL DE LA CANDELARIA EN LOS TRÁMITES RELACIONADOS CON LOS PROCESOS PRECONTRACTUALES CONTRACTUALES Y POS CONTRACTUALES QUE SE ADELANTEN A TRAVÉS DE SECOP I Y II ASÍ COMO LA ADQUISICIÓN DE BIENES Y SERVICIOS A TRAVÉS DE LA TIENDA VIRTUAL DEL ESTADO COLOMBIANO","INVERSION","Un nuevo contrato social y ambiental para la Bogotá del Siglo XXI",57,"Gestión Pública Local","Propósito 5. Construir Bogotà - Regiòn con gobierno abierto, transparente y ciudadanìa consciente. ","O23011605570000002021",1,41648295,"GUSTAVO ALFREDO FIERRO PARRA ","Persona Natural",null,null,null,null,29792000,null,1,14896000,44688000,44688000,"2022-01-18","2022-01-18","2022-08-17",120,1,"2 MESES","N/A","N/A","N/A","N/A","TERMINADO",1]
["FDLC-CPS-021-2024",2024,"FDLC-CPS-021-2024","https://community.secop.gov.co/Public/Tendering/OpportunityDetail/Index?noticeUID=CO1.NTC.5675198&isFromPublicArea=True&isModal=true&asPopupView=true","CPS","CONTRATACION DIRECTA","Prestación de servicios profesionales y de apoyo a la gestión, o para la ejecución de trabajos artísticos que sólo puedan encomendarse a determinadas personas naturales","PRESTAR SERVICIOS ASISTENCIALES AL ÁREA DE GESTIÓN DE DESARROLLO LOCAL EN LOS PROCESOS Y ACTIVIDADES DE GESTIÓN ADMINISTRATIVA DE LA ALCALDÍA LOCAL DE LA CANDELARIA","INVERSION","Un nuevo contrato social y ambiental para la Bogotá del Siglo XXI",57,"Gestión Pública Local","Propósito 5. Construir Bogotà - Regiòn con gobierno abierto, transparente y ciudadanìa consciente. ","O23011605570000002021",1,14250858,"LIZ DAIRA JHINETHG TORRES SALDAÑA","Persona Natural",null,null,null,null,7956000,null,0,0,7956000,{"$f":"+X34+Y34+AA34","v":7956000},"2022-01-18","2022-01-18","2022-12-17",120,null,"NO APLICA","N/A","N/A","N/A","N/A","TERMINADO",1]
["FDLC-CPS-022-2024",2024,"FDLC-CPS-022-2024","https://community.secop.gov.co/Public/Tendering/OpportunityDetail/Index?noticeUID=CO1.NTC.5670012&isFromPublicArea=True&isModal=true&asPopupView=true","CPS","CONTRATACION DIRECTA","Prestación de servicios profesionales y de apoyo a la gestión, o para la ejecución de trabajos artísticos que sólo puedan encomendarse a determinadas personas naturales","PRESTAR SERVICIOS DE APOYO A LA GESTIÓN DEL FONDO DE DESARROLLO LOCAL DE LA CANDELARIA EN EL CENTRO DE INFORMACIÓN Y DOCUMENTACIÓN (CDI) PARA EL MANEJO Y PROCESO DE DISTRIBUCIÓN DE CORRESPONDENCIA EN GENERAL.","INVERSION","Un nuevo contrato social y ambiental para la Bogotá del Siglo XXI",57,"Gestión Pública Local","Propósito 5. Construir Bogotà - Regiòn con gobierno abierto, transparente y ciudadanìa consciente. ","O23011605570000002021",1,1033731738,"BLADIMIR OVIEDO RUIZ","Persona Natural",null,null,null,null,11532000,null,1,5766000,17298000,17298000,"2022-01-18","2022-01-18","2022-11-17",120,1,"2 MESES","N/A","N/A","N/A","N/A","TERMINADO",1]
["FDLC-CPS-023-2024",2024,"FDLC-CPS-023-2024","https://community.secop.gov.co/Public/Tendering/OpportunityDetail/Index?noticeUID=CO1.NTC.5666106&isFromPublicArea=True&isModal=true&asPopupView=true","CPS","CONTRATACION DIRECTA","Prestación de servicios profesionales y de apoyo a la gestión, o para la ejecución de trabajos artísticos que sólo puedan encomendarse a determinadas personas naturales","COORDINA LIDERA Y ASESORA LOS PLANES Y ESTRATEGIAS DE COMUNICACIÓN INTERNA Y EXTERNA PARA LA DIVULGACIÓN DE LOS PROGRAMAS PROYECTOS Y ACTIVIDADES DE LA ALCALDÍA LOCAL.","INVERSION","Un nuevo contrato social y ambiental para la Bogotá del Siglo XXI",57,"Gestión Pública Local","Propósito 5. Construir Bogotà - Regiòn con gobierno abierto, transparente y ciudadanìa consciente. ","O23011605570000002021",1,1010198763,"ANGIE MARCELA ALVARADO GAONA","Persona Natural",null,null,null,null,29792000,null,1,14896000,44688000,44688000,"2022-01-17","2022-01-17","2023-01-14",120,1,"2 MESES","N/A","N/A","N/A","N/A","TERMINADO",1]
["FDLC-CPS-024-2024",2024,"FDLC-CPS-024-2024","https://community.secop.gov.co/Public/Tendering/OpportunityDetail/Index?noticeUID=CO1.NTC.5673034&isFromPublicArea=True&isModal=true&asPopupView=true","CPS","CONTRATACION DIRECTA","Prestación de servicios profesionales y de apoyo a la gestión, o para la ejecución de trabajos artísticos que sólo puedan encomendarse a determinadas personas naturales","PRESTAR SERVICIOS PROFESIONALES AL FONDO DE DESARROLLO LOCAL DE LA CANDELARIA EN LOS TRÁMITES RELACIONADOS CON LOS PROCESOS PRECONTRACTUALES CONTRACTUALES Y POS CONTRACTUALES ASÍ COMO LA GESTION Y SEGUMIENTO DE LAS OBLIGACIONES POR PAGAR","INVERSION","Un nuevo contrato social y ambiental para la Bogotá del Siglo XXI",57,"Gestión Pública Local","Propósito 5. Construir Bogotà - Regiòn con gobierno abierto, transparente y ciudadanìa consciente. ","O23011605570000002021",1,52520044,"PAOLA ANDREA PADILLA AYARZA","Persona Natural",null,null,null,null,29792000,null,1,14896000,44688000,44688000,"2022-01-17","2022-01-17","2023-01-16",120,1,"2 MESES","N/A","N/A","N/A","N/A","TERMINADO",1]
["FDLC-CPS-025-2024",2024,"FDLC-CPS-025-2024","https://community.secop.gov.co/Public/Tendering/OpportunityDetail/Index?noticeUID=CO1.NTC.5667233&isFromPublicArea=True&isModal=true&asPopupView=true","CPS","CONTRATACION DIRECTA","Prestación de servicios profesionales y de apoyo a la gestión, o para la ejecución de trabajos artísticos que sólo puedan encomendarse a determinadas personas naturales","PRESTAR SERVICIOS ASISTENCIALES PARA APOYAR EN LAS TAREAS RELACIONADAS CON LA GESTIÓN DOCUMENTAL DE LA ALCALDIA LOCAL DE LA CANDELARIA","INVERSION","Un nuevo contrato social y ambiental para la Bogotá del Siglo XXI",57,"Gestión Pública Local","Propósito 5. Construir Bogotà - Regiòn con gobierno abierto, transparente y ciudadanìa consciente. ","O23011605570000002021",1,41762577,"JENY GONZALEZ CANTOR","Persona Natural",null,null,null,null,7956000,null,2,3978000,11934000,11934000,"2022-01-18","2022-01-18","2022-10-16",120,2,"2 MESES","N/A","N/A","N/A","N/A","TERMINADO",1]
["FDLC-CPS-026-2024",2024,"FDLC-CPS-026-2024","https://community.secop.gov.co/Public/Tendering/OpportunityDetail/Index?noticeUID=CO1.NTC.5669789&isFromPublicArea=True&isModal=true&asPopupView=true","CPS","CONTRATACION DIRECTA","Prestación de servicios profesionales y de apoyo a la gestión, o para la ejecución de trabajos artísticos que sólo puedan encomendarse a determinadas personas naturales","PRESTAR SERVICIOS PROFESIONALES PARA APOYAR AL ALCALDE LOCAL DE LA CANDELARIA EN LA GESTIÓN DE LOS ASUNTOS RELACIONADOS CON SEGURIDAD CIUDADANA CONVIVENCIA Y PREVENCIÓN DE CONFLICTIVIDADES VIOLENCIAS Y DELITOS EN LA LOCALIDAD DE CONFORMIDAD CON EL MARCO NORMATIVO APLICABLE EN LA MATERIA.","INVERSION","Un nuevo contrato social y ambiental para la Bogotá del Siglo XXI",57,"Gestión Pública Local","Propósito 5. Construir Bogotà - Regiòn con gobierno abierto, transparente y ciudadanìa consciente. ","O23011605570000002021",1,1024462252,"JENNY CAROLINA CRISTANCHO MORENO","Persona Natural",null,null,null,null,24000000,null,1,12000000,36000000,36000000,"2022-01-18","2022-01-18","2022-09-25",120,1,"2 MESES","N/A","N/A","N/A","N/A","TERMINADO",1]
["FDLC-CPS-027-2024",2024,"FDLC-CPS-027-2024","https://community.secop.gov.co/Public/Tendering/OpportunityDetail/Index?noticeUID=CO1.NTC.5672963&isFromPublicArea=True&isModal=true&asPopupView=true","CPS","CONTRATACION DIRECTA","Prestación de servicios profesionales y de apoyo a la gestión, o para la ejecución de trabajos artísticos que sólo puedan encomendarse a determinadas personas naturales","PRESTAR SERVICIOS DE APOYO  AL FONDO DE DESARROLLO LOCAL DE LA CANDELARIA EN LA ADMINISTRACIÓN DE LAS CASAS COMUNITARIAS DE LA LOCALIDAD DE LA CANDELARIA DE CONFORMIDAD CON EL ACUERDO LOCAL 006 DE 2013","INVERSION","Un nuevo contrato social y ambiental para la Bogotá del Siglo XXI",57,"Gestión Pública Local","Propósito 5. Construir Bogotà - Regiòn con gobierno abierto, transparente y ciudadanìa consciente. ","O23011605570000002021",1,93086512,"RODRIGO DELGADO DIAZ","Persona Natural",null,null,null,null,11532000,null,1,5766000,17298000,17298000,"2022-01-19","2022-01-19","2022-09-18",120,1,"2 MESES","N/A","N/A","N/A","N/A","TERMINADO",1]
["FDLC-CPS-028-2024",2024,"FDLC-CPS-028-2024","https://community.secop.gov.co/Public/Tendering/OpportunityDetail/Index?noticeUID=CO1.NTC.5672489&isFromPublicArea=True&isModal=true&asPopupView=true","CPS","CONTRATACION DIRECTA","Prestación de servicios profesionales y de apoyo a la gestión, o para la ejecución de trabajos artísticos que sólo puedan encomendarse a determinadas personas naturales","PRESTAR SERVICIOS ASISTENCIALES AL ÁREA DE GESTIÓN DE DESARROLLO LOCAL EN LOS PROCESOS Y ACTIVIDADES DE GESTIÓN ADMINISTRATIVA DE LA ALCALDÍA LOCAL DE LA CANDELARIA.","INVERSION","Un nuevo contrato social y ambiental para la Bogotá del Siglo XXI",57,"Gestión Pública Local","Propósito 5. Construir Bogotà - Regiòn con gobierno abierto, transparente y ciudadanìa consciente. ","O23011605570000002021",1,49729700,"LUIS HERNANDO AMAYA CASTILLO","Persona Natural",null,null,null,null,7956000,null,1,1989000,9945000,9945000,"2022-01-21","2022-01-21","2022-10-20",120,1,"1 MES","N/A","N/A","N/A","N/A","TERMINADO",1]
["FDLC-CPS-029-2024",2024,"FDLC-CPS-029-2024","https://community.secop.gov.co/Public/Tendering/OpportunityDetail/Index?noticeUID=CO1.NTC.5672978&isFromPublicArea=True&isModal=true&asPopupView=true","CPS","CONTRATACION DIRECTA","Prestación de servicios profesionales y de apoyo a la gestión, o para la ejecución de trabajos artísticos que sólo puedan encomendarse a determinadas personas naturales","PRESTAR SERVICIOS PROFESIONALES AL FONDO DE DESARROLLO LOCAL DE LA CANDELARIA EN LOS TRÁMITES RELACIONADOS CON LOS PROCESOS PRECONTRACTUALES CONTRACTUALES Y POS CONTRACTUALES QUE SE ADELANTEN A TRAVÉS DE SECOP I Y II ASÍ COMO LA ADQUISICIÓN DE BIENES Y SERVICIOS A TRAVÉS DE LA TIENDA VIRTUAL DEL ESTADO COLOMBIANO","INVERSION","Un nuevo contrato social y ambiental para la Bogotá del Siglo XXI",57,"Gestión Pública Local","Propósito 5. Construir Bogotà - Regiòn con gobierno abierto, transparente y ciudadanìa consciente. ","O23011605570000002021",1,79749022,"JULIETH TATIANA SANCHEZ CASTILLO","Persona Natural",null,null,null,null,29792000,null,0,0,29792000,12165067,"2022-01-18","2022-01-18","2022-07-17",120,null,"NO APLICA","N/A","N/A","N/A","N/A","TERMINADO",0.40833334452201936]
["FDLC-CPS-030-2024",2024,"FDLC-CPS-030-2024","https://community.secop.gov.co/Public/Tendering/OpportunityDetail/Index?noticeUID=CO1.NTC.5683461&isFromPublicArea=True&isModal=true&asPopupView=true","CPS","CONTRATACION DIRECTA","Prestación de servicios profesionales y de apoyo a la gestión, o para la ejecución de trabajos artísticos que sólo puedan encomendarse a determinadas personas naturales","PRESTAR SERVICIOS PROFESIONALES AL FONDO DE DESARROLLO LOCAL DE LA CANDELARIA PARA APOYAR Y FORTALECER LAS GESTIONES CONTABLES DE LA ENTIDAD.","INVERSION","Un nuevo contrato social y ambiental para la Bogotá del Siglo XXI",57,"Gestión Pública Local","Propósito 5. Construir Bogotà - Regiòn con gobierno abierto, transparente y ciudadanìa consciente. ","O23011605570000002021",1,53166387,"EDGAR ANTONIO PEREZ BELTRAN","Persona Natural",null,null,null,null,23200000,null,1,5800000,29000000,29000000,"2022-01-18","2022-01-18","2022-10-17",120,1,"1 MES","N/A","N/A","N/A","N/A","TERMINADO",1]
["FDLC-CPS-031-2024",2024,"FDLC-CPS-031-2024","https://community.secop.gov.co/Public/Tendering/OpportunityDetail/Index?noticeUID=CO1.NTC.5683458&isFromPublicArea=True&isModal=true&asPopupView=true","CPS","CONTRATACION DIRECTA","Prestación de servicios profesionales y de apoyo a la gestión, o para la ejecución de trabajos artísticos que sólo puedan encomendarse a determinadas personas naturales","PRESTAR LOS SERVICIOS PROFESIONALES PARA APOYAR EN EL CUBRIMIENTO ELABORACIÓN DIFUSIÓN GESTIÓN Y PUBLICACIÓN DE CONTENIDOS INSTITUCIONALES Y MATERIAL GRÁFICO DE COMUNICACIÓN EN LAS REDES SOCIALES HERRAMIENTAS INSTITUCIONALES DE COMUNICACIÓN Y PÁGINA WEB DE LA ALCALDÍA LOCAL DE LA CANDELARIA","INVERSION","Un nuevo contrato social y ambiental para la Bogotá del Siglo XXI",57,"Gestión Pública Local","Propósito 5. Construir Bogotà - Regiòn con gobierno abierto, transparente y ciudadanìa consciente. ","O23011605570000002021",1,1014177764,"KEVIN SEBASTIAN MELO RIVERA","Persona Natural",null,null,null,null,22000000,null,1,11000000,33000000,33000000,"2022-01-18","2022-01-18","2022-07-17",120,1,"2 MESES","N/A","N/A","N/A","N/A","TERMINADO",1]
["FDLC-CPS-032-2024",2024,"FDLC-CPS-032-2024","https://community.secop.gov.co/Public/Tendering/OpportunityDetail/Index?noticeUID=CO1.NTC.5689378&isFromPublicArea=True&isModal=true&asPopupView=true","CPS","CONTRATACION DIRECTA","Prestación de servicios profesionales y de apoyo a la gestión, o para la ejecución de trabajos artísticos que sólo puedan encomendarse a determinadas personas naturales","PRESTAR LOS SERVICIOS PROFESIONALESPARA APOYAR Y ACOMPAÑAR LAS ESTRATEGIAS DE FORTALECIMIENTO DE LAS POLÍTICAS DE EDUCACIÓN EN LA LOCALIDAD EN EL MARCO DEL PLAN DE DESARROLLO LOCAL VIGENTE.","INVERSION","Un nuevo contrato social y ambiental para la Bogotá del Siglo XXI",17,"Jóvenes con capacidades: Proyecto de vida para la ciudadanía, la innovación y el trabajo del siglo XXI","Propósito 1. Hacer un nuevo contrato social con igualdad de oportunidades para la inclusiòn social, productiva y polìtica ","O23011601170000001607",1,80239278,"JENNY KATHERINE GONZALEZ SANCHEZ","Persona Natural",null,null,null,null,20000000,null,1,5000000,25000000,25000000,"2022-01-18","2022-01-18","2023-01-06",120,1,"1 MES","N/A","N/A","N/A","N/A","TERMINADO",1]
["FDLC-CPS-033-2024",2024,"FDLC-CPS-033-2024","https://community.secop.gov.co/Public/Tendering/OpportunityDetail/Index?noticeUID=CO1.NTC.5687972&isFromPublicArea=True&isModal=true&asPopupView=true","CPS","CONTRATACION DIRECTA","Prestación de servicios profesionales y de apoyo a la gestión, o para la ejecución de trabajos artísticos que sólo puedan encomendarse a determinadas personas naturales","PRESTAR EL APOYO SECRETARIAL A LA JUNTA ADMINISTRADORA LOCAL","INVERSION","Un nuevo contrato social y ambiental para la Bogotá del Siglo XXI",57,"Gestión Pública Local","Propósito 5. Construir Bogotà - Regiòn con gobierno abierto, transparente y ciudadanìa consciente. ","O23011605570000002021",1,50875779,"ISABEL CRISTINA BULLA RODRIGUEZ","Persona Natural",null,null,null,null,11352000,null,1,5766000,17118000,17118000,"2022-01-18","2022-01-18","2022-12-30",120,1,"2 MESES","N/A","N/A","N/A","N/A","TERMINADO",1]
["FDLC-CPS-034-2024",2024,"FDLC-CPS-034-2024","https://community.secop.gov.co/Public/Tendering/OpportunityDetail/Index?noticeUID=CO1.NTC.5688058&isFromPublicArea=True&isModal=true&asPopupView=true","CPS","CONTRATACION DIRECTA","Prestación de servicios profesionales y de apoyo a la gestión, o para la ejecución de trabajos artísticos que sólo puedan encomendarse a determinadas personas naturales","PRESTAR SERVICIOS PROFESIONALES AL FONDO DE DESARROLLO LOCAL DE LA CANDELARIA EN ASUNTOS RELACIONADOS CON LA GESTIÓN Y ATENCIÓN DEL RIESGO Y CAMBIO CLIMÁTICO EN LA LOCALIDAD. SIPSE 104663","INVERSION","Un nuevo contrato social y ambiental para la Bogotá del Siglo XXI",30,"Eficiencia en la atención de emergencias","Propòsito 2. Cambiar nuestros hàbitos de vida para reverdecer a Bogotà y adaptarnos y mitigar la crisis climàtica.","O23011602300000001702",1,1032456470,"JESUS DANIEL OÑATE OLIVELLA","Persona Natural",null,null,null,null,26000000,null,1,13000000,39000000,39000000,"2022-01-18","2022-01-18","2023-01-15",120,1,"2 MESES","N/A","N/A","N/A","N/A","TERMINADO",1]
["FDLC-CPS-035-2024",2024,"FDLC-CPS-035-2024","https://community.secop.gov.co/Public/Tendering/OpportunityDetail/Index?noticeUID=CO1.NTC.5689766&isFromPublicArea=True&isModal=true&asPopupView=true","CPS","CONTRATACION DIRECTA","Prestación de servicios profesionales y de apoyo a la gestión, o para la ejecución de trabajos artísticos que sólo puedan encomendarse a determinadas personas naturales","PRESTAR LOS SERVICIOS PROFESIONALES PARA APOYAR EN EL CUBRIMIENTO ELABORACIÓN DIFUSIÓN GESTIÓN Y PUBLICACIÓN DE CONTENIDOS INSTITUCIONALES Y MATERIAL GRÁFICO DE COMUNICACIÓN EN LAS REDES SOCIALES HERRAMIENTAS INSTITUCIONALES DE COMUNICACIÓN Y PÁGINA WEB DE LA ALCALDÍA LOCAL DE LA CANDELARIA","INVERSION","Un nuevo contrato social y ambiental para la Bogotá del Siglo XXI",57,"Gestión Pública Local","Propósito 5. Construir Bogotà - Regiòn con gobierno abierto, transparente y ciudadanìa consciente. ","O23011605570000002021",1,52219649,"LAURA JULIANA GONZALEZ GRANADA ","Persona Natural",null,null,null,null,22000000,null,1,5500000,27500000,27500000,"2022-01-18","2022-01-18","2022-08-17",120,1,"1 MES","N/A","N/A","N/A","N/A","TERMINADO",1]
["FDLC-CPS-036-2024",2024,"FDLC-CPS-036-2024","https://community.secop.gov.co/Public/Tendering/OpportunityDetail/Index?noticeUID=CO1.NTC.5688459&isFromPublicArea=True&isModal=true&asPopupView=true","CPS","CONTRATACION DIRECTA","Prestación de servicios profesionales y de apoyo a la gestión, o para la ejecución de trabajos artísticos que sólo puedan encomendarse a determinadas personas naturales","PRESTAR SERVICIOS PROFESIONALES EN LA IDENTIFICACIÓN PREVENCIÓN Y ATENCIÓN DE LAS DIFERENTES PROBELMATICAS EN MATRERIA DE DERECHOS HUMANOS QUE SE PRESENTEN EN LA LOCALIDAD DE LA CANDELARIA ADOPTANDO ESTRATEGIAS QUE GARANTICEN SU PROTECCIÓN EFECTIVA","INVERSION","Un nuevo contrato social y ambiental para la Bogotá del Siglo XXI",57,"Gestión Pública Local","Propósito 5. Construir Bogotà - Regiòn con gobierno abierto, transparente y ciudadanìa consciente. ","O23011605570000002021",1,1032475141,"ANGIE NATALIA CAMACHO CAMACHO","Persona Natural",null,null,null,null,19092000,null,1,4773000,23865000,23865000,"2022-01-18","2022-01-18","2022-10-18",120,1,"1 MES","N/A","N/A","N/A","N/A","TERMINADO",1]
["FDLC-CPS-037-2024",2024,"FDLC-CPS-037-2024","https://community.secop.gov.co/Public/Tendering/OpportunityDetail/Index?noticeUID=CO1.NTC.5690598&isFromPublicArea=True&isModal=true&asPopupView=true","CPS","CONTRATACION DIRECTA","Prestación de servicios profesionales y de apoyo a la gestión, o para la ejecución de trabajos artísticos que sólo puedan encomendarse a determinadas personas naturales","\"PRESTAR SERVICIOS ASISTENCIALES AL ÁREA DE GESTIÓN DE DESARROLLO LOCAL EN LOS PROCESOS Y ACTIVIDADES DE GESTIÓN ADMINISTRATIVA DE LA ALCALDÍA LOCAL DE LA CANDELARIA\"","INVERSION","Un nuevo contrato social y ambiental para la Bogotá del Siglo XXI",57,"Gestión Pública Local","Propósito 5. Construir Bogotà - Regiòn con gobierno abierto, transparente y ciudadanìa consciente. ","O23011605570000002021",1,1032488659,"PAULA ANDREA RODRIGUEZ YARA","Persona Natural",null,null,null,null,7956000,null,0,0,7956000,7956000,"2022-01-18","2022-01-18","2022-08-17",120,null,"NO APLICA","N/A","N/A","N/A","N/A","TERMINADO",1]
["FDLC-CPS-038-2024",2024,"FDLC-CPS-038-2024","https://community.secop.gov.co/Public/Tendering/OpportunityDetail/Index?noticeUID=CO1.NTC.5705763&isFromPublicArea=True&isModal=true&asPopupView=true","CPS","CONTRATACION DIRECTA","Prestación de servicios profesionales y de apoyo a la gestión, o para la ejecución de trabajos artísticos que sólo puedan encomendarse a determinadas personas naturales","“PRESTAR SERVICIOS DE APOYO ADMINISTRATIVO Y ASISTENCIAL EN LA GESTIÓN DE LA ALCALDÍA LOCAL DE LA CANDELARIA EN EL TRÁMITE DE LOS COMPARENDOS Y QUERELLAS DE CONFORMIDAD CON LA LEY 1801 DE 2016”.","INVERSION","Un nuevo contrato social y ambiental para la Bogotá del Siglo XXI",57,"Gestión Pública Local","Propósito 5. Construir Bogotà - Regiòn con gobierno abierto, transparente y ciudadanìa consciente. ","O23011605570000002023",1,1010190450,"JESSE JOSE VILLEGAS CABRERA","Persona Natural",null,null,null,null,11532000,null,1,2883000,14415000,14415000,"2022-01-19","2022-01-19","2022-09-18",120,1,"1 MES","N/A","N/A","N/A","N/A","TERMINADO",1]
["FDLC-CPS-039-2024",2024,"FDLC-CPS-039-2024","https://community.secop.gov.co/Public/Tendering/OpportunityDetail/Index?noticeUID=CO1.NTC.5705879&isFromPublicArea=True&isModal=true&asPopupView=true","CPS","CONTRATACION DIRECTA","Prestación de servicios profesionales y de apoyo a la gestión, o para la ejecución de trabajos artísticos que sólo puedan encomendarse a determinadas personas naturales","\"PRESTAR SERVICIOS DE APOYO ADMINISTRATIVO Y ASISTENCIAL EN LA GESTIÓN DE LA ALCALDÍA LOCAL DE LA CANDELARIA EN EL TRÁMITE DE LOS COMPARENDOS Y QUERELLAS DE CONFORMIDAD CON LA LEY 1801 DE 2016\".","INVERSION","Un nuevo contrato social y ambiental para la Bogotá del Siglo XXI",57,"Gestión Pública Local","Propósito 5. Construir Bogotà - Regiòn con gobierno abierto, transparente y ciudadanìa consciente. ","O23011605570000002023",1,51882056,"JESICA  ESTEFANIA  CARRILLO  CUBILLOS","Persona Natural",null,null,null,null,11532000,null,1,5766000,17298000,17298000,"2022-01-19","2022-01-19","2022-10-18",120,1,"2 MESES","N/A","N/A","N/A","N/A","TERMINADO",1]
["FDLC-CPS-040-2024",2024,"FLDC-CPS-040-2024","https://community.secop.gov.co/Public/Tendering/OpportunityDetail/Index?noticeUID=CO1.NTC.5741200&isFromPublicArea=True&isModal=true&asPopupView=true","CPS","CONTRATACION DIRECTA","Prestación de servicios profesionales y de apoyo a la gestión, o para la ejecución de trabajos artísticos que sólo puedan encomendarse a determinadas personas naturales","PRESTAR SERVICIOS ASISTENCIALES AL ÁREA DE GESTIÓN DE DESARROLLO LOCAL EN LOS PROCESOS Y ACTIVIDADES DE GESTIÓN ADMINISTRATIVA DE LA ALCALDÍA LOCAL DE LA CANDELARIA","INVERSION","Un nuevo contrato social y ambiental para la Bogotá del Siglo XXI",57,"Gestión Pública Local","Propósito 5. Construir Bogotà - Regiòn con gobierno abierto, transparente y ciudadanìa consciente. ","O23011605570000002021",1,1077967370,"MONICA ANDREA VELOZA FLAUTERO","Persona Natural",null,null,null,null,7956000,null,1,1989000,9945000,9945000,"2022-01-19","2022-01-19","2022-10-18",120,1,"1 MES","N/A","N/A","N/A","N/A","TERMINADO",1]
["FDLC-CPS-041-2024",2024,"FDLC-CPS-041-2024","https://community.secop.gov.co/Public/Tendering/OpportunityDetail/Index?noticeUID=CO1.NTC.5733636&isFromPublicArea=True&isModal=true&asPopupView=true","CPS","CONTRATACION DIRECTA","Prestación de servicios profesionales y de apoyo a la gestión, o para la ejecución de trabajos artísticos que sólo puedan encomendarse a determinadas personas naturales","PRESTAR SERVICIOS PROFESIONALES PARA APOYAR A LA ALCALDÍA LOCAL DE LA CANDELARIA EN LA PROMOCIÓN SEGUIMIENTO ACOMPAÑAMIENTO Y ATENCIÓN DE LAS INSTANCIAS DE PARTICIPACIÓN DE LA LOCALIDAD Y DEMÁS ESPACIOS DE PARTICIPACIÓN DESIGNADOS","INVERSION","Un nuevo contrato social y ambiental para la Bogotá del Siglo XXI",55,"Fortalecimiento de Cultura Ciudadana y su institucionalidad","Propósito 5. Construir Bogotà - Regiòn con gobierno abierto, transparente y ciudadanìa consciente. ","O23011605550000002019",1,30204199,"WILMER ALEXANDER BARRIOS","Persona Natural",null,null,null,null,22000000,null,1,5500000,27500000,27500000,"2022-01-20","2022-01-20","2022-10-19",120,1,"1 MES","N/A","N/A","N/A","N/A","TERMINADO",1]
["FDLC-CPS-042-2024",2024,"FDLC-CPS-042-2024","https://community.secop.gov.co/Public/Tendering/OpportunityDetail/Index?noticeUID=CO1.NTC.5735189&isFromPublicArea=True&isModal=true&asPopupView=true","CPS","CONTRATACION DIRECTA","Prestación de servicios profesionales y de apoyo a la gestión, o para la ejecución de trabajos artísticos que sólo puedan encomendarse a determinadas personas naturales","PRESTAR SERVICIOS PROFESIONALES DE APOYO A LA ALCALDÍA LOCAL DE LA CANDELARIA EN EL FORTALECIMIENTO E INCLUSIÓN DE LOS PUEBLOS INDÍGENAS EN EL MARCO DE LA POLÍTICA PÚBLICA DISTRITAL PARA LOS PUEBLOS INDÍGENAS ASÍ COMO LOS PROCESOS COMUNITARIOS Y DEMÁS ESPACIOS DE PARTICIPACIÓN DESIGNADOS","INVERSION","Un nuevo contrato social y ambiental para la Bogotá del Siglo XXI",57,"Gestión Pública Local","Propósito 5. Construir Bogotà - Regiòn con gobierno abierto, transparente y ciudadanìa consciente. ","O23011605570000002021",1,79648784,"ELY DAVID MURILLO CORDOBA","Persona Natural",null,null,null,null,24000000,null,1,6000000,30000000,18800000,"2022-01-20","2022-01-20","2022-10-19",120,1,"1 MES","N/A","N/A","N/A","N/A","TERMINADO",0.62666666666666671]
["FDLC-CPS-043-2024",2024,"FDLC-CPS-043-2024","https://community.secop.gov.co/Public/Tendering/OpportunityDetail/Index?noticeUID=CO1.NTC.5739395&isFromPublicArea=True&isModal=true&asPopupView=true","CPS","CONTRATACION DIRECTA","Prestación de servicios profesionales y de apoyo a la gestión, o para la ejecución de trabajos artísticos que sólo puedan encomendarse a determinadas personas naturales","PRESTAR SERVICIOS PROFESIONALES ESPECIALIZADOS AL FONDO DE DESARROLLO LOCAL DE LA CANDELARIA PARA APOYAR LA COORDINACIÓN DE LA GESTIÓN CONTRACTUAL DE LA ENTIDAD Y DEMÁS ASUNTOS QUE SE REQUIERAN.","INVERSION","Un nuevo contrato social y ambiental para la Bogotá del Siglo XXI",57,"Gestión Pública Local","Propósito 5. Construir Bogotà - Regiòn con gobierno abierto, transparente y ciudadanìa consciente. ","O23011605570000002021",1,1013600365,"JAVIER DE JESUS TRESPALACIOS QUINTERO","Persona Natural",null,null,null,null,43200000,null,1,21600000,64800000,64800000,"2022-01-20","2022-01-20","2022-09-19",120,1,"2 MESES","N/A","N/A","N/A","N/A","TERMINADO",1]
["FDLC-CPS-044-2024",2024,"FDLC-CPS-044-2024","https://community.secop.gov.co/Public/Tendering/OpportunityDetail/Index?noticeUID=CO1.NTC.5735781&isFromPublicArea=True&isModal=true&asPopupView=true","CPS","CONTRATACION DIRECTA","Prestación de servicios profesionales y de apoyo a la gestión, o para la ejecución de trabajos artísticos que sólo puedan encomendarse a determinadas personas naturales","PRESTAR SERVICIOS PROFESIONALES AL FONDO DE DESARROLLO LOCAL DE LA CANDELARIA EN LOS TRÁMITES RELACIONADOS CON LOS PROCESOS PRECONTRACTUALES CONTRACTUALES Y POS CONTRACTUALES QUE SE ADELANTEN A TRAVÉS DE SECOP I Y II ASÍ COMO LA ADQUISICIÓN DE BIENES Y SERVICIOS A TRAVÉS DE LA TIENDA VIRTUAL DEL ESTADO COLOMBIANO","INVERSION","Un nuevo contrato social y ambiental para la Bogotá del Siglo XXI",57,"Gestión Pública Local","Propósito 5. Construir Bogotà - Regiòn con gobierno abierto, transparente y ciudadanìa consciente. ","O23011605570000002021",1,1032363826," CINDY LORENA SANCHEZ CALDERON","Persona Natural",null,null,null,null,29792000,null,1,14896000,{"$f":"+W57+X57+Z57","v":44688000},44688000,"2022-01-20","2022-01-20","2023-01-14",120,1,"2 MESES",9690552,"GUSTAVO ALFONSO MARTINEZ BADILLO CESION DE","2024-03-20",24330133,"TERMINADO",1]
["FDLC-CPS-045-2024",2024,"FDLC-CPS-045-2024","https://community.secop.gov.co/Public/Tendering/OpportunityDetail/Index?noticeUID=CO1.NTC.5742344&isFromPublicArea=True&isModal=true&asPopupView=true","CPS","CONTRATACION DIRECTA","Prestación de servicios profesionales y de apoyo a la gestión, o para la ejecución de trabajos artísticos que sólo puedan encomendarse a determinadas personas naturales","PRESTAR SERVICIOS DE APOYO A LA GESTIÓN DEL FONDO DE DESARROLLO LOCAL DE LA CANDELARIA EN EL CENTRO DE INFORMACIÓN Y DOCUMENTACIÓN (CDI) PARA EL MANEJO Y PROCESO DE DISTRIBUCIÓN DE CORRESPONDENCIA EN GENERAL","INVERSION","Un nuevo contrato social y ambiental para la Bogotá del Siglo XXI",57,"Gestión Pública Local","Propósito 5. Construir Bogotà - Regiòn con gobierno abierto, transparente y ciudadanìa consciente. ","O23011605570000002021",1,1010236602,"DIANA CAROLINA MOLANO MENDEZ","Persona Natural",null,null,null,null,11532000,null,1,5766000,17298000,17298000,"2022-01-20","2022-01-20","2022-08-19",120,1,"2 MESES","N/A","N/A","N/A","N/A","TERMINADO",1]
["FDLC-CPS-046-2024",2024,"FDLC-CPS-046-2024","https://community.secop.gov.co/Public/Tendering/OpportunityDetail/Index?noticeUID=CO1.NTC.5743528&isFromPublicArea=True&isModal=true&asPopupView=true","CPS","CONTRATACION DIRECTA","Prestación de servicios profesionales y de apoyo a la gestión, o para la ejecución de trabajos artísticos que sólo puedan encomendarse a determinadas personas naturales","PRESTACIÓN DE SERVICIOS DE APOYO LOGÍSTICO EN LOS EVENTOS Y ACTIVIDADES DE LA ADMINISTRACIÓN LOCAL DE LA LOCALIDAD DE LA CANDELARIA","INVERSION","Un nuevo contrato social y ambiental para la Bogotá del Siglo XXI",57,"Gestión Pública Local","Propósito 5. Construir Bogotà - Regiòn con gobierno abierto, transparente y ciudadanìa consciente. ","O23011605570000002021",1,52060667,"FABIO ALBERTO MOLINA GUTIERREZ","Persona Natural",null,null,null,null,11532000,null,1,2883000,14415000,14415000,"2022-01-20","2022-01-20","2022-08-19",120,1,"1 MES","N/A","N/A","N/A","N/A","TERMINADO",1]
["FDLC-CPS-047-2024",2024,"FDLC-CPS-047-2024","https://community.secop.gov.co/Public/Tendering/OpportunityDetail/Index?noticeUID=CO1.NTC.5743274&isFromPublicArea=True&isModal=true&asPopupView=true","CPS","CONTRATACION DIRECTA","Prestación de servicios profesionales y de apoyo a la gestión, o para la ejecución de trabajos artísticos que sólo puedan encomendarse a determinadas personas naturales","PRESTACIÓN DE SERVICIOS DE APOYO LOGÍSTICO EN LOS EVENTOS Y ACTIVIDADES DE LA ADMINISTRACIÓN LOCAL DE LA LOCALIDAD DE LA CANDELARIA","INVERSION","Un nuevo contrato social y ambiental para la Bogotá del Siglo XXI",57,"Gestión Pública Local","Propósito 5. Construir Bogotà - Regiòn con gobierno abierto, transparente y ciudadanìa consciente. ","O23011605570000002021",1,24344028,"DAVID ANDRES SEGURA ORTIZ","Persona Natural",null,null,null,null,11532000,null,1,2883000,14415000,11724200,"2022-01-20","2022-01-20","2022-08-19",120,1,"1 MES","N/A","N/A","N/A","N/A","TERMINADO",0.81333333333333335]
["FDLC-CPS-048-2024",2024,"FDLC-CPS-048-2024","https://community.secop.gov.co/Public/Tendering/OpportunityDetail/Index?noticeUID=CO1.NTC.5743258&isFromPublicArea=True&isModal=False","CPS","CONTRATACION DIRECTA","Prestación de servicios profesionales y de apoyo a la gestión, o para la ejecución de trabajos artísticos que sólo puedan encomendarse a determinadas personas naturales","PRESTAR SERVICIOS PROFESIONALES AL FONDO DE DESARROLLO LOCAL DE LA CANDELARIA PARA APOYAR LAS GESTIONES RELACIONADAS CON EL PRESUPUESTO DE LA ENTIDAD","INVERSION","Un nuevo contrato social y ambiental para la Bogotá del Siglo XXI",57,"Gestión Pública Local","Propósito 5. Construir Bogotà - Regiòn con gobierno abierto, transparente y ciudadanìa consciente. ","O23011605570000002021",1,1051654292,"ISABELA RAQUEL FERNANDEZ PEREZ","Persona Natural",null,null,null,null,23200000,null,1,11600000,34800000,34800000,"2022-01-20","2022-01-20","2022-08-19",120,1,"2 MESES","N/A","N/A","N/A","N/A","TERMINADO",1]
["FDLC-CPS-049-2024",2024,"FDLC-CPS-049-2024","https://community.secop.gov.co/Public/Tendering/OpportunityDetail/Index?noticeUID=CO1.NTC.5743533&isFromPublicArea=True&isModal=true&asPopupView=true","CPS","CONTRATACION DIRECTA","Prestación de servicios profesionales y de apoyo a la gestión, o para la ejecución de trabajos artísticos que sólo puedan encomendarse a determinadas personas naturales","PRESTAR SERVICIOS PROFESIONALES AL FONDO DE DESARROLLO LOCAL DE LA CANDELARIA PARA LA OPERACIÓN PRESTACIÓN SEGUIMIENTO Y CUMPLIMIENTO DE LOS PROCEDIMIENTOS ADMINISTRATIVOS OPERATIVOS Y PROGRAMÁTICOS DEL SERVICIO APOYO ECONÓMICO TIPO C QUE CONTRIBUYAN A LA GARANTÍA DE LOS DERECHOS DE LA POBLACIÓN MAYOR EN EL MARCO DE LA POLÍTICA PÚBLICA SOCIAL PARA EL ENVEJECIMIENTO Y LA VEJEZ EN EL DISTRITO CAPITAL A CARGO DE LA ALCALDÍA LOCAL.","INVERSION","Un nuevo contrato social y ambiental para la Bogotá del Siglo XXI",1,"Subsidios y transferencias para la equidad","Propósito 1. Hacer un nuevo contrato social con igualdad de oportunidades para la inclusiòn social, productiva y polìtica ","O23011601010000001605",1,79579031,"LILIANA MARITZA BARRERA GROSO","Persona Natural",null,null,null,null,19092000,null,1,4773000,23865000,23865000,"2022-01-20","2022-01-20","2022-08-19",120,1,"1 MES","N/A","N/A","N/A","N/A","TERMINADO",1]
["FDLC-CPS-050-2024",2024,"FDLC-CPS-050-2024","https://community.secop.gov.co/Public/Tendering/OpportunityDetail/Index?noticeUID=CO1.NTC.5740903&isFromPublicArea=True&isModal=true&asPopupView=true","CPS","CONTRATACION DIRECTA","Prestación de servicios profesionales y de apoyo a la gestión, o para la ejecución de trabajos artísticos que sólo puedan encomendarse a determinadas personas naturales","PRESTAR SERVICIOS ASISTENCIALES AL ÁREA DE GESTIÓN DE DESARROLLO LOCAL EN LOS PROCESOS RELACIONADOS CON LAS ACTIVIDADES DE GESTION ADMINISTRATIVA DE LA ALCALDÍA LOCAL DE LA CANDELARIA","INVERSION","Un nuevo contrato social y ambiental para la Bogotá del Siglo XXI",57,"Gestión Pública Local","Propósito 5. Construir Bogotà - Regiòn con gobierno abierto, transparente y ciudadanìa consciente. ","O23011605570000002021",1,1026295534,"JUAN ESTEBAN PINTOR QUINTERO","Persona Natural",null,null,null,null,11532000,null,0,0,11532000,11532000,"2022-01-20","2022-01-20","2022-08-19",120,null,"NO APLICA","N/A","N/A","N/A","N/A","TERMINADO",1]
["FDLC-CPS-051-2024",2024,"FDLC-CPS-051-2024","https://community.secop.gov.co/Public/Tendering/OpportunityDetail/Index?noticeUID=CO1.NTC.5740595&isFromPublicArea=True&isModal=true&asPopupView=true","CPS","CONTRATACION DIRECTA","Prestación de servicios profesionales y de apoyo a la gestión, o para la ejecución de trabajos artísticos que sólo puedan encomendarse a determinadas personas naturales","PRESTAR SERVICIOS PROFESIONALES PARA BRINDAR ACOMPAÑAMIENTO Y SEGUIMIENTO EN LA IMPLEMENTACIÓN DEL SISTEMA DE GESTIÓN DE SEGURIDAD Y SALUD EN EL TRABAJO DE LA ALCALDIA LOCAL DE LA CANDELARIA","INVERSION","Un nuevo contrato social y ambiental para la Bogotá del Siglo XXI",57,"Gestión Pública Local","Propósito 5. Construir Bogotà - Regiòn con gobierno abierto, transparente y ciudadanìa consciente. ","O23011605570000002021",1,1010195489,"NICOLAS ANDRES MARTINEZ AGUILAR","Persona Natural",null,null,null,null,20000000,null,1,10000000,30000000,30000000,"2022-01-21","2022-01-21","2022-08-20",120,1,"2 MESES","N/A","N/A","N/A","N/A","TERMINADO",1]
["FDLC-CPS-052-2024",2024,"FDLC-CPS-052-2024","https://community.secop.gov.co/Public/Tendering/OpportunityDetail/Index?noticeUID=CO1.NTC.5755168&isFromPublicArea=True&isModal=true&asPopupView=true","CPS","CONTRATACION DIRECTA","Prestación de servicios profesionales y de apoyo a la gestión, o para la ejecución de trabajos artísticos que sólo puedan encomendarse a determinadas personas naturales","PRESTAR LOS SERVICIOS PROFESIONALES PARA APOYAR EN LA ELABORACIÓN GESTIÓN Y PUBLICACIÓN DE CONTENIDOS Y MATERIAL GRÁFICO DE COMUNICACIÓN EN LAS REDES SOCIALES HERRAMIENTAS INSTITUCIONALES DE COMUNICACIÓN DE LA JUNTA ADMINISTRADORA LOCAL DE LA CANDELARIA.","INVERSION","Un nuevo contrato social y ambiental para la Bogotá del Siglo XXI",57,"Gestión Pública Local","Propósito 5. Construir Bogotà - Regiòn con gobierno abierto, transparente y ciudadanìa consciente. ","O23011605570000002021",1,39781586,"CARLOS MARIO TORRES HOYOS","Persona Natural",null,null,null,null,19092000,null,1,4773000,23865000,23865000,"2022-01-21","2022-01-21","2022-08-20",120,1,"1 MES","N/A","N/A","N/A","N/A","TERMINADO",1]
["FDLC-CPS-053-2024",2024,"FDLC-CPS-053-2024","https://community.secop.gov.co/Public/Tendering/OpportunityDetail/Index?noticeUID=CO1.NTC.5743951&isFromPublicArea=True&isModal=true&asPopupView=true","CPS","CONTRATACION DIRECTA","Prestación de servicios profesionales y de apoyo a la gestión, o para la ejecución de trabajos artísticos que sólo puedan encomendarse a determinadas personas naturales","PRESTAR SERVICIOS DE APOYO A LA GESTIÓN AL FONDO DE DESARROLLO LOCAL DE LA CANDELARIA EN EL DESARROLLO DE ACTIVIDADES QUE AYUDEN EN LA PREVENCIÓN MITIGACIÓN Y MONITOREO DE PROBLEMAS AMBIENTALES Y EL FORTALECIMIENTO DE PRÁCTICAS DE LA AGRICULTURA URBANA ","INVERSION","Un nuevo contrato social y ambiental para la Bogotá del Siglo XXI",24,"Bogotá región emprendedora e innovadora","Propósito 1. Hacer un nuevo contrato social con igualdad de oportunidades para la inclusiòn social, productiva y polìtica","O23011601240000001626",1,79914457,"JAIME ALIRIO RUIZ CALDERON","Persona Natural",null,null,null,null,7520000,null,1,1880000,9400000,9400000,"2022-01-21","2022-01-21","2022-08-20",120,1,"1 MES","N/A","N/A","N/A","N/A","TERMINADO",1]
["FDLC-CPS-054-2024",2024,"FDLC-CPS-054-2024","https://community.secop.gov.co/Public/Tendering/OpportunityDetail/Index?noticeUID=CO1.NTC.5773253&isFromPublicArea=True&isModal=False","CPS","CONTRATACION DIRECTA","Prestación de servicios profesionales y de apoyo a la gestión, o para la ejecución de trabajos artísticos que sólo puedan encomendarse a determinadas personas naturales","PRESTAR SERVICIOS PROFESIONALES BRINDANDO APOYO Y ACOMPAÑAMIENTO EN LAS ACTIVIDADES DE TURISMO LOCAL PARA LA CONSERVACIÓN DE LA CANDELARIA COMO ÁREA TURÍSTICA SOSTENIBLE.","INVERSION","Un nuevo contrato social y ambiental para la Bogotá del Siglo XXI",57,"Gestión Pública Local","Propósito 5. Construir Bogotà - Regiòn con gobierno abierto, transparente y ciudadanìa consciente. ","O23011605570000002021",1,1106786140,"GIOVANNI ANDRES RAMIREZ HUILA","Persona Natural",null,null,null,null,19092000,null,0,0,19092000,19092000,"2022-01-20","2022-01-20","2022-12-30",120,1,"NO APLICA","N/A","N/A","N/A","N/A","TERMINADO",1]
["FDLC-CPS-055-2024",2024,"FDLC-CPS-055-2024","https://community.secop.gov.co/Public/Tendering/OpportunityDetail/Index?noticeUID=CO1.NTC.5753158&isFromPublicArea=True&isModal=False","CPS","CONTRATACION DIRECTA","Prestación de servicios profesionales y de apoyo a la gestión, o para la ejecución de trabajos artísticos que sólo puedan encomendarse a determinadas personas naturales","PRESTACIÓN DE SERVICIOS PROFESIONALES EN LA IMPLEMENTACIÓN DE ACCIONES Y ESTRATEGIAS DE RECREACIÓN Y DEPORTES ENFOCADAS EN LA LOCALIDAD DE LA CANDELARIA","INVERSION","Un nuevo contrato social y ambiental para la Bogotá del Siglo XXI",20,"Bogotá, referente en cultura, deporte, recreación y actividad física, con parques para el desarrollo y la salud","Propósito 1. Hacer un nuevo contrato social con igualdad de oportunidades para la inclusiòn social, productiva y polìtica ","O23011601200000001611",1,1032471469,"HECTOR JULIO CEDANO MARTINEZ","Persona Natural",null,null,null,null,24000000,null,1,6000000,30000000,30000000,"2022-01-20","2022-01-20","2022-07-19",120,1,"1 MES","N/A","N/A","N/A","N/A","TERMINADO",1]
["FDLC-CPS-056-2024",2024,"FDLC-CPS-056-2024","https://community.secop.gov.co/Public/Tendering/OpportunityDetail/Index?noticeUID=CO1.NTC.5746735&isFromPublicArea=True&isModal=true&asPopupView=true","CPS","CONTRATACION DIRECTA","Prestación de servicios profesionales y de apoyo a la gestión, o para la ejecución de trabajos artísticos que sólo puedan encomendarse a determinadas personas naturales","PRESTAR SERVICIOS ASISTENCIALES AL FONDO DE DESARROLLO LOCAL DE LA CANDELARIA PARA LA ADMINISTRACIÓN DE LA CASA DEL ZIPA DE CONFORMIDAD CON EL ACUERDO LOCAL 034 DE 2021.","INVERSION","Un nuevo contrato social y ambiental para la Bogotá del Siglo XXI",57,"Gestión Pública Local","Propósito 5. Construir Bogotà - Regiòn con gobierno abierto, transparente y ciudadanìa consciente. ","O23011605570000002021",1,1010221878,"MARIA NATHALIE INFANTE GOMEZ","Persona Natural",null,null,null,null,11532000,null,2,5766000,17298000,17298000,"2022-01-20","2022-01-20","2022-07-19",120,2,"2 MESES","N/A","N/A","N/A","N/A","TERMINADO",1]
["FDLC-CPS-057-2024",2024,"FDLC-CPS-057-2024","https://community.secop.gov.co/Public/Tendering/OpportunityDetail/Index?noticeUID=CO1.NTC.5749974&isFromPublicArea=True&isModal=true&asPopupView=true","CPS","CONTRATACION DIRECTA","Prestación de servicios profesionales y de apoyo a la gestión, o para la ejecución de trabajos artísticos que sólo puedan encomendarse a determinadas personas naturales","PRESTAR SERVICIOS PROFESIONALES PARA APOYAR A LA ALCALDÍA LOCAL DE LA CANDELARIA EN LA PROMOCIÓN SEGUIMIENTO ACOMPAÑAMIENTO Y ATENCIÓN DE LAS INSTANCIAS DE PARTICIPACIÓN DE LA LOCALIDAD Y DEMÁS ESPACIOS DE PARTICIPACIÓN DESIGNADOS","INVERSION","Un nuevo contrato social y ambiental para la Bogotá del Siglo XXI",55,"Fortalecimiento de Cultura Ciudadana y su institucionalidad","Propósito 5. Construir Bogotà - Regiòn con gobierno abierto, transparente y ciudadanìa consciente. ","O23011605550000002019",1,52059942,"LINA MARCELA HURTADO HOLGUIN","Persona Natural",null,null,null,null,22000000,null,1,11000000,33000000,27866667,"2022-01-28","2022-01-28","2022-08-25",120,1,"2 MESES","N/A","N/A","N/A","N/A","TERMINADO",0.84444445454545458]
["FDLC-CPS-058-2024",2024,"FDLC-CPS-058-2024","https://community.secop.gov.co/Public/Tendering/OpportunityDetail/Index?noticeUID=CO1.NTC.5750436&isFromPublicArea=True&isModal=true&asPopupView=true","CPS","CONTRATACION DIRECTA","Prestación de servicios profesionales y de apoyo a la gestión, o para la ejecución de trabajos artísticos que sólo puedan encomendarse a determinadas personas naturales","PRESTAR SERVICIOS PROFESIONALES PARA APOYAR A LA ALCALDÍA LOCAL DE LA CANDELARIA EN LA PROMOCIÓN SEGUIMIENTO ACOMPAÑAMIENTO Y ATENCIÓN DE LAS INSTANCIAS DE PARTICIPACIÓN DE LA LOCALIDAD Y DEMÁS ESPACIOS DE PARTICIPACIÓN DESIGNADOS","INVERSION","Un nuevo contrato social y ambiental para la Bogotá del Siglo XXI",55,"Fortalecimiento de Cultura Ciudadana y su institucionalidad","Propósito 5. Construir Bogotà - Regiòn con gobierno abierto, transparente y ciudadanìa consciente. ","O23011605550000002019",1,80741660,"JUANITA SABOGAL","Persona Natural",null,null,null,null,22000000,null,1,5500000,27500000,27500000,"2022-01-27","2022-01-27","2022-12-26",120,1,"1 MES","N/A","N/A","N/A","N/A","TERMINADO",1]
["FDLC-CPS-059-2024",2024,"FDLC-CPS-059-2024","https://community.secop.gov.co/Public/Tendering/OpportunityDetail/Index?noticeUID=CO1.NTC.5750602&isFromPublicArea=True&isModal=true&asPopupView=true","CPS","CONTRATACION DIRECTA","Prestación de servicios profesionales y de apoyo a la gestión, o para la ejecución de trabajos artísticos que sólo puedan encomendarse a determinadas personas naturales","PRESTAR SERVICIOS DE APOYO EN LAS ACTIVIDADES DE SEGURIDAD Y CONVIVENCIA CIUDADANA DE ACUERDO A LAS NECESIDADES Y ESTRATEGIAS DE LA ALCALDIA LOCAL DE LA CANDELARIA","INVERSION","Un nuevo contrato social y ambiental para la Bogotá del Siglo XXI",57,"Gestión Pública Local","Propósito 5. Construir Bogotà - Regiòn con gobierno abierto, transparente y ciudadanìa consciente. ","O23011605570000002021",1,1010203707,"JAIME ROMERO RODRÍGUEZ","Persona Natural",null,null,null,null,7520000,null,2,3760000,11280000,11280000,"2022-01-24","2022-01-25","2022-07-23",120,2,"2 MESES","N/A","N/A","N/A","N/A","TERMINADO",1]
["FDLC-CPS-060-2024",2024,"FDLC-CPS-060-2024","https://community.secop.gov.co/Public/Tendering/OpportunityDetail/Index?noticeUID=CO1.NTC.5750526&isFromPublicArea=True&isModal=true&asPopupView=true","CPS","CONTRATACION DIRECTA","Prestación de servicios profesionales y de apoyo a la gestión, o para la ejecución de trabajos artísticos que sólo puedan encomendarse a determinadas personas naturales","PRESTAR SERVICIOS DE APOYO EN LAS ACTIVIDADES DE SEGURIDAD Y CONVIVENCIA CIUDADANA DE ACUERDO A LAS NECESIDADES Y ESTRATEGIAS DE LA ALCALDIA LOCAL DE LA CANDELARIA","INVERSION","Un nuevo contrato social y ambiental para la Bogotá del Siglo XXI",57,"Gestión Pública Local","Propósito 5. Construir Bogotà - Regiòn con gobierno abierto, transparente y ciudadanìa consciente. ","O23011605570000002021",1,1033749239,"MARIA JEANET ESTEBAN SILVA","Persona Natural",null,null,null,null,7520000,null,2,3760000,11280000,11280000,"2022-01-21","2022-01-21","2023-01-23",120,2,"2 MESES","N/A","N/A","N/A","N/A","TERMINADO",1]
["FDLC-CPS-061-2024",2024,"FDLC-CPS-061-2024","https://community.secop.gov.co/Public/Tendering/OpportunityDetail/Index?noticeUID=CO1.NTC.5750533&isFromPublicArea=True&isModal=true&asPopupView=true","CPS","CONTRATACION DIRECTA","Prestación de servicios profesionales y de apoyo a la gestión, o para la ejecución de trabajos artísticos que sólo puedan encomendarse a determinadas personas naturales","PRESTAR SERVICIOS DE APOYO EN LAS ACTIVIDADES DE SEGURIDAD Y CONVIVENCIA CIUDADANA DE ACUERDO A LAS NECESIDADES Y ESTRATEGIAS DE LA ALCALDIA LOCAL DE LA CANDELARIA","INVERSION","Un nuevo contrato social y ambiental para la Bogotá del Siglo XXI",57,"Gestión Pública Local","Propósito 5. Construir Bogotà - Regiòn con gobierno abierto, transparente y ciudadanìa consciente. ","O23011605570000002021",1,1010207254,"SINUHE WALTARI AYURE VELASQUEZ","Persona Natural",null,null,null,null,7520000,null,0,0,7520000,7520000,"2022-01-24","2022-01-25","2022-11-23",120,null,"NO APLICA","N/A","N/A","N/A","N/A","TERMINADO",1]
["FDLC-CPS-062-2024",2024,"FDLC-CPS-062-2024","https://community.secop.gov.co/Public/Tendering/OpportunityDetail/Index?noticeUID=CO1.NTC.5750661&isFromPublicArea=True&isModal=true&asPopupView=true","CPS","CONTRATACION DIRECTA","Prestación de servicios profesionales y de apoyo a la gestión, o para la ejecución de trabajos artísticos que sólo puedan encomendarse a determinadas personas naturales","PRESTAR SERVICIOS DE APOYO EN LAS ACTIVIDADES DE SEGURIDAD Y CONVIVENCIA CIUDADANA DE ACUERDO A LAS NECESIDADES Y ESTRATEGIAS DE LA ALCALDIA LOCAL DE LA CANDELARIA","INVERSION","Un nuevo contrato social y ambiental para la Bogotá del Siglo XXI",57,"Gestión Pública Local","Propósito 5. Construir Bogotà - Regiòn con gobierno abierto, transparente y ciudadanìa consciente. ","O23011605570000002021",1,1032356337,"ALEXI NORVEI OSORIO RUIZ","Persona Natural",null,null,null,null,7520000,null,2,3760000,11280000,11280000,"2022-01-21","2022-01-21","2022-10-20",120,2,"2 MESES","N/A","N/A","N/A","N/A","TERMINADO",1]
["FDLC-CPS-063-2024",2024,"FDLC-CPS-063-2024","https://community.secop.gov.co/Public/Tendering/OpportunityDetail/Index?noticeUID=CO1.NTC.5783748&isFromPublicArea=True&isModal=true&asPopupView=true","CPS","CONTRATACION DIRECTA","Prestación de servicios profesionales y de apoyo a la gestión, o para la ejecución de trabajos artísticos que sólo puedan encomendarse a determinadas personas naturales","PRESTAR SERVICIOS ASISTENCIALES AL ÁREA DE GESTIÓN DE DESARROLLO LOCAL EN LOS PROCESOS RELACIONADOS CON LAS ACTIVIDADES DE GESTION ADMINISTRATIVA DE LA ALCALDÍA LOCAL DE LA CANDELARIA","INVERSION","Un nuevo contrato social y ambiental para la Bogotá del Siglo XXI",57,"Gestión Pública Local","Propósito 5. Construir Bogotà - Regiòn con gobierno abierto, transparente y ciudadanìa consciente. ","O23011605570000002021",1,1010223608,"DREZZSSHER NOTCREHJVISCH BHAWKT ORTIZ","Persona Natural",null,null,null,null,11532000,null,0,0,11532000,11532000,"2022-01-25","2022-01-25","2022-12-24",120,null,"NO APLICA","N/A","N/A","N/A","N/A","TERMINADO",1]
["FDLC-CPS-064-2024",2024,"FDLC-CPS-064-2024","https://community.secop.gov.co/Public/Tendering/OpportunityDetail/Index?noticeUID=CO1.NTC.5751145&isFromPublicArea=True&isModal=true&asPopupView=true","CPS","CONTRATACION DIRECTA","Prestación de servicios profesionales y de apoyo a la gestión, o para la ejecución de trabajos artísticos que sólo puedan encomendarse a determinadas personas naturales","PRESTAR SERVICIOS PROFESIONALES PARA APOYAR JURÍDICAMENTE EL DESARROLLO Y CUMPLIMIENTO DE LAS COMISIONES JUDICIALES ORDENADAS AL ALCALDE(SA) LOCAL ASÍ COMO LA ATENCIÓN DE PETICIONES REQUERIMIENTOS Y ACCIONES CONSTITUCIONALES ORIGINADAS EN EL TRÁMITE DE DESPACHOS COMISORIOS.","INVERSION","Un nuevo contrato social y ambiental para la Bogotá del Siglo XXI",57,"Gestión Pública Local","Propósito 5. Construir Bogotà - Regiòn con gobierno abierto, transparente y ciudadanìa consciente. ","O23011605570000002021",1,53121023,"LUIS GUILLERMO MURILLO COBOS","Persona Natural",null,null,null,null,21836000,null,1,5459000,27295000,27295000,"2022-01-28","2022-01-28","2022-10-27",120,1,"1 MES","N/A","N/A","N/A","N/A","TERMINADO",1]
["FDLC-CPS-065-2024",2024,"FDLC-CPS-065-2024","https://community.secop.gov.co/Public/Tendering/OpportunityDetail/Index?noticeUID=CO1.NTC.5751592&isFromPublicArea=True&isModal=true&asPopupView=true","CPS","CONTRATACION DIRECTA","Prestación de servicios profesionales y de apoyo a la gestión, o para la ejecución de trabajos artísticos que sólo puedan encomendarse a determinadas personas naturales","PRESTAR SERVICIOS PROFESIONALES AL FONDO DE DESARROLLO LOCAL DE LA CANDELARIA EN LA PLANEACIÓN SEGUIMIENTO Y EJECUCIÓN DE LAS ACTIVIDADES DE EDUCACIÓN AMBIENTAL EN CUMPLIMIENTO DE LAS METAS DEL PLAN DE DESARROLLO LOCAL.","INVERSION","Un nuevo contrato social y ambiental para la Bogotá del Siglo XXI",27,"Cambio cultural para la gestión de la crisis climática","Propòsito 2. Cambiar nuestros hàbitos de vida para reverdecer a Bogotà y adaptarnos y mitigar la crisis climàtica.","O23011602270000001700",1,80249660,"ALEX ALBERTO ARRIETA VILLABA","Persona Natural",null,null,null,null,21836000,null,1,5459000,27295000,27295000,"2022-01-25","2022-01-25","2022-07-24",120,1,"1 MES","N/A","N/A","N/A","N/A","TERMINADO",1]
["FDLC-CPS-066-2024",2024,"FDLC-CPS-066-2024","https://community.secop.gov.co/Public/Tendering/OpportunityDetail/Index?noticeUID=CO1.NTC.5773890&isFromPublicArea=True&isModal=False","CPS","CONTRATACION DIRECTA","Prestación de servicios profesionales y de apoyo a la gestión, o para la ejecución de trabajos artísticos que sólo puedan encomendarse a determinadas personas naturales","PRESTAR SERVICIOS DE APOYO A LA GESTIÓN AL FONDO DE DESARROLLO LOCAL DE LA CANDELARIA EN EL DESARROLLO DE ACTIVIDADES QUE AYUDEN EN LA PREVENCIÓN MITIGACIÓN Y MONITOREO DE PROBLEMAS AMBIENTALES Y EL FORTALECIMIENTO DE PRÁCTICAS DE LA AGRICULTURA URBANA","INVERSION","Un nuevo contrato social y ambiental para la Bogotá del Siglo XXI",24,"Bogotá región emprendedora e innovadora","Propósito 1. Hacer un nuevo contrato social con igualdad de oportunidades para la inclusiòn social, productiva y polìtica","O23011601240000001626",1,80263860,"MARIA DEL PILAR SANCHEZ BORBON","Persona Natural",null,null,null,null,7520000,null,0,0,7520000,7520000,"2022-01-25","2022-01-25","2022-12-09",120,1,"NO APLICA","N/A","N/A","N/A","N/A","TERMINADO",1]
["FDLC-CPS-067-2024",2024,"FDLC-CPS-067-2024","https://community.secop.gov.co/Public/Tendering/OpportunityDetail/Index?noticeUID=CO1.NTC.5753134&isFromPublicArea=True&isModal=true&asPopupView=true","CPS","CONTRATACION DIRECTA","Prestación de servicios profesionales y de apoyo a la gestión, o para la ejecución de trabajos artísticos que sólo puedan encomendarse a determinadas personas naturales","PRESTAR SERVICIOS PROFESIONALES PARA APOYAR EN LA FORMULACION TECNICA Y SEGUIMIENTOS DE PLANES POLITICAS PROGRAMAS Y PROYECTOS RELACIONADOS CON OBRAS E INFRAESTRUCTURA QUE DESARROLLE LA ALCALDIA LOCAL DE LA CANDELARIA.","INVERSION","Un nuevo contrato social y ambiental para la Bogotá del Siglo XXI",49,"Movilidad segura, sostenible y accesible","Propòsito 4. Hacer de Bogotà - Region un modelo de movilidad multimodal, incluyente y sostenible ","O23011604490000002020",1,1013628927,"BRYAN FELIPE PRIETO MANZANO","Persona Natural",null,null,null,null,20000000,null,1,5000000,25000000,25000000,"2022-01-24","2022-01-24","2022-07-23",120,1,"1 MES","N/A","N/A","N/A","N/A","TERMINADO",{"$f":"IF(ISERROR(AB80/AA80),\"-\",(AB80/AA80))","v":1}]
["FDLC-CPS-068-2024",2024,"FDLC-CPS-068-2024","https://community.secop.gov.co/Public/Tendering/OpportunityDetail/Index?noticeUID=CO1.NTC.5768040&isFromPublicArea=True&isModal=true&asPopupView=true","CPS","CONTRATACION DIRECTA","Prestación de servicios profesionales y de apoyo a la gestión, o para la ejecución de trabajos artísticos que sólo puedan encomendarse a determinadas personas naturales","PRESTAR SERVICIOS DE APOYO A LA GESTIÓN EN LAS ACTIVIDADES ASISTENCIALES QUE LE SEAN REQUERIDAS QUE IMPULSEN EN EL DESARROLLO ECONÓMICO DE LAS EMPRESAS Y EMPRENDIMIENTOS CULTURALES Y CREATIVOS DE LA LOCALIDAD","INVERSION","Un nuevo contrato social y ambiental para la Bogotá del Siglo XXI",57,"Gestión Pública Local","Propósito 5. Construir Bogotà - Regiòn con gobierno abierto, transparente y ciudadanìa consciente. ","O23011605570000002021",1,80166444,"YEYMY CAMILA OTALORA CAMELO","Persona Natural",null,null,null,null,7956000,null,1,1989000,9945000,9945000,"2022-01-24","2022-01-24","2022-08-23",120,1,"1 MES","N/A","N/A","N/A","N/A","TERMINADO",1]
["FDLC-CPS-069-2024",2024,"FDLC-CPS-069-2024","https://community.secop.gov.co/Public/Tendering/OpportunityDetail/Index?noticeUID=CO1.NTC.5756621&isFromPublicArea=True&isModal=true&asPopupView=true","CPS","CONTRATACION DIRECTA","Prestación de servicios profesionales y de apoyo a la gestión, o para la ejecución de trabajos artísticos que sólo puedan encomendarse a determinadas personas naturales","PRESTAR SERVICIOS DE APOYO TÉCNICO AL FONDO DE DESARROLLO LOCAL DE LA CANDELARIA EN LOS PROCEDIMIENTOS ADMINISTRATIVOS DERIVADOS DE LOS PROYECTOS SOCIALES Y DE SALUD EN LA LOCALIDAD","INVERSION","Un nuevo contrato social y ambiental para la Bogotá del Siglo XXI",6,"Sistema Distrital del Cuidado","Propósito 1. Hacer un nuevo contrato social con igualdad de oportunidades para la inclusiòn social, productiva y polìtica ","O23011601060000001664",1,79953773,"JUAN ANGEL LOPEZ ARDILA","Persona Natural",null,null,null,null,11580000,null,1,2895000,14475000,14475000,"2022-01-28","2022-01-28","2022-06-27",120,1,"1 MES","N/A","N/A","N/A","N/A","TERMINADO",1]
["FDLC-CPS-070-2024",2024,"FDLC-CPS-070-2024","https://community.secop.gov.co/Public/Tendering/OpportunityDetail/Index?noticeUID=CO1.NTC.5763725&isFromPublicArea=True&isModal=False","CPS","CONTRATACION DIRECTA","Prestación de servicios profesionales y de apoyo a la gestión, o para la ejecución de trabajos artísticos que sólo puedan encomendarse a determinadas personas naturales","APOYAR JURÍDICAMENTE A LA JUNTA ADMINISTRADORA LOCAL CON EL FIN DE CONTRIBUIR AL ADECUADO CUMPLIMIENTO DE LAS ATRIBUCIONES A SU CARGO","INVERSION","Un nuevo contrato social y ambiental para la Bogotá del Siglo XXI",57,"Gestión Pública Local","Propósito 5. Construir Bogotà - Regiòn con gobierno abierto, transparente y ciudadanìa consciente. ","O23011605570000002021",1,79443949,"RICHARD ANDRES DIAZ NIÑO","Persona Natural",null,null,null,null,20000000,null,2,10000000,30000000,30000000,"2022-01-21","2022-01-24","2022-08-31",120,2,"2 MESES","N/A","N/A","N/A","N/A","TERMINADO",1]
["FDLC-CPS-071-2024",2024,"FDLC-CPS-071-2024","https://community.secop.gov.co/Public/Tendering/OpportunityDetail/Index?noticeUID=CO1.NTC.5763008&isFromPublicArea=True&isModal=true&asPopupView=true","CPS","CONTRATACION DIRECTA","Prestación de servicios profesionales y de apoyo a la gestión, o para la ejecución de trabajos artísticos que sólo puedan encomendarse a determinadas personas naturales","PRESTAR SERVICIOS PROFESIONALES AL FONDO DE DESARROLLO LOCAL DE LA CANDELARIA EN LA PLANEACIÓN SEGUIMIENTO Y EJECUCIÓN DE LAS ACTIVIDADES DE PROMOCIÓN MANTENIMIENTO Y PLANTACIÓN DE ARBOLADO URBANO EN LA LOCALIDAD","INVERSION","Un nuevo contrato social y ambiental para la Bogotá del Siglo XXI",33,"Más árboles y más y mejor espacio público","Propósito 2. Cambiar nuestros hàbitos de vida para reverdecer a Bogotà y adaptarnos y mitigar la crisis climàtica.","O23011602330000001703",1,52709184,"CRISTIAN CAMILO VILLABONA FIGUEROA","Persona Natural",null,null,null,null,21836000,null,1,5459000,{"$f":"+W84+X84+Z84","v":27295000},27295000,"2022-01-21","2022-01-24","2022-10-18",120,1,"1 MES","N/A","N/A","N/A","N/A","TERMINADO",1]
["FDLC-CPS-072-2024",2024,"FDLC-CPS-072-2024-A","https://community.secop.gov.co/Public/Tendering/OpportunityDetail/Index?noticeUID=CO1.NTC.5758775&isFromPublicArea=True&isModal=true&asPopupView=true","CPS","CONTRATACION DIRECTA","Prestación de servicios profesionales y de apoyo a la gestión, o para la ejecución de trabajos artísticos que sólo puedan encomendarse a determinadas personas naturales","PRESTAR LOS SERVICIOS PROFESIONALES PARA APOYAR EN LA ELABORACIÓN GESTIÓN Y PUBLICACIÓN DE CONTENIDOS Y MATERIAL GRÁFICO DE COMUNICACIÓN EN LAS REDES SOCIALES HERRAMIENTAS INSTITUCIONALES DE COMUNICACIÓN DE LA JUNTA ADMINISTRADORA LOCAL DE LA CANDELARIA","INVERSION","Un nuevo contrato social y ambiental para la Bogotá del Siglo XXI",57,"Gestión Pública Local","Propósito 5. Construir Bogotà - Regiòn con gobierno abierto, transparente y ciudadanìa consciente. ","O23011605570000002021",1,41621560,"JOHANNI JAVIER MORALES AMAYA","Persona Natural",null,null,null,null,19092000,null,2,9546000,28638000,28638000,"2022-01-21","2022-01-21","2022-10-19",120,2,"2 MESES","N/A","N/A","N/A","N/A","TERMINADO",1]
["FDLC-CPS-073-2024",2024,"FDLC-CPS-073-2024","https://community.secop.gov.co/Public/Tendering/OpportunityDetail/Index?noticeUID=CO1.NTC.5856746&isFromPublicArea=True&isModal=true&asPopupView=true","CPS","CONTRATACION DIRECTA","Prestación de servicios profesionales y de apoyo a la gestión, o para la ejecución de trabajos artísticos que sólo puedan encomendarse a determinadas personas naturales","PRESTAR SERVICIOS PROFESIONALES PARA APOYAR EN LA FORMULACION TECNICA Y SEGUIMIENTOS DE PLANES POLITICAS PROGRAMAS Y PROYECTOS RELACIONADOS CON OBRAS E INFRAESTRUCTURA QUE DESARROLLE LA ALCALDIA LOCAL DE LA CANDELARIA","INVERSION","Un nuevo contrato social y ambiental para la Bogotá del Siglo XXI",49,"Movilidad segura, sostenible y accesible","Propòsito 4. Hacer de Bogotà - Region un modelo de movilidad multimodal, incluyente y sostenible ","O23011604490000002020",1,91238879,"PAOLA ANDREA LEON TORRES","Persona Natural",null,null,null,null,20000000,null,1,5000000,{"$f":"+W86+X86+Z86","v":25000000},25000000,"2022-01-24","2022-01-24","2023-01-09",120,1,"1 MES","N/A","N/A","N/A","N/A","TERMINADO",1]
["FDLC-CPS-074-2024",2024,"FDLC-CPS-074-2024","https://community.secop.gov.co/Public/Tendering/OpportunityDetail/Index?noticeUID=CO1.NTC.5759706&isFromPublicArea=True&isModal=true&asPopupView=true","CPS","CONTRATACION DIRECTA","Prestación de servicios profesionales y de apoyo a la gestión, o para la ejecución de trabajos artísticos que sólo puedan encomendarse a determinadas personas naturales","PRESTAR SUS SERVICIOS PROFESIONALES DE APOYO Y ACOMPAÑAMIENTO RELACIONADOS CON LOS PROYECTOS DE OBRA PÚBLICA E INFRAESTRUCTURA PARA LOGRAR EL CUMPLIMIENTO DE LAS METAS DEL PLAN DE DESARROLLO LOCAL 2021-2024","INVERSION","Un nuevo contrato social y ambiental para la Bogotá del Siglo XXI",49,"Movilidad segura, sostenible y accesible","Propòsito 4. Hacer de Bogotà - Region un modelo de movilidad multimodal, incluyente y sostenible ","O23011604490000002020",1,51662613,"CATERINE JOHANNA GUZMAN RINCON","Persona Natural",null,null,null,null,29792000,null,2,14896000,44688000,44688000,"2022-01-27","2022-01-28","2022-08-27",120,2,"2 MESES","N/A","N/A","N/A","N/A","TERMINADO",1]
["FDLC-CPS-075-2024",2024,"FDLC-CPS-075-2024","https://community.secop.gov.co/Public/Tendering/OpportunityDetail/Index?noticeUID=CO1.NTC.5774914&isFromPublicArea=True&isModal=False","CPS","CONTRATACION DIRECTA","Prestación de servicios profesionales y de apoyo a la gestión, o para la ejecución de trabajos artísticos que sólo puedan encomendarse a determinadas personas naturales","PRESTACIÓN DE SERVICIOS DE APOYO LOGÍSTICO EN LOS EVENTOS Y ACTIVIDADES DE LA ADMINISTRACIÓN LOCAL DE LA LOCALIDAD DE LA CANDELARIA","INVERSION","Un nuevo contrato social y ambiental para la Bogotá del Siglo XXI",57,"Gestión Pública Local","Propósito 5. Construir Bogotà - Regiòn con gobierno abierto, transparente y ciudadanìa consciente. ","O23011605570000002021",1,79745860,"EULER GIOVANNY GAVIRIA SANCHEZ","Persona Natural",null,null,null,null,11532000,null,2,5766000,17298000,17298000,"2022-01-24","2022-01-24","2022-08-23",120,2,"2 MESES","N/A","N/A","N/A","N/A","TERMINADO",1]
["FDLC-CPS-076-2024",2024,"FDLC-CPS-076-2024","https://community.secop.gov.co/Public/Tendering/OpportunityDetail/Index?noticeUID=CO1.NTC.5764456&isFromPublicArea=True&isModal=False","CPS","CONTRATACION DIRECTA","Prestación de servicios profesionales y de apoyo a la gestión, o para la ejecución de trabajos artísticos que sólo puedan encomendarse a determinadas personas naturales","PRESTAR SERVICIOS PROFESIONALES EN EL DESPACHO DE LA ALCALDÍA LOCAL DE LA CANDELARIA PARA EL SEGUIMIENTO JURÍDICO EN MATERIA DE CONTRATACIÓN ESTATAL A LOS PROCESOS DE FORMULACIÓN EJECUCIÓN CONTROL DE POLÍTICAS PLANES Y PROGRAMAS DE INVERSIÓN EN EL MARCO DEL PLAN DE DESARROLLO LOCAL","INVERSION","Un nuevo contrato social y ambiental para la Bogotá del Siglo XXI",57,"Gestión Pública Local","Propósito 5. Construir Bogotà - Regiòn con gobierno abierto, transparente y ciudadanìa consciente. ","O23011605570000002021",1,1026283437,"CARLOS MAURICIO PALOMAR COVALEDA","Persona Natural",null,null,null,null,29792000,null,1,7448000,{"$f":"+W89+X89+Z89","v":37240000},29792000,"2022-01-25","2022-01-26","2022-12-25",120,1,"1 MES","N/A","N/A","N/A","N/A","TERMINADO",0.8]
["FDLC-CPS-077-2024",2024,"FDLC-CPS-077-2024","https://community.secop.gov.co/Public/Tendering/OpportunityDetail/Index?noticeUID=CO1.NTC.5764045&isFromPublicArea=True&isModal=true&asPopupView=true","CPS","CONTRATACION DIRECTA","Prestación de servicios profesionales y de apoyo a la gestión, o para la ejecución de trabajos artísticos que sólo puedan encomendarse a determinadas personas naturales","PRESTAR SERVICIOS PROFESIONALES ESPECIALIZADOS AL FONDO DE DESARROLLO LOCAL DE LA CANDELARIA COMO ABOGADO DE APOYO AL DESPACHO DE EL Y/O LA ALCALDE (SA) LOCAL EN LAS DIFERENTES ACTIVIDADES Y FUNCIONES QUE LE SEAN ASIGNADAS ","INVERSION","Un nuevo contrato social y ambiental para la Bogotá del Siglo XXI",57,"Gestión Pública Local","Propósito 5. Construir Bogotà - Regiòn con gobierno abierto, transparente y ciudadanìa consciente. ","O23011605570000002021",1,1032462817,"CONSTANZA DEL PILAR LEYTON RICO","Persona Natural",null,null,null,null,34164000,null,1,17082000,51246000,51246000,"2022-01-25","2022-01-25","2022-10-22",120,1,"2 MESES","N/A","N/A","N/A","N/A","TERMINADO",1]
["FDLC-CPS-078-2024",2024,"FDLC-CPS-078-2024","https://community.secop.gov.co/Public/Tendering/OpportunityDetail/Index?noticeUID=CO1.NTC.5772997&isFromPublicArea=True&isModal=true&asPopupView=true","CPS","CONTRATACION DIRECTA","Prestación de servicios profesionales y de apoyo a la gestión, o para la ejecución de trabajos artísticos que sólo puedan encomendarse a determinadas personas naturales","PRESTAR SERVICIOS DE APOYO TÉCNICO Y ADMINISTRATIVO RELACIONADOS CON LOS PROYECTOS DE INVERSIÓN Y FUNCIONAMIENTO QUE DESARROLLE LA ALCALDIA LOCAL DE LA CANDELARIA","INVERSION","Un nuevo contrato social y ambiental para la Bogotá del Siglo XXI",57,"Gestión Pública Local","Propósito 5. Construir Bogotà - Regiòn con gobierno abierto, transparente y ciudadanìa consciente. ","O23011605570000002021",1,79651770,"ELCY JEANETH PULIDO AMORTEGUI","Persona Natural",null,null,null,null,17464000,null,1,4366000,{"$f":"+W91+X91+Z91","v":21830000},21830000,"2022-01-25","2022-01-26","2022-12-25",120,1,"2 MESES","N/A","N/A","N/A","N/A","TERMINADO",1]
["FDLC-CPS-079-2024",2024,"FDLC-CPS-079-2024","https://community.secop.gov.co/Public/Tendering/OpportunityDetail/Index?noticeUID=CO1.NTC.5778787&isFromPublicArea=True&isModal=true&asPopupView=true","CPS","CONTRATACION DIRECTA","Prestación de servicios profesionales y de apoyo a la gestión, o para la ejecución de trabajos artísticos que sólo puedan encomendarse a determinadas personas naturales","PRESTAR SERVICIOS PROFESIONALES AL ÁREA DE GESTIÓN DE DESARROLLO LOCAL DE LA ALCALDÍA LOCAL PARA LA IMPLEMENTACIÓN, EJECUCIÓN Y SEGUIMIENTO DE LAS POLÍTICAS, PROGRAMAS, PLANES Y PROYECTOS RELACIONADOS CON EL DESARROLLO SOSTENIBLE Y REACTIVACION ECONÓMICA EN LA LOCALIDAD",null,"Un nuevo contrato social y ambiental para la Bogotá del Siglo XXI",57,"Gestión Pública Local","Propósito 5. Construir Bogotà - Regiòn con gobierno abierto, transparente y ciudadanìa consciente. ",null,1,1026566529,"IVONNE JULIETH  ROJAS ROJAS","Persona Natural",null,null,null,null,20000000,null,2,10000000,30000000,30000000,"2022-01-24","2022-01-24","2022-10-23",120,2,"2 MESES","N/A","N/A","N/A","N/A","TERMINADO",1]
["FDLC-CPS-080-2024",2024,"FDLC-CPS-080-2024","https://community.secop.gov.co/Public/Tendering/OpportunityDetail/Index?noticeUID=CO1.NTC.5779066&isFromPublicArea=True&isModal=true&asPopupView=true","CPS","CONTRATACION DIRECTA","Prestación de servicios profesionales y de apoyo a la gestión, o para la ejecución de trabajos artísticos que sólo puedan encomendarse a determinadas personas naturales","PRESTAR SERVICIOS PROFESIONALES PARA APOYAR TÉCNICAMENTE LAS DISTINTAS ETAPAS DE LOS PROCESOS DE COMPETENCIA DE LA ALCALDÍA LOCAL PARA LA DEPURACIÓN DE  ACTUACIONES ADMINITRATIVAS.","INVERSION","Un nuevo contrato social y ambiental para la Bogotá del Siglo XXI",57,"Gestión Pública Local","Propósito 5. Construir Bogotà - Regiòn con gobierno abierto, transparente y ciudadanìa consciente. ","O23011605570000002023",1,41503480,"FRANCISCO JAVIER HIGUERA NOVA","Persona Natural",null,null,null,null,24000000,null,2,12000000,36000000,36000000,"2022-01-28","2022-01-28","2022-08-27",120,2,"2 MESES","N/A","N/A","N/A","N/A","TERMINADO",1]
["FDLC-CPS-081-2024",2024,"FDLC-CPS-081-2024","https://community.secop.gov.co/Public/Tendering/OpportunityDetail/Index?noticeUID=CO1.NTC.5778042&isFromPublicArea=True&isModal=False","CPS","CONTRATACION DIRECTA","Prestación de servicios profesionales y de apoyo a la gestión, o para la ejecución de trabajos artísticos que sólo puedan encomendarse a determinadas personas naturales","APOYAR AL EQUIPO DE PRENSA Y COMUNICACIONES DE LA ALCALDÍA LOCAL EN LA REALIZACIÓN DE PRODUCTOS Y PIEZAS DIGITALES IMPRESAS Y PUBLICITARIAS DE GRAN FORMATO Y DE ANIMACIÓN GRÁFICA ASÍ COMO APOYAR LA PRODUCCIÓN Y MONTAJE DE EVENTOS","INVERSION","Un nuevo contrato social y ambiental para la Bogotá del Siglo XXI",57,"Gestión Pública Local","Propósito 5. Construir Bogotà - Regiòn con gobierno abierto, transparente y ciudadanìa consciente. ","O23011605570000002021",1,52288993,"KARINA GUZMAN LEAL ","Persona Natural",null,null,null,null,20000000,null,1,5000000,25000000,25000000,"2022-01-27","2022-01-28","2022-10-18",120,1,"1 MES","N/A","N/A","N/A","N/A","TERMINADO",1]
["FDLC-CPS-082-2024",2024,"FDLC-CPS-082-2024","https://community.secop.gov.co/Public/Tendering/OpportunityDetail/Index?noticeUID=CO1.NTC.5786071&isFromPublicArea=True&isModal=true&asPopupView=true","CPS","CONTRATACION DIRECTA","Prestación de servicios profesionales y de apoyo a la gestión, o para la ejecución de trabajos artísticos que sólo puedan encomendarse a determinadas personas naturales","PRESTAR SERVICIOS PROFESIONALES PARA LA PLANEACIÓN IMPLEMENTACIÓN Y FORTALECIMIENTO DE PROYECTOS RELACIONADOS CON LAS ACTIVIDADES DEL TURISMO LOCAL A TRAVÉS DE LA GESTIÓN ARTICULACIÓN E INTERLOCUCIÓN CON CIUDADANÍA Y ENTIDADES PÚBLICAS Y PRIVADAS LAS EMPRESAS Y EMPRENDIMIENTOS CULTURALES Y CREATIVOS DE LA LOCALIDAD DE LA CANDELARIA","INVERSION","Un nuevo contrato social y ambiental para la Bogotá del Siglo XXI",57,"Gestión Pública Local","Propósito 5. Construir Bogotà - Regiòn con gobierno abierto, transparente y ciudadanìa consciente. ","O23011605570000002021",1,1105670710,"PAULA MEDELLIN LEON","Persona Natural",null,null,null,null,24000000,null,1,6000000,30000000,30000000,"2022-01-27","2022-01-28","2022-07-27",120,1,"1 MES","N/A","N/A","N/A","N/A","TERMINADO",1]
["FDLC-CPS-083-2024",2024,"FDLC-CPS-083-2024","https://community.secop.gov.co/Public/Tendering/OpportunityDetail/Index?noticeUID=CO1.NTC.5782729&isFromPublicArea=True&isModal=true&asPopupView=true","CPS","CONTRATACION DIRECTA","Prestación de servicios profesionales y de apoyo a la gestión, o para la ejecución de trabajos artísticos que sólo puedan encomendarse a determinadas personas naturales","PRESTAR SERVICIOS TÉCNICOS AL FONDO DE DESARROLLO LOCAL DE LA CANDELARIA PARA APOYAR EL SEGUIMIENTO Y EJECUCION DE LOS PROGRAMAS AMBIENTALES EN LA LOCALIDAD","INVERSION","Un nuevo contrato social y ambiental para la Bogotá del Siglo XXI",33,"Más árboles y más y mejor espacio público","Propósito 2. Cambiar nuestros hàbitos de vida para reverdecer a Bogotà y adaptarnos y mitigar la crisis climàtica.","O23011602330000001703",1,79507928,"LAURA VALENTINA MARTINEZ DOMINGUEZ","Persona Natural",null,null,null,null,11600000,null,1,5800000,17400000,17400000,"2022-01-25","2022-01-25","2022-10-24",120,1,"2 MESES","N/A","N/A","N/A","N/A","TERMINADO",1]
["FDLC-CPS-084-2024",2024,"FDLC-CPS-084-2024","https://community.secop.gov.co/Public/Tendering/OpportunityDetail/Index?noticeUID=CO1.NTC.5790818&isFromPublicArea=True&isModal=False","CPS","CONTRATACION DIRECTA","Prestación de servicios profesionales y de apoyo a la gestión, o para la ejecución de trabajos artísticos que sólo puedan encomendarse a determinadas personas naturales","COORDINAR LA ARTICULACIÓN ASISTENCIA Y ACOMPAÑAMIENTO DE LOS PROCESOS DE PLANEACIÓN LOCAL PARA LA PROMOCIÓN DE LA PARTICIPACIÓN DE LAS MUJERES Y DE LA EQUIDAD DE GÉNERO PARA MATERIALIZAR EN LA LOCALIDAD LAS ESTRATEGIAS DE TERRITORIALIZACIÓN Y TRANSVERSALIZACIÓN DE LA POLÍTICA PUBLICA DE MUJERES Y EQUIDAD DE GÉNERO PPMYEG","INVERSION","Un nuevo contrato social y ambiental para la Bogotá del Siglo XXI",40,"Más mujeres viven una vida libre de violencias, se sienten seguras y acceden con confianza al sistema de justicia","Propòsito 3. Inspirar confianza y legitimidad para vivir sin miedo y ser epicentro de cultura ciudadana, paz y reconciliaciòn ","O23011603400000001781",1,79951133,"MAYRA LIZETH DUEÑEZ MONROY","Persona Natural",null,null,null,null,24000000,null,1,12000000,{"$f":"+W97+X97+Z97","v":36000000},36000000,"2022-01-24","2022-01-24","2022-12-23",120,1,"2 MESES","N/A","N/A","N/A","N/A","TERMINADO",1]
["FDLC-CPS-085-2024",2024,"FDLC-CPS-085-2024","https://community.secop.gov.co/Public/Tendering/OpportunityDetail/Index?noticeUID=CO1.NTC.5786071&isFromPublicArea=True&isModal=true&asPopupView=true","CPS","CONTRATACION DIRECTA","Prestación de servicios profesionales y de apoyo a la gestión, o para la ejecución de trabajos artísticos que sólo puedan encomendarse a determinadas personas naturales","PRESTAR SERVICIOS PROFESIONALES ESPECIALIZADOS AL FONDO DE DESARROLLO LOCAL DE LA CANDELARIA EN LOS TRÁMITES RELACIONADOS CON LOS PROCESOS DE OBLIGACIONES POR PAGAR Y LIQUIDACIÓNES ASÍ COMO LA GESTION Y SEGUMIENTO DE LOS PROCESOS CONTRACTUALES QUE DESARROLLE EL FONDO.","INVERSION","Un nuevo contrato social y ambiental para la Bogotá del Siglo XXI",57,"Gestión Pública Local","Propósito 5. Construir Bogotà - Regiòn con gobierno abierto, transparente y ciudadanìa consciente. ","O23011605570000002021",1,80194800,"CARLOS EDUARDO LINARES CASTELLANOS","Persona Natural",null,null,null,null,34000000,null,1,17000000,51000000,51000000,"2022-01-26","2022-01-26","2022-12-25",120,1,"2 MESES","N/A","N/A","N/A","N/A","TERMINADO",1]
["FDLC-CPS-086-2024",2024,"FDLC-CPS-086-2024","https://community.secop.gov.co/Public/Tendering/OpportunityDetail/Index?noticeUID=CO1.NTC.5790055&isFromPublicArea=True&isModal=False","CPS","CONTRATACION DIRECTA","Prestación de servicios profesionales y de apoyo a la gestión, o para la ejecución de trabajos artísticos que sólo puedan encomendarse a determinadas personas naturales","PRESTAR SERVICIOS PROFESIONALES AL FONDO DE DESARROLLO LOCAL DE LA CANDELARIA PARA APOYAR EN LA ESTRUCTURACIÓN FORMULACIÓN PRESENTACIÓN EVALUACIÓN Y SEGUIMIENTO DE LOS PROYECTOS DE INVERSIÓN EN LA LOCALIDAD","INVERSION","Un nuevo contrato social y ambiental para la Bogotá del Siglo XXI",57,"Gestión Pública Local","Propósito 5. Construir Bogotà - Regiòn con gobierno abierto, transparente y ciudadanìa consciente. ","O23011605570000002021",1,43904066," MARIA VANESSA JUEZ MORENO","Persona Natural",null,null,null,null,15000000,null,1,7500000,22500000,22333333,"2022-01-27","2022-01-28","2022-10-27",120,1,"1 mes 15 dias",1022352287,"CINDY CATALINA OJEDA LOPEZ  -","2024-07-02",3500000,"TERMINADO",0.99259257777777776]
["FDLC-CPS-087-2024",2024,"FDLC-CPS-087-2024","https://community.secop.gov.co/Public/Tendering/OpportunityDetail/Index?noticeUID=CO1.NTC.5789690&isFromPublicArea=True&isModal=False","CPS","CONTRATACION DIRECTA","Prestación de servicios profesionales y de apoyo a la gestión, o para la ejecución de trabajos artísticos que sólo puedan encomendarse a determinadas personas naturales","PRESTAR SERVICIOS DE APOYO ADMINISTRATIVO Y ASISTENCIAL EN LOS PROCESOS DE LOS ASUNTOS JURÍDICOS Y ACTUACIONES ADMINISTRATIVAS ADELANTADOS POR LA ALCALDÍA LOCAL DE LA CANDELARIA","INVERSION","Un nuevo contrato social y ambiental para la Bogotá del Siglo XXI",57,"Gestión Pública Local","Propósito 5. Construir Bogotà - Regiòn con gobierno abierto, transparente y ciudadanìa consciente. ","O23011605570000002023",1,80108185,"WILSON HAISBER RAMIREZ REINA","Persona Natural",null,null,null,null,11532000,null,0,0,11532000,11532000,"2022-01-27","2022-01-27","2022-10-26",120,1,"NO APLICA","N/A","N/A","N/A","N/A","TERMINADO",1]
["FDLC-CPS-088-2024",2024,"FDLC-CPS-088-2024","https://community.secop.gov.co/Public/Tendering/OpportunityDetail/Index?noticeUID=CO1.NTC.5793477&isFromPublicArea=True&isModal=False","CPS","CONTRATACION DIRECTA","Prestación de servicios profesionales y de apoyo a la gestión, o para la ejecución de trabajos artísticos que sólo puedan encomendarse a determinadas personas naturales","PRESTAR SERVICIOS PROFESIONALES PARA APOYAR JURÍDICAMENTE EL DESARROLLO Y CUMPLIMIENTO DE LAS COMISIONES JUDICIALES ORDENADAS AL ALCALDE(SA) LOCAL ASÍ COMO LA ATENCIÓN DE PETICIONES REQUERIMIENTOS Y ACCIONES CONSTITUCIONALES ORIGINADAS EN EL TRÁMITE DE DESPACHOS COMISORIOS","INVERSION","Un nuevo contrato social y ambiental para la Bogotá del Siglo XXI",57,"Gestión Pública Local","Propósito 5. Construir Bogotà - Regiòn con gobierno abierto, transparente y ciudadanìa consciente. ","O23011605570000002021",1,1012339492,"CAMILO ALBERTO PARDO VERGARA","Persona Natural",null,null,null,null,21836000,null,0,0,21836000,21836000,"2022-01-27","2022-01-27","2022-10-26",120,1,"NO APLICA","N/A","N/A","N/A","N/A","TERMINADO",1]
["FDLC-CPS-089-2024",2024,"FDLC-CPS-089-2024","https://community.secop.gov.co/Public/Tendering/OpportunityDetail/Index?noticeUID=CO1.NTC.5793965&isFromPublicArea=True&isModal=False","CPS","CONTRATACION DIRECTA","Prestación de servicios profesionales y de apoyo a la gestión, o para la ejecución de trabajos artísticos que sólo puedan encomendarse a determinadas personas naturales","PRESTAR SERVICIOS PROFESIONALES AL ÁREA DE GESTIÓN DE DESARROLLO LOCAL DE LA ALCALDÍA LOCAL PARA LA IMPLEMENTACIÓN EJECUCIÓN Y SEGUIMIENTO DE LAS POLÍTICAS PROGRAMAS PLANES Y PROYECTOS RELACIONADOS CON EL DESARROLLO SOSTENIBLE Y REACTIVACION ECONÓMICA EN LA LOCALIDAD","INVERSION","Un nuevo contrato social y ambiental para la Bogotá del Siglo XXI",57,"Gestión Pública Local","Propósito 5. Construir Bogotà - Regiòn con gobierno abierto, transparente y ciudadanìa consciente. ","O23011605570000002021",1,1030563592,"JAIME ANDRES JIMENEZ POLANIA","Persona Natural",null,null,null,null,20000000,null,1,10000000,30000000,30000000,"2022-01-24","2022-01-25","2022-12-05",120,1,"2 MESES","N/A","N/A","N/A","N/A","TERMINADO",1]
["FDLC-CPS-090-2024",2024,"FDLC-CPS-090-2024","https://community.secop.gov.co/Public/Tendering/OpportunityDetail/Index?noticeUID=CO1.NTC.5800732&isFromPublicArea=True&isModal=true&asPopupView=true","CPS","CONTRATACION DIRECTA","Prestación de servicios profesionales y de apoyo a la gestión, o para la ejecución de trabajos artísticos que sólo puedan encomendarse a determinadas personas naturales","PRESTAR SERVICIOS ASISTENCIALES Y ADMINISTRATIVOS PARA APOYAR LAS ACTIVIDADES RELACIONADAS CON LA PROTECCIÓN Y EL BIENESTAR ANIMAL EN LA LOCALIDAD DE LA CANDELARIA","INVERSION","Un nuevo contrato social y ambiental para la Bogotá del Siglo XXI",34,"Bogotá protectora de los animales","Propòsito 2. Cambiar nuestros hàbitos de vida para reverdecer a Bogotà y adaptarnos y mitigar la crisis climàtica.","O23011602340000001704",1,1010235642,"CARLOS MARIO MARMOLEJO CARRASCAL","Persona Natural",null,null,null,null,10000000,null,0,0,10000000,10000000,"2022-01-24","2022-01-25","2022-07-24",120,null,"NO APLICA","N/A","N/A","N/A","N/A","TERMINADO",1]
["FDLC-CPS-091-2024",2024,"FDLC-CPS-091-2024","https://community.secop.gov.co/Public/Tendering/OpportunityDetail/Index?noticeUID=CO1.NTC.5804047&isFromPublicArea=True&isModal=true&asPopupView=true","CPS","CONTRATACION DIRECTA","Prestación de servicios profesionales y de apoyo a la gestión, o para la ejecución de trabajos artísticos que sólo puedan encomendarse a determinadas personas naturales","PRESTAR SERVICIOS PROFESIONALES AL FONDO DE DESARROLLO LOCAL DE LA CANDELARIA PARA APOYAR EN LA ESTRUCTURACIÓN FORMULACION PRESENTACIÓN EVALUACIÓN Y SEGUIMIENTO DE LOS PROYECTOS DE INVERSION EN LA LOCALIDAD","INVERSION","Un nuevo contrato social y ambiental para la Bogotá del Siglo XXI",57,"Gestión Pública Local","Propósito 5. Construir Bogotà - Regiòn con gobierno abierto, transparente y ciudadanìa consciente. ","O23011605570000002021",1,1020729068,"MANUELA LOPEZ GIRALDO","Persona Natural",null,null,null,null,15000000,null,0,0,15000000,15000000,"2022-01-24","2022-01-25","2022-07-24",90,null,"NO APLICA","N/A","N/A","N/A","N/A","TERMINADO",1]
["FDLC-CPS-092-2024",2024,"FDLC-CPS-092-2024","https://community.secop.gov.co/Public/Tendering/OpportunityDetail/Index?noticeUID=CO1.NTC.5805663&isFromPublicArea=True&isModal=true&asPopupView=true","CPS","CONTRATACION DIRECTA","Prestación de servicios profesionales y de apoyo a la gestión, o para la ejecución de trabajos artísticos que sólo puedan encomendarse a determinadas personas naturales","PRESTAR SERVICIOS PROFESIONALES AL FONDO DE DESARROLLO LOCAL DE LA CANDELARIA PARA APOYAR EL SEGUIMIENTO LIQUIDACIÓN DEPURACIÓN Y CONSOLIDACIÓN DE LA INFORMACIÓN DE LAS OBLIGACIONES POR PAGAR ASI COMO LAS DEMAS ACTIVIDADES DERIVADAS DE LA GESTIÓN CONTRACTUAL REQUERIDAS POR LA ENTIDAD","INVERSION","Un nuevo contrato social y ambiental para la Bogotá del Siglo XXI",57,"Gestión Pública Local","Propósito 5. Construir Bogotà - Regiòn con gobierno abierto, transparente y ciudadanìa consciente. ","O23011605570000002021",1,79594412,"DORIS MARINA MORENO CASAS","Persona Natural",null,null,null,null,20000000,null,0,0,20000000,20000000,"2022-01-25","2022-01-25","2022-12-30",120,null,"NO APLICA","N/A","N/A","N/A","N/A","TERMINADO",1]
["FDLC-CPS-093-2024",2024,"FDLC-CPS-093-2024","https://community.secop.gov.co/Public/Tendering/OpportunityDetail/Index?noticeUID=CO1.NTC.5802122&isFromPublicArea=True&isModal=true&asPopupView=true","CPS","CONTRATACION DIRECTA","Prestación de servicios profesionales y de apoyo a la gestión, o para la ejecución de trabajos artísticos que sólo puedan encomendarse a determinadas personas naturales","PRESTAR SERVICIOS ASISTENCIALES AL ÁREA DE GESTIÓN DE DESARROLLO LOCAL EN LOS PROCESOS Y ACTIVIDADES DE GESTIÓN ADMINISTRATIVA DE LOS PROYECTOS CULTURALES  ARTÍSTICOS Y PATRIMONIALES DE LA ENTIDAD Y DEMÁS ASIGNADOS POR EL ÁREA DE GESTIÓN DEL DESARROLLO LOCAL","INVERSION","Un nuevo contrato social y ambiental para la Bogotá del Siglo XXI",21,"Creación y vida cotidiana: Apropiación ciudadana del arte, la cultura y el patrimonio, para la democracia cultural","Propósito 1. Hacer un nuevo contrato social con igualdad de oportunidades para la inclusiòn social, productiva y polìtica ","O23011601210000001625",1,79594412,"LUZ MYRIAM TELLEZ PERILLA","Persona Natural",null,null,null,null,11000000,null,2,5500000,16500000,16500000,"2022-01-25","2022-01-25","2022-12-30",120,2,"2 MESES","N/A","N/A","N/A","N/A","TERMINADO",1]
["FDLC-CPS-094-2024",2024,"FDLC-CPS-094-2024","https://community.secop.gov.co/Public/Tendering/OpportunityDetail/Index?noticeUID=CO1.NTC.5801984&isFromPublicArea=True&isModal=true&asPopupView=true","CPS","CONTRATACION DIRECTA","Prestación de servicios profesionales y de apoyo a la gestión, o para la ejecución de trabajos artísticos que sólo puedan encomendarse a determinadas personas naturales","PRESTAR SERVICIOS PROFESIONALES AL FONDO DE DESARROLLO LOCAL DE LA CANDELARIA PARA APOYAR EN LA ESTRUCTURACIÓN FORMULACIÓN PRESENTACIÓN EVALUACIÓN Y SEGUIMIENTO DE LOS PROYECTOS DE INVERSIÓN EN LA LOCALIDAD ","INVERSION","Un nuevo contrato social y ambiental para la Bogotá del Siglo XXI",57,"Gestión Pública Local","Propósito 5. Construir Bogotà - Regiòn con gobierno abierto, transparente y ciudadanìa consciente. ","O23011605570000002021",1,19459477,"YESID FERNANDO BUSTOS AGUILAR","Persona Natural",null,null,null,null,15000000,null,0,0,{"$f":"+W107+X107+Z107","v":15000000},15000000,"2022-01-26","2022-01-27","2022-07-26",90,null,"NO APLICA","N/A","N/A","N/A","N/A","TERMINADO",1]
["FDLC-CPS-095-2024",2024,"FDLC-CPS-095-2024","https://community.secop.gov.co/Public/Tendering/OpportunityDetail/Index?noticeUID=CO1.NTC.5817407&isFromPublicArea=True&isModal=true&asPopupView=true","CPS","CONTRATACION DIRECTA","Prestación de servicios profesionales y de apoyo a la gestión, o para la ejecución de trabajos artísticos que sólo puedan encomendarse a determinadas personas naturales","PRESTAR SERVICIOS DE APOYO EN LAS ACTIVIDADES DE SEGURIDAD Y CONVIVENCIA CIUDADANA DE ACUERDO A LAS NECESIDADES Y ESTRATEGIAS DE LA ALCALDIA LOCAL DE LA CANDELARIA","INVERSION","Un nuevo contrato social y ambiental para la Bogotá del Siglo XXI",57,"Gestión Pública Local","Propósito 5. Construir Bogotà - Regiòn con gobierno abierto, transparente y ciudadanìa consciente. ","O23011605570000002021",1,80729376,"LAURA CATALINA MORA NIETO","Persona Natural",null,null,null,null,7520000,null,0,0,7520000,7520000,"2022-01-26","2022-01-27","2022-07-26",120,null,"NO APLICA","N/A","N/A","N/A","N/A","TERMINADO",1]
["FDLC-CPS-096-2024",2024,"FDLC-CPS-096-2024","https://community.secop.gov.co/Public/Tendering/OpportunityDetail/Index?noticeUID=CO1.NTC.5815155&isFromPublicArea=True&isModal=true&asPopupView=true","CPS","CONTRATACION DIRECTA","Prestación de servicios profesionales y de apoyo a la gestión, o para la ejecución de trabajos artísticos que sólo puedan encomendarse a determinadas personas naturales","PRESTAR SERVICIOS PROFESIONALES PARA APOYAR JURÍDICAMENTE LA EJECUCIÓN DE LAS ACCIONES REQUERIDAS PARA LA DEPURACIÓN DE LAS ACTUACIONES ADMINISTRATIVAS QUE CURSAN EN LA ALCALDÍA LOCAL DE LA CANDELARIA","INVERSION","Un nuevo contrato social y ambiental para la Bogotá del Siglo XXI",57,"Gestión Pública Local","Propósito 5. Construir Bogotà - Regiòn con gobierno abierto, transparente y ciudadanìa consciente. ","O23011605570000002023",1,36313634,"DAVID ANTONIO RODRIGUEZ PULIDO","Persona Natural",null,null,null,null,21836000,null,1,10918000,32754000,32754000,"2022-01-28","2022-01-28","2022-09-27",120,1,"2 MESES","N/A","N/A","N/A","N/A","TERMINADO",1]
["FDLC-CPS-097-2024",2024,"FDLC-CPS-097-2024","https://community.secop.gov.co/Public/Tendering/OpportunityDetail/Index?noticeUID=CO1.NTC.5821199&isFromPublicArea=True&isModal=true&asPopupView=true","CPS","CONTRATACION DIRECTA","Prestación de servicios profesionales y de apoyo a la gestión, o para la ejecución de trabajos artísticos que sólo puedan encomendarse a determinadas personas naturales","APOYAR AL ALCALDE (SA) LOCAL EN LA PROMOCIÓN ACOMPAÑAMIENTO COORDINACIÓN Y ATENCIÓN DE LAS INSTANCIAS DE COORDINACIÓN INTERINSTITUCIONALES Y LAS INSTANCIAS DE PARTICIPACIÓN LOCALES ASÍ COMO LOS PROCESOS COMUNITARIOS EN LA LOCALIDAD","INVERSION","Un nuevo contrato social y ambiental para la Bogotá del Siglo XXI",55,"Fortalecimiento de Cultura Ciudadana y su institucionalidad","Propósito 5. Construir Bogotà - Regiòn con gobierno abierto, transparente y ciudadanìa consciente. ","O23011605550000002019",1,1085290304,"MONICA ANDREA LEAL DIAZ","Persona Natural",null,null,null,null,29792000,null,1,14896000,44688000,41708800,"2022-01-26","2022-01-26","2022-09-26",120,1,"2 MESES","N/A","N/A","N/A","N/A","TERMINADO",0.93333333333333335]
["FDLC-CPS-098-2024",2024,"FDLC-CPS-098-2024","https://community.secop.gov.co/Public/Tendering/OpportunityDetail/Index?noticeUID=CO1.NTC.5820904&isFromPublicArea=True&isModal=true&asPopupView=true","CPS","CONTRATACION DIRECTA","Prestación de servicios profesionales y de apoyo a la gestión, o para la ejecución de trabajos artísticos que sólo puedan encomendarse a determinadas personas naturales","PRESTAR SERVICIOS PROFESIONALES PARA APOYAR A LA ALCALDÍA LOCAL DE LA CANDELARIA EN LA PROMOCIÓN SEGUIMIENTO ACOMPAÑAMIENTO Y ATENCIÓN DE LAS INSTANCIAS DE PARTICIPACIÓN JUVENIL DE LA LOCALIDAD ASI COMO LOS PROCESOS COMUNITARIOS DE JUVENTUDES Y DEMÁS ESPACIOS DE PARTICIPACIÓN DESIGNADOS","INVERSION","Un nuevo contrato social y ambiental para la Bogotá del Siglo XXI",57,"Gestión Pública Local","Propósito 5. Construir Bogotà - Regiòn con gobierno abierto, transparente y ciudadanìa consciente. ","O23011605570000002021",1,1085280532,"YAHARA VALENTINA SILVA VELAZCO","Persona Natural",null,null,null,null,19092000,null,0,0,19092000,19092000,"2022-01-27","2022-01-27","2022-12-26",120,null,"NO APLICA","N/A","N/A","N/A","N/A","TERMINADO",1]
["FDLC-CPS-099-2024",2024,"FDLC-CPS-099-2024","https://community.secop.gov.co/Public/Tendering/OpportunityDetail/Index?noticeUID=CO1.NTC.5819436&isFromPublicArea=True&isModal=true&asPopupView=true","CPS","CONTRATACION DIRECTA","Prestación de servicios profesionales y de apoyo a la gestión, o para la ejecución de trabajos artísticos que sólo puedan encomendarse a determinadas personas naturales","PRESTAR SERVICIOS PROFESIONALES AL FONDO DE DESARROLLO LOCAL DE LA CANDELARIA PARA APOYAR TÉCNICAMENTE A LOS RESPONSABLES E INTEGRANTES DE LOS PROCESOS EN LA IMPLEMENTACIÓN DE HERRAMIENTAS DE GESTIÓN SIGUIENDO LOS LINEAMIENTOS METODOLÓGICOS ESTABLECIDOS POR LA OFICINA ASESORA DE PLANEACIÓN DE LA SECRETARÍA DISTRITAL DE GOBIERNO","INVERSION","Un nuevo contrato social y ambiental para la Bogotá del Siglo XXI",57,"Gestión Pública Local","Propósito 5. Construir Bogotà - Regiòn con gobierno abierto, transparente y ciudadanìa consciente. ","O23011605570000002021",1,80236435,"GLORIA INES CASTILLO PAEZ","Persona Natural",null,null,null,null,24000000,null,1,6000000,{"$f":"+W112+X112+Z112","v":30000000},30000000,"2022-01-26","2022-01-26","2022-11-25",120,1,"1 MES","N/A","N/A","N/A","N/A","TERMINADO",1]
["FDLC-CPS-100-2024",2024,"FDLC-CPS-100-2024","https://community.secop.gov.co/Public/Tendering/OpportunityDetail/Index?noticeUID=CO1.NTC.5835074&isFromPublicArea=True&isModal=true&asPopupView=true","CPS","CONTRATACION DIRECTA","Prestación de servicios profesionales y de apoyo a la gestión, o para la ejecución de trabajos artísticos que sólo puedan encomendarse a determinadas personas naturales","PRESTAR SERVICIOS DE APOYO AL FONDO DE DESARROLLO LOCAL DE LA CANDELARIA EN LA ADMINISTRACIÓN DE LAS CASAS COMUNITARIAS DE LA LOCALIDAD DE LA CANDELARIA DE CONFORMIDAD CON EL ACUERDO LOCAL 006 DE 2013","INVERSION","Un nuevo contrato social y ambiental para la Bogotá del Siglo XXI",57,"Gestión Pública Local","Propósito 5. Construir Bogotà - Regiòn con gobierno abierto, transparente y ciudadanìa consciente. ","O23011605570000002021",1,79907754,"JESSICA LISETH RINCON RODRIGUEZ","Persona Natural",null,null,null,null,11532000,null,1,2883000,14415000,14415000,"2022-01-26","2022-01-27","2022-07-26",120,1,"1 MES  ","N/A","N/A","N/A","N/A","TERMINADO",1]
["FDLC-CPS-101-2024",2024,"FDLC-CPS-101-2024","https://community.secop.gov.co/Public/Tendering/OpportunityDetail/Index?noticeUID=CO1.NTC.5837653&isFromPublicArea=True&isModal=true&asPopupView=true","CPS","CONTRATACION DIRECTA","Prestación de servicios profesionales y de apoyo a la gestión, o para la ejecución de trabajos artísticos que sólo puedan encomendarse a determinadas personas naturales","PRESTAR SERVICIOS PROFESIONALES AL FONDO DE DESARROLLO LOCAL DE LA CANDELARIA PARA APOYAR Y FORTALECER LAS GESTIONES CONTABLES DE LA ENTIDAD","INVERSION","Un nuevo contrato social y ambiental para la Bogotá del Siglo XXI",57,"Gestión Pública Local","Propósito 5. Construir Bogotà - Regiòn con gobierno abierto, transparente y ciudadanìa consciente. ","O23011605570000002021",1,1001281981," CARLOS MARIO MARTINEZ DIAZ","Persona Natural",null,null,null,null,23200000,null,1,11600000,{"$f":"+W114+X114+Z114","v":34800000},20493333,"2022-01-27","2022-01-28","2022-12-27",120,1,"2 MESES",52520044,"PAOLA ANDREA OYUELA VARGAS CESION DE","2024-04-05",2706667,"TERMINADO",0.58888887931034484]
["FDLC-CPS-102-2024",2024,"FDLC-CPS-102-2024","https://community.secop.gov.co/Public/Tendering/OpportunityDetail/Index?noticeUID=CO1.NTC.5832210&isFromPublicArea=True&isModal=true&asPopupView=true","CPS","CONTRATACION DIRECTA","Prestación de servicios profesionales y de apoyo a la gestión, o para la ejecución de trabajos artísticos que sólo puedan encomendarse a determinadas personas naturales","PRESTAR SERVICIOS ESPECIALIZADOS DE PLANEACIÓN ESTRATÉGICA EN EL DESPACHO DE LA ALCALDÍA LOCAL DE LA CANDELARIA PARA LA COORDINACIÓN ESTRUCTURACIÓN FORMULACIÓN EJECUCIÓN Y CONTROL DE POLÍTICAS PLANES Y PROGRAMAS DE INVERSIÓN EN EL MARCO DEL CUMPLIMIENTO DEL PLAN DE DESARROLLO LOCAL","INVERSION","Un nuevo contrato social y ambiental para la Bogotá del Siglo XXI",57,"Gestión Pública Local","Propósito 5. Construir Bogotà - Regiòn con gobierno abierto, transparente y ciudadanìa consciente. ","O23011605570000002021",1,51838961,"DELIO ALCIBIADES LADINO PEÑA","Persona Natural",null,null,null,null,34164000,null,1,17082000,51246000,51246000,"2022-01-27","2022-01-28","2022-10-27",120,1,"2 MESES","N/A","N/A","N/A","N/A","TERMINADO",1]
["FDLC-CPS-103-2024",2024,"FDLC-CPS-103-2024","https://community.secop.gov.co/Public/Tendering/OpportunityDetail/Index?noticeUID=CO1.NTC.5827189&isFromPublicArea=True&isModal=true&asPopupView=true","CPS","CONTRATACION DIRECTA","Prestación de servicios profesionales y de apoyo a la gestión, o para la ejecución de trabajos artísticos que sólo puedan encomendarse a determinadas personas naturales","PRESTAR SERVICIOS TÉCNICOS AL ÁREA DE GESTIÓN POLICIVA DE LA ALCALDÍA LOCAL DE LA CANDELARIA EN LAS LABORES OPERATIVAS DE IMPULSO DE LAS ACTUACIONES ADMINISTRATIVAS","INVERSION","Un nuevo contrato social y ambiental para la Bogotá del Siglo XXI",57,"Gestión Pública Local","Propósito 5. Construir Bogotà - Regiòn con gobierno abierto, transparente y ciudadanìa consciente. ","O23011605570000002023",1,37626367,"NEREIDA HERNANDEZ FLOREZ","Persona Natural",null,null,null,null,14400000,null,1,7200000,21600000,21600000,"2022-02-01","2022-01-28","2022-10-27",120,1,"2 MESES","N/A","N/A","N/A","N/A","TERMINADO",1]
["FDLC-CPS-104-2024",2024,"FDLC-CPS-104-2024","https://community.secop.gov.co/Public/Tendering/OpportunityDetail/Index?noticeUID=CO1.NTC.5864855&isFromPublicArea=True&isModal=true&asPopupView=true","CPS","CONTRATACION DIRECTA","Prestación de servicios profesionales y de apoyo a la gestión, o para la ejecución de trabajos artísticos que sólo puedan encomendarse a determinadas personas naturales","PRESTAR EL APOYO SECRETARIAL A LA JUNTA ADMINISTRADORA LOCAL","INVERSION","Un nuevo contrato social y ambiental para la Bogotá del Siglo XXI",57,"Gestión Pública Local","Propósito 5. Construir Bogotà - Regiòn con gobierno abierto, transparente y ciudadanìa consciente. ","O23011605570000002021",1,1024571510,"SARA EDITH LIS RAMIREZ","Persona Natural",null,null,null,null,9200000,null,0,0,9200000,9200000,"2022-01-28","2022-01-28","2022-11-27",120,null,"NO APLICA","N/A","N/A","N/A","N/A","TERMINADO",1]
["FDLC-CPS-105-2024",2024,"FDLC-CPS-105-2024","https://community.secop.gov.co/Public/Tendering/OpportunityDetail/Index?noticeUID=CO1.NTC.5867799&isFromPublicArea=True&isModal=true&asPopupView=true","CPS","CONTRATACION DIRECTA","Prestación de servicios profesionales y de apoyo a la gestión, o para la ejecución de trabajos artísticos que sólo puedan encomendarse a determinadas personas naturales","PRESTAR SERVICIOS DE APOYO TÉCNICO Y ADMINISTRATIVO RELACIONADOS CON LOS PROYECTOS DE INVERSION Y FUNCIONAMIENTO QUE DESARROLLE LA ALCALDIA LOCAL DE LA CANDELARIA","INVERSION","Un nuevo contrato social y ambiental para la Bogotá del Siglo XXI",57,"Gestión Pública Local","Propósito 5. Construir Bogotà - Regiòn con gobierno abierto, transparente y ciudadanìa consciente. ","O23011605570000002021",1,80844806,"MARÍA ADELAIDA LUNA BUENAVENTURA","Persona Natural",null,null,null,null,12400000,null,0,0,12400000,12400000,"2022-01-26","2022-01-26","2022-07-25",120,null,"NO APLICA","N/A","N/A","N/A","N/A","TERMINADO",1]
["FDLC-CPS-106-2024",2024,"FDLC-CPS-106-2024","https://community.secop.gov.co/Public/Tendering/OpportunityDetail/Index?noticeUID=CO1.NTC.5891448&isFromPublicArea=True&isModal=true&asPopupView=true","CPS","CONTRATACION DIRECTA","Prestación de servicios profesionales y de apoyo a la gestión, o para la ejecución de trabajos artísticos que sólo puedan encomendarse a determinadas personas naturales","PRESTAR SERVICIOS PROFESIONALES AL FONDO DE DESARROLLO LOCAL DE LA CANDELARIA PARA APOYAR EN LA ESTRUCTURACIÓN FORMULACIÓN PRESENTACIÓN EVALUACIÓN Y SEGUIMIENTO DE LOS PROYECTOS DE INVERSIÓN EN LA LOCALIDAD","INVERSION","Un nuevo contrato social y ambiental para la Bogotá del Siglo XXI",57,"Gestión Pública Local","Propósito 5. Construir Bogotà - Regiòn con gobierno abierto, transparente y ciudadanìa consciente. ","O23011605570000002021",1,93236642,"ERICA MILENA VARGAS MEDINA","Persona Natural",null,null,null,null,14319000,null,1,7159500,21478500,21478500,"2022-01-28","2022-01-28","2023-06-11",120,1,"1 MES 15 DIAS","N/A","N/A","N/A","N/A","TERMINADO",1]
["FDLC-CPS-107-2024",2024,"FDLC-CPS-107-2024","https://community.secop.gov.co/Public/Tendering/OpportunityDetail/Index?noticeUID=CO1.NTC.5892136&isFromPublicArea=True&isModal=true&asPopupView=true","CPS","CONTRATACION DIRECTA","Prestación de servicios profesionales y de apoyo a la gestión, o para la ejecución de trabajos artísticos que sólo puedan encomendarse a determinadas personas naturales","PRESTACIÓN DE SERVICIOS DE APOYO ADMINISTRATIVO Y ASISTENCIAL A LA ALCALDIA LOCAL DE LA CANDELARIA EN LOS PROCESOS DE FORMACIÓN PARA LA PARTICIPACIÓN.","INVERSION","Un nuevo contrato social y ambiental para la Bogotá del Siglo XXI",55,"Fortalecimiento de Cultura Ciudadana y su institucionalidad","Propósito 5. Construir Bogotà - Regiòn con gobierno abierto, transparente y ciudadanìa consciente. ","O23011605550000002019",1,80807404,"LIZDENIA ROBLEDO MÁRQUEZ","Persona Natural",null,null,null,null,11532000,null,0,0,11532000,11532000,"2022-01-28","2022-01-28","2022-10-27",120,null,"NO APLICA","N/A","N/A","N/A","N/A","TERMINADO",1]
["FDLC-CPS-108-2024",2024,"FDLC-CPS-108-2024","https://community.secop.gov.co/Public/Tendering/OpportunityDetail/Index?noticeUID=CO1.NTC.5867710&isFromPublicArea=True&isModal=true&asPopupView=true","CPS","CONTRATACION DIRECTA","Prestación de servicios profesionales y de apoyo a la gestión, o para la ejecución de trabajos artísticos que sólo puedan encomendarse a determinadas personas naturales","PRESTAR SERVICIOS DE APOYO EN LAS ACTIVIDADES DE SEGURIDAD Y CONVIVENCIA CIUDADANA DE ACUERDO A LAS NECESIDADES Y ESTRATEGIAS DE LA ALCALDÍA LOCAL DE LA CANDELARIA","INVERSION","Un nuevo contrato social y ambiental para la Bogotá del Siglo XXI",57,"Gestión Pública Local","Propósito 5. Construir Bogotà - Regiòn con gobierno abierto, transparente y ciudadanìa consciente. ","O23011605570000002021",1,19458700,"FRANCI LILIANA GAMBOA AVELLA","Persona Natural",null,null,null,null,7520000,null,0,0,7520000,7520000,"2022-01-28","2022-01-28","2022-12-27",120,null,"NO APLICA","N/A","N/A","N/A","N/A","TERMINADO",1]
["FDLC-CPS-109-2024",2024,"FDLC-CPS-109-2024","https://community.secop.gov.co/Public/Tendering/OpportunityDetail/Index?noticeUID=CO1.NTC.5864309&isFromPublicArea=True&isModal=true&asPopupView=true","CPS","CONTRATACION DIRECTA","Prestación de servicios profesionales y de apoyo a la gestión, o para la ejecución de trabajos artísticos que sólo puedan encomendarse a determinadas personas naturales","APOYAR AL (LA) ALCALDE (SA) LOCAL EN LA PROMOCIÓN ARTICULACIÓN ACOMPAÑAMIENTO Y SEGUIMIENTO PARA LA ATENCIÓN Y PROTECCIÓN DE LOS ANIMALES DOMÉSTICOS Y SILVESTRES DE LA LOCALIDAD","INVERSION","Un nuevo contrato social y ambiental para la Bogotá del Siglo XXI",34,"Bogotá protectora de los animales","Propòsito 2. Cambiar nuestros hàbitos de vida para reverdecer a Bogotà y adaptarnos y mitigar la crisis climàtica.","O23011602340000001704",1,1022408072,"DAISSY TATIANA FAJARDO VELASCO","Persona Natural",null,null,null,null,29792000,null,1,14896000,44688000,44868000,"2022-01-28","2022-01-28","2022-09-28",120,1,"2 MESES","N/A","N/A","N/A","N/A","TERMINADO",1.0040279269602579]
["FDLC-CPS-110-2024",2024,"FDLC-CPS-110-2024","https://community.secop.gov.co/Public/Tendering/OpportunityDetail/Index?noticeUID=CO1.NTC.5868665&isFromPublicArea=True&isModal=true&asPopupView=true","CPS","CONTRATACION DIRECTA","Prestación de servicios profesionales y de apoyo a la gestión, o para la ejecución de trabajos artísticos que sólo puedan encomendarse a determinadas personas naturales","PRESTAR SERVICIOS DE APOYO EN LAS ACTIVIDADES DE SEGURIDAD Y CONVIVENCIA CIUDADANA DE ACUERDO A LAS NECESIDADES Y ESTRATEGIAS DE LA ALCALDIA LOCAL DE LA CANDELARIA","INVERSION","Un nuevo contrato social y ambiental para la Bogotá del Siglo XXI",57,"Gestión Pública Local","Propósito 5. Construir Bogotà - Regiòn con gobierno abierto, transparente y ciudadanìa consciente. ","O23011605570000002021",1,11203378,"LUCIENY CASTRILLON GRANADA","Persona Natural",null,null,null,null,7520000,null,1,1880000,9400000,9400000,"2022-01-28","2022-01-28","2022-07-27",120,1,"1 MES  ","N/A","N/A","N/A","N/A","TERMINADO",1]
["FDLC-CPS-111-2024",2024,"FDLC-CPS-111-2024","https://community.secop.gov.co/Public/Tendering/OpportunityDetail/Index?noticeUID=CO1.NTC.5890067&isFromPublicArea=True&isModal=true&asPopupView=true","CPS","CONTRATACION DIRECTA","Prestación de servicios profesionales y de apoyo a la gestión, o para la ejecución de trabajos artísticos que sólo puedan encomendarse a determinadas personas naturales","PRESTAR SERVICIOS DE APOYO EN LAS ACTIVIDADES DE SEGURIDAD Y CONVIVENCIA CIUDADANA DE ACUERDO A LAS NECESIDADES Y ESTRATEGIAS DE LA ALCALDIA LOCAL DE LA CANDELARIA","INVERSION","Un nuevo contrato social y ambiental para la Bogotá del Siglo XXI",57,"Gestión Pública Local","Propósito 5. Construir Bogotà - Regiòn con gobierno abierto, transparente y ciudadanìa consciente. ","O23011605570000002021",1,1024462041,"ORLANDO GOMEZ ROMERO","Persona Natural",null,null,null,null,7520000,null,1,1880000,{"$f":"+W124+X124+Z124","v":9400000},9400000,"2022-01-28","2022-01-28","2022-07-27",120,1,"1 MES  ","N/A","N/A","N/A","N/A","TERMINADO",1]
["FDLC-CPS-112-2024",2024,"FDLC-CPS-112-2024","https://community.secop.gov.co/Public/Tendering/OpportunityDetail/Index?noticeUID=CO1.NTC.5868685&isFromPublicArea=True&isModal=true&asPopupView=true","CPS","CONTRATACION DIRECTA","Prestación de servicios profesionales y de apoyo a la gestión, o para la ejecución de trabajos artísticos que sólo puedan encomendarse a determinadas personas naturales","PRESTAR SERVICIOS PROFESIONALES AL FONDO DE DESARROLLO LOCAL DE LA CANDELARIA PARA APOYAR EN LA ESTRUCTURACIÓN FORMULACION PRESENTACIÓN EVALUACIÓN Y SEGUIMIENTO DE LOS PROYECTOS DE INVERSION EN LA LOCALIDAD","INVERSION","Un nuevo contrato social y ambiental para la Bogotá del Siglo XXI",57,"Gestión Pública Local","Propósito 5. Construir Bogotà - Regiòn con gobierno abierto, transparente y ciudadanìa consciente. ","O23011605570000002021",1,1121847787,"IVETTE ALEJANDRA  CARPENTIER  HENAO","Persona Natural",null,null,null,null,15000000,null,1,5000000,20000000,20000000,"2022-01-28","2022-01-28","2022-06-27",120,1,"1 MES","N/A","N/A","N/A","N/A","TERMINADO",1]
["FDLC-CPS-113-2024",2024,"FDLC-CPS-113-2024","https://community.secop.gov.co/Public/Tendering/OpportunityDetail/Index?noticeUID=CO1.NTC.5868122&isFromPublicArea=True&isModal=true&asPopupView=true","CPS","CONTRATACION DIRECTA","Prestación de servicios profesionales y de apoyo a la gestión, o para la ejecución de trabajos artísticos que sólo puedan encomendarse a determinadas personas naturales","PRESTAR SERVICIOS PROFESIONALES DE APOYO EN LA COORDINACIÓN DE LAS CASAS COMUNITARIAS DE LA LOCALIDAD DE LA CANDELARIA DE CONFORMIDAD CON EL ACUERDO LOCAL 006 DE 2013","INVERSION","Un nuevo contrato social y ambiental para la Bogotá del Siglo XXI",57,"Gestión Pública Local","Propósito 5. Construir Bogotà - Regiòn con gobierno abierto, transparente y ciudadanìa consciente. ","O23011605570000002021",1,1010246196,"MARIA TERESA BECERRA","Persona Natural",null,null,null,null,19092000,null,1,4773000,23865000,23865000,"2022-01-28","2022-01-28","2022-07-27",120,1,"1 MES","N/A","N/A","N/A","N/A","TERMINADO",1]
["FDLC-CPS-114-2024",2024,"FDLC-CPS-114-2024","https://community.secop.gov.co/Public/Tendering/OpportunityDetail/Index?noticeUID=CO1.NTC.5868112&isFromPublicArea=True&isModal=true&asPopupView=true","CPS","CONTRATACION DIRECTA","Prestación de servicios profesionales y de apoyo a la gestión, o para la ejecución de trabajos artísticos que sólo puedan encomendarse a determinadas personas naturales","PRESTAR SERVICIOS DE APOYO AL FONDO DE DESARROLLO LOCAL DE LA CANDELARIA EN LA ADMINISTRACIÓN DE LAS CASAS COMUNITARIAS DE LA LOCALIDAD DE LA CANDELARIA DE CONFORMIDAD CON EL ACUERDO LOCAL 006 DE 2013","INVERSION","Un nuevo contrato social y ambiental para la Bogotá del Siglo XXI",57,"Gestión Pública Local","Propósito 5. Construir Bogotà - Regiòn con gobierno abierto, transparente y ciudadanìa consciente. ","O23011605570000002021",1,1022928883,"KIMBERLY SANTAMARIA ACERO","Persona Natural",null,null,null,null,11532000,null,1,2883000,14415000,14415000,"2022-01-28","2022-01-28","2022-07-27",120,1,"1 MES","N/A","N/A","N/A","N/A","TERMINADO",1]
["FDLC-CPS-115-2024",2024,"FDLC-CPS-115-2024","https://community.secop.gov.co/Public/Tendering/OpportunityDetail/Index?noticeUID=CO1.NTC.5868128&isFromPublicArea=True&isModal=true&asPopupView=true","CPS","CONTRATACION DIRECTA","Prestación de servicios profesionales y de apoyo a la gestión, o para la ejecución de trabajos artísticos que sólo puedan encomendarse a determinadas personas naturales","PRESTAR SERVICIOS DE APOYO AL FONDO DE DESARROLLO LOCAL DE LA CANDELARIA EN LA ADMINISTRACIÓN DE LAS CASAS COMUNITARIAS DE LA LOCALIDAD DE LA CANDELARIA DE CONFORMIDAD CON EL ACUERDO LOCAL 006 DE 2013","INVERSION","Un nuevo contrato social y ambiental para la Bogotá del Siglo XXI",57,"Gestión Pública Local","Propósito 5. Construir Bogotà - Regiòn con gobierno abierto, transparente y ciudadanìa consciente. ","O23011605570000002021",1,1054121677,"JENNIFER JULIETH TORRALBA MARTINEZ","Persona Natural",null,null,null,null,11532000,null,1,2883000,14415000,14415000,"2022-01-28","2022-01-28","2022-07-27",120,1,"1 MES","N/A","N/A","N/A","N/A","TERMINADO",1]
["FDLC-CPS-116-2024",2024,"FDLC-CPS-116-2024","https://community.secop.gov.co/Public/Tendering/OpportunityDetail/Index?noticeUID=CO1.NTC.5936843&isFromPublicArea=True&isModal=False","CPS","CONTRATACION DIRECTA","Prestación de servicios profesionales y de apoyo a la gestión, o para la ejecución de trabajos artísticos que sólo puedan encomendarse a determinadas personas naturales","PRESTAR SUS SERVICIOS PROFESIONALES DE APOYO Y ACOMPAÑAMIENTO RELACIONADOS CON LOS PROYECTOS DE OBRA PÚBLICA E INFRAESTRUCTURA PARA LOGRAR EL CUMPLIMIENTO DE LAS METAS DEL PLAN DE DESARROLLO LOCAL 2021-2024","INVERSION","Un nuevo contrato social y ambiental para la Bogotá del Siglo XXI",49,"Movilidad segura, sostenible y accesible","Propòsito 4. Hacer de Bogotà - Region un modelo de movilidad multimodal, incluyente y sostenible ","O23011604490000002020",1,52808825,"JUAN PABLO SANABRIA VEGA","Persona Natural",null,null,null,null,29792000,null,0,0,29792000,29792000,"2022-01-28","2022-01-28","2022-07-16",120,1,"NO APLICA","N/A","N/A","N/A","N/A","TERMINADO",1]
["FDLC-CPS-117-2024",2024,"FDLC-CPS-117-2024","https://community.secop.gov.co/Public/Tendering/OpportunityDetail/Index?noticeUID=CO1.NTC.5881015&isFromPublicArea=True&isModal=true&asPopupView=true","CPS","CONTRATACION DIRECTA","Subasta inversa ","PRESTAR SERVICIOS PROFESIONALES AL FONDO DE DESARROLLO LOCAL PARA APOYAR LA FORMULACIÓN EJECUCIÓN SEGUIMIENTO Y MEJORA CONTINUA DE LAS HERRAMIENTAS QUE CONFORMAN LA GESTIÓN AMBIENTAL INSTITUCIONAL DE LA ALCALDIA LOCAL.","INVERSION","Un nuevo contrato social y ambiental para la Bogotá del Siglo XXI",57,"Gestión Pública Local","Propósito 5. Construir Bogotà - Regiòn con gobierno abierto, transparente y ciudadanìa consciente. ","O23011605570000002021",1,79976027,"DIANA CAROLINA MARTINEZ NOVOA","Persona Natural",null,null,null,null,20000000,null,2,10000000,30000000,30000000,"2022-01-28","2022-01-28","2022-07-27",120,2,"2 MESES","N/A","N/A","N/A","N/A","TERMINADO",1]
["FDLC-CPS-118-2024",2024,"FDLC-CPS-118-2024","https://community.secop.gov.co/Public/Tendering/OpportunityDetail/Index?noticeUID=CO1.NTC.5878584&isFromPublicArea=True&isModal=true&asPopupView=true","CPS","CONTRATACION DIRECTA","Decreto 92 de 2017","PRESTAR SERVICIOS PARA APOYAR EL FUNCIONAMIENTO Y LAS ACTIVIDADES DESARROLLADAS EN LA CASA- SEDE DE LA ALCALDÍA LOCAL DE LA CANDELARI","INVERSION","Un nuevo contrato social y ambiental para la Bogotá del Siglo XXI",57,"Gestión Pública Local","Propósito 5. Construir Bogotà - Regiòn con gobierno abierto, transparente y ciudadanìa consciente. ","O23011605570000002021",1,830103828,"MARGARITA POLO GUTIERREZ","Persona Jurídica",null,null,null,null,11200000,null,1,5600000,16800000,14466667,"2022-02-25","2022-03-15","2023-01-21",120,1,"2 MESES","N/A","N/A","N/A","N/A","TERMINADO",0.8611111309523809]
["FDLC-CPS-119-2024",2024,"FDLC-CPS-119-2024","https://community.secop.gov.co/Public/Tendering/OpportunityDetail/Index?noticeUID=CO1.NTC.5876809&isFromPublicArea=True&isModal=False","CPS","CONTRATACION DIRECTA","Decreto 92 de 2017","PRESTAR SERVICIOS DE APOYO A LA GESTIÓN AL FONDO DE DESARROLLO LOCAL DE LA CANDELARIA EN EL DESARROLLO DE ACTIVIDADES QUE AYUDEN EN LA PREVENCIÓN MITIGACIÓN Y MONITOREO DE PROBLEMAS AMBIENTALES Y EL FORTALECIMIENTO DE PRÁCTICAS DE LA AGRICULTURA URBANA.","INVERSION","Un nuevo contrato social y ambiental para la Bogotá del Siglo XXI",24,"Bogotá región emprendedora e innovadora","Propósito 1. Hacer un nuevo contrato social con igualdad de oportunidades para la inclusiòn social, productiva y polìtica","O23011601240000001626",1,800185549,"JOHANA KATERINE AHUMADA ROZO","Persona Jurídica",null,null,null,null,7520000,null,0,0,7520000,7520000,"2022-02-25","2022-03-15","2022-11-09",120,2,"NO APLICA","N/A","N/A","N/A","N/A","TERMINADO",1]
["FDLC-CPS-120-2024",2024,"FDLC-CPS-120-2024","https://community.secop.gov.co/Public/Tendering/OpportunityDetail/Index?noticeUID=CO1.NTC.5875643&isFromPublicArea=True&isModal=true&asPopupView=true","CPS","CONTRATACION DIRECTA","Acuerdo marco de precios ","PRESTAR SERVICIOS ASISTENCIALES AL ÁREA DE GESTIÓN DE DESARROLLO LOCAL EN LOS PROCESOS Y ACTIVIDADES DE GESTIÓN ADMINISTRATIVA DE LOS PROYECTOS CULTURALES ARTÍSTICOS Y PATRIMONIALES DE LA ENTIDAD Y DEMÁS ASIGNADOS POR EL ÁREA DE GESTIÓN DEL DESARROLLO LOCAL","INVERSION","Un nuevo contrato social y ambiental para la Bogotá del Siglo XXI",21,"Creación y vida cotidiana: Apropiación ciudadana del arte, la cultura y el patrimonio, para la democracia cultural","Propósito 1. Hacer un nuevo contrato social con igualdad de oportunidades para la inclusiòn social, productiva y polìtica ","O23011601210000001625",1,901351386,"LADY TATIANA SEPÚLVEDA AGUILAR","Unión Temporal",null,null,null,null,11000000,null,0,0,11000000,11000000,"2022-03-30","2022-03-31","2022-10-30",120,2,"NO APLICA","N/A","N/A","N/A","N/A","TERMINADO",1]
["FDLC-CPS-121-2024",2024,"FDLC-CPS-121-2024","https://community.secop.gov.co/Public/Tendering/OpportunityDetail/Index?noticeUID=CO1.NTC.5881716&isFromPublicArea=True&isModal=False","CPS","CONTRATACION DIRECTA","Acuerdo marco de precios ","PRESTAR SERVICIOS DE APOYO EN LAS ACTIVIDADES DE SEGURIDAD Y CONVIVENCIA CIUDADANA DE ACUERDO A LAS NECESIDADES Y ESTRATEGIAS DE LA ALCALDIA LOCAL DE LA CANDELARIA","INVERSION","Un nuevo contrato social y ambiental para la Bogotá del Siglo XXI",57,"Gestión Pública Local","Propósito 5. Construir Bogotà - Regiòn con gobierno abierto, transparente y ciudadanìa consciente. ","O23011605570000002021",1,900353659,"JOSE ALEXANDER PARRA HERNÁNDEZ","Persona Jurídica",null,null,null,null,7520000,null,1,1880000,9400000,9400000,"2022-03-30","2022-03-31","2022-04-30",120,1,"1 MES","N/A","N/A","N/A","N/A","TERMINADO",1]
["FDLC-CPS-122-2024",2024,"FDLC-CPS-122-2024","https://community.secop.gov.co/Public/Tendering/OpportunityDetail/Index?noticeUID=CO1.NTC.5880357&isFromPublicArea=True&isModal=False","CPS","CONTRATACION DIRECTA","No aplica","PRESTAR SUS SERVICIOS PROFESIONALES DE APOYO Y ACOMPAÑAMIENTO RELACIONADOS CON LOS PROYECTOS DE OBRA PÚBLICA E INFRAESTRUCTURA PARA LOGRAR EL CUMPLIMIENTO DE LAS METAS DEL PLAN DE DESARROLLO LOCAL 2021-2024","INVERSION","Un nuevo contrato social y ambiental para la Bogotá del Siglo XXI",49,"Movilidad segura, sostenible y accesible","Propòsito 4. Hacer de Bogotà - Region un modelo de movilidad multimodal, incluyente y sostenible ","O23011604490000002020",4,800018165,"OSCAR JAVIER OVALLE RIVERA","Persona Jurídica",null,null,null,null,29792000,null,1,7448000,37240000,37240000,"2022-04-04","2022-04-07","2022-12-06",120,1,"1 MES","N/A","N/A","N/A","N/A","TERMINADO",1]
["FDLC-CPS-123-2024",2024,"FDLC-CPS-123-2024","https://community.secop.gov.co/Public/Tendering/OpportunityDetail/Index?noticeUID=CO1.NTC.5882519&isFromPublicArea=True&isModal=true&asPopupView=true","CPS","CONTRATACION DIRECTA","Selección abreviada por menor cuantía ","PRESTAR SERVICIOS DE APOYO EN LAS ACTIVIDADES DE SEGURIDAD Y CONVIVENCIA CIUDADANA DE ACUERDO A LAS NECESIDADES Y ESTRATEGIAS DE LA ALCALDIA LOCAL DE LA CANDELARIA","INVERSION","Un nuevo contrato social y ambiental para la Bogotá del Siglo XXI",57,"Gestión Pública Local","Propósito 5. Construir Bogotà - Regiòn con gobierno abierto, transparente y ciudadanìa consciente. ","O23011605570000002021",5,900359095,"JUAN ALEXANDER ZAPATA PAEZ","Sin ánimo de lucro",null,null,null,null,7520000,null,0,0,7520000,7520000,"2022-06-08","2022-06-10","2022-12-09",120,null,"NO APLICA","N/A","N/A","N/A","N/A","TERMINADO",1]
["FDLC-CPS-124-2024",2024,"FDLC-CPS-124-2024","https://community.secop.gov.co/Public/Tendering/OpportunityDetail/Index?noticeUID=CO1.NTC.5881755&isFromPublicArea=True&isModal=true&asPopupView=true","CPS","CONTRATACION DIRECTA","Acuerdo marco de precios ","PRESTAR SERVICIOS ASISTENCIALES AL ÁREA DE GESTIÓN DE DESARROLLO LOCAL EN LOS PROCESOS RELACIONADOS CON LAS ACTIVIDADES DE GESTION ADMINISTRATIVA DE LA ALCALDÍA LOCAL DE LA CANDELARIA","INVERSION","Un nuevo contrato social y ambiental para la Bogotá del Siglo XXI",57,"Gestión Pública Local","Propósito 5. Construir Bogotà - Regiòn con gobierno abierto, transparente y ciudadanìa consciente. ","O23011605570000002021",1,830073623," JORGE ENRIQUE CARDONA RODRIGUEZ","Persona Jurídica",null,null,null,null,11532000,null,0,0,11532000,11532000,"2022-06-17","2022-06-17","2022-08-16",120,null,"NO APLICA",78762424,"JOSE LUIS ALMANZA RUIZ   - CESION DE",null,null,"TERMINADO",1]
["FDLC-CPS-125-2024",2024,"FDLC-CPS-125-2024","https://community.secop.gov.co/Public/Tendering/OpportunityDetail/Index?noticeUID=CO1.NTC.5920712&isFromPublicArea=True&isModal=False","CPS","CONTRATACION DIRECTA","Selección abreviada por menor cuantía ","PRESTAR SERVICIOS DE APOYO A LA GESTIÓN AL FONDO DE DESARROLLO LOCAL DE LA CANDELARIA EN EL DESARROLLO DE ACTIVIDADES QUE AYUDEN EN LA PREVENCIÓN MITIGACIÓN Y MONITOREO DE PROBLEMAS AMBIENTALES Y EL FORTALECIMIENTO DE PRÁCTICAS DE LA AGRICULTURA URBANA.","INVERSION","Un nuevo contrato social y ambiental para la Bogotá del Siglo XXI",24,"Bogotá región emprendedora e innovadora","Propósito 1. Hacer un nuevo contrato social con igualdad de oportunidades para la inclusiòn social, productiva y polìtica","O23011601240000001626",7,811022703,"ANGEL RODRIGO PEREZ LEMUS","Persona Jurídica",null,null,null,null,7520000,null,1,1880000,9400000,8961333,"2022-06-15","2022-06-23","2022-11-22",120,1,"1 MES","N/A","N/A","N/A","N/A","TERMINADO",0.95333329787234045]
["FDLC-CPS-126-2024",2024,"FDLC-CPS-126-2024","https://community.secop.gov.co/Public/Tendering/OpportunityDetail/Index?noticeUID=CO1.NTC.5882295&isFromPublicArea=True&isModal=true&asPopupView=true","CPS","CONTRATACION DIRECTA","No aplica","PRESTAR SERVICIOS PROFESIONALES PARA APOYAR JURÍDICAMENTE LA EJECUCIÓN DE LAS ACCIONES REQUERIDAS PARA LA DEPURACIÓN DE LAS ACTUACIONES ADMINISTRATIVAS QUE CURSAN EN LA  ALCALDÍA LOCAL DE LA CANDELARIA","INVERSION","Un nuevo contrato social y ambiental para la Bogotá del Siglo XXI",57,"Gestión Pública Local","Propósito 5. Construir Bogotà - Regiòn con gobierno abierto, transparente y ciudadanìa consciente. ","O23011605570000002023",3,800081700,"CESAR AUGUSTO RODRIGUEZ PINILLA","Persona Jurídica",null,null,null,null,21836000,null,1,10918000,{"$f":"+W139+X139+Z139","v":32754000},32754000,"2022-06-23","2022-06-23","2022-11-22",120,1,"2 MESES","N/A","N/A","N/A","N/A","TERMINADO",1]
["FDLC-CPS-127-2024",2024,"FDLC-CPS-127-2024","https://community.secop.gov.co/Public/Tendering/OpportunityDetail/Index?noticeUID=CO1.NTC.5884107&isFromPublicArea=True&isModal=true&asPopupView=true","CPS","CONTRATACION DIRECTA","Subasta inversa ","PRESTACION DE SERVICIOS PROFESIONALES DE APOYO EN LA ADMINISTRACION DEL PUNTO VIVE DIGITAL DE LA LOCALIDAD LA CANDELARIA PARA FOMENTAR EN LA COMUNIDAD EL USO DE LAS TICS COMO ESTRATEGIA DE APOYO A LOS EMPRENDIMIENTOS CULTURALES Y CREATIVOS LOCALES","INVERSION","Un nuevo contrato social y ambiental para la Bogotá del Siglo XXI",57,"Gestión Pública Local","Propósito 5. Construir Bogotà - Regiòn con gobierno abierto, transparente y ciudadanìa consciente. ","O23011605570000002021",6,901142692,"JESUS ESGUERRA DELGADO","Persona Jurídica",null,null,null,null,20000000,null,0,0,{"$f":"+W140+X140+Z140","v":20000000},20000000,"2022-07-06","2022-07-06","2022-09-05",120,null,"NO APLICA","N/A","N/A","N/A","N/A","TERMINADO",1]
["FDLC-CPS-128-2024",2024,"FDLC-CPS-128-2024","https://community.secop.gov.co/Public/Tendering/OpportunityDetail/Index?noticeUID=CO1.NTC.5887334&isFromPublicArea=True&isModal=true&asPopupView=true","CPS","CONTRATACION DIRECTA","Subasta inversa ","PRESTACION DE SERVICIOS PROFESIONALES DE APOYO EN LA ADMINISTRACION DEL PUNTO VIVE DIGITAL DE LA LOCALIDAD LA CANDELARIA PARA FOMENTAR EN LA COMUNIDAD EL USO DE LAS TICS COMO ESTRATEGIA DE APOYO A LOS EMPRENDIMIENTOS CULTURALES Y CREATIVOS LOCALES","INVERSION","Un nuevo contrato social y ambiental para la Bogotá del Siglo XXI",57,"Gestión Pública Local","Propósito 5. Construir Bogotà - Regiòn con gobierno abierto, transparente y ciudadanìa consciente. ","O23011605570000002021",6,900007203,"FROILAN GONZALEZ ROA","Persona Jurídica",null,null,null,null,20000000,null,0,0,20000000,20000000,"2022-07-06","2022-07-06","2022-09-05",120,null,"NO APLICA","N/A","N/A","N/A","N/A","TERMINADO",1]
["FDLC-CPS-129-2024",2024,"FDLC-CPS-129-2024","https://community.secop.gov.co/Public/Tendering/OpportunityDetail/Index?noticeUID=CO1.NTC.5884577&isFromPublicArea=True&isModal=true&asPopupView=true","CPS","CONTRATACION DIRECTA","Subasta inversa ","PRESTAR SERVICIOS PROFESIONALES AL FONDO DE DESARROLLO LOCAL DE LA CANDELARIA PARA APOYAR LA GESTION DE LOS ASUNTOS RELACIONADOS CON LA DESTINACIÓN DEL ESPACIO PÚBLICO SEGURIDAD CIUDADANA Y CONVIVENCIA EN LA LOCALIDAD.","INVERSION","Un nuevo contrato social y ambiental para la Bogotá del Siglo XXI",57,"Gestión Pública Local","Propósito 5. Construir Bogotà - Regiòn con gobierno abierto, transparente y ciudadanìa consciente. ","O23011605570000002023",6,900954187,"JOSE MARIA CONDE AREVALO","Persona Jurídica",null,null,null,null,21836000,null,0,0,21836000,21836000,"2022-07-06","2022-07-06","2022-09-05",120,null,"NO APLICA","N/A","N/A","N/A","N/A","TERMINADO",1]
["FDLC-CPS-130-2024",2024,"FDLC-CPS-130-2024","https://community.secop.gov.co/Public/Tendering/OpportunityDetail/Index?noticeUID=CO1.NTC.5884283&isFromPublicArea=True&isModal=true&asPopupView=true","CPS","CONTRATACION DIRECTA","Subasta inversa ","PRESTAR SERVICIOS PROFESIONALES AL FONDO DE DESARROLLO LOCAL DE LA CANDELARIA PARA APOYAR EN LA ESTRUCTURACIÓN FORMULACION PRESENTACIÓN EVALUACIÓN Y SEGUIMIENTO DE LOS PROYECTOS DE INVERSION EN LA LOCALIDAD","INVERSION","Un nuevo contrato social y ambiental para la Bogotá del Siglo XXI",57,"Gestión Pública Local","Propósito 5. Construir Bogotà - Regiòn con gobierno abierto, transparente y ciudadanìa consciente. ","O23011605570000002021",6,901142692,"CRISTHIAN CAMILO GÓMEZ LÓPEZ","Persona Jurídica",null,null,null,null,15000000,null,1,7500000,22500000,22500000,"2022-07-06","2022-07-06","2022-09-05",90,1,"1 MES 15 DIAS","N/A","N/A","N/A","N/A","TERMINADO",1]
["FDLC-CPS-131-2024",2024,"FDLC-CPS-131-2024","https://community.secop.gov.co/Public/Tendering/OpportunityDetail/Index?noticeUID=CO1.NTC.5886198&isFromPublicArea=True&isModal=true&asPopupView=true","CPS","CONTRATACION DIRECTA","Subasta inversa ","PRESTACIÓN DE SERVICIOS PROFESIONALES AL FONDO DE DESARROLLO LOCAL DE LA CANDELARIA PARA ATENDER LAS  PETICIONES QUEJAS RECLAMOS YO SOLICITUDES PRESENTADAS POR LA CIUDADANÍA DE CONFORMIDAD CON LOS TÉRMINOS LEGALES ESTABLECIDOS Y APOYAR LAS RESPUESTAS REQUERIDAS POR LOS ENTES DE CONTROL","INVERSION","Un nuevo contrato social y ambiental para la Bogotá del Siglo XXI",57,"Gestión Pública Local","Propósito 5. Construir Bogotà - Regiòn con gobierno abierto, transparente y ciudadanìa consciente. ","O23011605570000002021",6,900007203,"ANDRÉS MAURICIO VALENCIA JIMENEZ","Persona Jurídica",null,null,null,null,20000000,null,0,0,20000000,null,"2022-07-06","2022-07-06","2022-09-05",120,null,"NO APLICA","N/A","N/A","N/A","N/A","TERMINADO",0]
["FDLC-CPS-132-2024",2024,"FDLC-CPS-132-2024","https://community.secop.gov.co/Public/Tendering/OpportunityDetail/Index?noticeUID=CO1.NTC.5886504&isFromPublicArea=True&isModal=true&asPopupView=true","CPS","CONTRATACION DIRECTA","Subasta inversa ","PRESTAR SERVICIOS PROFESIONALES PARA APOYAR JURÍDICAMENTE LA EJECUCIÓN DE LAS ACCIONES REQUERIDAS PARA LA DEPURACIÓN DE LAS ACTUACIONES ADMINISTRATIVAS QUE CURSAN EN LA ALCALDÍA LOCAL DE LA CANDELARIA","INVERSION","Un nuevo contrato social y ambiental para la Bogotá del Siglo XXI",57,"Gestión Pública Local","Propósito 5. Construir Bogotà - Regiòn con gobierno abierto, transparente y ciudadanìa consciente. ","O23011605570000002023",1,80879007,"INGRID PATRICIA RIVEROS FUNEME","Persona Natural",null,null,null,null,21836000,null,0,0,21836000,21836000,"2022-07-01","2022-07-06","2023-01-04",120,2,"NO APLICA","N/A","N/A","N/A","N/A","TERMINADO",{"$f":"IF(ISERROR(AB145/AA145),\"-\",(AB145/AA145))","v":1}]
["FDLC-CPS-133-2024",2024,"FDLC-CPS-133-2024","https://community.secop.gov.co/Public/Tendering/OpportunityDetail/Index?noticeUID=CO1.NTC.5883716&isFromPublicArea=True&isModal=true&asPopupView=true","CPS","CONTRATACION DIRECTA","Selección abreviada por menor cuantía ","PRESTAR SUS SERVICIOS PROFESIONALES DE APOYO Y ACOMPAÑAMIENTO RELACIONADOS CON LOS PROYECTOS DE OBRA PÚBLICA E INFRAESTRUCTURA PARA LOGRAR EL CUMPLIMIENTO DE LAS METAS DEL PLAN DE DESARROLLO LOCAL 2021-2024","INVERSION","Un nuevo contrato social y ambiental para la Bogotá del Siglo XXI",49,"Movilidad segura, sostenible y accesible","Propòsito 4. Hacer de Bogotà - Region un modelo de movilidad multimodal, incluyente y sostenible ","O23011604490000002020",6,900572437,"LAURA DANIELA JACOME HERNANDEZ","Sin ánimo de lucro",null,null,null,null,29792000,null,1,14896000,44688000,44688000,"2022-07-06","2022-07-08","2023-01-05",120,1,"2 MESES","N/A","N/A","N/A","N/A","TERMINADO",1]
["FDLC-CPS-134-2024",2024,"FDLC-CPS-134-2024","https://community.secop.gov.co/Public/Tendering/OpportunityDetail/Index?noticeUID=CO1.NTC.5883476&isFromPublicArea=True&isModal=true&asPopupView=true","CPS","CONTRATACION DIRECTA","No aplica","PRESTAR SUS SERVICIOS PROFESIONALES DE APOYO Y ACOMPAÑAMIENTO RELACIONADOS CON LOS PROYECTOS DE OBRA PÚBLICA E INFRAESTRUCTURA PARA LOGRAR EL CUMPLIMIENTO DE LAS METAS DEL PLAN DE DESARROLLO LOCAL 2021-2024","INVERSION","Un nuevo contrato social y ambiental para la Bogotá del Siglo XXI",49,"Movilidad segura, sostenible y accesible","Propòsito 4. Hacer de Bogotà - Region un modelo de movilidad multimodal, incluyente y sostenible ","O23011604490000002020",5,800250589,"JHON EDWIN MORALES HERRERA","Persona Jurídica",null,null,null,null,29792000,null,2,14896000,44688000,44688000,"2022-07-06","2022-07-06","2022-12-31",120,2,"2 MESES","N/A","N/A","N/A","N/A","TERMINADO",1]
["FDLC-CPS-135-2024",2024,"FDLC-CPS-135-2024","https://community.secop.gov.co/Public/Tendering/OpportunityDetail/Index?noticeUID=CO1.NTC.5891609&isFromPublicArea=True&isModal=true&asPopupView=true","CPS","CONTRATACION DIRECTA","Selección abreviada por menor cuantía ","PRESTAR SERVICIOS DE APOYO EN LAS ACTIVIDADES DE SEGURIDAD Y CONVIVENCIA CIUDADANA DE ACUERDO A LAS NECESIDADES Y ESTRATEGIAS DE LA ALCALDIA LOCAL DE LA CANDELARIA","INVERSION","Un nuevo contrato social y ambiental para la Bogotá del Siglo XXI",57,"Gestión Pública Local","Propósito 5. Construir Bogotà - Regiòn con gobierno abierto, transparente y ciudadanìa consciente. ","O23011605570000002021",2,860002184,"JAVIER ENRIQUE GUZMAN CAMARGO","Persona Jurídica",null,null,null,null,7520000,null,0,0,7520000,7520000,"2022-07-08","2022-07-08","2023-09-16",120,null,"NO APLICA","N/A","N/A","N/A","N/A","TERMINADO",1]
["FDLC-CPS-136-2024",2024,"FDLC-CPS-136-2024","https://community.secop.gov.co/Public/Tendering/OpportunityDetail/Index?noticeUID=CO1.NTC.5891287&isFromPublicArea=True&isModal=true&asPopupView=true","CPS","CONTRATACION DIRECTA","Prestación de servicios profesionales y de apoyo a la gestión, o para la ejecución de trabajos artísticos que sólo puedan encomendarse a determinadas personas naturales","PRESTAR SERVICIOS PROFESIONALES AL ÁREA DE GESTIÓN DE DESARROLLO LOCAL EN LOS PROCESOS Y ACTIVIDADES DE GESTIÓN ADMINISTRATIVA Y OPERATIVA DE LOS PROYECTOS DE RECREACIÓN Y DEPORTES DE LA ENTIDAD Y DEMÁS ASIGNADOS POR EL ÁREA DE GESTIÓN DEL DESARROLLO LOCAL","INVERSION","Un nuevo contrato social y ambiental para la Bogotá del Siglo XXI",20,"Bogotá, referente en cultura, deporte, recreación y actividad física, con parques para el desarrollo y la salud","Propósito 1. Hacer un nuevo contrato social con igualdad de oportunidades para la inclusiòn social, productiva y polìtica ","O23011601200000001611",1,1090424977,"OSCAR EDUARDO SAMBONI MINA","Persona Natural",null,null,null,null,19092000,null,null,0,{"$f":"+W149+X149+Z149","v":19092000},19087000,"2022-07-07","2022-07-07","2022-11-06",120,null,"NO APLICA","N/A","N/A","N/A","N/A","TERMINADO",0.99973811020322645]
["FDLC-CPS-137-2024",2024,"FDLC-CPS-137-2024","https://community.secop.gov.co/Public/Tendering/OpportunityDetail/Index?noticeUID=CO1.NTC.5891976&isFromPublicArea=True&isModal=true&asPopupView=true","CPS","CONTRATACION DIRECTA","Prestación de servicios profesionales y de apoyo a la gestión, o para la ejecución de trabajos artísticos que sólo puedan encomendarse a determinadas personas naturales","PRESTAR SERVICIOS PROFESIONALES AL FONDO DE DESARROLLO LOCAL DE LA CANDELARIA PARA APOYAR EN LA FORMULACIÓN IMPLEMENTACIÓN EJECUCIÓN Y SEGUIMIENTO DE PLANES POLITICAS PROGRAMAS Y PROYECTOS DE INVERSIÓN RELACIONADOS CON EL DESARROLLO ECONÓMICO DE LAS EMPRESAS Y EMPRENDIMIENTOS DE LA LOCALIDAD","INVERSION","Un nuevo contrato social y ambiental para la Bogotá del Siglo XXI",57,"Gestión Pública Local","Propósito 5. Construir Bogotà - Regiòn con gobierno abierto, transparente y ciudadanìa consciente. ","O23011605570000002021",1,52709886,"ROMULO SIMON ESTRELLA PANTOJA","Persona Natural",null,null,null,null,26000000,null,1,13000000,39000000,39000000,"2022-07-12","2022-07-12","2022-11-11",120,1,"2 MESES","N/A","N/A","N/A","N/A","TERMINADO",1]
["FDLC-CPS-138-2024",2024,"FDLC-CPS-138-2024","https://community.secop.gov.co/Public/Tendering/OpportunityDetail/Index?noticeUID=CO1.NTC.5900512&isFromPublicArea=True&isModal=true&asPopupView=true","CPS","CONTRATACION DIRECTA","Prestación de servicios profesionales y de apoyo a la gestión, o para la ejecución de trabajos artísticos que sólo puedan encomendarse a determinadas personas naturales","PRESTAR SERVICIOS PROFESIONALES EN MATERIA JURIDICA Y EN ARTICULACIÓN INTERINSTITUCIONAL A LA ALCALDIA LOCAL DE LA CANDELARIA","INVERSION","Un nuevo contrato social y ambiental para la Bogotá del Siglo XXI",57,"Gestión Pública Local","Propósito 5. Construir Bogotà - Regiòn con gobierno abierto, transparente y ciudadanìa consciente. ","O23011605570000002021",1,1015395116,"LILIANA BASTIDAS LINARES","Persona Natural",null,null,null,null,26000000,null,0,0,26000000,26000000,"2022-07-13","2022-07-14","2023-01-12",120,2,"NO APLICA","N/A","N/A","N/A","N/A","TERMINADO",1]
["FDLC-CPS-139-2024",2024,"FDLC-CPS-139-2024","https://community.secop.gov.co/Public/Tendering/OpportunityDetail/Index?noticeUID=CO1.NTC.5900632&isFromPublicArea=True&isModal=true&asPopupView=true","CPS","CONTRATACION DIRECTA","Prestación de servicios profesionales y de apoyo a la gestión, o para la ejecución de trabajos artísticos que sólo puedan encomendarse a determinadas personas naturales","PRESTAR SERVICIOS PROFESIONALES EN MATERIA JURIDICA Y EN ARTICULACIÓN INTERINSTITUCIONAL A LA ALCALDIA LOCAL DE LA CANDELARIA","INVERSION","Un nuevo contrato social y ambiental para la Bogotá del Siglo XXI",57,"Gestión Pública Local","Propósito 5. Construir Bogotà - Regiòn con gobierno abierto, transparente y ciudadanìa consciente. ","O23011605570000002021",1,52514816,"LISETH VIVIANA GUERRA GONZALEZ","Persona Natural",null,null,null,null,26000000,null,0,0,26000000,26000000,"2022-07-13","2022-07-13","2022-11-12",120,null,"NO APLICA","N/A","N/A","N/A","N/A","TERMINADO",1]
["FDLC-CPS-140-2024",2024,"FDLC-CPS-140-2024","https://community.secop.gov.co/Public/Tendering/OpportunityDetail/Index?noticeUID=CO1.NTC.5899898&isFromPublicArea=True&isModal=true&asPopupView=true","CPS","CONTRATACION DIRECTA","No aplica","PRESTAR SUS SERVICIOS PROFESIONALES PARA LA IMPLEMENTACIÓN DE LAS ACCIONES Y LINEAMIENTOS TÉCNICOS SURTIDOS DEL PROGRAMA DE GESTIÓN DOCUMENTAL Y DEMÁS INSTRUMENTOS TÉCNICOS ARCHIVÍSTICOS","INVERSION","Un nuevo contrato social y ambiental para la Bogotá del Siglo XXI",57,"Gestión Pública Local","Propósito 5. Construir Bogotà - Regiòn con gobierno abierto, transparente y ciudadanìa consciente. ","O23011605570000002021",15,830073899,"NATALIA SORIANO HINCAPIE","Persona Jurídica",null,null,null,null,21872000,null,2,10936000,32808000,32808000,"2022-07-14","2022-07-19","2023-03-13",120,2,"2 MESES","N/A","N/A","N/A","N/A","TERMINADO",1]
["FDLC-CPS-141-2024",2024,"FDLC-CPS-141-2024","https://community.secop.gov.co/Public/Tendering/OpportunityDetail/Index?noticeUID=CO1.NTC.5900445&isFromPublicArea=True&isModal=true&asPopupView=true","CPS","CONTRATACION DIRECTA","Prestación de servicios profesionales y de apoyo a la gestión, o para la ejecución de trabajos artísticos que sólo puedan encomendarse a determinadas personas naturales","PRESTAR SERVICIOS PROFESIONALES PARA APOYAR JURÍDICAMENTE LA EJECUCIÓN DE LAS ACCIONES REQUERIDAS PARA LA DEPURACIÓN DE LAS ACTUACIONES ADMINISTRATIVAS QUE CURSAN EN LA ALCALDÍA LOCAL DE LA CANDELARIA","INVERSION","Un nuevo contrato social y ambiental para la Bogotá del Siglo XXI",57,"Gestión Pública Local","Propósito 5. Construir Bogotà - Regiòn con gobierno abierto, transparente y ciudadanìa consciente. ","O23011605570000002023",1,1022370301,"FABIO HERNÁN DAZA MORENO","Persona Natural",null,null,null,null,21836000,null,null,0,21836000,21836000,"2022-07-14","2022-07-14","2022-11-13",120,null,"NO APLICA","N/A","N/A","N/A","N/A","TERMINADO",1]
["FDLC-CPS-142-2024",2024,"FDLC-CPS-142-2024","https://community.secop.gov.co/Public/Tendering/OpportunityDetail/Index?noticeUID=CO1.NTC.5902863&isFromPublicArea=True&isModal=true&asPopupView=true","CPS","CONTRATACION DIRECTA","Prestación de servicios profesionales y de apoyo a la gestión, o para la ejecución de trabajos artísticos que sólo puedan encomendarse a determinadas personas naturales","PRESTAR SERVICIOS PROFESIONALES AL FONDO DE DESARROLLO LOCAL DE LA CANDELARIA PARA APOYAR EN LA ESTRUCTURACIÓN FORMULACION PRESENTACIÓN EVALUACIÓN Y SEGUIMIENTO DE LOS PROYECTOS DE INVERSION EN LA LOCALIDAD","INVERSION","Un nuevo contrato social y ambiental para la Bogotá del Siglo XXI",57,"Gestión Pública Local","Propósito 5. Construir Bogotà - Regiòn con gobierno abierto, transparente y ciudadanìa consciente. ","O23011605570000002021",1,52260662,"SANTIAGO ANDRES MURILLO GOMEZ","Persona Natural",null,null,null,null,15000000,null,null,0,15000000,15000000,"2022-07-21","2022-07-21","2022-11-20",120,null,"NO APLICA","N/A","N/A","N/A","N/A","TERMINADO",1]
["FDLC-CPS-143-2024",2024,"FDLC-CPS-143-2024","https://community.secop.gov.co/Public/Tendering/OpportunityDetail/Index?noticeUID=CO1.NTC.5903033&isFromPublicArea=True&isModal=true&asPopupView=true","CPS","CONTRATACION DIRECTA","Prestación de servicios profesionales y de apoyo a la gestión, o para la ejecución de trabajos artísticos que sólo puedan encomendarse a determinadas personas naturales","PRESTAR SERVICIOS PROFESIONALES AL FONDO DE DESARROLLO LOCAL DE LA CANDELARIA PARA APOYAR EN LA ESTRUCTURACIÓN FORMULACION PRESENTACIÓN EVALUACIÓN Y SEGUIMIENTO DE LOS PROYECTOS DE INVERSION EN LA LOCALIDAD","INVERSION","Un nuevo contrato social y ambiental para la Bogotá del Siglo XXI",57,"Gestión Pública Local","Propósito 5. Construir Bogotà - Regiòn con gobierno abierto, transparente y ciudadanìa consciente. ","O23011605570000002021",1,1121847787,"MIGUEL ANDRES BAUTISTA DAZA","Persona Natural",null,null,null,null,15000000,null,1,5000000,20000000,20000000,"2022-07-19","2022-07-19","2022-11-18",90,1,"1 MES","N/A","N/A","N/A","N/A","TERMINADO",1]
["FDLC-CPS-144-2024",2024,"FDLC-CPS-144-2024","https://community.secop.gov.co/Public/Tendering/OpportunityDetail/Index?noticeUID=CO1.NTC.5919751&isFromPublicArea=True&isModal=False","CPS","CONTRATACION DIRECTA","Contratos interadministrativos","PRESTAR SERVICIOS DE APOYO ADMINISTRATIVO Y ASISTENCIAL AL ​​FONDO DE DESARROLLO LOCAL DE LA CANDELARIA EN EL CENTRO DE INFORMACIÓN Y DOCUMENTACIÓN (CDI) PARA LA NOTIFICACIÓN DE CORRESPONDENCIA DE LA ENTIDAD.","INVERSION","Un nuevo contrato social y ambiental para la Bogotá del Siglo XXI",57,"Gestión Pública Local","Propósito 5. Construir Bogotà - Regiòn con gobierno abierto, transparente y ciudadanìa consciente. ","O23011605570000002021",1,860044113,"DIEGO FERNANDO FORERO SEDANO","Persona Jurídica",null,null,null,null,11532000,null,null,0,11532000,11532000,"2022-07-08","2022-07-18","2023-08-31",120,null,"NO APLICA","N/A","N/A","N/A","N/A","TERMINADO",1]
["FDLC-CPS-145-2024",2024,"FDLC-CPS-145-2024","https://community.secop.gov.co/Public/Tendering/OpportunityDetail/Index?noticeUID=CO1.NTC.5903971&isFromPublicArea=True&isModal=true&asPopupView=true","CPS","CONTRATACION DIRECTA","No aplica","PRESTAR SERVICIOS PROFESIONALES AL FONDO DE DESARROLLO LOCAL DE LA CANDELARIA PARA LA OPERACIÓN PRESTACIÓN SEGUIMIENTO Y CUMPLIMIENTO DE LOS PROCEDIMIENTOS ADMINISTRATIVOS OPERATIVOS Y PROGRAMÁTICOS DEL SERVICIO APOYO ECONÓMICO TIPO C QUE CONTRIBUYAN A LA GARANTÍA DE LOS DERECHOS DE LA POBLACIÓN MAYOR EN EL MARCO DE LA POLÍTICA PÚBLICA SOCIAL PARA EL ENVEJECIMIENTO Y LA VEJEZ EN EL DISTRITO CAPITAL A CARGO DE LA ALCALDÍA LOCAL.","INVERSION","Un nuevo contrato social y ambiental para la Bogotá del Siglo XXI",55,"Fortalecimiento de Cultura Ciudadana y su institucionalidad","Propósito 5. Construir Bogotà - Regiòn con gobierno abierto, transparente y ciudadanìa consciente. ","O23011601010000001605 - O23011605550000002019",7,1070917551,"AZUCENA SALAZAR GIRALDO","Persona Natural",null,null,null,null,26000000,null,1,13000000,39000000,39000000,"2022-08-01","2022-08-02","2022-12-01",120,1,"1 MES","N/A","N/A","N/A","N/A","TERMINADO",1]
["FDLC-CPS-146-2024",2024,"FDLC-IMC-001-2024","https://community.secop.gov.co/Public/Tendering/OpportunityDetail/Index?noticeUID=CO1.NTC.5867926&isFromPublicArea=True&isModal=False","PRESTACION DE SERVICIOS","MINIMA CUANTIA","Prestación de servicios profesionales y de apoyo a la gestión, o para la ejecución de trabajos artísticos que sólo puedan encomendarse a determinadas personas naturales","PRESTAR SERVICIOS LOGISTICOS PARA ADELANTAR LOS DIFERENTES ESPACIOS DE RENDICIÓN DE CUENTAS CONTROL SOCIAL DIÁLOGO Y PARTICIPACIÓN CIUDADANA DE LA LOCALIDAD DE LA CANDELARIA EN LA VIGENCIA 2024","INVERSION","Un nuevo contrato social y ambiental para la Bogotá del Siglo XXI",57,"Gestión Pública Local","Propósito 5. Construir Bogotà - Regiòn con gobierno abierto, transparente y ciudadanìa consciente. ","O23011605570000002021",1,1022931048,"INFRALOGISTIC SAS","Persona Natural",null,null,null,null,20745000,null,0,0,20745000,16693000,"2022-08-04","2022-08-04","2022-12-24",150,1,"NO APLICA","N/A","N/A","N/A","N/A","TERMINADO",0.80467582550012051]
["FDLC-CPS-147-2024",2024,"FDLC-CPS-147-2024","https://community.secop.gov.co/Public/Tendering/OpportunityDetail/Index?noticeUID=CO1.NTC.5915562&isFromPublicArea=True&isModal=False","CPS","CONTRATACION DIRECTA","Prestación de servicios profesionales y de apoyo a la gestión, o para la ejecución de trabajos artísticos que sólo puedan encomendarse a determinadas personas naturales","PRESTAR LOS SERVICIOS PROFESIONALES PARA APOYAR EN LA ESTRUCTURACIÓN DE LA GESTIÓN PRECONTRACTUAL Y LA PROGRAMACIÓN DE LAS ACTIVIDADES RELACIONADAS CON LA FORMULACIÓN DE PROYECTOS DE INVERSIÓN Y FUNCIONAMIENTO QUE ADELANTE EL FONDO DE DESARROLLO LOCAL DE LA CANDELARIA","INVERSION","Un nuevo contrato social y ambiental para la Bogotá del Siglo XXI",57,"Gestión Pública Local","Propósito 5. Construir Bogotà - Regiòn con gobierno abierto, transparente y ciudadanìa consciente. ","O23011605570000002021",1,80239278,"GABRIEL GUTIERREZ GARCIA","Persona Natural",null,null,null,null,26000000,null,1,13000000,39000000,39000000,"2022-08-10","2022-08-10","2022-11-09",120,1,"2 MESES","N/A","N/A","N/A","N/A","TERMINADO",1]
["FDLC-CPS-148-2024",2024,"FDLC-CPS-148-2024","https://community.secop.gov.co/Public/Tendering/OpportunityDetail/Index?noticeUID=CO1.NTC.5920958&isFromPublicArea=True&isModal=False","CPS","CONTRATACION DIRECTA","Prestación de servicios profesionales y de apoyo a la gestión, o para la ejecución de trabajos artísticos que sólo puedan encomendarse a determinadas personas naturales","PRESTAR SERVICIOS PROFESIONALES AL FONDO DE DESARROLLO LOCAL DE LA CANDELARIA COMO ADMINISTRADOR DE RED LOCAL Y COMO ENLACE CON LA SECRETARÍA DISTRITAL DE GOBIERNO BRINDANDO SOPORTE EN MATERIA DE SISTEMAS (SOFTWARE Y HARDWARE) A LOS USUARIOS INTERNOS Y EXTERNOS DE LA ENTIDAD.","INVERSION","Un nuevo contrato social y ambiental para la Bogotá del Siglo XXI",57,"Gestión Pública Local","Propósito 5. Construir Bogotà - Regiòn con gobierno abierto, transparente y ciudadanìa consciente. ","O23011605570000002021",1,1032380605,"AGUSTIN LARA BELTRAN","Persona Natural",null,null,null,null,28000000,null,1,14000000,42000000,42000000,"2022-08-11","2022-08-11","2022-11-10",120,1,"2 MESES","N/A","N/A","N/A","N/A","TERMINADO",1]
["FDLC-CPS-149-2024",2024,"FDLC-CPS-149-2024","https://community.secop.gov.co/Public/Tendering/OpportunityDetail/Index?noticeUID=CO1.NTC.5919319&isFromPublicArea=True&isModal=False","CPS","CONTRATACION DIRECTA","Contratos interadministrativos","PRESTACIÓN DE SERVICIOS PROFESIONALES AL FONDO DE DESARROLLO LOCAL DE LA CANDELARIA PARA ATENDER LAS PETICIONES QUEJAS RECLAMOS YO SOLICITUDES PRESENTADAS POR LA CIUDADANÍA DE CONFORMIDAD CON LOS TÉRMINOS LEGALES ESTABLECIDOS Y APOYAR LAS RESPUESTAS REQUERIDAS POR LOS ENTES DE CONTROL","INVERSION","Un nuevo contrato social y ambiental para la Bogotá del Siglo XXI",57,"Gestión Pública Local","Propósito 5. Construir Bogotà - Regiòn con gobierno abierto, transparente y ciudadanìa consciente. ","O23011605570000002021",1,899999061,"ALBA RUBIELA DIAZ MENDEZ","Persona Jurídica",null,null,null,null,20000000,null,null,0,20000000,20000000,"2022-08-08","2022-08-08","2022-08-07",120,null,"NO APLICA","N/A","N/A","N/A","N/A","TERMINADO",1]
["FDLC-CPS-150-2024",2024,"FDLC-IMC-002-2024","https://community.secop.gov.co/Public/Tendering/OpportunityDetail/Index?noticeUID=CO1.NTC.5905618&isFromPublicArea=True&isModal=False","PRESTACION DE SERVICIOS","MINIMA CUANTIA","Prestación de servicios profesionales y de apoyo a la gestión, o para la ejecución de trabajos artísticos que sólo puedan encomendarse a determinadas personas naturales","PRESTAR LOS SERVICIOS LOGISTICOS PARA LA REALIZACIÓN DE LOS ENCUENTROS CIUDADANOS EN LA LOCALIDAD DE LA CANDELARIA EN EL MARCO DEL PROCESO DE FORMULACIÓN DEL PLAN DE DESARROLLO LOCAL 2025-2028","INVERSION","Un nuevo contrato social y ambiental para la Bogotá del Siglo XXI",55,"Fortalecimiento de Cultura Ciudadana y su institucionalidad","Propósito 5. Construir Bogotà - Regiòn con gobierno abierto, transparente y ciudadanìa consciente. ","O23011605550000002019",1,80249660,"JYF INVERSIONES S.A.S","Persona Natural",null,null,null,null,26897382,null,null,0,26897382,23832539,"2022-08-12","2022-08-12","2022-11-11",180,null,"NO APLICA","N/A","N/A","N/A","N/A","TERMINADO",0.88605422639273967]
["FDLC-CPS-151-2024",2024,"FDLC-CPS-151-2024","https://community.secop.gov.co/Public/Tendering/OpportunityDetail/Index?noticeUID=CO1.NTC.5945547&isFromPublicArea=True&isModal=False","CPS","CONTRATACION DIRECTA","Prestación de servicios profesionales y de apoyo a la gestión, o para la ejecución de trabajos artísticos que sólo puedan encomendarse a determinadas personas naturales","PRESTAR SERVICIOS PROFESIONALES AL FONDO DE DESARROLLO LOCAL DE LA CANDELARIA EN LA PLANEACIÓN SEGUIMIENTO Y EJECUCIÓN DE LAS ACTIVIDADES DE PROMOCIÓN MATENIMIENO Y PLANTACIÓN DE ARBOLADO URBANO EN LA LOCALIDAD","INVERSION","Un nuevo contrato social y ambiental para la Bogotá del Siglo XXI",33,"Más árboles y más y mejor espacio público","Propósito 2. Cambiar nuestros hàbitos de vida para reverdecer a Bogotà y adaptarnos y mitigar la crisis climàtica.","O23011602330000001703",1,1010203707,"MARTHA JANNETH TRIANA RUBIANO","Persona Natural",null,null,null,null,21836000,null,1,5459000,27295000,27295000,"2022-08-16","2022-08-16","2022-12-30",120,1,"1 MES","N/A","N/A","N/A","N/A","TERMINADO",1]
["FDLC-CPS-152-2024",2024,"FDLC-CPS-152-2024","https://community.secop.gov.co/Public/Tendering/OpportunityDetail/Index?noticeUID=CO1.NTC.5951013&isFromPublicArea=True&isModal=False","CPS","CONTRATACION DIRECTA","Prestación de servicios profesionales y de apoyo a la gestión, o para la ejecución de trabajos artísticos que sólo puedan encomendarse a determinadas personas naturales","PRESTAR SERVICIOS PROFESIONALES PARA APOYAR EN LA FORMULACION TECNICA Y SEGUIMIENTOS DE PLANES POLITICAS PROGRAMAS Y PROYECTOS RELACIONADOS CON OBRAS E INFRAESTRUCTURA QUE DESARROLLE LA ALCALDIA LOCAL DE LA CANDELARIA.","INVERSION","Un nuevo contrato social y ambiental para la Bogotá del Siglo XXI",49,"Movilidad segura, sostenible y accesible","Propòsito 4. Hacer de Bogotà - Region un modelo de movilidad multimodal, incluyente y sostenible ","O23011604490000002020",1,80729376,"JORGE ALBERTO OJEDA GONZALEZ","Persona Natural",null,null,null,null,24000000,null,1,6000000,30000000,30000000,"2022-08-16","2022-08-16","2022-11-15",120,1,"1 MES","N/A","N/A","N/A","N/A","TERMINADO",1]
["FDLC-CPS-153-2024",2024,"FDLC-CPS-153-2024","https://community.secop.gov.co/Public/Tendering/OpportunityDetail/Index?noticeUID=CO1.NTC.5950092&isFromPublicArea=True&isModal=False","CPS","CONTRATACION DIRECTA","Prestación de servicios profesionales y de apoyo a la gestión, o para la ejecución de trabajos artísticos que sólo puedan encomendarse a determinadas personas naturales","PRESTAR SERVICIOS DE APOYO TÉCNICO EN LA IMPLEMENTACIÓN DE ACCIONES Y ESTRATEGIAS DE LOS PROYECTOS DE RECREACIÓN Y DEPORTES QUE DESARROLLE EL FONDO DE DESARROLLO LOCAL DE LA CANDELARIA","INVERSION","Un nuevo contrato social y ambiental para la Bogotá del Siglo XXI",20,"Bogotá, referente en cultura, deporte, recreación y actividad física, con parques para el desarrollo y la salud","Propósito 1. Hacer un nuevo contrato social con igualdad de oportunidades para la inclusiòn social, productiva y polìtica ","O23011601200000001611",1,1013628927,"JUAN DAVID BARRIOS GUZMAN","Persona Natural",null,null,null,null,11576000,null,null,0,11576000,11576000,"2022-08-17","2022-08-17","2022-11-16",120,null,"NO APLICA","N/A","N/A","N/A","N/A","TERMINADO",1]
["FDLC-CPS-154-2024",2024,"FDLC-CPS-154-2024-A","https://community.secop.gov.co/Public/Tendering/OpportunityDetail/Index?noticeUID=CO1.NTC.5954730&isFromPublicArea=True&isModal=False","CPS","CONTRATACION DIRECTA","Prestación de servicios profesionales y de apoyo a la gestión, o para la ejecución de trabajos artísticos que sólo puedan encomendarse a determinadas personas naturales","PRESTAR SERVICIOS DE APOYO TÉCNICO EN LA IMPLEMENTACIÓN DE ACCIONES Y ESTRATEGIAS DE LOS PROYECTOS DE OBRAS PUBLICAS E INFRAESTRUCTURA QUE DESARROLLE EL FONDO DE DESARROLLO LOCAL DE LA CANDELARIA","INVERSION","Un nuevo contrato social y ambiental para la Bogotá del Siglo XXI",49,"Movilidad segura, sostenible y accesible","Propòsito 4. Hacer de Bogotà - Region un modelo de movilidad multimodal, incluyente y sostenible ","O23011604490000002020",1,1019091360,"JUAN CAMILO REYES MARTINEZ","Persona Natural",null,null,null,null,11576000,null,null,0,11576000,11576000,"2022-08-17","2022-08-17","2022-11-16",120,null,"NO APLICA","N/A","N/A","N/A","N/A","TERMINADO",1]
["FDLC-CPS-155-2024",2024,"FDLC-CPS-155-2024","https://community.secop.gov.co/Public/Tendering/OpportunityDetail/Index?noticeUID=CO1.NTC.5965623&isFromPublicArea=True&isModal=False","CPS","CONTRATACION DIRECTA","Contratos interadministrativos","PRESTAR SERVICIOS ASISTENCIALES PARA APOYAR EN LA ELABORACIÓN GESTIÓN Y PUBLICACIÓN DE CONTENIDOS Y MATERIAL GRÁFICO DE COMUNICACIÓN EN LAS REDES SOCIALES Y HERRAMIENTAS INSTITUCIONALES DE COMUNICACIÓN DE LA ALCALDÍA LOCAL DE LA CANDELARIA","INVERSION","Un nuevo contrato social y ambiental para la Bogotá del Siglo XXI",57,"Gestión Pública Local","Propósito 5. Construir Bogotà - Regiòn con gobierno abierto, transparente y ciudadanìa consciente. ","O23011605570000002021",1,800250713,"EDGAR SANTIAGO ALARCON TALERO","Persona Jurídica",null,null,null,null,11532000,null,null,0,11532000,11532000,"2022-08-18","2022-09-02","2023-05-01",120,null,"NO APLICA","N/A","N/A","N/A","N/A","TERMINADO",1]
["FDLC-CPS-156-2024",2024,"FDLC-CPS-156-2024","https://community.secop.gov.co/Public/Tendering/OpportunityDetail/Index?noticeUID=CO1.NTC.5987281&isFromPublicArea=True&isModal=true&asPopupView=true","CPS","CONTRATACION DIRECTA","Prestación de servicios profesionales y de apoyo a la gestión, o para la ejecución de trabajos artísticos que sólo puedan encomendarse a determinadas personas naturales","PRESTAR SERVICIOS PROFESIONALES BRINDANDO APOYO Y ACOMPAÑAMIENTO EN LAS ACTIVIDADES DE TURISMO LOCAL PARA LA CONSERVACIÓN DE LA CANDELARIA COMO ÁREA TURÍSTICA SOSTENIBLE","INVERSION","Un nuevo contrato social y ambiental para la Bogotá del Siglo XXI",57,"Gestión Pública Local","Propósito 5. Construir Bogotà - Regiòn con gobierno abierto, transparente y ciudadanìa consciente. ","O23011605570000002021",1,1032488659,"ANDREA DEL PILAR AREVALO VASQUEZ","Persona Natural",null,null,null,null,19092000,null,1,4773000,23865000,23865000,"2022-08-18","2022-08-18","2022-11-17",120,1,"1 MES","N/A","N/A","N/A","N/A","TERMINADO",1]
["FDLC-CPS-157-2024",2024,"FDLC-CPS-157-2024","https://community.secop.gov.co/Public/Tendering/OpportunityDetail/Index?noticeUID=CO1.NTC.5982142&isFromPublicArea=True&isModal=true&asPopupView=true","CPS","CONTRATACION DIRECTA","Prestación de servicios profesionales y de apoyo a la gestión, o para la ejecución de trabajos artísticos que sólo puedan encomendarse a determinadas personas naturales","PRESTAR SERVICIOS PROFESIONALES AL FONDO DE DESARROLLO LOCAL DE LA CANDELARIA PARA LA PLANEACIÓN FORMULACIÓN EVALUACIÓN ARTICULACIÓN ACOMPAÑAMIENTO Y SEGUIMIENTO DE LOS PROYECTOS DE INVERSIÓN DE EDUCACIÓN INICIAL Y DE LOS DEMÁS QUE LE SEAN DESIGNADOS PARA EL CUMPLIMIENTO DEL PLAN DE DESARROLLO LOCAL.","INVERSION","Un nuevo contrato social y ambiental para la Bogotá del Siglo XXI",17,"Jóvenes con capacidades: Proyecto de vida para la ciudadanía, la innovación y el trabajo del siglo XXI","Propósito 1. Hacer un nuevo contrato social con igualdad de oportunidades para la inclusiòn social, productiva y polìtica ","O23011601170000001607",1,1014177764,"GERALDINE NUÑEZ MONROY","Persona Natural",null,null,null,null,20000000,null,null,0,20000000,20000000,"2022-08-18","2022-08-18","2022-12-17",120,1,"NO APLICA","N/A","N/A","N/A","N/A","TERMINADO",1]
["FDLC-CPS-158-2024",2024,"FDLC-CPS-158-2024","https://community.secop.gov.co/Public/Tendering/OpportunityDetail/Index?noticeUID=CO1.NTC.5984792&isFromPublicArea=True&isModal=true&asPopupView=true","CPS","CONTRATACION DIRECTA","Prestación de servicios profesionales y de apoyo a la gestión, o para la ejecución de trabajos artísticos que sólo puedan encomendarse a determinadas personas naturales","PRESTAR SERVICIOS PROFESIONALES AL FONDO DE DESARROLLO LOCAL DE LA CANDELARIA PARA LA PLANEACIÓN FORMULACIÓN EVALUACIÓN ARTICULACIÓN EJECUCIÓN Y SEGUIMIENTO DEL PROYECTO DE INVERSIÓN 1787 LA CANDELARIA SEGURA: ACCESO A LA JUSTICIA INTEGRAL","INVERSION","Un nuevo contrato social y ambiental para la Bogotá del Siglo XXI",48,"Plataforma institucional para la seguridad y justicia","Propòsito 3. Inspirar confianza y legitimidad para vivir sin miedo y ser epicentro de cultura ciudadana, paz y reconciliaciòn ","O23011603480000001787",1,1024462041,"ANGIE MELISSA HERRERA CASTIBLANCO","Persona Natural",null,null,null,null,19092000,null,null,0,19092000,19032000,"2022-08-18","2022-08-19","2022-12-18",120,1,"NO APLICA","N/A","N/A","N/A","N/A","TERMINADO",0.99685732243871783]
["FDLC-CPS-159-2024",2024,"FDLC-CPS-159-2024","https://community.secop.gov.co/Public/Tendering/OpportunityDetail/Index?noticeUID=CO1.NTC.6017625&isFromPublicArea=True&isModal=true&asPopupView=true","CPS","CONTRATACION DIRECTA","Selección abreviada por menor cuantía ","PRESTAR SERVICIOS PROFESIONALES ESPECIALIZADOS PARA APOYAR LA IMPLEMENTACIÓN Y EL SEGUIMIENTO A LOS PLANES Y PROGRAMAS RELACIONADOS CON LA GESTIÓN EN SEGURIDAD Y SALUD EN EL TRABAJO DE LA ALCALDÍA LOCAL CONFORME CON LOS LINEAMIENTOS DEFINIDOS DESDE EL NIVEL CENTRAL DE LA SDG Y LA NORMATIVA VIGENTE","INVERSION","Un nuevo contrato social y ambiental para la Bogotá del Siglo XXI",57,"Gestión Pública Local","Propósito 5. Construir Bogotà - Regiòn con gobierno abierto, transparente y ciudadanìa consciente. ","O23011605570000002021",3,901288767,"MARIA MARGARITA CARDENAS SANCHEZ","Persona Jurídica",null,null,null,null,29828000,null,null,0,29828000,29828000,"2022-08-18","2022-08-25","2023-01-24",120,null,"NO APLICA","N/A","N/A","N/A","N/A","TERMINADO",1]
["FDLC-CPS-160-2024",2024,"FDLC-CPS-160-2024","https://community.secop.gov.co/Public/Tendering/OpportunityDetail/Index?noticeUID=CO1.NTC.6005877&isFromPublicArea=True&isModal=true&asPopupView=true","CPS","CONTRATACION DIRECTA","Prestación de servicios profesionales y de apoyo a la gestión, o para la ejecución de trabajos artísticos que sólo puedan encomendarse a determinadas personas naturales","PRESTAR SERVICIOS DE APOYO EN LAS ACTIVIDADES DE SEGURIDAD Y CONVIVENCIA CIUDADANA DE ACUERDO A LAS NECESIDADES Y ESTRATEGIAS DE LA ALCALDIA LOCAL DE LA CANDELARIA","INVERSION","Un nuevo contrato social y ambiental para la Bogotá del Siglo XXI",57,"Gestión Pública Local","Propósito 5. Construir Bogotà - Regiòn con gobierno abierto, transparente y ciudadanìa consciente. ","O23011605570000002021",1,1105670710,"YULIANA ELISA BERNAL PRADO","Persona Natural",null,null,null,null,7520000,null,null,0,7520000,7520000,"2022-08-22","2022-08-23","2022-12-22",120,1,"NO APLICA","N/A","N/A","N/A","N/A","TERMINADO",1]
["FDLC-CPS-161-2024",2024,"FDLC-CPS-161-2024","https://community.secop.gov.co/Public/Tendering/OpportunityDetail/Index?noticeUID=CO1.NTC.6007074&isFromPublicArea=True&isModal=true&asPopupView=true","CPS","CONTRATACION DIRECTA","Prestación de servicios profesionales y de apoyo a la gestión, o para la ejecución de trabajos artísticos que sólo puedan encomendarse a determinadas personas naturales","PRESTAR SERVICIOS DE APOYO TÉCNICO EN LA IMPLEMENTACIÓN DE ACCIONES Y ESTRATEGIAS DE LOS PROYECTOS DE OBRAS PUBLICAS E INFRAESTRUCTURA QUE DESARROLLE EL FONDO DE DESARROLLO LOCAL DE LA CANDELARIA","INVERSION","Un nuevo contrato social y ambiental para la Bogotá del Siglo XXI",49,"Movilidad segura, sostenible y accesible","Propòsito 4. Hacer de Bogotà - Region un modelo de movilidad multimodal, incluyente y sostenible ","O23011604490000002020",1,1010235642,"DANIEL FELIPE GALVIS WALTEROS","Persona Natural",null,null,null,null,11576000,null,null,0,11576000,11576000,"2022-08-24","2022-08-25","2022-12-24",120,1,"NO APLICA","N/A","N/A","N/A","N/A","TERMINADO",1]
["FDLC-CPS-162-2024",2024,"FDLC-LP-001-2024","https://community.secop.gov.co/Public/Tendering/OpportunityDetail/Index?noticeUID=CO1.NTC.5904421&isFromPublicArea=True&isModal=False","PRESTACION DE SERVICIOS","LICITACION PUBLICA","Prestación de servicios profesionales y de apoyo a la gestión, o para la ejecución de trabajos artísticos que sólo puedan encomendarse a determinadas personas naturales","PRESTAR EL SERVICIO INTEGRAL DE VIGILANCIA Y SEGURIDAD PRIVADA PERMANENTE PARA TODOS LOS BIENES MUEBLES E INMUEBLES DE LOS QUE LEGALMENTE ES O LLEGARE A SER RESPONSABLE EL FONDO DE DESARROLLO LOCAL DE LA CANDELARIA","FUNCIONAMIENTO - INVERSION","Un nuevo contrato social y ambiental para la Bogotá del Siglo XXI",49,"Movilidad segura, sostenible y accesible","Propòsito 4. Hacer de Bogotà - Region un modelo de movilidad multimodal, incluyente y sostenible ","O23011604490000002020 - O21202020080585250",1,1054121677,"RONDACOL LTDA","Persona Natural",null,null,null,null,1113300079,null,1,195345811,1308645890,897230298,"2022-08-24","2022-08-26","2022-12-25",243,1,"2 MESES 5 DIAS","N/A","N/A","N/A","N/A","TERMINADO",0.68561732769435435]
["FDLC-CCV-163-2024",2024,"FDLC-IMC-003-2024","https://community.secop.gov.co/Public/Tendering/OpportunityDetail/Index?noticeUID=CO1.NTC.6002177&isFromPublicArea=True&isModal=true&asPopupView=true","COMPRAVENTA","MINIMA CUANTIA","Contratos interadministrativos","ADQUISICIÓN DE INSUMOS CONSUMIBLES PARA LOS EQUIPOS DE IMPRESIÓN DE LA ALCALDÍA LOCAL DE LA CANDELARIA (CARTUCHOS TONER)","FUNCIONAMIENTO","Un nuevo contrato social y ambiental para la Bogotá del Siglo XXI","No aplica","No aplica","No aplica","O2120201003063649028",1,901508361,"SISTEMAS Y DISTRIBUCIONES FORMACON SAS","Persona Jurídica",null,null,null,null,13326430,null,1,6663215,19989645,19966662,"2022-08-25","2022-08-25","2029-12-30",30,1,"1 MES","N/A","N/A","N/A","N/A","TERMINADO",0.99885025471938094]
["FDLC-CPS-164-2024",2024,"FDLC-CPS-164-2024","https://community.secop.gov.co/Public/Tendering/OpportunityDetail/Index?noticeUID=CO1.NTC.6073478&isFromPublicArea=True&isModal=true&asPopupView=true","CPS","CONTRATACION DIRECTA","Prestación de servicios profesionales y de apoyo a la gestión, o para la ejecución de trabajos artísticos que sólo puedan encomendarse a determinadas personas naturales","PRESTAR SERVICIOS PROFESIONALES AL FONDO DE DESARROLLO LOCAL DE LA CANDELARIA PARA LA PLANEACIÓN FORMULACIÓN EVALUACIÓN ARTICULACIÓN EJECUCIÓN Y SEGUIMIENTO DEL PROYECTO DE INVERSIÓN 1787 LA CANDELARIA SEGURA: ACCESO A LA JUSTICIA INTEGRAL","INVERSION","Un nuevo contrato social y ambiental para la Bogotá del Siglo XXI",48,"Plataforma institucional para la seguridad y justicia","Propòsito 3. Inspirar confianza y legitimidad para vivir sin miedo y ser epicentro de cultura ciudadana, paz y reconciliaciòn ","O23011603480000001787",1,93118919,"DANIEL ALFONSO TRIVIÑO VILLABÓN","Persona Natural",null,null,null,null,19092000,null,null,0,19092000,19092000,"2022-08-25","2022-08-26","2022-11-25",120,null,"NO APLICA","N/A","N/A","N/A","N/A","TERMINADO",1]
["FDLC-CPS-165-2024",2024,"FDLC-CPS-165-2024","https://community.secop.gov.co/Public/Tendering/OpportunityDetail/Index?noticeUID=CO1.NTC.6088519&isFromPublicArea=True&isModal=true&asPopupView=true","CPS","CONTRATACION DIRECTA","No aplica","PRESTACIÓN DE SERVICIOS PROFESIONALES EN LA IMPLEMENTACIÓN DE ACCIONES Y ESTRATEGIAS CULTURALES MUSICALES Y ARTÍSTICAS ENFOCADAS A LAS INSTANCIAS DE PARTICIPACIÓN DE LA LOCALIDAD LA CANDELARIA DE ACUERDO AL PROYECTO 1625 \"LA CANDELARIA CULTURAL ARTISTICA Y PATRIMONIAL","INVERSION","Un nuevo contrato social y ambiental para la Bogotá del Siglo XXI",21,"Creación y vida cotidiana: Apropiación ciudadana del arte, la cultura y el patrimonio, para la democracia cultural","Propósito 1. Hacer un nuevo contrato social con igualdad de oportunidades para la inclusiòn social, productiva y polìtica ","O23011601210000001625",7,901495284,"BRAYAN IVAN PAIPA MARTINEZ","Persona Jurídica",null,null,null,null,19092000,null,null,0,19092000,19092000,"2022-08-29","2022-08-30","2022-09-29",120,1,"NO APLICA","N/A","N/A","N/A","N/A","TERMINADO",1]
["FDLC-CPS-166-2024",2024,"FDLC-CPS-166-2024","https://community.secop.gov.co/Public/Tendering/OpportunityDetail/Index?noticeUID=CO1.NTC.6096406&isFromPublicArea=True&isModal=true&asPopupView=true","CPS","CONTRATACION DIRECTA","Prestación de servicios profesionales y de apoyo a la gestión, o para la ejecución de trabajos artísticos que sólo puedan encomendarse a determinadas personas naturales","PRESTAR SERVICIOS PROFESIONALES PARA APOYAR JURÍDICAMENTE LA EJECUCIÓN DE LAS ACCIONES REQUERIDAS PARA LA DEPURACIÓN DE LAS ACTUACIONES ADMINISTRATIVAS QUE CURSAN EN LA ALCALDÍA LOCAL DE LA CANDELARIA","INVERSION","Un nuevo contrato social y ambiental para la Bogotá del Siglo XXI",57,"Gestión Pública Local","Propósito 5. Construir Bogotà - Regiòn con gobierno abierto, transparente y ciudadanìa consciente. ","O23011605570000002023",1,1018430013,"CARLOS LIBARDO CASTRO MEDINA","Persona Natural",null,null,null,null,21836000,null,1,5459000,27295000,24565600,"2022-08-29","2022-08-30","2022-11-30",120,1,"1 MES   ","N/A","N/A","N/A","N/A","TERMINADO",0.90000366367466567]
["FDCL-OC-167-2024",2024,"ORDEN DE COMPRA 128538","https://www.colombiacompra.gov.co/tienda-virtual-del-estado-colombiano/ordenes-compra/128538","ORDEN DE COMPRA","SELECCION ABREVIADA ACUERDO MARCO DE PRECIOS","Prestación de servicios profesionales y de apoyo a la gestión, o para la ejecución de trabajos artísticos que sólo puedan encomendarse a determinadas personas naturales","ADQUISICION DE PRODUCTOS DE PAPELERÍA ARTICULOS DE ESCRITORIO Y ELEMENTOS DE OFICINA NECESARIOS PARA EL CUMPLIMIENTO DE LAS FUNCIONES ADMINISTRATIVAS Y MISIONALES DE LA ALCALDÍA LOCAL DE LA CANDELARIA","FUNCIONAMIENTO","Un nuevo contrato social y ambiental para la Bogotá del Siglo XXI","No aplica","No aplica","No aplica","O2120201003023212801-O2120201003083899998-O2120201004024291305",1,1010207593,"CLARYICON S.A.S","Persona Natural",null,null,null,null,13774250,null,null,0,13774250,{"$f":"+X180+Y180+AA180","v":13774250},"2022-09-07","2022-09-08","2022-12-30",15,1,"NO APLICA","N/A","N/A","N/A","N/A","TERMINADO",1]
["FDCL-OC-168-2024",2024,"ORDEN DE COMPRA 128537","https://www.colombiacompra.gov.co/tienda-virtual-del-estado-colombiano/ordenes-compra/128537","ORDEN DE COMPRA","SELECCION ABREVIADA ACUERDO MARCO DE PRECIOS","Prestación de servicios profesionales y de apoyo a la gestión, o para la ejecución de trabajos artísticos que sólo puedan encomendarse a determinadas personas naturales","ADQUISICION DE PRODUCTOS DE PAPELERÍA ARTICULOS DE ESCRITORIO Y ELEMENTOS DE OFICINA NECESARIOS PARA EL CUMPLIMIENTO DE LAS FUNCIONES ADMINISTRATIVAS Y MISIONALES DE LA ALCALDÍA LOCAL DE LA CANDELARIA","FUNCIONAMIENTO","Un nuevo contrato social y ambiental para la Bogotá del Siglo XXI","No aplica","No aplica","No aplica","O2120201003063692002-O2120201004054516003",1,1014200533,"GS - Polyflex","Persona Natural",null,null,null,null,8381000,null,null,0,8381000,8381000,"2022-09-08","2022-09-08","2022-12-07",15,null,"NO APLICA","N/A","N/A","N/A","N/A","TERMINADO",1]
["FDCL-OC-169-2024",2024,"ORDEN DE COMPRA 128536","https://www.colombiacompra.gov.co/tienda-virtual-del-estado-colombiano/ordenes-compra/128536","ORDEN DE COMPRA","SELECCION ABREVIADA ACUERDO MARCO DE PRECIOS","Prestación de servicios profesionales y de apoyo a la gestión, o para la ejecución de trabajos artísticos que sólo puedan encomendarse a determinadas personas naturales","ADQUISICION DE PRODUCTOS DE PAPELERÍA ARTICULOS DE ESCRITORIO Y ELEMENTOS DE OFICINA NECESARIOS PARA EL CUMPLIMIENTO DE LAS FUNCIONES ADMINISTRATIVAS Y MISIONALES DE LA ALCALDÍA LOCAL DE LA CANDELARIA","FUNCIONAMIENTO","Un nuevo contrato social y ambiental para la Bogotá del Siglo XXI","No aplica","No aplica","No aplica","O2120201003083899998-O2120201003063692007",1,1045707561,"PANAMERICANA LIBRERÍA Y PAPELERÍA S.A.","Persona Natural",null,null,null,null,3836979,null,null,0,3836979,{"$f":"+X182+Y182+AA182","v":3836979},"2022-09-09","2022-09-09","2022-12-08",15,null,"NO APLICA","N/A","N/A","N/A","N/A","TERMINADO",1]
["FDCL-OC-170-2024",2024,"ORDEN DE COMPRA 128535","https://www.colombiacompra.gov.co/tienda-virtual-del-estado-colombiano/ordenes-compra/128535","ORDEN DE COMPRA","SELECCION ABREVIADA ACUERDO MARCO DE PRECIOS","Prestación de servicios profesionales y de apoyo a la gestión, o para la ejecución de trabajos artísticos que sólo puedan encomendarse a determinadas personas naturales","ADQUISICION DE PRODUCTOS DE PAPELERÍA ARTICULOS DE ESCRITORIO Y ELEMENTOS DE OFICINA NECESARIOS PARA EL CUMPLIMIENTO DE LAS FUNCIONES ADMINISTRATIVAS Y MISIONALES DE LA ALCALDÍA LOCAL DE LA CANDELARIA","FUNCIONAMIENTO","Un nuevo contrato social y ambiental para la Bogotá del Siglo XXI","No aplica","No aplica","No aplica","O2120201003023212899-O2120201003083899998",1,830040274,"COLSUBSIDIO","Persona Jurídica",null,null,null,null,5272450,null,null,0,5272450,5272450,"2022-09-14","2022-09-14","2022-12-13",15,null,"NO APLICA","N/A","N/A","N/A","N/A","TERMINADO",1]
["FDLC-CPS-171-2024",2024,"FDLC-CPS-171-2024","https://community.secop.gov.co/Public/Tendering/OpportunityDetail/Index?noticeUID=CO1.NTC.6142962&isFromPublicArea=True&isModal=true&asPopupView=true","CPS","CONTRATACION DIRECTA","Prestación de servicios profesionales y de apoyo a la gestión, o para la ejecución de trabajos artísticos que sólo puedan encomendarse a determinadas personas naturales","PRESTAR SERVICIOS PROFESIONALES AL ÁREA DE GESTIÓN DE DESARROLLO LOCAL DE LA ALCALDÍA LOCAL PARA LA IMPLEMENTACIÓN EJECUCIÓN Y SEGUIMIENTO DE LAS POLÍTICAS PROGRAMAS PLANES Y PROYECTOS RELACIONADOS CON EL DESARROLLO SOSTENIBLE Y REACTIVACION ECONÓMICA EN LA LOCALIDAD","INVERSION","Un nuevo contrato social y ambiental para la Bogotá del Siglo XXI",57,"Gestión Pública Local","Propósito 5. Construir Bogotà - Regiòn con gobierno abierto, transparente y ciudadanìa consciente. ","O23011605570000002021",1,41648295,"CRISTIAN EDUAR RODRIGUEZ PIRAQUIVE","Persona Natural",null,null,null,null,19092000,null,null,0,19092000,19092000,"2022-09-14","2022-09-14","2022-11-13",120,null,"NO APLICA","N/A","N/A","N/A","N/A","TERMINADO",1]
["FDLC-CIA-172-2024",2024,"SDIS-CD-310805-004-2024","https://community.secop.gov.co/Public/Tendering/OpportunityDetail/Index?noticeUID=CO1.NTC.6067121&isFromPublicArea=True&isModal=False","CONVENIO INTERADMINISTRATIVO","CONTRATACION DIRECTA","Prestación de servicios profesionales y de apoyo a la gestión, o para la ejecución de trabajos artísticos que sólo puedan encomendarse a determinadas personas naturales","CONVENIO 7815 DE 2024 - AUNAR ESFUERZOS TÃ\u0088CNICOS ADMINISTRATIVOS JURÃ\u008cDICOS Y FINANCIEROS ENTRE LA SECRETARÃ\u008cA DE INTEGRACIÃ\u0092N SOCIAL Y EL FONDO DE DESARROLLO LOCAL DE LA CANDELARIA QUE PERMITAN LA DISPOSICIÃ\u0092N DE RECURSOS NECESARIOS PARA LA DISPERSIÃ\u0092N DE TRANSFERENCIAS MONETARIAS NO CONDICIONADAS DE LA ESTRATEGIA DE INGRESO MÃ\u008cNIMO GARANTIZADO DIRIGIDAS A LOS HOGARES POBRES PRIORIZADOS E IDENTIFICADOS A TRAVÃ\u0088S DE LA BASE MAESTRA DE LA ESTRATEGIA IMGQUE CORRESPONDEN A LA LOCALIDAD DE LA CANDELARIA.","INVERSION","Un nuevo contrato social y ambiental para la Bogotá del Siglo XXI",1,"Subsidios y transferencias para la equidad","Propósito 1. Hacer un nuevo contrato social con igualdad de oportunidades para la inclusiòn social, productiva y polìtica ","O23011601010000001605",1,49719195,"SECRETARIA DISTRITAL DE INTEGRACION SOCIAL","Persona Natural",null,null,null,null,783917044,null,null,0,783917044,793917004,"2022-09-14","2022-09-14","2022-12-13",242,null,"NO APLICA","N/A","N/A","N/A","N/A","TERMINADO",1.0127564007907959]
["FDLC-CPS-173-2024",2024,"FDLC-CPS-173-2024","https://community.secop.gov.co/Public/Tendering/OpportunityDetail/Index?noticeUID=CO1.NTC.6190781&isFromPublicArea=True&isModal=true&asPopupView=true","CPS","CONTRATACION DIRECTA","Prestación de servicios profesionales y de apoyo a la gestión, o para la ejecución de trabajos artísticos que sólo puedan encomendarse a determinadas personas naturales","PRESTAR SERVICIOS DE APOYO AL FONDO DE DESARROLLO LOCAL DE LA CANDELARIA COMO CONDUCTOR(A) DE LOS VEHICULOS A CARGO DE LA ENTIDAD Y APOYO LOGISTICO QUE LE SEAN ASIGNADOS","INVERSION","Un nuevo contrato social y ambiental para la Bogotá del Siglo XXI",57,"Gestión Pública Local","Propósito 5. Construir Bogotà - Regiòn con gobierno abierto, transparente y ciudadanìa consciente. ","O23011605570000002021",1,11801160,"VICTOR MANUEL ORTIZ CARDENAS","Persona Natural",null,null,null,null,11532000,null,null,0,11532000,11532000,"2022-09-19","2022-09-20","2022-12-29",120,1,"NO APLICA","N/A","N/A","N/A","N/A","TERMINADO",1]
["FDLC-CPS-174-2024",2024,"FDLC-CPS-174-2024","https://community.secop.gov.co/Public/Tendering/OpportunityDetail/Index?noticeUID=CO1.NTC.6194305&isFromPublicArea=True&isModal=true&asPopupView=true","CPS","CONTRATACION DIRECTA","Subasta inversa ","PRESTACIÓN DE SERVICIOS DE APOYO AL ÁREA DE GESTIÓN DE DESARROLLO LOCAL DE LA ALCALDÍA LOCAL DE LA CANDELARIA PARA PROMOVER LA GESTIÓN Y LAS CONVOCATORIAS REALIZADAS POR LA ALCALDIA LOCAL EN BENEFICIO DE LA COMUNIDAD","INVERSION","Un nuevo contrato social y ambiental para la Bogotá del Siglo XXI",57,"Gestión Pública Local","Propósito 5. Construir Bogotà - Regiòn con gobierno abierto, transparente y ciudadanìa consciente. ","O23011605570000002021",13,901142692,"NELLY PARRA TOCORA","Persona Jurídica",null,null,null,null,11532000,null,null,0,11532000,11532000,"2022-09-21","2022-09-27","2022-11-26",120,null,"NO APLICA","N/A","N/A","N/A","N/A","TERMINADO",1]
["FDLC-CPS-175-2024",2024,"FDLC-CPS-175-2024","https://community.secop.gov.co/Public/Tendering/OpportunityDetail/Index?noticeUID=CO1.NTC.6194011&isFromPublicArea=True&isModal=true&asPopupView=true","CPS","CONTRATACION DIRECTA","Subasta inversa ","PRESTAR SERVICIOS DE APOYO TÉCNICO AL FONDO DE DESARROLLO LOCAL DE LA CANDELARIA PARA APOYAR LA GESTIÓN CONTABLE PAGOS Y A LOS PROFESIONALES QUE INTERVENGAN EN DICHO PROCESO ASÍ COMO TAMBIÉN EN LOS ASUNTOS QUE LE SEAN REQUERIDOS","INVERSION","Un nuevo contrato social y ambiental para la Bogotá del Siglo XXI",57,"Gestión Pública Local","Propósito 5. Construir Bogotà - Regiòn con gobierno abierto, transparente y ciudadanìa consciente. ","O23011605570000002021",13,"No Definido","JOSE RENE AGUIRRE TIJARO","Persona Jurídica",901341884,"Integra de Colombia S.A.S ",0.5,null,16000000,null,null,0,16000000,16000000,"2022-09-21","2022-10-28","2022-11-20",120,null,"NO APLICA","N/A","N/A","N/A","N/A","TERMINADO",1]
["FDLC-CPS-176-2024",2024,"FDLC-CPS-176-2024","https://community.secop.gov.co/Public/Tendering/OpportunityDetail/Index?noticeUID=CO1.NTC.6194086&isFromPublicArea=True&isModal=true&asPopupView=true","CPS","CONTRATACION DIRECTA","Subasta inversa ","PRESTAR SERVICIOS PROFESIONALES AL FONDO DE DESARROLLO LOCAL DE LA CANDELARIA PARA APOYAR LOS ASUNTOS RELACIONADOS CON LA GESTIÓN ATENCIÓN DEL RIESGO Y CAMBIO CLIMÁTICO EN LA LOCALIDAD.","INVERSION","Un nuevo contrato social y ambiental para la Bogotá del Siglo XXI",30,"Eficiencia en la atención de emergencias","Propòsito 2. Cambiar nuestros hàbitos de vida para reverdecer a Bogotà y adaptarnos y mitigar la crisis climàtica.","O23011602300000001702",13,"No Definido","DANIELA PEÑA HERNANDEZ","Persona Jurídica",901118558,"COMERCIALIZADORA PADYF SAS",0.5,null,19092000,null,null,0,19092000,19092000,null,null,null,120,null,"NO APLICA","N/A","N/A","N/A","N/A","TERMINADO",1]
["FDLC-CPS-177-2024",2024,"FDLC-CPS-177-2024","https://community.secop.gov.co/Public/Tendering/OpportunityDetail/Index?noticeUID=CO1.NTC.6201070&isFromPublicArea=True&isModal=true&asPopupView=true","CPS","CONTRATACION DIRECTA","Subasta inversa ","APOYAR AL EQUIPO DE PRENSA Y COMUNICACIONES DE LA ALCALDÍA LOCAL EN LA REALIZACIÓN Y PUBLICACIÓN DE CONTENIDOS DE REDES SOCIALES Y CANALES DE DIVULGACIÓN DIGITAL (SITIO WEB) DE LA ALCALDÍA LOCAL","INVERSION","Un nuevo contrato social y ambiental para la Bogotá del Siglo XXI",57,"Gestión Pública Local","Propósito 5. Construir Bogotà - Regiòn con gobierno abierto, transparente y ciudadanìa consciente. ","O23011605570000002021",13,"No Definido","NATALIA VEGA PALACIOS","Persona Jurídica",901341884,"Integra de Colombia S.A.S ",0.5,null,21872000,null,1,5468000,27340000,27340000,"2022-09-21","2022-10-28",null,120,1,"1 MES","N/A","N/A","N/A","N/A","TERMINADO",{"$f":"IF(ISERROR(AB190/AA190),\"-\",(AB190/AA190))","v":1}]
["FDLC-CPS-178-2024",2024,"FDLC-CPS-178-2024","https://community.secop.gov.co/Public/Tendering/OpportunityDetail/Index?noticeUID=CO1.NTC.6214127&isFromPublicArea=True&isModal=true&asPopupView=true","CPS","CONTRATACION DIRECTA","Subasta inversa ","PRESTAR SERVICIOS DE APOYO TÉCNICO AL FONDO DE DESARROLLO LOCAL DE LA CANDELARIA PARA APOYAR EN LA IMPLEMENTACIÓN CARGA MANEJO VALIDACIÓN Y ACTUALIZACIÓN DE LA INFORMACIÓN REQUERIDA EN EL APLICATIVO SIPSE LOCAL Y DEMÁS APLICATIVOS DE GESTIÓN LOCAL","INVERSION","Un nuevo contrato social y ambiental para la Bogotá del Siglo XXI",57,"Gestión Pública Local","Propósito 5. Construir Bogotà - Regiòn con gobierno abierto, transparente y ciudadanìa consciente. ","O23011605570000002021",13,"No Definido","EDGAR OSWALDO NAVARRETE VANEGAS",null,901118558,"COMERCIALIZADORA PADYF SAS",0.5,null,13600000,null,1,3400000,17000000,17000000,null,null,null,120,1,"1 MES","N/A","N/A","N/A","N/A","TERMINADO"]
["FDLC-CPS-179-2024",2024,"FDLC-CPS-179-2024","https://community.secop.gov.co/Public/Tendering/OpportunityDetail/Index?noticeUID=CO1.NTC.6222091&isFromPublicArea=True&isModal=true&asPopupView=true","CPS","CONTRATACION DIRECTA","Subasta inversa ","PRESTACIÓN DE SERVICIOS DE APOYO TÉCNICO AL FONDO DE DESARROLLO LOCAL DE LA CANDELARIA EN LOS ASUNTOS RELACIONADOS CON LOS PROCESOS DEL ALMACEN DE LA ENTIDAD","INVERSION","Un nuevo contrato social y ambiental para la Bogotá del Siglo XXI",57,"Gestión Pública Local","Propósito 5. Construir Bogotà - Regiòn con gobierno abierto, transparente y ciudadanìa consciente. ","O23011605570000002021",13,900813561,"JUAN CARLOS PUENTES NARVAEZ","Persona Jurídica",null,null,null,null,16000000,null,2,8000000,{"$f":"+W192+X192+Z192","v":24000000},24000000,"2022-09-21","2022-09-27","2022-11-26",120,2,"2 MESES","N/A","N/A","N/A","N/A","TERMINADO",1]
["FDLC-CPS-180-2024",2024,"FDLC-CPS-180-2024","https://community.secop.gov.co/Public/Tendering/OpportunityDetail/Index?noticeUID=CO1.NTC.6222349&isFromPublicArea=True&isModal=true&asPopupView=true","CPS","CONTRATACION DIRECTA","Subasta inversa ","PRESTAR SERVICIOS TÉCNICOS PARA LA OPERACIÓN SEGUIMIENTO Y CUMPLIMIENTO DE LOS PROCESOS Y PROCEDIMIENTOS DEL SERVICIO APOYOS ECONÓMICOS TIPO C REQUERIDOS PARA EL OPORTUNO Y ADECUADO REGISTRO CRUCE Y REPORTE DE LOS DATOS EN EL SISTEMA MISIONAL SIRBE QUE CONTRIBUYAN A LA GARANTÍA DE LOS DERECHOS DE LA POBLACIÓN MAYOR EN EL MARCO DE LA POLÍTICA PÚBLICA SOCIAL PARA EL ENVEJECIMIENTO Y LA VEJEZ EN EL DISTRITO CAPITAL A CARGO DE LA ALCALDÍA LOCAL","INVERSION","Un nuevo contrato social y ambiental para la Bogotá del Siglo XXI",1,"Subsidios y transferencias para la equidad","Propósito 1. Hacer un nuevo contrato social con igualdad de oportunidades para la inclusiòn social, productiva y polìtica ","O23011601010000001605",13,900813561,"PEDRO SIERRA GARCIA","Persona Jurídica",null,null,null,null,12600000,null,null,0,12600000,12600000,"2022-09-21","2022-09-27","2022-11-26",120,null,"NO APLICA","N/A","N/A","N/A","N/A","TERMINADO",1]
["FDLC-CPS-181-2024",2024,"FDLC-CPS-181-2024","https://community.secop.gov.co/Public/Tendering/OpportunityDetail/Index?noticeUID=CO1.NTC.6225934&isFromPublicArea=True&isModal=true&asPopupView=true","CPS","CONTRATACION DIRECTA","Subasta inversa ","PRESTAR SERVICIOS DE APOYO TECNICO EN LAS DISTINTAS ETAPAS DE LOS PROCESOS CONTRACTUALES Y PARA BRINDAR ACOMPAÑAMIENTO Y SEGUIMIENTO EN LA IMPLEMENTACIÓN DEL SISTEMA DE GESTIÓN DE SEGURIDAD Y SALUD EN EL TRABAJO DE LA ALCALDIA LOCAL DE LA CANDELARIA","INVERSION","Un nuevo contrato social y ambiental para la Bogotá del Siglo XXI",57,"Gestión Pública Local","Propósito 5. Construir Bogotà - Regiòn con gobierno abierto, transparente y ciudadanìa consciente. ","O23011605570000002021",13,900603126,"MICHAEL FELIPE RAMIREZ GRACIA","Persona Jurídica",null,null,null,null,17464000,null,null,0,17464000,17464000,"2022-09-21","2022-09-27","2022-11-26",120,null,"NO APLICA","N/A","N/A","N/A","N/A","TERMINADO",1]
["FDLC-CPS-182-2024",2024,"FDLC-CPS-182-2024","https://community.secop.gov.co/Public/Tendering/OpportunityDetail/Index?noticeUID=CO1.NTC.6224864&isFromPublicArea=True&isModal=true&asPopupView=true","CPS","CONTRATACION DIRECTA","Contratos interadministrativos","PRESTAR SERVICIOS PROFESIONALES AL FONDO DE DESARROLLO LOCAL DE LA CANDELARIA PARA APOYAR AL ENCARGADO DE LOS PROYECTOS SOCIALES Y DE SALUD DURANTE LA EJECUCIÓN Y SEGUIMIENTO DEL MISMO","INVERSION","Un nuevo contrato social y ambiental para la Bogotá del Siglo XXI",6,"Sistema Distrital del Cuidado","Propósito 1. Hacer un nuevo contrato social con igualdad de oportunidades para la inclusiòn social, productiva y polìtica ","O23011601060000001664",1,900959051,"ANGELA GABRIELA ALMEYDA REMOLINA","Persona Jurídica",null,null,null,null,19092000,null,null,0,19092000,19092000,"2022-10-18","2022-10-20","2023-04-19",120,null,"NO APLICA","N/A","N/A","N/A","N/A","TERMINADO",1]
["FDLC-CPS-183-2024",2024,"FDLC-CPS-183-2024","https://community.secop.gov.co/Public/Tendering/OpportunityDetail/Index?noticeUID=CO1.NTC.6236093&isFromPublicArea=True&isModal=true&asPopupView=true","CPS","CONTRATACION DIRECTA","Prestación de servicios profesionales y de apoyo a la gestión, o para la ejecución de trabajos artísticos que sólo puedan encomendarse a determinadas personas naturales","PRESTAR SERVICIOS DE APOYO ADMINISTRATIVO Y ASISTENCIAL AL FONDO DE DESARROLLO LOCAL DE LA CANDELARIA EN EL CENTRO DE INFORMACIÓN Y DOCUMENTACIÓN (CDI) PARA LA NOTIFICACIÓN DE CORRESPONDENCIA DE LA ENTIDAD","INVERSION","Un nuevo contrato social y ambiental para la Bogotá del Siglo XXI",57,"Gestión Pública Local","Propósito 5. Construir Bogotà - Regiòn con gobierno abierto, transparente y ciudadanìa consciente. ","O23011605570000002021",1,51881732,"MARBYN ALFONSO SABOGAL SANCHEZ","Persona Natural",null,null,null,null,10000000,null,null,0,10000000,10000000,"2022-09-29","2022-09-29","2022-12-28",120,null,"NO APLICA","N/A","N/A","N/A","N/A","TERMINADO",1]
["FDLC-CPS-184-2024",2024,"FDLC-CPS-184-2024","https://community.secop.gov.co/Public/Tendering/OpportunityDetail/Index?noticeUID=CO1.NTC.6242088&isFromPublicArea=True&isModal=true&asPopupView=true","CPS","CONTRATACION DIRECTA","Prestación de servicios profesionales y de apoyo a la gestión, o para la ejecución de trabajos artísticos que sólo puedan encomendarse a determinadas personas naturales","PRESTAR SERVICIOS PROFESIONALES PARA APOYAR LA GESTION DE LOS ASUNTOS RELACIONADOS CON EL ESPACIO PÚBLICO PROMOVIENDO SU VISIBILIZACIÓN LIDERANDO Y ORGANIZANDO A LOS GESTORES DEL ESPACIO PÚBLICO","INVERSION","Un nuevo contrato social y ambiental para la Bogotá del Siglo XXI",45,"Espacio público más seguro y construido colectivamente","Propósito 3. Inspirar confianza y legitimidad para vivir sin miedo y ser epicentro de cultura ciudadana, paz y reconciliaciòn ","O23011603450000001786",1,39781586,"ANGELA LILIANA RONDON GUTIERREZ","Persona Natural",null,null,null,null,19092000,-9864200,null,0,9227800,9227800,"2022-10-04","2022-10-04","2023-01-15",120,1,"NO APLICA","N/A","N/A","N/A","N/A","TERMINADO",1]
["FDLC-CPS-185-2024",2024,"FDLC-CPS-185-2024","https://community.secop.gov.co/Public/Tendering/OpportunityDetail/Index?noticeUID=CO1.NTC.6237415&isFromPublicArea=True&isModal=true&asPopupView=true","CPS","CONTRATACION DIRECTA","Prestación de servicios profesionales y de apoyo a la gestión, o para la ejecución de trabajos artísticos que sólo puedan encomendarse a determinadas personas naturales","PRESTAR SERVICIOS TÉCNICOS PARA APOYAR AL FONDO DE DESARROLLO LOCAL DE LA CANDELARIA EN LAS TAREAS OPERATIVAS DE CARÁCTER ARCHIVÍSTICO DESARROLLADAS PARA GARANTIZAR LA APLICACIÓN CORRECTA DE LOS PROCEDIMIENTOS TÉCNICOS.","INVERSION","Un nuevo contrato social y ambiental para la Bogotá del Siglo XXI",57,"Gestión Pública Local","Propósito 5. Construir Bogotà - Regiòn con gobierno abierto, transparente y ciudadanìa consciente. ","O23011605570000002021",1,1010171112,"SONIA MORENO SALGUERO","Persona Natural",null,null,null,null,17464000,null,null,0,17464000,17464000,"2022-10-04","2022-10-04","2023-01-15",120,1,"NO APLICA","N/A","N/A","N/A","N/A","TERMINADO",1]
["FDLC-CPS-186-2024",2024,"FDLC-CPS-186-2024","https://community.secop.gov.co/Public/Tendering/OpportunityDetail/Index?noticeUID=CO1.NTC.6239193&isFromPublicArea=True&isModal=true&asPopupView=true","CPS","CONTRATACION DIRECTA","Prestación de servicios profesionales y de apoyo a la gestión, o para la ejecución de trabajos artísticos que sólo puedan encomendarse a determinadas personas naturales","PRESTAR SERVICIOS PROFESIONALES AL FONDO DE DESARROLLO LOCAL DE LA CANDELARIA PARA APOYAR EN LA PLANEACIÓN FORMULACIÓN EVALUACIÓN Y SEGUIMIENTO DE LOS PROYECTOS SOCIALES Y DE SALUD EN LA LOCALIDAD PARA EL CUMPLIMIENTO DE LAS METAS DEL PLAN DE DESARROLLO LOCAL 2021-2024.","INVERSION","Un nuevo contrato social y ambiental para la Bogotá del Siglo XXI",6,"Sistema Distrital del Cuidado","Propósito 1. Hacer un nuevo contrato social con igualdad de oportunidades para la inclusiòn social, productiva y polìtica ","O23011601060000001664",1,1010236602,"VIVIANA LIZETH MONROY RAMIREZ","Persona Natural",null,null,null,null,24000000,null,1,12000000,36000000,34800000,"2022-10-04","2022-10-04","2023-01-15",120,1,"2 MESES","N/A","N/A","N/A","N/A","TERMINADO",0.96666666666666667]
["FDLC-CPS-187-2024",2024,"FDLC-CPS-187-2024","https://community.secop.gov.co/Public/Tendering/OpportunityDetail/Index?noticeUID=CO1.NTC.6243305&isFromPublicArea=True&isModal=true&asPopupView=true","CPS","CONTRATACION DIRECTA","Prestación de servicios profesionales y de apoyo a la gestión, o para la ejecución de trabajos artísticos que sólo puedan encomendarse a determinadas personas naturales","PRESTAR LOS SERVICIOS PROFESIONALES PARA APOYAR LAS ACTIVIDADES RELACIONADAS CON LA FORMULACIÓN Y ESTRUCTURACIÓN DE LOS PROYECTOS DE INVERSIÓN Y FUNCIONAMIENTO QUE ADELANTE EL FONDO DE DESARROLLO LOCAL DE LA CANDELARIA","INVERSION","Un nuevo contrato social y ambiental para la Bogotá del Siglo XXI",57,"Gestión Pública Local","Propósito 5. Construir Bogotà - Regiòn con gobierno abierto, transparente y ciudadanìa consciente. ","O23011605570000002021",1,24344028,"YULI ALEJANDRA RUEDA VALDERRAMA","Persona Natural",null,null,null,null,19092000,null,null,0,19092000,19092000,"2022-10-04","2022-10-04","2023-01-15",120,1,"NO APLICA","N/A","N/A","N/A","N/A","TERMINADO",1]
["FDLC-CPS-188-2024",2024,"FDLC-CPS-188-2024","https://community.secop.gov.co/Public/Tendering/OpportunityDetail/Index?noticeUID=CO1.NTC.6254860&isFromPublicArea=True&isModal=true&asPopupView=true","CPS","CONTRATACION DIRECTA","Prestación de servicios profesionales y de apoyo a la gestión, o para la ejecución de trabajos artísticos que sólo puedan encomendarse a determinadas personas naturales","PRESTAR SERVICIOS PROFESIONALES PARA APOYAR JURÍDICAMENTE LA EJECUCIÓN DE LAS ACCIONES REQUERIDAS PARA EL TRÁMITE E IMPULSO PROCESAL DE LAS ACTUACIONES CONTRAVENCIONALES Y/O QUERELLAS QUE CURSEN EN LAS INSPECCIONES DE POLICÍA DE LA LOCALIDAD DE LA CANDELARIA.","INVERSION","Un nuevo contrato social y ambiental para la Bogotá del Siglo XXI",57,"Gestión Pública Local","Propósito 5. Construir Bogotà - Regiòn con gobierno abierto, transparente y ciudadanìa consciente. ","O23011605570000002023",1,52060667,"DIANA MARGARITA MONJE CARDENAS","Persona Natural",null,null,null,null,24000000,null,null,0,24000000,24000000,"2022-10-04","2022-10-04","2023-01-15",120,1,"NO APLICA","N/A","N/A","N/A","N/A","TERMINADO",1]
["FDLC-CPS-189-2024",2024,"FDLC-CPS-189-2024","https://community.secop.gov.co/Public/Tendering/OpportunityDetail/Index?noticeUID=CO1.NTC.6257887&isFromPublicArea=True&isModal=False","CPS","CONTRATACION DIRECTA","Prestación de servicios profesionales y de apoyo a la gestión, o para la ejecución de trabajos artísticos que sólo puedan encomendarse a determinadas personas naturales","PRESTAR SERVICIOS PROFESIONALES PARA APOYAR JURÍDICAMENTE LA EJECUCIÓN DE LAS ACCIONES REQUERIDAS PARA LA DEPURACIÓN DE LAS ACTUACIONES ADMINISTRATIVAS QUE CURSAN EN LA ALCALDÍA LOCAL DE LA CANDELARIA","INVERSION","Un nuevo contrato social y ambiental para la Bogotá del Siglo XXI",57,"Gestión Pública Local","Propósito 5. Construir Bogotà - Regiòn con gobierno abierto, transparente y ciudadanìa consciente. ","O23011605570000002023",1,1010195489,"RUBEN DARIO GONZALEZ","Persona Natural",null,null,null,null,19092000,null,null,0,19092000,19092000,"2022-10-04","2022-10-04","2023-01-15",120,1,"NO APLICA","N/A","N/A","N/A","N/A","TERMINADO",1]
["FDLC-CPS-190-2024",2024,"FDLC-CPS-190-2024","https://community.secop.gov.co/Public/Tendering/OpportunityDetail/Index?noticeUID=CO1.NTC.6275578&isFromPublicArea=True&isModal=true&asPopupView=true","CPS","CONTRATACION DIRECTA","Prestación de servicios profesionales y de apoyo a la gestión, o para la ejecución de trabajos artísticos que sólo puedan encomendarse a determinadas personas naturales","PRESTACIÓN DE SERVICIOS PROFESIONALES AL FONDO DE DESARROLLO LOCAL DE LA CANDELARIA PARA ATENDER LAS PETICIONES QUEJAS RECLAMOS YO SOLICITUDES PRESENTADAS POR LA CIUDADANÍA DE CONFORMIDAD CON LOS TÉRMINOS LEGALES ESTABLECIDOS Y APOYAR LAS RESPUESTAS REQUERIDAS POR LOS ENTES DE CONTROL","INVERSION","Un nuevo contrato social y ambiental para la Bogotá del Siglo XXI",57,"Gestión Pública Local","Propósito 5. Construir Bogotà - Regiòn con gobierno abierto, transparente y ciudadanìa consciente. ","O23011605570000002021",1,1051654292,"OLGA LILIANA CASTILLO ROJAS","Persona Natural",null,null,null,null,19092000,null,null,0,19092000,19092000,"2022-10-04","2022-10-04","2023-01-15",120,1,"NO APLICA","N/A","N/A","N/A","N/A","TERMINADO",1]
["FDLC-CPS-191-2024",2024,"FDLC-CPS-191-2024","https://community.secop.gov.co/Public/Tendering/OpportunityDetail/Index?noticeUID=CO1.NTC.6256603&isFromPublicArea=True&isModal=true&asPopupView=true","CPS","CONTRATACION DIRECTA","Prestación de servicios profesionales y de apoyo a la gestión, o para la ejecución de trabajos artísticos que sólo puedan encomendarse a determinadas personas naturales","PRESTAR LOS SERVICIOS PROFESIONALES PARA APOYAR LAS ACTIVIDADES RELACIONADAS CON LA FORMULACIÓN Y ESTRUCTURACIÓN DE LOS PROYECTOS DE INVERSIÓN Y FUNCIONAMIENTO QUE ADELANTE EL FONDO DE DESARROLLO LOCAL DE LA CANDELARIA","INVERSION","Un nuevo contrato social y ambiental para la Bogotá del Siglo XXI",24,"Bogotá región emprendedora e innovadora","Propósito 1. Hacer un nuevo contrato social con igualdad de oportunidades para la inclusiòn social, productiva y polìtica ","O23011601240000001627",1,79914457,"GEARLY SONSOLES TRUJILLO SANCHEZ","Persona Natural",null,null,null,null,19092000,null,null,0,19092000,19092000,"2022-10-04","2022-10-04","2023-01-15",120,1,"NO APLICA","N/A","N/A","N/A","N/A","TERMINADO",1]
["FDLC-CPS-192-2024",2024,"FDLC-CPS-192-2024","https://community.secop.gov.co/Public/Tendering/OpportunityDetail/Index?noticeUID=CO1.NTC.6292108&isFromPublicArea=True&isModal=true&asPopupView=true","CPS","CONTRATACION DIRECTA","Prestación de servicios profesionales y de apoyo a la gestión, o para la ejecución de trabajos artísticos que sólo puedan encomendarse a determinadas personas naturales","PRESTAR SERVICIOS ASISTENCIALES AL ÁREA DE GESTIÓN DE DESARROLLO LOCAL EN LAS ACTIVIDADES DE GESTIÓN ADMINISTRATIVA","INVERSION","Un nuevo contrato social y ambiental para la Bogotá del Siglo XXI",57,"Gestión Pública Local","Propósito 5. Construir Bogotà - Regiòn con gobierno abierto, transparente y ciudadanìa consciente. ","O23011605570000002021",1,79798858,"ANDREA LILIANA MARTINEZ ACOSTA","Persona Natural",null,null,null,null,11532000,null,null,0,11532000,11532000,"2022-10-05","2022-10-05","2023-01-15",120,1,"NO APLICA","N/A","N/A","N/A","N/A","TERMINADO",1]
["FDLC-CPS-193-2024",2024,"FDLC-CPS-193-2024","https://community.secop.gov.co/Public/Tendering/OpportunityDetail/Index?noticeUID=CO1.NTC.6311540&isFromPublicArea=True&isModal=False","CPS","CONTRATACION DIRECTA","Prestación de servicios profesionales y de apoyo a la gestión, o para la ejecución de trabajos artísticos que sólo puedan encomendarse a determinadas personas naturales","PRESTAR SERVICIOS PROFESIONALES AL FONDO DE DESARROLLO LOCAL DE LA CANDELARIA PARA APOYAR AL ENCARGADO DE LA IMPLEMENTACIÓN DE LA GESTIÓN DE CALIDAD SEGÚN LOS LINEAMIENTOS DE LA SECRETARÍA DISTRITAL DE GOBIERNO","INVERSION","Un nuevo contrato social y ambiental para la Bogotá del Siglo XXI",57,"Gestión Pública Local","Propósito 5. Construir Bogotà - Regiòn con gobierno abierto, transparente y ciudadanìa consciente. ","O23011605570000002021",1,70528247,"CLAUDIA SOFIA RAMOS ROSALES","Persona Natural",null,null,null,null,19092000,null,null,0,19092000,19092000,"2022-10-05","2022-10-05","2023-01-15",120,1,"NO APLICA","N/A","N/A","N/A","N/A","TERMINADO",1]
["FDLC-CPS-194-2024",2024,"FDLC-IMC-004-2024","https://community.secop.gov.co/Public/Tendering/OpportunityDetail/Index?noticeUID=CO1.NTC.6259887&isFromPublicArea=True&isModal=False","PRESTACION DE SERVICIOS","MINIMA CUANTIA","Prestación de servicios profesionales y de apoyo a la gestión, o para la ejecución de trabajos artísticos que sólo puedan encomendarse a determinadas personas naturales","COMPRA RECARGA INSPECCIÓN Y MANTENIMIENTO DE EXTINTORES PARA LAS INSTALACIONES DE PROPIEDAD O BAJO TENENCIA DEL FONDO DE DESARROLLO LOCAL DE LA CANDELARIA","FUNCIONAMIENTO","Un nuevo contrato social y ambiental para la Bogotá del Siglo XXI","No aplica","No aplica","No aplica","O2120201003053544203",1,79907754,"INVERSIONES TEDARIK S.A.S","Persona Natural",null,null,null,null,3027900,null,null,0,3027900,3027900,"2022-10-10","2022-10-10","2022-12-31",30,null,"NO APLICA","N/A","N/A","N/A","N/A","TERMINADO",1]
["FDLC-CPS-195-2024",2024,"FDLC-CPS-195-2025","https://community.secop.gov.co/Public/Tendering/OpportunityDetail/Index?noticeUID=CO1.NTC.6327719&isFromPublicArea=True&isModal=False","CPS","CONTRATACION DIRECTA","Prestación de servicios profesionales y de apoyo a la gestión, o para la ejecución de trabajos artísticos que sólo puedan encomendarse a determinadas personas naturales","PRESTAR SERVICIOS ASISTENCIALES AL ÁREA DE GESTIÓN DE DESARROLLO LOCAL EN LOS PROCESOS Y ACTIVIDADES DE GESTIÓN ADMINISTRATIVA DE LA ALCALDÍA LOCAL DE LA CANDELARIA.","INVERSION","Un nuevo contrato social y ambiental para la Bogotá del Siglo XXI",57,"Gestión Pública Local","Propósito 5. Construir Bogotà - Regiòn con gobierno abierto, transparente y ciudadanìa consciente. ","O23011605570000002021",1,1024570825,"CATALINA BELTRAN BELTRAN","Persona Natural",null,null,null,null,7956000,null,null,0,7956000,7757100,"2022-10-10","2022-10-10","2022-12-09",120,null,"NO APLICA","N/A","N/A","N/A","N/A","TERMINADO",0.97499999999999998]
["FDLC-CPS-196-2024",2024,"FDLC-CPS-196-2025","https://community.secop.gov.co/Public/Tendering/OpportunityDetail/Index?noticeUID=CO1.NTC.6330248&isFromPublicArea=True&isModal=False","CPS","CONTRATACION DIRECTA","Prestación de servicios profesionales y de apoyo a la gestión, o para la ejecución de trabajos artísticos que sólo puedan encomendarse a determinadas personas naturales","PRESTAR SERVICIOS ASISTENCIALES PARA APOYAR LA GESTIÓN Y ACTIVIDADES RELACIONADAS CON EL ESPACIO PÚBLICO DE ACUERDO A LAS NECESIDADES Y ESTRATEGIAS DE LA ALCALDÍA LOCAL DE LA CANDELARIA","INVERSION","Un nuevo contrato social y ambiental para la Bogotá del Siglo XXI",45,"Espacio público más seguro y construido colectivamente","Propósito 3. Inspirar confianza y legitimidad para vivir sin miedo y ser epicentro de cultura ciudadana, paz y reconciliaciòn ","O23011603450000001786",1,1010190450,"IVAN FELIPE SIERRA SANCHEZ","Persona Natural",null,null,null,null,7520000,null,null,0,7520000,7457333,"2022-10-10","2022-10-10","2022-12-09",120,null,"NO APLICA","N/A","N/A","N/A","N/A","TERMINADO",0.99166662234042557]
["FDLC-CPS-197-2024",2024,"FDLC-CPS-197-2025","https://community.secop.gov.co/Public/Tendering/OpportunityDetail/Index?noticeUID=CO1.NTC.6330322&isFromPublicArea=True&isModal=true&asPopupView=true","CPS","CONTRATACION DIRECTA","Prestación de servicios profesionales y de apoyo a la gestión, o para la ejecución de trabajos artísticos que sólo puedan encomendarse a determinadas personas naturales","PRESTAR SERVICIOS ASISTENCIALES PARA APOYAR LA GESTIÓN Y ACTIVIDADES RELACIONADAS CON EL ESPACIO PÚBLICO DE ACUERDO A LAS NECESIDADES Y ESTRATEGIAS DE LA ALCALDÍA LOCAL DE LA CANDELARIA.","INVERSION","Un nuevo contrato social y ambiental para la Bogotá del Siglo XXI",45,"Espacio público más seguro y construido colectivamente","Propósito 3. Inspirar confianza y legitimidad para vivir sin miedo y ser epicentro de cultura ciudadana, paz y reconciliaciòn ","O23011603450000001786",1,1010207254,"TITO JOSE MUTIS VALEST","Persona Natural",null,null,null,null,7520000,null,null,0,7520000,7332000,"2022-10-19","2022-10-19","2023-01-12",120,1,"NO APLICA","N/A","N/A","N/A","N/A","TERMINADO",0.97499999999999998]
["FDLC-CPS-198-2024",2024,"FDLC-CPS-198-2024","https://community.secop.gov.co/Public/Tendering/OpportunityDetail/Index?noticeUID=CO1.NTC.6372253&isFromPublicArea=True&isModal=true&asPopupView=true","CPS","CONTRATACION DIRECTA","Prestación de servicios profesionales y de apoyo a la gestión, o para la ejecución de trabajos artísticos que sólo puedan encomendarse a determinadas personas naturales","PRESTAR SERVICIOS ASISTENCIALES PARA APOYAR LA GESTIÓN Y ACTIVIDADES RELACIONADAS CON EL ESPACIO PÚBLICO DE ACUERDO A LAS NECESIDADES Y ESTRATEGIAS DE LA ALCALDÍA LOCAL DE LA CANDELARIA","INVERSION","Un nuevo contrato social y ambiental para la Bogotá del Siglo XXI",45,"Espacio público más seguro y construido colectivamente","Propósito 3. Inspirar confianza y legitimidad para vivir sin miedo y ser epicentro de cultura ciudadana, paz y reconciliaciòn ","O23011603450000001786",1,1026271323,"WILSON JAIR GONZALEZ BELTRAN","Persona Natural",null,null,null,null,7520000,-5828000,null,0,1692000,1692000,"2022-10-19","2022-10-19","2022-12-18",120,0,"NO APLICA","N/A","N/A","N/A","N/A","TERMINADO",{"$f":"IF(ISERROR(AB211/AA211),\"-\",(AB211/AA211))","v":1}]
["FDLC-CPS-199-2024",2024,"FDLC-CPS-199-2024","https://community.secop.gov.co/Public/Tendering/OpportunityDetail/Index?noticeUID=CO1.NTC.6396169&isFromPublicArea=True&isModal=true&asPopupView=true","CPS","CONTRATACION DIRECTA","Prestación de servicios profesionales y de apoyo a la gestión, o para la ejecución de trabajos artísticos que sólo puedan encomendarse a determinadas personas naturales","PRESTAR SERVICIOS ASISTENCIALES PARA APOYAR LA GESTIÓN Y ACTIVIDADES RELACIONADAS CON EL ESPACIO PÚBLICO DE ACUERDO A LAS NECESIDADES Y ESTRATEGIAS DE LA ALCALDÍA LOCAL DE LA CANDELARIA","INVERSION","Un nuevo contrato social y ambiental para la Bogotá del Siglo XXI",45,"Espacio público más seguro y construido colectivamente","Propósito 3. Inspirar confianza y legitimidad para vivir sin miedo y ser epicentro de cultura ciudadana, paz y reconciliaciòn ","O23011603450000001786",1,52380326,"ESPERANZA BUITRAGO LOAIZA","Persona Natural",null,null,null,null,7520000,null,1,2820000,10340000,7269333,"2022-10-19","2022-10-19","2022-12-31",120,1,"1 MES 15 DIAS","N/A","N/A","N/A","N/A","TERMINADO",0.7030302707930367]
["FDLC-CPS-200-2024",2024,"FDLC-CPS-200-2024","https://community.secop.gov.co/Public/Tendering/OpportunityDetail/Index?noticeUID=CO1.NTC.6407947&isFromPublicArea=True&isModal=true&asPopupView=true","CPS","CONTRATACION DIRECTA","Prestación de servicios profesionales y de apoyo a la gestión, o para la ejecución de trabajos artísticos que sólo puedan encomendarse a determinadas personas naturales","PRESTAR SERVICIOS ASISTENCIALES PARA APOYAR LA GESTIÓN Y ACTIVIDADES RELACIONADAS CON EL ESPACIO PÚBLICO DE ACUERDO A LAS NECESIDADES Y ESTRATEGIAS DE LA ALCALDÍA LOCAL DE LA CANDELARIA","INVERSION","Un nuevo contrato social y ambiental para la Bogotá del Siglo XXI",45,"Espacio público más seguro y construido colectivamente","Propósito 3. Inspirar confianza y legitimidad para vivir sin miedo y ser epicentro de cultura ciudadana, paz y reconciliaciòn ","O23011603450000001786",1,79331453,"JULIAN ESTEBAN MATEUS VARGAS","Persona Natural",null,null,null,null,7520000,null,1,2820000,10340000,1880000,"2022-10-20","2022-10-20","2022-12-19",120,1,"1 MES 15 DIAS","N/A","N/A","N/A","N/A","TERMINADO",0.18181818181818182]
["FDLC-CPS-201-2024",2024,"FDLC-CPS-201-2024","https://community.secop.gov.co/Public/Tendering/OpportunityDetail/Index?noticeUID=CO1.NTC.6409295&isFromPublicArea=True&isModal=true&asPopupView=true","CPS","CONTRATACION DIRECTA","Prestación de servicios profesionales y de apoyo a la gestión, o para la ejecución de trabajos artísticos que sólo puedan encomendarse a determinadas personas naturales","PRESTAR SERVICIOS PROFESIONALES PARA APOYAR AL ALCALDE (SA) EN LOS PROCESOS TENDIENTES A DESARROLLAR LOS PROYECTOS DEL PLAN DE DESARROLLO LOCAL PARA LA VIGENCIA 2024","INVERSION","Un nuevo contrato social y ambiental para la Bogotá del Siglo XXI",57,"Gestión Pública Local","Propósito 5. Construir Bogotà - Regiòn con gobierno abierto, transparente y ciudadanìa consciente. ","O23011605570000002021",1,80242608,"JENNY LILIANA CAMACHO ANGEL","Persona Natural",null,null,null,null,17400000,null,null,0,17400000,17400000,"2022-10-21","2022-10-21","2022-12-20",90,0,"NO APLICA","N/A","N/A","N/A","N/A","TERMINADO",1]
["FDLC-CPS-202-2024",2024,"FDLC-CPS-202-2024","https://community.secop.gov.co/Public/Tendering/OpportunityDetail/Index?noticeUID=CO1.NTC.6409562&isFromPublicArea=True&isModal=true&asPopupView=true","CPS","CONTRATACION DIRECTA","Prestación de servicios profesionales y de apoyo a la gestión, o para la ejecución de trabajos artísticos que sólo puedan encomendarse a determinadas personas naturales","PRESTAR LOS SERVICIOS PROFESIONALES ESPECIALIZADOS AL DESPACHO DEL FONDO DE DESARROLLO LOCAL DE LA CANDELARIA EN EL CURSO DE LA GESTIÓN ADMINISTRATIVA Y FINANCIERA PARA EL DESARROLLO LOCAL","INVERSION","Un nuevo contrato social y ambiental para la Bogotá del Siglo XXI",57,"Gestión Pública Local","Propósito 5. Construir Bogotà - Regiòn con gobierno abierto, transparente y ciudadanìa consciente. ","O23011605570000002021",1,1193555922,"RENEE MAURICIO QUIMBAY BARRERA","Persona Natural",null,null,null,null,22500000,null,null,0,{"$f":"+W215+X215+Z215","v":22500000},22500000,"2022-10-21","2022-10-24","2023-02-05",90,0,"NO APLICA","N/A","N/A","N/A","N/A","TERMINADO",1]
["FDLC-CPS-203-2024",2024,"FDLC-CPS-203-2024","https://community.secop.gov.co/Public/Tendering/OpportunityDetail/Index?noticeUID=CO1.NTC.6409116&isFromPublicArea=True&isModal=true&asPopupView=true","CPS","CONTRATACION DIRECTA","Prestación de servicios profesionales y de apoyo a la gestión, o para la ejecución de trabajos artísticos que sólo puedan encomendarse a determinadas personas naturales","PRESTAR SERVICIOS PROFESIONALES ESPECIALIZADOS PARA APOYAR EL USO DE LOS APLICATIVOS DE CONTRATACIÓN ASÍ COMO LAS RESPUESTAS A LOS ORGANOS DE CONTROL Y TODO LO RELACIONADO CON LA ACTIVIDAD PRECONTRACTUAL CONTRACTUAL Y POSTCONTRACTUAL DE LA EJECUCIÓN DE LOS RECURSOS DEL FDLC","INVERSION","Un nuevo contrato social y ambiental para la Bogotá del Siglo XXI",57,"Gestión Pública Local","Propósito 5. Construir Bogotà - Regiòn con gobierno abierto, transparente y ciudadanìa consciente. ","O23011605570000002021",1,72140467,"LUISA FERNANDA VELASCO LIZARAZO","Persona Natural",null,null,null,null,22500000,null,null,0,22500000,22500000,"2022-10-21","2022-10-21","2023-02-05",90,0,"NO APLICA",1010181876,"DAVID ANDRES SEGURA ORTIZ I","2024-04-19",9898300,"TERMINADO",1]
["FDLC-CPS-204-2024",2024,"FDLC-CPS-204-2024","https://community.secop.gov.co/Public/Tendering/OpportunityDetail/Index?noticeUID=CO1.NTC.6408353&isFromPublicArea=True&isModal=true&asPopupView=true","CPS","CONTRATACION DIRECTA","Prestación de servicios profesionales y de apoyo a la gestión, o para la ejecución de trabajos artísticos que sólo puedan encomendarse a determinadas personas naturales","PRESTAR SERVICIOS PROFESIONALES ESPECIALIZADOS JURÍDICOS EN EL DESPACHO DE LA ALCALDÍA LOCAL DE LA CANDELARIA EN EL CURSO DE LA GESTIÓN ADMINISTRATIVA POLICIVA Y CONTRACTUAL","INVERSION","Un nuevo contrato social y ambiental para la Bogotá del Siglo XXI",57,"Gestión Pública Local","Propósito 5. Construir Bogotà - Regiòn con gobierno abierto, transparente y ciudadanìa consciente. ","O23011605570000002021",1,52807317,"WENCESLAO MALAVER BERNAL","Persona Natural",null,null,null,null,22500000,null,null,0,22500000,22500000,"2022-10-24","2022-10-25","2023-02-05",90,0,"NO APLICA","N/A","N/A","N/A","N/A","TERMINADO",1]
["FDLC-CPS-205-2024",2024,"FDLC-CPS-205-2024","https://community.secop.gov.co/Public/Tendering/OpportunityDetail/Index?noticeUID=CO1.NTC.6412290&isFromPublicArea=True&isModal=true&asPopupView=true","CPS","CONTRATACION DIRECTA","Prestación de servicios profesionales y de apoyo a la gestión, o para la ejecución de trabajos artísticos que sólo puedan encomendarse a determinadas personas naturales","PRESTAR SERVICIOS DE APOYO ADMINISTRATIVO Y ASISTENCIAL AL ÁRA DE GESTIÓN POLICIVA DE LA ALCALDÍA LOCAL DE LA CANDELARIA EN LAS LABORES OPERATIVAS DE IMPULSO DE LAS ACTUACIONES ADMINISTRATIVAS","INVERSION","Un nuevo contrato social y ambiental para la Bogotá del Siglo XXI",57,"Gestión Pública Local","Propósito 5. Construir Bogotà - Regiòn con gobierno abierto, transparente y ciudadanìa consciente. ","O23011605570000002023",1,52854525,"FABIAN ALONSO MORENO RODRIGUEZ","Persona Natural",null,null,null,null,8100000,null,null,0,8100000,8100000,"2022-10-27","2022-10-25","2022-12-31",90,0,"NO APLICA","N/A","N/A","N/A","N/A","TERMINADO",1]
["FDLC-CPS-206-2024",2024,"FDLC-CPS-206-2024","https://community.secop.gov.co/Public/Tendering/OpportunityDetail/Index?noticeUID=CO1.NTC.6409419&isFromPublicArea=True&isModal=true&asPopupView=true","CPS","CONTRATACION DIRECTA","Prestación de servicios profesionales y de apoyo a la gestión, o para la ejecución de trabajos artísticos que sólo puedan encomendarse a determinadas personas naturales","PRESTAR SERVICIOS PROFESIONALES ESPECIALIZADOS AL FONDO DE DESARROLLO LOCAL DE LA CANDELARIA PARA ACOMPAÑAR AL ALCALDE (SA) EN LA GESTIÓN PROMOCION Y ATENCIÓN DE LAS INSTANCIAS DE PARTICIPACIÓN INTERINSTITUCIONALES Y LOCALES COMO TAMBIEN DE LOS PROCESOS COMUNITARIOS QUE SE REQUIERAN EN LA LOCALIDAD","INVERSION","Un nuevo contrato social y ambiental para la Bogotá del Siglo XXI",57,"Gestión Pública Local","Propósito 5. Construir Bogotà - Regiòn con gobierno abierto, transparente y ciudadanìa consciente. ","O23011605570000002021",1,93086512,"CARLOS ANDRES SAENZ RIVEROS","Persona Natural",null,null,null,null,22500000,null,null,0,22500000,22500000,"2022-10-27","2022-10-25","2022-12-31",90,0,"NO APLICA","N/A","N/A","N/A","N/A","TERMINADO",1]
["FDLC-CPS-208-2024",2024,"FDLC-CPS-208-2024","https://community.secop.gov.co/Public/Tendering/OpportunityDetail/Index?noticeUID=CO1.NTC.6411074&isFromPublicArea=True&isModal=true&asPopupView=true","CPS","CONTRATACION DIRECTA","No aplica","PRESTAR SERVICIOS ASISTENCIALES AL ÁREA DE GESTIÓN DE DESARROLLO LOCAL EN LOS PROCESOS Y ACTIVIDADES DE GESTIÓN ADMINISTRATIVA DE LA ALCALDÍA LOCAL DE LA CANDELARIA","INVERSION","Un nuevo contrato social y ambiental para la Bogotá del Siglo XXI",57,"Gestión Pública Local","Propósito 5. Construir Bogotà - Regiòn con gobierno abierto, transparente y ciudadanìa consciente. ","O23011605570000002021",13,900019737,"LEIDY PAOLA MARTIN COLMENARES","Persona Jurídica",null,null,null,null,7956000,null,1,1989000,9945000,9945000,"2022-11-03","2022-11-03","2023-02-12",120,1,"1 MES  ","N/A","N/A","N/A","N/A","TERMINADO",1]
["FDLC-CPS-209-2024",2024,"FDLC-CPS-209-2024","https://community.secop.gov.co/Public/Tendering/OpportunityDetail/Index?noticeUID=CO1.NTC.6415729&isFromPublicArea=True&isModal=true&asPopupView=true","CPS","CONTRATACION DIRECTA","Prestación de servicios profesionales y de apoyo a la gestión, o para la ejecución de trabajos artísticos que sólo puedan encomendarse a determinadas personas naturales","PRESTAR SERVICIOS ASISTENCIALES PARA APOYAR LA GESTIÓN Y ACTIVIDADES RELACIONADAS CON EL ESPACIO PÚBLICO DE ACUERDO A LAS NECESIDADES Y ESTRATEGIAS DE LA ALCALDÍA LOCAL DE LA CANDELARIA","INVERSION","Un nuevo contrato social y ambiental para la Bogotá del Siglo XXI",45,"Espacio público más seguro y construido colectivamente","Propósito 3. Inspirar confianza y legitimidad para vivir sin miedo y ser epicentro de cultura ciudadana, paz y reconciliaciòn ","O23011603450000001786",1,79596330," LAURA CATALINA MORA NIETO","Persona Natural",null,null,null,null,7520000,null,1,2820000,10340000,6705333,"2022-10-27","2022-10-27","2022-12-31",120,1,"1 MES 15 DIAS",93445442,"HERNAN LOAIZA TIQUE CESION DE","2024-08-14",6705333,"TERMINADO",0.64848481624758225]
["FDLC-CPS-210-2024",2024,"FDLC-LP-002-2024","https://community.secop.gov.co/Public/Tendering/OpportunityDetail/Index?noticeUID=CO1.NTC.6278407&isFromPublicArea=True&isModal=true&asPopupView=true","PRESTACION DE SERVICIOS","LICITACION PUBLICA","Prestación de servicios profesionales y de apoyo a la gestión, o para la ejecución de trabajos artísticos que sólo puedan encomendarse a determinadas personas naturales","PRESTAR LOS SERVICIOS LOGISTICOS Y PROFESIONALES PARA EL DESARROLLO DE JORNADAS DE ESTERILIZACIÓN ATENCIÓN MÉDICA VETERINARIA Y FOMENTO DE CONCIENCIA ANIMALISTA EN LA LOCALIDAD CON EL FIN DE PROTEGER A LOS ANIMALES DE COMPAÑIA Y EN CONDICIÓN DE HABITABILIDAD DE CALLE EN EL MARCO DEL PROYE CTO DE INVERSIÓN 1704 \"LA CANDELARIA ANIMALISTA: MEJORES CONDICIONES PARA LOS ANIMALES","INVERSION","Un nuevo contrato social y ambiental para la Bogotá del Siglo XXI",34,"Bogotá protectora de los animales","Propòsito 2. Cambiar nuestros hàbitos de vida para reverdecer a Bogotà y adaptarnos y mitigar la crisis climàtica.","O23011602340000001704",1,1032475141,"IMPECOS SAS","Persona Natural",null,null,null,null,483405078,null,null,0,483405078,205227186,"2022-11-02","2022-11-01","2023-01-31",180,1,"1 MES ","N/A","N/A","N/A","N/A","TERMINADO",0.42454495275285464]
["FDLC-CPS-211-2024",2024,"FDLC-CPS-211-2024","https://community.secop.gov.co/Public/Tendering/OpportunityDetail/Index?noticeUID=CO1.NTC.6482002&isFromPublicArea=True&isModal=true&asPopupView=true","CPS","CONTRATACION DIRECTA","Prestación de servicios profesionales y de apoyo a la gestión, o para la ejecución de trabajos artísticos que sólo puedan encomendarse a determinadas personas naturales","PRESTAR SERVICIOS PROFESIONALES EN EL DESPACHO DE LA ALCALDÍA DE LA CANDELARIA PARA EL FORTALECIMIENTO DE LA GESTIÓN JURÍDICA Y CONTRACTUAL EN EL MARCO DEL MODELO DE GESTIÓN DE LA ENTIDAD ACOMPAÑANDO LA AGENDA DE LA ALCALDESA PARA EL SEGUIMIENTO DE LOS COMPROMISOS LOCALES Y CON ENTIDADES DEL ORDEN DISTRTAL","INVERSION","Un nuevo contrato social y ambiental para la Bogotá del Siglo XXI",45,"Espacio público más seguro y construido colectivamente","Propósito 3. Inspirar confianza y legitimidad para vivir sin miedo y ser epicentro de cultura ciudadana, paz y reconciliaciòn ","O23011603450000001786",1,1018418431,"VALENTINA BAUTISTA GRIJALBA","Persona Natural",null,null,null,null,16350000,null,null,0,16350000,16350000,"2022-11-03","2022-11-02","2023-01-15",90,0,"NO APLICA","N/A","N/A","N/A","N/A","TERMINADO",1]
["FDLC-CPS-212-2024",2024,"FDLC-CPS-212-2024","https://community.secop.gov.co/Public/Tendering/OpportunityDetail/Index?noticeUID=CO1.NTC.6490198&isFromPublicArea=True&isModal=true&asPopupView=true","CPS","CONTRATACION DIRECTA","Prestación de servicios profesionales y de apoyo a la gestión, o para la ejecución de trabajos artísticos que sólo puedan encomendarse a determinadas personas naturales","PRESTAR SERVICIOS PROFESIONALES PARA BRINDAR ASISTENCIA LEGAL EN LA GESTIÓN Y TRAMITE DE LAS ACTUACIONES CONTRAVENCIONALES Y QUERELLAS QUE SE PROCESAN EN LAS INSPECCIONES DE POLICÍA DE LA LOCALIDAD; ASÍ COMO PARA APOYAR LOS PROCEDIMIENTOS DE INSPECCIÓN VIGILANCIA Y CONTROL","INVERSION","Un nuevo contrato social y ambiental para la Bogotá del Siglo XXI",57,"Gestión Pública Local","Propósito 5. Construir Bogotà - Regiòn con gobierno abierto, transparente y ciudadanìa consciente. ","O23011605570000002023",1,52443839,"KAREN LORENA MORA FORERO","Persona Natural",null,null,null,null,16350000,null,1,8175000,24525000,19075000,"2022-11-03","2022-11-03","2023-01-30",90,1,"1 MES 15 DIAS","N/A","N/A","N/A","N/A","TERMINADO",0.77777777777777779]
["FDLC-CPS-213-2024",2024,"FDLC-CPS-213-2024","https://community.secop.gov.co/Public/Tendering/OpportunityDetail/Index?noticeUID=CO1.NTC.6477561&isFromPublicArea=True&isModal=true&asPopupView=true","CPS","CONTRATACION DIRECTA","Prestación de servicios profesionales y de apoyo a la gestión, o para la ejecución de trabajos artísticos que sólo puedan encomendarse a determinadas personas naturales","PRESTAR SERVICIOS PROFESIONALES ESPECIALIZADOS PARA BRINDAR APOYO EN LA ESTRUCTURACIÓN SEGUIMIENTO Y REVISIÓN DE LOS PROYECTOS CONTRATOS E INICIATIVAS DE OBRA PÚBLICA E INFRAESTRUCTURA A CARGO DEL FONDO DE DESARROLLO LOCAL DE LA CANDELARIA ASÍ COMO LA INTERLOCUCIÓN Y APOYO EN LA ARTICULACIÓN INTERINSTITUCIONAL CON LAS ENTIDADES Y/U ORGANIZACIONES A QUE HAYA LUGAR PARA LA CONSECUCIÓN DE LAS METAS DEL PLAN DE DESARROLLO LOCAL.","INVERSION","Un nuevo contrato social y ambiental para la Bogotá del Siglo XXI",49,"Movilidad segura, sostenible y accesible","Propòsito 4. Hacer de Bogotà - Region un modelo de movilidad multimodal, incluyente y sostenible ","O23011604490000002020",1,1015446434,"SULAY TATIANA MESA RIVERO","Persona Natural",null,null,null,null,22500000,null,null,0,22500000,22500000,"2022-11-03","2022-11-03","2023-01-28",90,0,"NO APLICA","N/A","N/A","N/A","N/A","TERMINADO",1]
["FDLC-CPS-214-2024",2024,"FDLC-CPS-214-2024","https://community.secop.gov.co/Public/Tendering/OpportunityDetail/Index?noticeUID=CO1.NTC.6526322&isFromPublicArea=True&isModal=true&asPopupView=true","CPS","CONTRATACION DIRECTA","Acuerdo marco de precios ","PRESTAR SERVICIOS PROFESIONALES AL DESPACHO EN ASPECTOS RELACIONADOS CON PRODUCTIVIDAD; EMPRENDIMIENTO Y CONTROL; ASÍ COMO EN EL MANEJO DE LAS RELACIONES INTERINSTITUCIONALES CON LOS DIFERENTES SECTORES QUE HACEN PARTE DE LA LOCALIDAD DE LA CANDELARIA","INVERSION","Un nuevo contrato social y ambiental para la Bogotá del Siglo XXI",57,"Gestión Pública Local","Propósito 5. Construir Bogotà - Regiòn con gobierno abierto, transparente y ciudadanìa consciente. ","O23011605570000002021",1,9010105231,"ADRIANA MARCELA DUARTE PEÑALOSA","Persona Jurídica",null,null,null,null,24000000,null,null,0,24000000,17600000,"2022-11-03","2022-11-03","2023-01-02",120,0,"NO APLICA","N/A","N/A","N/A","N/A","TERMINADO",0.73333333333333328]
["FDLC-CPS-215-2024",2024,"FDLC-CPS-215-2024","https://community.secop.gov.co/Public/Tendering/OpportunityDetail/Index?noticeUID=CO1.NTC.6528713&isFromPublicArea=True&isModal=true&asPopupView=true","CPS","CONTRATACION DIRECTA","Prestación de servicios profesionales y de apoyo a la gestión, o para la ejecución de trabajos artísticos que sólo puedan encomendarse a determinadas personas naturales","PRESTAR SERVICIOS PROFESIONALES ESPECIALIZADOS PARA APOYAR EL USO DE LOS APLICATIVOS DE CONTRATACIÓN; ASÍ COMO LAS RESPUESTAS A LOS ÓRGANOS DE CONTROL Y TODO LO RELACIONADO CON LA ACTIVIDAD PRECONTRACTUAL; CONTRACTUAL Y POSTCONTRACTUAL DE LA EJECUCIÓN DE LOS RECURSOS DEL FDLC","INVERSION","Un nuevo contrato social y ambiental para la Bogotá del Siglo XXI",57,"Gestión Pública Local","Propósito 5. Construir Bogotà - Regiòn con gobierno abierto, transparente y ciudadanìa consciente. ","O23011605570000002021",1,49729700," MARIA MAGDALENA POLANCO ECHEVERRY","Persona Natural",null,null,null,null,30000000,null,1,7500000,37500000,26500000,"2022-11-09","2022-11-10","2022-12-30",120,1,"1 MES  ",1015420861,"WENCESLAO MALAVER BERNAL CESION DE","2024-10-28",11750000,"TERMINADO",0.70666666666666667]
["FDLC-CPS-216-2024",2024,"FDLC-CPS-216-2024","https://community.secop.gov.co/Public/Tendering/OpportunityDetail/Index?noticeUID=CO1.NTC.6547353&isFromPublicArea=True&isModal=true&asPopupView=true","CPS","CONTRATACION DIRECTA","Prestación de servicios profesionales y de apoyo a la gestión, o para la ejecución de trabajos artísticos que sólo puedan encomendarse a determinadas personas naturales","PRESTAR SERVICIOS PROFESIONALES PARA COORDINAR; LIDERAR Y ASESORAR LOS PLANES Y ESTRATEGIAS DE COMUNICACIÓN INTERNA Y EXTERNA PARA LA DIVULGACIÓN DE LOS PROGRAMAS; PROYECTOS Y ACTIVIDADES DE LA ALCALDÍA LOCAL.","INVERSION","Un nuevo contrato social y ambiental para la Bogotá del Siglo XXI",57,"Gestión Pública Local","Propósito 5. Construir Bogotà - Regiòn con gobierno abierto, transparente y ciudadanìa consciente. ","O23011605570000002021",1,41621560,"RUTH ANGELICA BLANCO RIOS","Persona Natural",null,null,null,null,28000000,null,1,7000000,35000000,23566666,"2022-11-09","2022-11-10","2022-12-30",120,1,"1 MES","N/A","N/A","N/A","N/A","TERMINADO",0.6733333142857143]
["FDLC-CPS-217-2024",2024,"FDLC-CPS-217-2024","https://community.secop.gov.co/Public/Tendering/OpportunityDetail/Index?noticeUID=CO1.NTC.6534375&isFromPublicArea=True&isModal=true&asPopupView=true","CPS","CONTRATACION DIRECTA","Prestación de servicios profesionales y de apoyo a la gestión, o para la ejecución de trabajos artísticos que sólo puedan encomendarse a determinadas personas naturales","PRESTAR SERVICIOS PROFESIONALES PARA APOYAR LA REALIZACIÓN DE OPERATIVOS DE INSPECCIÓN; VIGILANCIA Y CONTROL; ASÍ COMO EL TRÁMITE Y SEGUIMIENTO A DERECHOS DE PETICIÓN QUE SE ALLEGUEN A LAS INSPECCIONES DE POLICIA DEL FONDO DE DESARROLLO LOCAL DE LA CANDELARIA.","INVERSION","Un nuevo contrato social y ambiental para la Bogotá del Siglo XXI",57,"Gestión Pública Local","Propósito 5. Construir Bogotà - Regiòn con gobierno abierto, transparente y ciudadanìa consciente. ","O23011605570000002023",1,41503480,"JEIMMY JOHANA BURGOS GRANADOS","Persona Natural",null,null,null,null,16350000,null,1,8175000,24525000,19256666,"2022-11-15","2022-11-15","2022-12-31",90,1,"1 MES 15 DIAS","N/A","N/A","N/A","N/A","TERMINADO",0.7851851580020387]
["FDLC-CPS-218-2024",2024,"FDLC-CPS-218-2024","https://community.secop.gov.co/Public/Tendering/OpportunityDetail/Index?noticeUID=CO1.NTC.6543576&isFromPublicArea=True&isModal=true&asPopupView=true","CPS","CONTRATACION DIRECTA","Prestación de servicios profesionales y de apoyo a la gestión, o para la ejecución de trabajos artísticos que sólo puedan encomendarse a determinadas personas naturales","PRESTAR SERVICIOS DE APOYO TÉCNICO Y ADMINISTRATIVO A LOS PROYECTOS DE INVERSIÓN Y FUNCIONAMIENTO QUE DESARROLLE LA ALCALDIA LOCAL DE LA CANDELARIA","INVERSION","Un nuevo contrato social y ambiental para la Bogotá del Siglo XXI",57,"Gestión Pública Local","Propósito 5. Construir Bogotà - Regiòn con gobierno abierto, transparente y ciudadanìa consciente. ","O23011605570000002021",1,11803256,"MARIA ADELAIDA LUNA BUENAVENTURA","Persona Natural",null,null,null,null,12400000,null,1,3100000,15500000,10126666,"2022-11-11","2022-11-11","2022-12-10",120,1,"1 MES","N/A","N/A","N/A","N/A","TERMINADO",0.6533332903225807]
["FDLC-CPS-219-2024",2024,"FDLC-CPS-219-2024","https://community.secop.gov.co/Public/Tendering/OpportunityDetail/Index?noticeUID=CO1.NTC.6578144&isFromPublicArea=True&isModal=False","CPS","CONTRATACION DIRECTA","Prestación de servicios profesionales y de apoyo a la gestión, o para la ejecución de trabajos artísticos que sólo puedan encomendarse a determinadas personas naturales","PRESTAR SERVICIOS PROFESIONALES AL FONDO DE DESARROLLO LOCAL DE LA CANDELARIA EN LA FORMULACIÓN IMPLEMENTACIÓN Y SEGUIMIENTO DE PROYECTOS DIRIGIDOS AL CUMPLIMIENTO DE LAS METAS CULTURALES DEPORTIVAS Y RECREATIVAS DE LA ENTIDAD","INVERSION","Un nuevo contrato social y ambiental para la Bogotá del Siglo XXI",20,"Bogotá, referente en cultura, deporte, recreación y actividad física, con parques para el desarrollo y la salud","Propósito 1. Hacer un nuevo contrato social con igualdad de oportunidades para la inclusiòn social, productiva y polìtica ","O23011601200000001611",1,80239278,"MAURICIO SABOGAL RODRIGUEZ","Persona Natural",null,null,null,null,24000000,null,1,6000000,30000000,19600000,"2022-11-11","2022-11-11","2023-01-10",120,1,"1 MES  ","N/A","N/A","N/A","N/A","TERMINADO",0.65333333333333332]
["FDLC-CPS-220-2024",2024,"FDLC-CPS-220-2024","https://community.secop.gov.co/Public/Tendering/OpportunityDetail/Index?noticeUID=CO1.NTC.6563987&isFromPublicArea=True&isModal=true&asPopupView=true","CPS","CONTRATACION DIRECTA","Prestación de servicios profesionales y de apoyo a la gestión, o para la ejecución de trabajos artísticos que sólo puedan encomendarse a determinadas personas naturales","PRESTAR SERVICIOS PROFESIONALES PARA LA PROMOCIÓN; ACOMPAÑAMIENTO; Y ATENCIÓN DE LAS INSTANCIAS DE COORDINACIÓN INTERINSTITUCIONALES Y LAS INSTANCIAS DE PARTICIPACIÓN LOCALES; ASÍ COMO EN LOS PROCESOS COMUNITARIOS DE LA LOCALIDAD","INVERSION","Un nuevo contrato social y ambiental para la Bogotá del Siglo XXI",55,"Fortalecimiento de Cultura Ciudadana y su institucionalidad","Propósito 5. Construir Bogotà - Regiòn con gobierno abierto, transparente y ciudadanìa consciente. ","O23011605550000002019",17,901653223,"GUILLERMO ANDRES PEREZ PARDO","Unión Temporal",900251399,"FUNDACIÓN WAYS OF HOPE",0.6,null,24000000,null,1,6000000,{"$f":"+W232+X232+Z232","v":30000000},19000000,"2022-11-17","2022-12-01","2023-03-31",120,1,"1 MES  ","N/A","N/A","N/A","N/A","TERMINADO",{"$f":"IF(ISERROR(AB232/AA232),\"-\",(AB232/AA232))","v":0.6333333333333333}]
["FDLC-CPS-221-2024",2024,"FDLC-CPS-221-2024","https://community.secop.gov.co/Public/Tendering/OpportunityDetail/Index?noticeUID=CO1.NTC.6566405&isFromPublicArea=True&isModal=true&asPopupView=true","CPS","CONTRATACION DIRECTA","Prestación de servicios profesionales y de apoyo a la gestión, o para la ejecución de trabajos artísticos que sólo puedan encomendarse a determinadas personas naturales","PRESTAR SERVICIOS DE APOYO EN LA EMISORA VIRTUAL DE LA ALCALDÍA LOCAL DE LA CANDELARIA","INVERSION","Un nuevo contrato social y ambiental para la Bogotá del Siglo XXI",57,"Gestión Pública Local","Propósito 5. Construir Bogotà - Regiòn con gobierno abierto, transparente y ciudadanìa consciente. ","O23011605570000002021",17,901653223,"RICARDO ABEL ROLDAN",null,900934512,"VIVACE PRODUCCIONES COLOMBIA SAS",40,null,8400000,null,1,4200000,{"$f":"W233+Z233","v":12600000},9146667,null,null,null,90,1,"1 MES","N/A","N/A","N/A","N/A","TERMINADO",{"$f":"IF(ISERROR(AB233/AA233),\"-\",(AB233/AA233))","v":0.72592595238095237}]
["FDLC-CPS-222-2024",2024,"FDLC-CPS-222-2024","https://community.secop.gov.co/Public/Tendering/OpportunityDetail/Index?noticeUID=CO1.NTC.6567308&isFromPublicArea=True&isModal=true&asPopupView=true","CPS","CONTRATACION DIRECTA","Prestación de servicios profesionales y de apoyo a la gestión, o para la ejecución de trabajos artísticos que sólo puedan encomendarse a determinadas personas naturales","PRESTAR SERVICIOS PROFESIONALES AL FONDO DE DESARROLLO LOCAL DE LA CANDELARIA EN LA FORMULACIÓN; IMPLEMENTACIÓN; SEGUIMIENTO; GESTIÓN Y LOGÍSTICA DE PROYECTOS DIRIGIDOS AL CUMPLIMIENTO DE LAS METAS CULTURALES; DEPORTIVAS Y RECREATIVAS DE LA ENTIDAD","INVERSION","Un nuevo contrato social y ambiental para la Bogotá del Siglo XXI",20,"Bogotá, referente en cultura, deporte, recreación y actividad física, con parques para el desarrollo y la salud","Propósito 1. Hacer un nuevo contrato social con igualdad de oportunidades para la inclusiòn social, productiva y polìtica ","O23011601200000001611",1,51882056,"MARIA FERNANDA ROJAS GUZMAN","Persona Natural",null,null,null,null,24000000,null,1,6000000,{"$f":"+W234+X234+Z234","v":30000000},20000000,"2022-11-11","2022-11-15","2022-12-14",120,1,"1 MES","N/A","N/A","N/A","N/A","TERMINADO",0.66666666666666663]
["FDLC-CPS-223-2024",2024,"FDLC-CPS-223-2024","https://community.secop.gov.co/Public/Tendering/OpportunityDetail/Index?noticeUID=CO1.NTC.6568313&isFromPublicArea=True&isModal=true&asPopupView=true","CPS","CONTRATACION DIRECTA","Prestación de servicios profesionales y de apoyo a la gestión, o para la ejecución de trabajos artísticos que sólo puedan encomendarse a determinadas personas naturales","PRESTAR SERVICIOS PROFESIONALES AL FONDO DE DESARROLLO LOCAL DE LA CANDELARIA PARA LA PLANEACIÓN; FORMULACIÓN; EVALUACIÓN Y SEGUIMIENTO DE LOS PROYECTOS DE INVERSIÓN DE LA LOCALIDAD PARA EL CUMPLIMIENTO DE LAS METAS DEL PLAN DE DESARROLLO LOCAL.","INVERSION","Un nuevo contrato social y ambiental para la Bogotá del Siglo XXI",57,"Gestión Pública Local","Propósito 5. Construir Bogotà - Regiòn con gobierno abierto, transparente y ciudadanìa consciente. ","O23011605570000002021",1,52776833,"VIVIAN LORENA PRIETO TRUJILLO","Persona Natural",null,null,null,null,24000000,null,1,6000000,30000000,19800000,"2022-11-11","2022-11-16","2022-12-31",120,1,"1 MES  ","N/A","N/A","N/A","N/A","TERMINADO",0.66]
["FDLC-CPS-224-2024",2024,"FDLC-CPS-224-2024","https://community.secop.gov.co/Public/Tendering/OpportunityDetail/Index?noticeUID=CO1.NTC.6591087&isFromPublicArea=True&isModal=true&asPopupView=true","CPS","CONTRATACION DIRECTA","Prestación de servicios profesionales y de apoyo a la gestión, o para la ejecución de trabajos artísticos que sólo puedan encomendarse a determinadas personas naturales","PRESTAR SERVICIOS PROFESIONALES PARA APOYAR JURÍDICAMENTE LA EJECUCIÓN DE LAS ACCIONES REQUERIDAS PARA LA DEPURACIÓN DE LAS ACTUACIONES ADMINISTRATIVAS QUE CURSAN EN LA ALCALDÍA LOCAL DE LA CANDELARIA","INVERSION","Un nuevo contrato social y ambiental para la Bogotá del Siglo XXI",57,"Gestión Pública Local","Propósito 5. Construir Bogotà - Regiòn con gobierno abierto, transparente y ciudadanìa consciente. ","O23011605570000002023",1,43904066,"GABRIELA VALENTINA GUTIERREZ GIRALDO","Persona Natural",null,null,null,null,16377000,null,1,8188500,24565500,16922900,"2022-11-15","2022-11-15","2022-12-14",90,1,"1 MES 15 DIAS","N/A","N/A","N/A","N/A","TERMINADO",0.68888888888888888]
["FDLC-CPS-225-2024",2024,"FDLC-CPS-225-2024","https://community.secop.gov.co/Public/Tendering/OpportunityDetail/Index?noticeUID=CO1.NTC.6616820&isFromPublicArea=True&isModal=true&asPopupView=true","CPS","CONTRATACION DIRECTA","Prestación de servicios profesionales y de apoyo a la gestión, o para la ejecución de trabajos artísticos que sólo puedan encomendarse a determinadas personas naturales","PRESTAR EL APOYO SECRETARIAL A LA JUNTA ADMINISTRADORA LOCAL.","INVERSION","Un nuevo contrato social y ambiental para la Bogotá del Siglo XXI",57,"Gestión Pública Local","Propósito 5. Construir Bogotà - Regiòn con gobierno abierto, transparente y ciudadanìa consciente. ","O23011605570000002021",1,1026566529,"ISABEL CRISTINA BULLA RODRIGUEZ","Persona Natural",null,null,null,null,11532000,null,1,2883000,14415000,8841200,"2022-11-17","2022-11-17","2022-12-16",120,1,"1 MES  ","N/A","N/A","N/A","N/A","TERMINADO",0.61333333333333329]
["FDLC-CPS-226-2024",2024,"FDLC-CPS-226-2024","https://community.secop.gov.co/Public/Tendering/OpportunityDetail/Index?noticeUID=CO1.NTC.6614879&isFromPublicArea=True&isModal=true&asPopupView=true","CPS","CONTRATACION DIRECTA","Prestación de servicios profesionales y de apoyo a la gestión, o para la ejecución de trabajos artísticos que sólo puedan encomendarse a determinadas personas naturales","PRESTAR SERVICIOS PROFESIONALES PARA APOYAR LA FORMULACIÓN; GESTIÓN Y SEGUIMIENTO DE ACTIVIDADES ENFOCADAS A LA GESTIÓN AMBIENTAL EXTERNA E INTERNA; ENCAMINADAS A LA MITIGACIÓN DE LOS DIFERENTES IMPACTOS AMBIENTALES Y LA CONSERVACIÓN DE LOS RECURSOS NATURALES DE LA LOCALIDAD","INVERSION","Un nuevo contrato social y ambiental para la Bogotá del Siglo XXI",27,"Cambio cultural para la gestión de la crisis climática","Propòsito 2. Cambiar nuestros hàbitos de vida para reverdecer a Bogotà y adaptarnos y mitigar la crisis climàtica.","O23011602270000001700",1,1012339492,"VIVIANA ROZO GUERRA","Persona Natural",null,null,null,null,24000000,null,null,0,24000000,12200000,"2022-11-15","2022-11-17","2022-12-30",120,1,"NO APLICA","N/A","N/A","N/A","N/A","TERMINADO",0.5083333333333333]
["FDLC-CPS-227-2024",2024,"FDLC-CPS-227-2024","https://community.secop.gov.co/Public/Tendering/OpportunityDetail/Index?noticeUID=CO1.NTC.6613601&isFromPublicArea=True&isModal=true&asPopupView=true","CPS","CONTRATACION DIRECTA","Prestación de servicios profesionales y de apoyo a la gestión, o para la ejecución de trabajos artísticos que sólo puedan encomendarse a determinadas personas naturales","PRESTAR SERVICIOS PROFESIONALES PARA BRINDAR ASISTENCIA JURIDICA EN LA GESTIÓN DE DOCUMENTOS Y REQUERIMIENTOS DE LOS DIFERENTES PROCESOS ADMINISTRATIVOS; CONTRACTUALES Y POLICIVOS ASIGNADOS AL DESPACHO DEL ALCALDE(SA) LOCAL","INVERSION","Un nuevo contrato social y ambiental para la Bogotá del Siglo XXI",57,"Gestión Pública Local","Propósito 5. Construir Bogotà - Regiòn con gobierno abierto, transparente y ciudadanìa consciente. ","O23011605570000002023",1,79648784,"NICOLAS PEREZ BARRIOS","Persona Natural",null,null,null,null,16350000,null,1,8175000,24525000,16713333,"2022-11-15","2022-11-15","2022-12-26",90,1,"1 MES 15 DIAS","N/A","N/A","N/A","N/A","TERMINADO",0.68148146788990827]
["FDLC-CPS-228-2024",2024,"FDLC-CPS-228-2024","https://community.secop.gov.co/Public/Tendering/OpportunityDetail/Index?noticeUID=CO1.NTC.6621389&isFromPublicArea=True&isModal=true&asPopupView=true","CPS","CONTRATACION DIRECTA","Prestación de servicios profesionales y de apoyo a la gestión, o para la ejecución de trabajos artísticos que sólo puedan encomendarse a determinadas personas naturales","PRESTAR SERVICIOS PROFESIONALES AL FONDO DE DESARROLLO LOCAL DE LA CANDELARIA EN LOS TRÁMITES RELACIONADOS CON LOS PROCESOS PRECONTRACTUALES; CONTRACTUALES Y POS CONTRACTUALES QUE SE ADELANTEN A TRAVÉS DE SECOP I Y II; ASÍ COMO LA ADQUISICIÓN DE BIENES Y SERVICIOS A TRAVÉS DE LA TIENDA VIRTUAL DEL ESTADO COLOMBIANO","INVERSION","Un nuevo contrato social y ambiental para la Bogotá del Siglo XXI",57,"Gestión Pública Local","Propósito 5. Construir Bogotà - Regiòn con gobierno abierto, transparente y ciudadanìa consciente. ","O23011605570000002021",1,1077967370,"CARLOS MAURICIO PALOMAR COVALEDA","Persona Natural",null,null,null,null,24000000,null,1,6000000,30000000,18400000,"2022-11-15","2022-11-15","2022-12-14",120,1,"1 MES","N/A","N/A","N/A","N/A","TERMINADO",0.61333333333333329]
["FDLC-CPS-229-2024",2024,"FDLC-CPS-229-2024","https://community.secop.gov.co/Public/Tendering/OpportunityDetail/Index?noticeUID=CO1.NTC.6625136&isFromPublicArea=True&isModal=true&asPopupView=true","CPS","CONTRATACION DIRECTA","Prestación de servicios profesionales y de apoyo a la gestión, o para la ejecución de trabajos artísticos que sólo puedan encomendarse a determinadas personas naturales","PRESTAR SERVICIOS PROFESIONALES AL FONDO DE DESARROLLO LOCAL DE LA CANDELARIA PARA LA OPERACIÓN; SEGUIMIENTO Y CUMPLIMIENTO DE LOS PROCESOS Y PROCEDIMIENTOS DEL SERVICIO APOYO ECONÓMICO TIPO C; REQUERIDOS PARA EL OPORTUNO Y ADECUADO REGISTRO; CRUCE Y REPORTE DE LOS DATOS EN EL SISTEMA MISIONAL  SIRBE","INVERSION","Un nuevo contrato social y ambiental para la Bogotá del Siglo XXI",1,"Subsidios y transferencias para la equidad","Propósito 1. Hacer un nuevo contrato social con igualdad de oportunidades para la inclusiòn social, productiva y polìtica ","O23011601010000001605",1,53166387,"LILIANA MARITZA BARRERA GROSO","Persona Natural",null,null,null,null,19092000,-636400,1,4773000,23228600,13682600,"2022-11-15","2022-11-15","2022-12-29",120,1,"1 MES","N/A","N/A","N/A","N/A","TERMINADO",0.58904109589041098]
["FDLC-CPS-230-2024",2024,"FDLC-CPS-230-2024","https://community.secop.gov.co/Public/Tendering/OpportunityDetail/Index?noticeUID=CO1.NTC.6629357&isFromPublicArea=True&isModal=true&asPopupView=true","CPS","CONTRATACION DIRECTA","Prestación de servicios profesionales y de apoyo a la gestión, o para la ejecución de trabajos artísticos que sólo puedan encomendarse a determinadas personas naturales","PRESTAR SERVICIOS DE APOYO A LA GESTIÓN DEL FONDO DE DESARROLLO LOCAL DE LA CANDELARIA EN EL CENTRO DE INFORMACIÓN Y DOCUMENTACIÓN (CDI) PARA EL MANEJO Y PROCESO DE DISTRIBUCIÓN DE CORRESPONDENCIA EN GENERAL.","INVERSION","Un nuevo contrato social y ambiental para la Bogotá del Siglo XXI",57,"Gestión Pública Local","Propósito 5. Construir Bogotà - Regiòn con gobierno abierto, transparente y ciudadanìa consciente. ","O23011605570000002021",1,53121023,"DIANA CAROLINA MOLANO MENDEZ","Persona Natural",null,null,null,null,11200000,-373333,1,2800000,13626667,8026667,"2022-11-15","2022-11-15","2022-12-14",120,1,"1 MES","N/A","N/A","N/A","N/A","TERMINADO",0.58904110594322145]
["FDLC-CPS-231-2024",2024,"FDLC-CPS-231-2024","https://community.secop.gov.co/Public/Tendering/OpportunityDetail/Index?noticeUID=CO1.NTC.6633988&isFromPublicArea=True&isModal=true&asPopupView=true","CPS","CONTRATACION DIRECTA","Prestación de servicios profesionales y de apoyo a la gestión, o para la ejecución de trabajos artísticos que sólo puedan encomendarse a determinadas personas naturales","PRESTAR SERVICIOS PROFESIONALES AL FONDO DE DESARROLLO LOCAL DE LA CANDELARIA EN LOS TRÁMITES RELACIONADOS CON LOS PROCESOS PRECONTRACTUALES; CONTRACTUALES Y POS CONTRACTUALES QUE SE ADELANTEN A TRAVÉS DE SECOP I Y II; ASÍ COMO LA ADQUISICIÓN DE BIENES Y SERVICIOS A TRAVÉS DE LA TIENDA VIRTUAL DEL ESTADO COLOMBIANO","INVERSION","Un nuevo contrato social y ambiental para la Bogotá del Siglo XXI",57,"Gestión Pública Local","Propósito 5. Construir Bogotà - Regiòn con gobierno abierto, transparente y ciudadanìa consciente. ","O23011605570000002021",1,1013628927,"CAROLINA SALAS QUINTERO","Persona Natural",null,null,null,null,27200000,-453333,1,6800000,33546667,19946666,"2022-11-18","2022-11-18","2022-12-17",120,1,"15 DIAS","N/A","N/A","N/A","N/A","TERMINADO",0.59459456881364692]
["FDLC-CPS-232-2024",2024,"FDLC-CPS-232-2024","https://community.secop.gov.co/Public/Tendering/OpportunityDetail/Index?noticeUID=CO1.NTC.6634060&isFromPublicArea=True&isModal=true&asPopupView=true","CPS","CONTRATACION DIRECTA","Prestación de servicios profesionales y de apoyo a la gestión, o para la ejecución de trabajos artísticos que sólo puedan encomendarse a determinadas personas naturales","PRESTAR SERVICIOS PROFESIONALES AL FONDO DE DESARROLLO LOCAL DE LA CANDELARIA EN LOS TRÁMITES RELACIONADOS CON LOS PROCESOS PRECONTRACTUALES; CONTRACTUALES Y POS CONTRACTUALES QUE SE ADELANTEN A TRAVÉS DE SECOP I Y II; ASÍ COMO LA ADQUISICIÓN DE BIENES Y SERVICIOS A TRAVÉS DE LA TIENDA VIRTUAL DEL E","INVERSION","Un nuevo contrato social y ambiental para la Bogotá del Siglo XXI",57,"Gestión Pública Local","Propósito 5. Construir Bogotà - Regiòn con gobierno abierto, transparente y ciudadanìa consciente. ","O23011605570000002021",1,80729376,"JUAN SEBASTIAN TRASLAVIÑA SANMIGUEL","Persona Natural",null,null,null,null,21836000,-545900,1,5459000,26749100,15831100,"2022-11-18","2022-11-18","2022-12-17",120,1,"1 MES","N/A","N/A","N/A","N/A","TERMINADO",0.59183673469387754]
["FDLC-CPS-233-2024",2024,"FDLC-CPS-233-2024","https://community.secop.gov.co/Public/Tendering/OpportunityDetail/Index?noticeUID=CO1.NTC.6634037&isFromPublicArea=True&isModal=true&asPopupView=true","CPS","CONTRATACION DIRECTA","Prestación de servicios profesionales y de apoyo a la gestión, o para la ejecución de trabajos artísticos que sólo puedan encomendarse a determinadas personas naturales","PRESTAR LOS SERVICIOS PROFESIONALES PARA APOYAR EN LA ELABORACIÓN; GESTIÓN Y PUBLICACIÓN DE CONTENIDOS Y MATERIAL GRÁFICO DE COMUNICACIÓN EN LAS REDES SOCIALES; HERRAMIENTAS INSTITUCIONALES DE COMUNICACIÓN DE LA JUNTA ADMINISTRADORA LOCAL DE LA CANDELARIA","INVERSION","Un nuevo contrato social y ambiental para la Bogotá del Siglo XXI",57,"Gestión Pública Local","Propósito 5. Construir Bogotà - Regiòn con gobierno abierto, transparente y ciudadanìa consciente. ","O23011605570000002021",1,79507928,"CARLOS MARIO TORRES HOYOS","Persona Natural",null,null,null,null,19092000,-318200,1,4773000,23546800,14000800,"2022-11-18","2022-11-18","2022-12-17",120,1,"1 MES","N/A","N/A","N/A","N/A","TERMINADO",0.59459459459459463]
["FDLC-CPS-234-2024",2024,"FDLC-CPS-234-2024","https://community.secop.gov.co/Public/Tendering/OpportunityDetail/Index?noticeUID=CO1.NTC.6648490&isFromPublicArea=True&isModal=true&asPopupView=true","CPS","CONTRATACION DIRECTA","Prestación de servicios profesionales y de apoyo a la gestión, o para la ejecución de trabajos artísticos que sólo puedan encomendarse a determinadas personas naturales","PRESTAR SERVICIOS PROFESIONALES AL FONDO DE DESARROLLO LOCAL DE LA CANDELARIA EN LA GESTIÓN DE ASUNTOS RELACIONADOS CON SEGURIDAD CIUDADANA; CONVIVENCIA Y PREVENCIÓN DE CONFLICTIVIDADES; VIOLENCIAS Y DELITOS EN LA LOCALIDAD ","INVERSION","Un nuevo contrato social y ambiental para la Bogotá del Siglo XXI",57,"Gestión Pública Local","Propósito 5. Construir Bogotà - Regiòn con gobierno abierto, transparente y ciudadanìa consciente. ","O23011605570000002023",1,41794885,"JENNY CAROLINA CRISTANCHO MORENO","Persona Natural",null,null,null,null,24000000,-400000,1,6000000,29600000,17600000,"2022-11-18","2022-11-18","2022-12-30",120,1,"1 MES   ","N/A","N/A","N/A","N/A","TERMINADO",0.59459459459459463]
["FDLC-CPS-235-2024",2024,"FDLC-CPS-235-2024","https://community.secop.gov.co/Public/Tendering/OpportunityDetail/Index?noticeUID=CO1.NTC.6655363&isFromPublicArea=True&isModal=true&asPopupView=true","CPS","CONTRATACION DIRECTA","Prestación de servicios profesionales y de apoyo a la gestión, o para la ejecución de trabajos artísticos que sólo puedan encomendarse a determinadas personas naturales","PRESTAR EL APOYO SECRETARIAL A LA JUNTA ADMINISTRADORA LOCAL","INVERSION","Un nuevo contrato social y ambiental para la Bogotá del Siglo XXI",57,"Gestión Pública Local","Propósito 5. Construir Bogotà - Regiòn con gobierno abierto, transparente y ciudadanìa consciente. ","O23011605570000002021",1,830032102,"SARA EDITH LIS RAMIREZ","Persona Jurídica",null,null,null,null,6900000,null,1,2300000,9200000,6593333,"2022-11-18","2022-11-28","2023-05-27",90,1,"1 MES","N/A","N/A","N/A","N/A","TERMINADO",0.71666663043478263]
["FDLC-CPS-236-2024",2024,"FDLC-CPS-236-2024","https://community.secop.gov.co/Public/Tendering/OpportunityDetail/Index?noticeUID=CO1.NTC.6652548&isFromPublicArea=True&isModal=true&asPopupView=true","CPS","CONTRATACION DIRECTA","Prestación de servicios profesionales y de apoyo a la gestión, o para la ejecución de trabajos artísticos que sólo puedan encomendarse a determinadas personas naturales","PRESTAR SERVICIOS PROFESIONALES AL FONDO DE DESARROLLO LOCAL DE LA CANDELARIA PARA APOYAR LAS GESTIONES RELACIONADAS CON EL PRESUPUESTO DE LA ENTIDAD","INVERSION","Un nuevo contrato social y ambiental para la Bogotá del Siglo XXI",57,"Gestión Pública Local","Propósito 5. Construir Bogotà - Regiòn con gobierno abierto, transparente y ciudadanìa consciente. ","O23011605570000002021",1,80108185,"ISABELA RAQUEL FERNANDEZ PEREZ","Persona Natural",null,null,null,null,21836000,-545900,1,5459000,26749100,15831100,"2022-11-18","2022-11-18","2022-12-17",120,1,"1 MES","N/A","N/A","N/A","N/A","TERMINADO",0.59183673469387754]
["FDLC-CPS-237-2024",2024,"FDLC-CPS-237-2024","https://community.secop.gov.co/Public/Tendering/OpportunityDetail/Index?noticeUID=CO1.NTC.6653426&isFromPublicArea=True&isModal=true&asPopupView=true","CPS","CONTRATACION DIRECTA","Prestación de servicios profesionales y de apoyo a la gestión, o para la ejecución de trabajos artísticos que sólo puedan encomendarse a determinadas personas naturales","PRESTAR SERVICIOS PROFESIONALES PARA APOYAR JURÍDICAMENTE LA EJECUCIÓN DE LAS ACCIONES REQUERIDAS PARA LA DEPURACIÓN DE LAS ACTUACIONES ADMINISTRATIVAS QUE CURSAN EN LA ALCALDÍA LOCAL DE LA CANDELARIA","INVERSION","Un nuevo contrato social y ambiental para la Bogotá del Siglo XXI",57,"Gestión Pública Local","Propósito 5. Construir Bogotà - Regiòn con gobierno abierto, transparente y ciudadanìa consciente. ","O23011605570000002021",1,52709184,"MONICA ALEJANDRA CAMPOS CUELLAR","Persona Natural",null,null,null,null,16377000,null,null,0,16377000,6914773,"2022-11-24","2022-11-25","2022-12-31",90,null,"NO APLICA","N/A","N/A","N/A","N/A","TERMINADO",0.42222464431825119]
["FDLC-CPS-238-2024",2024,"FDLC-CPS-238-2024","https://community.secop.gov.co/Public/Tendering/OpportunityDetail/Index?noticeUID=CO1.NTC.6648896&isFromPublicArea=True&isModal=False","CPS","CONTRATACION DIRECTA","Contratos interadministrativos","PRESTAR SERVICIOS PROFESIONALES PARA ACOMPAÑAR LAS INSTANCIAS DE PARTICIPACIÓN DE LA LOCALIDAD Y DEMÁS ESPACIOS DE PARTICIPACIÓN DESIGNADOS; ASÍ COMO SU PROMOCIÓN Y SEGUIMIENTO YLOS DISTINTOS PROCESOS DE PARTICIPACIÓN CIUDADANA Y COMUNITARIA COMO PRESUPUESTOS PARTICIPATIVOS",null,"Un nuevo contrato social y ambiental para la Bogotá del Siglo XXI",55,"Fortalecimiento de Cultura Ciudadana y su institucionalidad","Propósito 5. Construir Bogotà - Regiòn con gobierno abierto, transparente y ciudadanìa consciente. ","O23011605550000002019",null,830012587,"YINNA PAOLA OJEDA GÓMEZ","Persona Jurídica",null,null,null,null,19092000,-318200,1,4773000,23546800,14000800,null,null,"2022-12-31",120,1,"1 MES","N/A","N/A","N/A","N/A","TERMINADO",0.59459459459459463]
["FDLC-CPS-239-2024",2024,"FDLC-CPS-239-2024","https://community.secop.gov.co/Public/Tendering/OpportunityDetail/Index?noticeUID=CO1.NTC.6669876&isFromPublicArea=True&isModal=true&asPopupView=true","CPS","CONTRATACION DIRECTA","Prestación de servicios profesionales y de apoyo a la gestión, o para la ejecución de trabajos artísticos que sólo puedan encomendarse a determinadas personas naturales","PRESTAR SERVICIOS DE APOYO TÉCNICO EN LA IMPLEMENTACIÓN DE ACCIONES Y ESTRATEGIAS DE LOS PROYECTOS DE RECREACIÓN Y DEPORTES QUE DESARROLLE EL FONDO DE DESARROLLO LOCAL DE LA CANDELARIA",null,"Un nuevo contrato social y ambiental para la Bogotá del Siglo XXI",20,"Bogotá, referente en cultura, deporte, recreación y actividad física, con parques para el desarrollo y la salud","Propósito 1. Hacer un nuevo contrato social con igualdad de oportunidades para la inclusiòn social, productiva y polìtica ","O23011601200000001611",1,1032405097,"FREDDY FABIAN RUIZ VELASQUEZ","Persona Natural",null,null,null,null,9000000,null,1,3000000,12000000,7500000,"2022-12-02","2022-12-02","2023-01-13",90,1,"1 MES","N/A","N/A","N/A","N/A","TERMINADO",0.625]
["FDLC-CPS-240-2024",2024,"FDLC-CPS-240-2024","https://community.secop.gov.co/Public/Tendering/OpportunityDetail/Index?noticeUID=CO1.NTC.6670073&isFromPublicArea=True&isModal=true&asPopupView=true","CPS","CONTRATACION DIRECTA","Prestación de servicios profesionales y de apoyo a la gestión, o para la ejecución de trabajos artísticos que sólo puedan encomendarse a determinadas personas naturales","PRESTAR SERVICIOS DE APOYO EN LAS ACTIVIDADES DE SEGURIDAD Y CONVIVENCIA CIUDADANA DE ACUERDO A LAS NECESIDADES Y ESTRATEGIAS DE LA ALCALDIA LOCAL DE LA CANDELARIA","INVERSION","Un nuevo contrato social y ambiental para la Bogotá del Siglo XXI",57,"Gestión Pública Local","Propósito 5. Construir Bogotà - Regiòn con gobierno abierto, transparente y ciudadanìa consciente. ","O23011605570000002023",1,1013600365," MANUEL GUILLERMO MARTINEZ DIAZ","Persona Natural",null,null,null,null,7520000,null,1,1880000,9400000,null,"2022-12-02","2022-12-02","2022-12-31",120,1,"1 MES",79865490,"ALEXANDRA GARZON BELTRAN CESION DE","2024-12-20",1316000,"TERMINADO",0]
["FDLC-CPS-241-2024",2024,"FDLC-CPS-241-2024","https://community.secop.gov.co/Public/Tendering/OpportunityDetail/Index?noticeUID=CO1.NTC.6654195&isFromPublicArea=True&isModal=true&asPopupView=true","CPS","CONTRATACION DIRECTA","Prestación de servicios profesionales y de apoyo a la gestión, o para la ejecución de trabajos artísticos que sólo puedan encomendarse a determinadas personas naturales","PRESTAR SERVICIOS PROFESIONALES AL FONDO DE DESARROLLO LOCAL DE LA CANDELARIA PARA APOYAR EN LA PLANEACIÓN; FORMULACIÓN; EVALUACIÓN Y SEGUIMIENTO DE LOS PROYECTOS DE INVERSIÓN DE LA LOCALIDAD PARA EL CUMPLIMIENTO DE LAS METAS DEL PLAN DE DESARROLLO LOCAL",null,"Un nuevo contrato social y ambiental para la Bogotá del Siglo XXI",24,"Bogotá región emprendedora e innovadora","Propósito 1. Hacer un nuevo contrato social con igualdad de oportunidades para la inclusiòn social, productiva y polìtica ","O23011601240000001627",1,1070331732,"JENNY KATHERINE GONZALEZ SANCHEZ","Persona Natural",null,null,null,null,15000000,null,1,7500000,22500000,14500000,"2022-12-02","2022-12-02","2023-01-13",90,1,"1 MES 15 DIAS","N/A","N/A","N/A","N/A","TERMINADO",0.64444444444444449]
["FDLC-CPS-242-2024",2024,"FDLC-CPS-242-2024","https://community.secop.gov.co/Public/Tendering/OpportunityDetail/Index?noticeUID=CO1.NTC.6661311&isFromPublicArea=True&isModal=true&asPopupView=true","CPS","CONTRATACION DIRECTA","Prestación de servicios profesionales y de apoyo a la gestión, o para la ejecución de trabajos artísticos que sólo puedan encomendarse a determinadas personas naturales","PRESTAR SERVICIOS PROFESIONALES PARA APOYAR JURÍDICAMENTE LA EJECUCIÓN DE LAS ACCIONES REQUERIDAS PARA LA DEPURACIÓN DE LAS ACTUACIONES ADMINISTRATIVAS QUE CURSAN EN LA ALCALDÍA LOCAL DE LA CANDELARIA",null,"Un nuevo contrato social y ambiental para la Bogotá del Siglo XXI",57,"Gestión Pública Local","Propósito 5. Construir Bogotà - Regiòn con gobierno abierto, transparente y ciudadanìa consciente. ","O23011605570000002023",1,1049626361,"CINDY CATALINA OJEDA LOPEZ","Persona Natural",null,null,null,null,16377000,null,1,5459000,21836000,13101600,"2022-12-02","2022-12-02","2023-01-13",90,1,"1 MES","N/A","N/A","N/A","N/A","TERMINADO",0.6]
["FDLC-CPS-243-2024",2024,"FDLC-CPS-243-2024","https://community.secop.gov.co/Public/Tendering/OpportunityDetail/Index?noticeUID=CO1.NTC.6661849&isFromPublicArea=True&isModal=true&asPopupView=true","CPS","CONTRATACION DIRECTA","Prestación de servicios profesionales y de apoyo a la gestión, o para la ejecución de trabajos artísticos que sólo puedan encomendarse a determinadas personas naturales","PRESTAR SERVICIOS PROFESIONALES PARA LOS PROCESOS DE PRENSA Y COMUNICACIONES EN LA REALIZACIÓN Y PUBLICACIÓN DE CONTENIDOS DE REDES SOCIALES Y CANALES DE DIVULGACIÓN DIGITAL (SITIO WEB) DEL FONDO DE DESARROLLO LOCAL DE LA CANDELARIA","INVERSION","Un nuevo contrato social y ambiental para la Bogotá del Siglo XXI",57,"Gestión Pública Local","Propósito 5. Construir Bogotà - Regiòn con gobierno abierto, transparente y ciudadanìa consciente. ","O23011605570000002021",1,52087456,"HELENA ALEJANDRA BARRAZA BARRAZA","Persona Natural",null,null,null,null,19092000,-1431900,1,4773000,22433100,12887100,"2022-12-02","2022-12-02","2022-12-31",120,1,"1 MES","N/A","N/A","N/A","N/A","TERMINADO",0.57446808510638303]
["FDLC-CPS-244-2024",2024,"FDLC-CPS-244-2024","https://community.secop.gov.co/Public/Tendering/OpportunityDetail/Index?noticeUID=CO1.NTC.6663920&isFromPublicArea=True&isModal=true&asPopupView=true","CPS","CONTRATACION DIRECTA","Prestación de servicios profesionales y de apoyo a la gestión, o para la ejecución de trabajos artísticos que sólo puedan encomendarse a determinadas personas naturales","PRESTAR SERVICIOS DE APOYO TÉCNICO Y ADMINISTRATIVO AL FONDO DE DESARROLLO LOCAL EN LO RELACIONADO CON LA GESTIÓN Y SEGUIMIENTO DE LAS DISTINTAS ETAPAS DE LOS PROCESOS CONTRACTUALES.","INVERSION","Un nuevo contrato social y ambiental para la Bogotá del Siglo XXI",57,"Gestión Pública Local","Propósito 5. Construir Bogotà - Regiòn con gobierno abierto, transparente y ciudadanìa consciente. ","O23011605570000002021",1,1044424626,"ELCY JEANETH PULIDO AMORTEGUI","Persona Natural",null,null,null,null,17464000,-582133,1,4366000,21247867,12515867,"2022-12-02","2022-12-02","2022-12-31",120,1,"1 MES","N/A","N/A","N/A","N/A","TERMINADO",0.58904110233747231]
["FDLC-CPS-245-2024",2024,"FDLC-CPS-245-2024","https://community.secop.gov.co/Public/Tendering/OpportunityDetail/Index?noticeUID=CO1.NTC.6665870&isFromPublicArea=True&isModal=true&asPopupView=true","CPS","CONTRATACION DIRECTA","Prestación de servicios profesionales y de apoyo a la gestión, o para la ejecución de trabajos artísticos que sólo puedan encomendarse a determinadas personas naturales","PRESTAR SERVICIOS DE APOYO A LA GESTIÓN DEL FONDO DE DESARROLLO LOCAL DE LA CANDELARIA; EN EL CENTRO DE INFORMACIÓN Y DOCUMENTACIÓN (CDI) Y EN LA INSPECCIÓN DE POLICIA; PARA EL MANEJO Y PROCESO DE DISTRIBUCIÓN DE CORRESPONDENCIA EN GENERAL  ","INVERSION","Un nuevo contrato social y ambiental para la Bogotá del Siglo XXI",57,"Gestión Pública Local","Propósito 5. Construir Bogotà - Regiòn con gobierno abierto, transparente y ciudadanìa consciente. ","O23011605570000002023",1,1014240286,"BLADIMIR OVIEDO RUIZ","Persona Natural",null,null,null,null,8400000,null,1,2800000,11200000,4760000,"2022-12-02","2022-12-02","2022-12-31",90,1,"1 MES","N/A","N/A","N/A","N/A","TERMINADO",0.42499999999999999]
["FDLC-CPS-246-2024",2024,"FDLC-CPS-246-2024","https://community.secop.gov.co/Public/Tendering/OpportunityDetail/Index?noticeUID=CO1.NTC.6671103&isFromPublicArea=True&isModal=true&asPopupView=true","CPS","CONTRATACION DIRECTA","Prestación de servicios profesionales y de apoyo a la gestión, o para la ejecución de trabajos artísticos que sólo puedan encomendarse a determinadas personas naturales","PRESTAR SERVICIOS DE APOYO EN LAS ACTIVIDADES DE SEGURIDAD Y CONVIVENCIA CIUDADANA DE ACUERDO A LAS NECESIDADES Y ESTRATEGIAS DE LA ALCALDIA LOCAL DE LA CANDELARIA","INVERSION","Un nuevo contrato social y ambiental para la Bogotá del Siglo XXI",57,"Gestión Pública Local","Propósito 5. Construir Bogotà - Regiòn con gobierno abierto, transparente y ciudadanìa consciente. ","O23011605570000002023",1,79976027,"RODRIGO SARMIENTO BAUTISTA","Persona Natural",null,null,null,null,6580000,null,1,1880000,8460000,5013333,"2022-12-02","2022-12-02","2023-01-13",105,1,"1 MES","N/A","N/A","N/A","N/A","TERMINADO",0.5925925531914894]
["FDLC-CPS-247-2024",2024,"FDLC-CPS-247-2024","https://community.secop.gov.co/Public/Tendering/OpportunityDetail/Index?noticeUID=CO1.NTC.6671025&isFromPublicArea=True&isModal=true&asPopupView=true","CPS","CONTRATACION DIRECTA","Prestación de servicios profesionales y de apoyo a la gestión, o para la ejecución de trabajos artísticos que sólo puedan encomendarse a determinadas personas naturales","PRESTAR SERVICIOS DE APOYO EN LAS ACTIVIDADES DE SEGURIDAD Y CONVIVENCIA CIUDADANA DE ACUERDO A LAS NECESIDADES Y ESTRATEGIAS DE LA ALCALDIA LOCAL DE LA CANDELARIA","INVERSION","Un nuevo contrato social y ambiental para la Bogotá del Siglo XXI",57,"Gestión Pública Local","Propósito 5. Construir Bogotà - Regiòn con gobierno abierto, transparente y ciudadanìa consciente. ","O23011605570000002023",1,1000832141,"ALEXI NORVEI OSORIO RUIZ","Persona Natural",null,null,null,null,6580000,null,null,0,6580000,5326667,"2022-12-05","2022-12-06","2023-01-14",105,1,"NO APLICA","N/A","N/A","N/A","N/A","TERMINADO",0.80952386018237077]
["FDLC-CPS-248-2024",2024,"FDLC-CPS-248-2024","https://community.secop.gov.co/Public/Tendering/OpportunityDetail/Index?noticeUID=CO1.NTC.6670916&isFromPublicArea=True&isModal=true&asPopupView=true","CPS","CONTRATACION DIRECTA","No aplica","PRESTAR SERVICIOS DE APOYO EN LAS ACTIVIDADES DE SEGURIDAD Y CONVIVENCIA CIUDADANA DE ACUERDO A LAS NECESIDADES Y ESTRATEGIAS DE LA ALCALDIA LOCAL DE LA CANDELARIA","INVERSION","Un nuevo contrato social y ambiental para la Bogotá del Siglo XXI",57,"Gestión Pública Local","Propósito 5. Construir Bogotà - Regiòn con gobierno abierto, transparente y ciudadanìa consciente. ","O23011605570000002023",1,901662373,"MARIA JEANET ESTEBAN SILVA","Consorcio",900580915,"Codigo Proyectos SAS",0.7,null,6580000,null,1,1880000,8460000,5326667,"2022-12-05","NO HA INICIADO","NO HA INICIADO",105,1,"1 MES","N/A","N/A","N/A","N/A","TERMINADO",{"$f":"IF(ISERROR(AB260/AA260),\"-\",(AB260/AA260))","v":0.62962966903073281}]
["FDLC-CPS-249-2024",2024,"FDLC-CPS-249-2024","https://community.secop.gov.co/Public/Tendering/OpportunityDetail/Index?noticeUID=CO1.NTC.6676764&isFromPublicArea=True&isModal=False","CPS","CONTRATACION DIRECTA","No aplica","PRESTAR SERVICIOS DE APOYO EN LAS ACTIVIDADES DE SEGURIDAD Y CONVIVENCIA CIUDADANA DE ACUERDO A LAS NECESIDADES Y ESTRATEGIAS DE LA ALCALDIA LOCAL DE LA CANDELARIA","INVERSION","Un nuevo contrato social y ambiental para la Bogotá del Siglo XXI",57,"Gestión Pública Local","Propósito 5. Construir Bogotà - Regiòn con gobierno abierto, transparente y ciudadanìa consciente. ","O23011605570000002023",1,901662373,"MARIA FERNANDA CASTILLO OLMOS",null,19223512,"LUIS FERNANDO GONZALEZ PAEZ",30,null,7520000,null,1,1880000,9400000,5013333,null,null,null,120,1,"1 MES","N/A","N/A","N/A","N/A","TERMINADO"]
["FDLC-CPS-250-2024",2024,"FDLC-CPS-250-2024","https://community.secop.gov.co/Public/Tendering/OpportunityDetail/Index?noticeUID=CO1.NTC.6674166&isFromPublicArea=True&isModal=true&asPopupView=true","CPS","CONTRATACION DIRECTA","Prestación de servicios profesionales y de apoyo a la gestión, o para la ejecución de trabajos artísticos que sólo puedan encomendarse a determinadas personas naturales","PRESTAR SERVICIOS PROFESIONALES DE APOYO EN LA COORDINACIÓN DE LAS CASAS COMUNITARIAS DE LA LOCALIDAD DE LA CANDELARIA DE CONFORMIDAD CON EL ACUERDO LOCAL 006 DE 2013","INVERSION","Un nuevo contrato social y ambiental para la Bogotá del Siglo XXI",57,"Gestión Pública Local","Propósito 5. Construir Bogotà - Regiòn con gobierno abierto, transparente y ciudadanìa consciente. ","O23011605570000002021",1,80120031,"MARIA TERESA BECERRA","Persona Natural",null,null,null,null,19092000,null,1,4773000,23865000,11614300,"2022-12-05","2022-12-05","2023-01-12",120,1,"1 MES","N/A","N/A","N/A","N/A","TERMINADO",0.48666666666666669]
["FDLC-CPS-251-2024",2024,"FDLC-CPS-251-2024","https://community.secop.gov.co/Public/Tendering/OpportunityDetail/Index?noticeUID=CO1.NTC.6693899&isFromPublicArea=True&isModal=true&asPopupView=true","CPS","CONTRATACION DIRECTA","Prestación de servicios profesionales y de apoyo a la gestión, o para la ejecución de trabajos artísticos que sólo puedan encomendarse a determinadas personas naturales","PRESTAR SERVICIOS DE APOYO EN LAS ACTIVIDADES DE SEGURIDAD Y CONVIVENCIA CIUDADANA DE ACUERDO A LAS NECESIDADES Y ESTRATEGIAS DE LA ALCALDIA LOCAL DE LA CANDELARIA.","INVERSION","Un nuevo contrato social y ambiental para la Bogotá del Siglo XXI",57,"Gestión Pública Local","Propósito 5. Construir Bogotà - Regiòn con gobierno abierto, transparente y ciudadanìa consciente. ","O23011605570000002023",1,1022973767,"JAIME ROMERO RODRIGUEZ","Persona Natural",null,null,null,null,7520000,null,1,1880000,9400000,4950667,"2022-12-06","2022-12-06","2023-01-11",120,1,"1 MES","N/A","N/A","N/A","N/A","TERMINADO",0.52666670212765954]
["FDLC-CPS-252-2024",2024,"FDLC-CPS-252-2024","https://community.secop.gov.co/Public/Tendering/OpportunityDetail/Index?noticeUID=CO1.NTC.6677382&isFromPublicArea=True&isModal=False","CPS","CONTRATACION DIRECTA","Prestación de servicios profesionales y de apoyo a la gestión, o para la ejecución de trabajos artísticos que sólo puedan encomendarse a determinadas personas naturales","PRESTAR SERVICIOS DE APOYO EN LAS ACTIVIDADES DE SEGURIDAD Y CONVIVENCIA CIUDADANA DE ACUERDO A LAS NECESIDADES Y ESTRATEGIAS DE LA ALCALDIA LOCAL DE LA CANDELARIA","INVERSION","Un nuevo contrato social y ambiental para la Bogotá del Siglo XXI",57,"Gestión Pública Local","Propósito 5. Construir Bogotà - Regiòn con gobierno abierto, transparente y ciudadanìa consciente. ","O23011605570000002023",1,1022956077,"JUAN ALEXANDER ZAPATA PAEZ","Persona Natural",null,null,null,null,7520000,-752000,1,1880000,8648000,4888000,"2022-12-06","2022-12-06","2023-01-11",120,1,"1 MES","N/A","N/A","N/A","N/A","TERMINADO",0.56521739130434778]
["FDLC-CPS-253-2024",2024,"FDLC-CPS-253-2024","https://community.secop.gov.co/Public/Tendering/OpportunityDetail/Index?noticeUID=CO1.NTC.6677787&isFromPublicArea=True&isModal=False","CPS","CONTRATACION DIRECTA","Prestación de servicios profesionales y de apoyo a la gestión, o para la ejecución de trabajos artísticos que sólo puedan encomendarse a determinadas personas naturales","PRESTAR SERVICIOS DE APOYO EN LOS EVENTOS Y ACTIVIDADES DE LA ADMINISTRACIÓN LOCAL Y EN TODAS AQUELLAS ACTIVIDADES REQUERIDAS PARA EL FUNCIONAMIENTO DE LA ALCALDÍA LOCAL Y SUS CASAS COMUNITARIAS","INVERSION","Un nuevo contrato social y ambiental para la Bogotá del Siglo XXI",24,"Bogotá región emprendedora e innovadora","Propósito 1. Hacer un nuevo contrato social con igualdad de oportunidades para la inclusiòn social, productiva y polìtica ","O23011601240000001627",1,1121847787,"EULER GIOVANNY GAVIRIA SANCHEZ","Persona Natural",null,null,null,null,11532000,-480500,1,2883000,13934500,8168500,"2022-12-06","2022-12-06","2023-01-11",120,1,"1 MES","N/A","N/A","N/A","N/A","TERMINADO",0.58620689655172409]
["FDLC-CPS-254-2024",2024,"FDLC-CPS-254-2024","https://community.secop.gov.co/Public/Tendering/OpportunityDetail/Index?noticeUID=CO1.NTC.6677906&isFromPublicArea=True&isModal=False","CPS","CONTRATACION DIRECTA","Prestación de servicios profesionales y de apoyo a la gestión, o para la ejecución de trabajos artísticos que sólo puedan encomendarse a determinadas personas naturales","PRESTAR SERVICIOS PROFESIONALES PARA EL FORTALECIMIENTO DE ACTIVIDADES DE TURISMO LOCAL PARA LA CONSERVACIÓN DE LA CANDELARIA COMO ÁREA TURÍSTICA SOSTENIBLE A TRAVÉS DE LA GESTIÓN ARTICULACIÓN E INTERLOCUCIÓN CON CIUDADANÍA Y ENTIDADES PÚBLICAS Y PRIVADAS LAS EMPRESAS Y EMPRENDIMIENTOS CULTURALES Y CREATIVOS DE LA LOCALIDAD DE LA CANDELARIA.","INVERSION","Un nuevo contrato social y ambiental para la Bogotá del Siglo XXI",57,"Gestión Pública Local","Propósito 5. Construir Bogotà - Regiòn con gobierno abierto, transparente y ciudadanìa consciente. ","O23011605570000002021",1,1015453498,"LUISA MARIA MURILLO LOREO","Persona Natural",null,null,null,null,20000000,-1833333,null,0,18166667,13166667,"2022-12-07","2022-12-07","2023-01-11",120,1,"NO APLICA","N/A","N/A","N/A","N/A","TERMINADO",0.72477064725191476]
["FDLC-CPS-255-2024",2024,"FDLC-CPS-255-2024","https://community.secop.gov.co/Public/Tendering/OpportunityDetail/Index?noticeUID=CO1.NTC.6688233&isFromPublicArea=True&isModal=False","CPS","CONTRATACION DIRECTA","Prestación de servicios profesionales y de apoyo a la gestión, o para la ejecución de trabajos artísticos que sólo puedan encomendarse a determinadas personas naturales","PRESTAR SERVICIOS DE APOYO AL FONDO DE DESARROLLO LOCAL DE LA CANDELARIA EN LA ADMINISTRACIÓN DE LAS CASAS COMUNITARIAS DE LA LOCALIDAD DE LA CANDELARIA DE CONFORMIDAD CON EL ACUERDO LOCAL 006 DE 2013","INVERSION","Un nuevo contrato social y ambiental para la Bogotá del Siglo XXI",57,"Gestión Pública Local","Propósito 5. Construir Bogotà - Regiòn con gobierno abierto, transparente y ciudadanìa consciente. ","O23011605570000002021",1,1024571510,"JENNIFER JULIETH TORRALBA MARTINEZ","Persona Natural",null,null,null,null,11532000,-1057100,1,2883000,13357900,7591900,"2022-12-07","2022-12-07","2022-12-30",120,1,"1 MES","N/A","N/A","N/A","N/A","TERMINADO",0.56834532374100721]
["FDLC-CPS-256-2024",2024,"FDLC-CPS-256-2024","https://community.secop.gov.co/Public/Tendering/OpportunityDetail/Index?noticeUID=CO1.NTC.6688245&isFromPublicArea=True&isModal=False","CPS","CONTRATACION DIRECTA","Prestación de servicios profesionales y de apoyo a la gestión, o para la ejecución de trabajos artísticos que sólo puedan encomendarse a determinadas personas naturales","PRESTAR SERVICIOS DE APOYO AL FONDO DE DESARROLLO LOCAL DE LA CANDELARIA EN LA ADMINISTRACIÓN DE LAS CASAS COMUNITARIAS DE LA LOCALIDAD DE LA CANDELARIA DE CONFORMIDAD CON EL ACUERDO LOCAL 006 DE 2013","INVERSION","Un nuevo contrato social y ambiental para la Bogotá del Siglo XXI",57,"Gestión Pública Local","Propósito 5. Construir Bogotà - Regiòn con gobierno abierto, transparente y ciudadanìa consciente. ","O23011605570000002021",1,41648295,"MARIA NATHALIE INFANTE GOMEZ","Persona Natural",null,null,null,null,11532000,-1057100,1,2883000,13357900,7591900,"2022-12-07","2022-12-07","2023-01-11",120,1,"1 MES","N/A","N/A","N/A","N/A","TERMINADO",0.56834532374100721]
["FDLC-CPS-257-2024",2024,"FDLC-CPS-257-2024","https://community.secop.gov.co/Public/Tendering/OpportunityDetail/Index?noticeUID=CO1.NTC.6695185&isFromPublicArea=True&isModal=False","CPS","CONTRATACION DIRECTA","Prestación de servicios profesionales y de apoyo a la gestión, o para la ejecución de trabajos artísticos que sólo puedan encomendarse a determinadas personas naturales","PRESTAR SERVICIOS DE APOYO EN LAS ACTIVIDADES DE SEGURIDAD Y CONVIVENCIA CIUDADANA DE ACUERDO A LAS NECESIDADES Y ESTRATEGIAS DE LA ALCALDIA LOCAL DE LA CANDELARIA","INVERSION","Un nuevo contrato social y ambiental para la Bogotá del Siglo XXI",57,"Gestión Pública Local","Propósito 5. Construir Bogotà - Regiòn con gobierno abierto, transparente y ciudadanìa consciente. ","O23011605570000002023",1,1019091360,"FRANCI LILIANA GAMBOA AVELLA","Persona Natural",null,null,null,null,7520000,null,1,1880000,9400000,4950667,"2022-12-09","2022-12-09","2023-01-10",120,1,"1 MES","N/A","N/A","N/A","N/A","TERMINADO",0.52666670212765954]
["FDLC-CPS-258-2024",2024,"FDLC-CPS-258-2024","https://community.secop.gov.co/Public/Tendering/OpportunityDetail/Index?noticeUID=CO1.NTC.6696526&isFromPublicArea=True&isModal=False","CPS","CONTRATACION DIRECTA","Prestación de servicios profesionales y de apoyo a la gestión, o para la ejecución de trabajos artísticos que sólo puedan encomendarse a determinadas personas naturales","PRESTAR SERVICIOS PROFESIONALES PARA APOYAR AL EQUIPO DE PRENSA Y COMUNICACIONES DE LA ALCALDÍA LOCAL EN LA CREACIÓN REALIZACIÓN PRODUCCIÓN Y EDICIÓN DE VÍDEOS ASÍ COMO EL REGISTRO EDICIÓN Y LA PRESENTACIÓN DE FOTOGRAFÍAS DE LOS ACONTECIMIENTOS HECHOS Y EVENTOS EXTERNOS E INTERNOS DE LA ALCALDÍA LOCAL PARA SER UTILIZADOS COMO INSUMOS DE COMUNICACIÓN EN LOS MEDIOS ESPECIALMENTE ESCRITOS DIGITALES Y AUDIOVISUALES.","INVERSION","Un nuevo contrato social y ambiental para la Bogotá del Siglo XXI",57,"Gestión Pública Local","Propósito 5. Construir Bogotà - Regiòn con gobierno abierto, transparente y ciudadanìa consciente. ","O23011605570000002023",1,1024462252,"LAURA JULIANA GONZALEZ GRANADA","Persona Natural",null,null,null,null,22000000,-2750000,1,5500000,24750000,13750000,"2022-12-07","2022-12-07","2022-12-30",120,1,"1 MES","N/A","N/A","N/A","N/A","TERMINADO",0.55555555555555558]
["FDLC-CPS-259-2024",2024,"FDLC-CPS-259-2024","https://community.secop.gov.co/Public/Tendering/OpportunityDetail/Index?noticeUID=CO1.NTC.6703195&isFromPublicArea=True&isModal=False","CPS","CONTRATACION DIRECTA","Prestación de servicios profesionales y de apoyo a la gestión, o para la ejecución de trabajos artísticos que sólo puedan encomendarse a determinadas personas naturales","PRESTAR SERVICIOS PROFESIONALES AL FONDO DEL DESARROLLO LOCAL DE LA CANDELARIA PARA LA PLANEACIÓN EJECUCIÓN DE LOS PROCESOS MISIONALES PLANES ESTRATÉGICOS PROYECTOS DE INVERSIÓN Y GESTIÓN CONTRACTUAL","INVERSION","Un nuevo contrato social y ambiental para la Bogotá del Siglo XXI",57,"Gestión Pública Local","Propósito 5. Construir Bogotà - Regiòn con gobierno abierto, transparente y ciudadanìa consciente. ","O23011605570000002021",1,69027208,"LUIS EDUARDO GOMEZ NARVAEZ","Persona Natural",null,null,null,null,28000000,-3500000,1,7000000,31500000,17500000,"2022-12-09","2022-12-12","2022-12-31",120,1,"1 MES","N/A","N/A","N/A","N/A","TERMINADO",0.55555555555555558]
["FDLC-CPS-260-2024",2024,"FDLC-CPS-260-2024","https://community.secop.gov.co/Public/Tendering/OpportunityDetail/Index?noticeUID=CO1.NTC.6696578&isFromPublicArea=True&isModal=False","CPS","CONTRATACION DIRECTA","Prestación de servicios profesionales y de apoyo a la gestión, o para la ejecución de trabajos artísticos que sólo puedan encomendarse a determinadas personas naturales","PRESTAR APOYO TÉCNICO AL EQUIPO DE PRENSA Y COMUNICACIONES DE LA ALCALDÍA LOCAL EN LA REALIZACIÓN DE PRODUCTOS Y PIEZAS DIGITALES IMPRESAS Y PUBLICITARIAS DE GRAN FORMATO Y DE ANIMACIÓN GRÁFICA ASÍ COMO APOYAR LA PRODUCCIÓN Y MONTAJE DE EVENTOS","INVERSION","Un nuevo contrato social y ambiental para la Bogotá del Siglo XXI",57,"Gestión Pública Local","Propósito 5. Construir Bogotà - Regiòn con gobierno abierto, transparente y ciudadanìa consciente. ","O23011605570000002021",1,1022415943,"VICTOR HUGO VANEGAS PUERTO","Persona Natural",null,null,null,null,11532000,-1441500,1,2883000,12973500,7207500,"2022-12-09","2022-12-09","2022-12-30",120,1,"1 MES","N/A","N/A","N/A","N/A","TERMINADO",0.55555555555555558]
["FDLC-CPS-261-2024",2024,"FDLC-CPS-261-2024","https://community.secop.gov.co/Public/Tendering/OpportunityDetail/Index?noticeUID=CO1.NTC.6703428&isFromPublicArea=True&isModal=False","CPS","CONTRATACION DIRECTA","Prestación de servicios profesionales y de apoyo a la gestión, o para la ejecución de trabajos artísticos que sólo puedan encomendarse a determinadas personas naturales","PRESTAR SERVICIOS DE APOYO EN LAS ACTIVIDADES DE SEGURIDAD Y CONVIVENCIA CIUDADANA DE ACUERDO A LAS NECESIDADES Y ESTRATEGIAS DE LA ALCALDIA LOCAL DE LA CANDELARIA","INVERSION","Un nuevo contrato social y ambiental para la Bogotá del Siglo XXI",57,"Gestión Pública Local","Propósito 5. Construir Bogotà - Regiòn con gobierno abierto, transparente y ciudadanìa consciente. ","O23011605570000002023",1,52359710,"LUCIENY CASTRILLON GRANADA","Persona Natural",null,null,null,null,7520000,-940000,1,1880000,8460000,4700000,"2022-12-13","2022-12-13","2023-01-08",120,1,"1 MES","N/A","N/A","N/A","N/A","TERMINADO",0.55555555555555558]
["FDLC-CPS-262-2024",2024,"FDLC-CPS-262-2024","https://community.secop.gov.co/Public/Tendering/OpportunityDetail/Index?noticeUID=CO1.NTC.6711612&isFromPublicArea=True&isModal=False","CPS","CONTRATACION DIRECTA","Prestación de servicios profesionales y de apoyo a la gestión, o para la ejecución de trabajos artísticos que sólo puedan encomendarse a determinadas personas naturales","PRESTAR SERVICIOS DE APOYO AL FONDO DE DESARROLLO LOCAL DE LA CANDELARIA EN LA ADMINISTRACIÓN DE LAS CASAS COMUNITARIAS DE LA LOCALIDAD DE LA CANDELARIA DE CONFORMIDAD CON EL ACUERDO","INVERSION","Un nuevo contrato social y ambiental para la Bogotá del Siglo XXI",57,"Gestión Pública Local","Propósito 5. Construir Bogotà - Regiòn con gobierno abierto, transparente y ciudadanìa consciente. ","O23011605570000002021",1,1022370301,"ANGIE NATALIA CAMACHO CAMACHO","Persona Natural",null,null,null,null,11532000,-1441500,1,2883000,12973500,1441500,"2022-12-13","2022-12-13","2022-12-30",120,1,"1 MES","N/A","N/A","N/A","N/A","TERMINADO",0.1111111111111111]
["FDLC-CPS-263-2024",2024,"FDLC-CPS-263-2024","https://community.secop.gov.co/Public/Tendering/OpportunityDetail/Index?noticeUID=CO1.NTC.6708226&isFromPublicArea=True&isModal=False","CPS","CONTRATACION DIRECTA","Prestación de servicios profesionales y de apoyo a la gestión, o para la ejecución de trabajos artísticos que sólo puedan encomendarse a determinadas personas naturales","PRESTAR LOS SERVICIOS PROFESIONALES EN LA GESTIÓN Y RELACIONAMIENTO CON ENTIDADES GUBERNAMENTALES ASÍ COMO CON LOS GREMIOS Y ASOCIACIONES DE LA LOCALIDAD BRINDANDO LA ASISTENCIA TÉCNICA","INVERSION","Un nuevo contrato social y ambiental para la Bogotá del Siglo XXI",57,"Gestión Pública Local","Propósito 5. Construir Bogotà - Regiòn con gobierno abierto, transparente y ciudadanìa consciente. ","O23011605570000002021",1,1032488659,"CLAUDIA ANDREA SAGRA TORRES","Persona Natural",null,null,null,null,30000000,null,1,7500000,37500000,19500000,"2022-12-13","2022-12-13","2022-12-30",120,1,"1 MES","N/A","N/A","N/A","N/A","TERMINADO",0.52]
["FDLC-CPS-264-2024",2024,"FDLC-CPS-264-2024","https://community.secop.gov.co/Public/Tendering/OpportunityDetail/Index?noticeUID=CO1.NTC.6709413&isFromPublicArea=True&isModal=False","CPS","CONTRATACION DIRECTA","Prestación de servicios profesionales y de apoyo a la gestión, o para la ejecución de trabajos artísticos que sólo puedan encomendarse a determinadas personas naturales","PRESTAR SERVICIOS DE APOYO PARA LA FORMULACIÓN SEGUIMIENTO E IMPLEMENTACIÓN DE LA ESTRATEGIA LOCAL PARA LA TERMINACIÓN JURÍDICA DE LAS ACTUACIONES ADMINISTRATIVAS QUE CURSAN EN LA ALCALDÍA LOCAL.","INVERSION","Un nuevo contrato social y ambiental para la Bogotá del Siglo XXI",57,"Gestión Pública Local","Propósito 5. Construir Bogotà - Regiòn con gobierno abierto, transparente y ciudadanìa consciente. ","O23011605570000002023",1,80263860,"YENNI LORENA INFANTE GARCIA","Persona Natural",null,null,null,null,18000000,null,1,6000000,24000000,9000000,"2022-12-13","2022-12-13","2022-12-30",90,1,"1 MES","N/A","N/A","N/A","N/A","TERMINADO",0.375]
["FDLC-CPS-265-2024",2024,"FDLC-CPS-265-2024","https://community.secop.gov.co/Public/Tendering/OpportunityDetail/Index?noticeUID=CO1.NTC.6708133&isFromPublicArea=True&isModal=False","CPS","CONTRATACION DIRECTA","Selección abreviada por menor cuantía ","PRESTAR SUS SERVICIOS PROFESIONALES DE APOYO Y ACOMPAÑAMIENTO RELACIONADOS CON LOS PROYECTOS DE OBRA PÚBLICA E INFRAESTRUCTURA PARA LOGRAR EL CUMPLIMIENTO DE LAS METAS DEL PLAN DE DESARROLLO LOCAL 2021-2024","INVERSION","Un nuevo contrato social y ambiental para la Bogotá del Siglo XXI",49,"Movilidad segura, sostenible y accesible","Propòsito 4. Hacer de Bogotà - Region un modelo de movilidad multimodal, incluyente y sostenible ","O23011604490000002020",1,900360948,"OSCAR JAVIER OVALLE RIVERA","Persona Jurídica",null,null,null,null,21000000,null,1,7000000,28000000,18200000,"2022-12-13","2022-12-19","2023-06-18",90,1,"1 MES","N/A","N/A","N/A","N/A","TERMINADO",{"$f":"IF(ISERROR(AB277/AA277),\"-\",(AB277/AA277))","v":0.65}]
["FDLC-CPS-266-2024",2024,"FDLC-CPS-266-2024","https://community.secop.gov.co/Public/Tendering/OpportunityDetail/Index?noticeUID=CO1.NTC.6714073&isFromPublicArea=True&isModal=False","CPS","CONTRATACION DIRECTA","No aplica","PRESTAR SERVICIOS DE APOYO AL FONDO DE DESARROLLO LOCAL DE LA CANDELARIA EN LA ADMINISTRACIÓN DE LAS CASAS COMUNITARIAS DE LA LOCALIDAD DE LA CANDELARIA DE CONFORMIDAD CON EL ACUERDO LOCAL 006 DE 2013","INVERSION","Un nuevo contrato social y ambiental para la Bogotá del Siglo XXI",57,"Gestión Pública Local","Propósito 5. Construir Bogotà - Regiòn con gobierno abierto, transparente y ciudadanìa consciente. ","O23011605570000002021",4,null,"KIMBERLY SANTAMARIA ACERO","Persona Jurídica",null,null,null,null,11532000,null,1,2883000,14415000,7015300,"2022-12-27","NO HA INICIADO","NO HA INICIADO",120,1,"1 MES","N/A","N/A","N/A","N/A","TERMINADO",0.48666666666666669]
["FDLC-CPS-267-2024",2024,"FDLC-CPS-267-2024","https://community.secop.gov.co/Public/Tendering/OpportunityDetail/Index?noticeUID=CO1.NTC.6711670&isFromPublicArea=True&isModal=False","CPS","CONTRATACION DIRECTA","No aplica","PRESTACIÓN DE SERVICIOS PROFESIONALES AL FONDO DE DESARROLLO LOCAL DE LA CANDELARIA PARA ATENDER LAS PETICIONES QUEJAS RECLAMOS YO SOLICITUDES PRESENTADAS POR LA CIUDADANÍA DE CONFORMIDAD CON LOS TÉRMINOS LEGALES ESTABLECIDOS Y APOYAR LAS RESPUESTAS REQUERIDAS POR LOS ENTES DE CONTROL","INVERSION","Un nuevo contrato social y ambiental para la Bogotá del Siglo XXI",57,"Gestión Pública Local","Propósito 5. Construir Bogotà - Regiòn con gobierno abierto, transparente y ciudadanìa consciente. ","O23011605570000002021",4,900119437,"BRIAN DANILO DUARTE MONTAÑO","Persona Jurídica",null,null,null,null,20000000,-2500000,1,5000000,22500000,12500000,"2022-12-29","NO HA INICIADO","NO HA INICIADO",120,1,"1 MES","N/A","N/A","N/A","N/A","TERMINADO",0.55555555555555558]
["FDLC-CPS-268-2024",2024,"FDLC-CPS-268-2024","https://community.secop.gov.co/Public/Tendering/OpportunityDetail/Index?noticeUID=CO1.NTC.6713333&isFromPublicArea=True&isModal=False","CPS","CONTRATACION DIRECTA","No aplica","PRESTAR SERVICIOS PROFESIONALES PARA LA PROMOCIÓN SEGUIMIENTO ACOMPAÑAMIENTO Y ATENCIÓN DE LAS INSTANCIAS DE PARTICIPACIÓN DE LA LOCALIDAD Y DEMÁS ESPACIOS DE PARTICIPACIÓN DESIGNADOS ASÍ COMO LOS DISTINTOS PROCESOS DE PARTICIPACIÓN CIUDADANA TALES COMO PRESUPUESTOS PARTICIPATIVOS","INVERSION","Un nuevo contrato social y ambiental para la Bogotá del Siglo XXI",55,"Fortalecimiento de Cultura Ciudadana y su institucionalidad","Propósito 5. Construir Bogotà - Regiòn con gobierno abierto, transparente y ciudadanìa consciente. ","O23011605550000002019",5,901667687,"JOAN MANUEL RODRIGUEZ NIETO","Consorcio",900573269,"SOLUCIONES AMBIENTALES Y GEOMECÁNICAS EGS SAS \n",0.9,null,24000000,null,1,6000000,30000000,9000000,"2022-12-29","NO HA INICIADO","NO HA INICIADO",120,1,"1 MES","N/A","N/A","N/A","N/A","TERMINADO",{"$f":"IF(ISERROR(AB280/AA280),\"-\",(AB280/AA280))","v":0.3}]
["FDLC-CPS-269-2024",2024,"FDLC-CPS-269-2024","https://community.secop.gov.co/Public/Tendering/OpportunityDetail/Index?noticeUID=CO1.NTC.6722986&isFromPublicArea=True&isModal=False","CPS","CONTRATACION DIRECTA","No aplica","PRESTAR SERVICIOS PROFESIONALES PARA EL ACOMPAÑAMIENTO DE LOS PROYECTOS DE OBRAS PUBLICAS E INFRAESTRUCTURA QUE DESARROLLE EL FONDO DE DESARROLLO LOCAL DE LA CANDELARIA","INVERSION","Un nuevo contrato social y ambiental para la Bogotá del Siglo XXI",49,"Movilidad segura, sostenible y accesible","Propòsito 4. Hacer de Bogotà - Region un modelo de movilidad multimodal, incluyente y sostenible ","O23011604490000002020",5,901667687,"JHON EDWIN MORALES HERRERA",null,901172605,"ICOD CONSTRUCCIONES Y PROYECTOS SAS",10,null,21000000,null,1,7000000,28000000,15633334,null,null,null,90,1,"1 MES","N/A","N/A","N/A","N/A","TERMINADO"]
["FDLC-CPS-270-2024",2024,"FDLC-CPS-270-2024","https://community.secop.gov.co/Public/Tendering/OpportunityDetail/Index?noticeUID=CO1.NTC.6727982&isFromPublicArea=True&isModal=true&asPopupView=true","CPS","CONTRATACION DIRECTA","No aplica","PRESTAR SERVICIOS PROFESIONALES PARA ACOMPAÑAR LAS INSTANCIAS DE PARTICIPACIÓN DE LA LOCALIDAD Y ESPACIOS DE PARTICIPACIÓN DESIGNADOS; ASÍ COMO SU PROMOCIÓN; CONVOCATORIA Y SEGUIMIENTO Y LOS DISTINTOS PROCESOS DE PARTICIPACIÓN CIUDADANA Y COMUNITARIA COMO PRESUPUESTOS PARTICIPATIVOS.","INVERSION","Un nuevo contrato social y ambiental para la Bogotá del Siglo XXI",55,"Fortalecimiento de Cultura Ciudadana y su institucionalidad","Propósito 5. Construir Bogotà - Regiòn con gobierno abierto, transparente y ciudadanìa consciente. ","O23011605550000002019",15,null,"MARIAPAZ BUENDIA PUYO","Persona Jurídica",null,null,null,null,16500000,null,1,5500000,22000000,12283333,"2022-12-29","NO HA INICIADO","NO HA INICIADO",90,1,"1 MES","N/A","N/A","N/A","N/A","TERMINADO",0.55833331818181819]
["FDLC-CPS-271-2024",2024,"FDLC-IMC-006-2024","https://community.secop.gov.co/Public/Tendering/OpportunityDetail/Index?noticeUID=CO1.NTC.6652699&isFromPublicArea=True&isModal=true&asPopupView=true","PRESTACION DE SERVICIOS","MINIMA CUANTIA","No aplica","PRESTAR LOS SERVICIOS LOGÍSTICOS Y TÉCNICOS NECESARIOS PARA LA REALIZACIÓN DEL EVENTO CONMEMORATIVO A LA FIESTA DE BOGOTA EN LA LOCALIDAD DE LA CANDELARIA","INVERSION","Un nuevo contrato social y ambiental para la Bogotá del Siglo XXI",21,"Creación y vida cotidiana: Apropiación ciudadana del arte, la cultura y el patrimonio, para la democracia cultural","Propósito 1. Hacer un nuevo contrato social con igualdad de oportunidades para la inclusiòn social, productiva y polìtica ","O23011601210000001625",1,900427788,"GRUPO SOCIEDAD CAPITAL SAS","Persona Jurídica",null,null,null,null,26828311,null,null,0,{"$f":"+W283+X283+Z283","v":26828311},null,"2021-03-09","2021-03-09","2022-03-31",30,1,"NO APLICA","N/A","N/A","N/A","N/A","TERMINADO",0]
["FDLC-CPS-272-2024",2024,"FDLC-CPS-272-2024","https://community.secop.gov.co/Public/Tendering/OpportunityDetail/Index?noticeUID=CO1.NTC.6722395&isFromPublicArea=True&isModal=False","CPS","CONTRATACION DIRECTA","Bolsas de productos","PRESTAR SERVICIOS PROFESIONALES PARA LA GESTIÓN DEL DESARROLLO LOCAL EN LA GESTIÓN AMBIENTAL ENCAMINADAS A LA MITIGACIÓN DE LOS DIFERENTES IMPACTOS AMBIENTALES Y LA CONSERVACIÓN DE LOS RECURSOS NATURALES DE LA LOCALIDAD.","INVERSION","Un nuevo contrato social y ambiental para la Bogotá del Siglo XXI",28,"Bogotá protectora de sus recursos naturales","Propòsito 2. Cambiar nuestros hàbitos de vida para reverdecer a Bogotà y adaptarnos y mitigar la crisis climàtica.","O23011602280000001701",1,830103828,"DIANA ZORAIDA ROMERO SALINAS","Persona Jurídica",null,null,null,null,21000000,-200000,1,6000000,26800000,14800000,"2021-03-23","2021-04-01","2022-05-03",105,1,"1 MES","N/A","N/A","N/A","N/A","TERMINADO",0.55223880597014929]
["FDLC-CPS-273-2024",2024,"FDLC-CPS-273-2024","https://community.secop.gov.co/Public/Tendering/OpportunityDetail/Index?noticeUID=CO1.NTC.6723637&isFromPublicArea=True&isModal=False","CPS","CONTRATACION DIRECTA","No aplica","PRESTAR SERVICIOS PROFESIONALES PARA LA ARTICULACIÓN ASISTENCIA Y ACOMPAÑAMIENTO DE LOS PROCESOS DE PLANEACIÓN LOCAL PARA LA PROMOCIÓN DE LA PARTICIPACIÓN DE LAS MUJERES Y DE LA EQUIDAD DE GÉNERO PARA MATERIALIZAR EN LA LOCALIDAD LAS ESTRATEGIAS DE TERRITORIALIZACIÓN Y TRANSVERSALIZACIÓN DE LA POLÍTICA PUBLICA DE MUJERES Y EQUIDAD DE GÉNERO PPMYEG.","INVERSION","Un nuevo contrato social y ambiental para la Bogotá del Siglo XXI",55,"Fortalecimiento de Cultura Ciudadana y su institucionalidad","Propósito 5. Construir Bogotà - Regiòn con gobierno abierto, transparente y ciudadanìa consciente. ","O23011605550000002019",1,19322393,"ANGIE CAROLINA CARDONA ARANGO","Persona Natural",null,null,null,null,18000000,null,1,6000000,24000000,14800000,"2021-07-30","2021-08-05","2022-08-04",90,1,"1 MES","N/A","N/A","N/A","N/A","TERMINADO",0.6166666666666667]
["FDLC-CPS-274-2024",2024,"FDLC-CPS-274-2024","https://community.secop.gov.co/Public/Tendering/OpportunityDetail/Index?noticeUID=CO1.NTC.6729061&isFromPublicArea=True&isModal=False","CPS","CONTRATACION DIRECTA","Selección abreviada por menor cuantía ","PRESTAR SERVICIOS PROFESIONALES EN LA IMPLEMENTACIÓN DE ACCIONES Y ESTRATEGIAS DE LOS PROYECTOS DE OBRAS PUBLICAS E INFRAESTRUCTURA QUE DESARROLLE EL FONDO DE DESARROLLO LOCAL DE LA CANDELARIA.","INVERSION","Un nuevo contrato social y ambiental para la Bogotá del Siglo XXI",49,"Movilidad segura, sostenible y accesible","Propòsito 4. Hacer de Bogotà - Region un modelo de movilidad multimodal, incluyente y sostenible ","O23011604490000002020",2,900211384,"FRANCISCO JAVIER HIGUERA NOVA","Persona Jurídica",null,null,null,null,18000000,null,1,6000000,24000000,14600000,"2021-12-29","2021-12-29","2023-02-23",90,1,"1 MES","N/A","N/A","N/A","N/A","TERMINADO",0.60833333333333328]
["FDLC-CPS-275-2024",2024,"FDLC-CPS-275-2024","https://community.secop.gov.co/Public/Tendering/OpportunityDetail/Index?noticeUID=CO1.NTC.6744639&isFromPublicArea=True&isModal=true&asPopupView=true","CPS","CONTRATACION DIRECTA","No aplica","PRESTAR SERVICIOS DE APOYO TÉCNICO EN LA IMPLEMENTACIÓN DE ACCIONES Y ESTRATEGIAS DE LOS PROYECTOS DE OBRAS PUBLICAS E INFRAESTRUCTURA QUE DESARROLLE EL FONDO DE DESARROLLO LOCAL DE LA CANDELARIA","INVERSION","Un nuevo contrato social y ambiental para la Bogotá del Siglo XXI",49,"Movilidad segura, sostenible y accesible","Propòsito 4. Hacer de Bogotà - Region un modelo de movilidad multimodal, incluyente y sostenible ","O23011604490000002020",null,"860066942","LIZETH DAYANA MONCADA JULIO DI RUGGIERO","Persona Jurídica",null,null,null,null,11200000,-1773333,null,0,9426667,6626666,"2022-01-12","2022-01-01","2022-06-30",120,null,"NO APLICA","N/A","N/A","N/A","N/A","TERMINADO"]
["FDLC-CPS-276-2024",2024,null,"https://community.secop.gov.co/Public/Tendering/OpportunityDetail/Index?noticeUID=CO1.NTC.6789264&isFromPublicArea=True&isModal=False","CPS","CONTRATACION DIRECTA","No aplica","PRESTAR SERVICIOS PROFESIONALES PARA APOYAR JURÍDICAMENTE EL DESARROLLO Y CUMPLIMIENTO DE LAS COMISIONES JUDICIALES ORDENADAS AL (LA) ALCALDE(SA) LOCAL; ASÍ COMO; LA ATENCIÓN DE PETICIONES; REQUERIMIENTOS Y ACCIONES CONSTITUCIONALES ORIGINADAS EN EL TRÁMITE DE DESPACHOS COMISORIOS","INVERSION","Un nuevo contrato social y ambiental para la Bogotá del Siglo XXI",57,"Gestión Pública Local","Propósito 5. Construir Bogotà - Regiòn con gobierno abierto, transparente y ciudadanìa consciente. ","O23011605570000002023",null,"860066942","JUAN DAVID DUARTE MEJIA","Persona Jurídica",null,null,null,null,15000000,null,null,0,15000000,10000000,"2022-09-05","2022-01-01","2022-06-30",90,null,"NO APLICA","N/A","N/A","N/A","N/A","TERMINADO"]
["FDLC-CPS-277-2024",2024,"FDLC-CPS-277-2024","https://community.secop.gov.co/Public/Tendering/OpportunityDetail/Index?noticeUID=CO1.NTC.6739078&isFromPublicArea=True&isModal=true&asPopupView=true","CPS","CONTRATACION DIRECTA","No aplica","PRESTAR SERVICIOS PROFESIONALES AL FONDO DE DESARROLLO LOCAL DE LA CANDELARIA PARA APOYAR Y FORTALECER LAS GESTIONES CONTABLES DE LA ENTIDAD","INVERSION","Un nuevo contrato social y ambiental para la Bogotá del Siglo XXI",57,"Gestión Pública Local","Propósito 5. Construir Bogotà - Regiòn con gobierno abierto, transparente y ciudadanìa consciente. ","O23011605570000002021",null,"899999061","DEISY ALEXA PEÑA RUIZ","Persona Jurídica",null,null,null,null,21836000,-3275400,1,5459000,24019600,13101600,"2022-01-25","2022-01-25","2022-12-31",120,1,"1 MES","N/A","N/A","N/A","N/A","TERMINADO"]
["FDLC-CPS-278-2024",2024,"FDLC-CPS-278-2024","https://community.secop.gov.co/Public/Tendering/OpportunityDetail/Index?noticeUID=CO1.NTC.6739904&isFromPublicArea=True&isModal=true&asPopupView=true","CPS","CONTRATACION DIRECTA","No aplica","PRESTAR SERVICIOS TÉCNICOS AL ÁREA DE GESTIÓN POLICIVA DE LA ALCALDÍA LOCAL DE LA CANDELARIA EN LAS LABORES OPERATIVAS DE IMPULSO DE LAS ACTUACIONES ADMINISTRATIVAS","INVERSION","Un nuevo contrato social y ambiental para la Bogotá del Siglo XXI",57,"Gestión Pública Local","Propósito 5. Construir Bogotà - Regiòn con gobierno abierto, transparente y ciudadanìa consciente. ","O23011605570000002023",null,"860066942","NEREIDA HERNANDEZ FLOREZ","Persona Jurídica",null,null,null,null,10800000,null,1,3600000,14400000,8640000,"2022-07-05","2022-07-01","2022-12-31",90,1,"1 MES","N/A","N/A","N/A","N/A","TERMINADO"]
["FDLC-CPS-280-2024",2024,"FDLC-CPS-280-2024","https://community.secop.gov.co/Public/Tendering/OpportunityDetail/Index?noticeUID=CO1.NTC.6745502&isFromPublicArea=True&isModal=true&asPopupView=true","CPS","CONTRATACION DIRECTA","No aplica","PRESTAR LOS SERVICIOS PROFESIONALES PARA APOYAR EN LA ELABORACIÓN GESTIÓN Y PUBLICACIÓN DE CONTENIDOS Y MATERIAL GRÁFICO DE COMUNICACIÓN EN LAS REDES SOCIALES HERRAMIENTAS INSTITUCIONALES DE COMUNICACIÓN DE LA JUNTA ADMINISTRADORA LOCAL DE LA CANDELARIA","INVERSION","Un nuevo contrato social y ambiental para la Bogotá del Siglo XXI",57,"Gestión Pública Local","Propósito 5. Construir Bogotà - Regiòn con gobierno abierto, transparente y ciudadanìa consciente. ","O23011605570000002021",null,"860066942","JOHANNI JAVIER MORALES AMAYA","Persona Jurídica",null,null,null,null,14319000,null,1,4773000,19092000,11296100,"2022-07-05","2022-07-01","2022-12-31",90,1,"1 MES","N/A","N/A","N/A","N/A","TERMINADO"]
["FDLC-CPS-281-2024",2024,"FDLC-CPS-281-2024","https://community.secop.gov.co/Public/Tendering/OpportunityDetail/Index?noticeUID=CO1.NTC.6745302&isFromPublicArea=True&isModal=true&asPopupView=true","CPS","CONTRATACION DIRECTA","No aplica","PRESTAR SERVICIOS DE APOYO EN LOS EVENTOS Y ACTIVIDADES DE LA ADMINISTRACIÓN LOCAL Y EN TODAS AQUELLAS ACTIVIDADES REQUERIDAS PARA EL FUNCIONAMIENTO DE LA ALCALDÍA LOCAL Y SUS CASAS COMUNITARIAS","INVERSION","Un nuevo contrato social y ambiental para la Bogotá del Siglo XXI",24,"Bogotá región emprendedora e innovadora","Propósito 1. Hacer un nuevo contrato social con igualdad de oportunidades para la inclusiòn social, productiva y polìtica ","O23011601240000001627",null,"860066942","ROQUE ALBERTO RODRIGUEZ RUBIO","Persona Jurídica",null,null,null,null,8649000,null,1,2883000,11532000,6823100,"2022-12-02","2022-11-22","2022-12-31",90,1,"1 MES","N/A","N/A","N/A","N/A","TERMINADO"]
["FDLC-CPS-282-2024",2024,"FDLC-CPS-282-2024","https://community.secop.gov.co/Public/Tendering/OpportunityDetail/Index?noticeUID=CO1.NTC.6750883&isFromPublicArea=True&isModal=true&asPopupView=true","CPS","CONTRATACION DIRECTA","No aplica","PRESTAR SERVICIOS DE APOYO ADMINISTRATIVO Y ASISTENCIAL AL FONDO DE DESARROLLO LOCAL DE LA CANDELARIA; EN EL CENTRO DE INFORMACIÓN Y DOCUMENTACIÓN (CDI); PARA LA NOTIFICACIÓN DE CORRESPONDENCIA DE LA ENTIDAD. CONFORME A LAS INSTRUCCIONES PARA EL TRÁMITE DE RADICACIÓN; DIGITALIZACIÓN Y REPARTO  DE LAS COMUNICACIONES EN EL CENTRO DE DOCUMENTACIÓN E INFORMACIÓN CDI","INVERSION","Un Nuevo Contrato Social y Ambiental para la Bogotá del Siglo XXI",57,"Gestión Pública Local","Propósito 5. Construir Bogotà - Regiòn con gobierno abierto, transparente y ciudadanìa consciente. ","O23011605570000002021","N/A","79593962","DANNY XIOMARA CRUZ PEDRAZA","Persona Natural",null,null,null,null,9520000,-1507333,1,2800000,10812667,6626667,"2022-02-04","2022-02-04","2022-02-04",120,1,"1 MES","N/A","N/A","N/A","N/A","TERMINADO",0.61286147071763142]
["FDLC-CPS-283-2024",2024,"FDLC-CPS-283-2024","https://community.secop.gov.co/Public/Tendering/OpportunityDetail/Index?noticeUID=CO1.NTC.6743565&isFromPublicArea=True&isModal=true&asPopupView=true","CPS","CONTRATACION DIRECTA","No aplica","PRESTAR SERVICIOS DE APOYO AL FONDO DE DESARROLLO LOCAL DE LA CANDELARIA EN LA ADMINISTRACIÓN DE LAS CASAS COMUNITARIAS DE LA LOCALIDAD DE LA CANDELARIA; DE CONFORMIDAD CON EL ACUERDO LOCAL 006 DE 2013","INVERSION","Un Nuevo Contrato Social y Ambiental para la Bogotá del Siglo XXI",57,"Gestión Pública Local","Propósito 5. Construir Bogotà - Regiòn con gobierno abierto, transparente y ciudadanìa consciente. ","O23011605570000002021",null,"1010160868","JESSICA LIZETH RINCON RODRIGUEZ","Persona Natural",null,null,null,null,11532000,-1825900,1,2883000,12589100,6823100,"2022-02-04","2022-02-04","2022-02-04",120,1,"30 DÍAS","N/A","N/A","N/A","N/A","TERMINADO",0.5419847328244275]
["FDLC-CPS-284-2024",2024,"FDLC-CPS-284-2024","https://community.secop.gov.co/Public/Tendering/OpportunityDetail/Index?noticeUID=CO1.NTC.6745349&isFromPublicArea=True&isModal=true&asPopupView=true","CPS","CONTRATACION DIRECTA","No aplica","PRESTAR SERVICIOS PROFESIONALES PARA APOYAR LA ELABORACIÓN Y EJECUCIÓN DE LA ESTRATEGIA DIGITAL DE LA ALCALDÍA LOCAL DE LA CANDELARIA Y ASÍ MISMO; APOYAR EN EL CUBRIMIENTO; ELABORACIÓN; DIFUSIÓN; GESTIÓN; PUBLICACIÓN Y MONITOREO DE CONTENIDOS INSTITUCIONALES Y MATERIAL GRÁFICO DE COMUNICACIÓN","INVERSION","Un Nuevo Contrato Social y Ambiental para la Bogotá del Siglo XXI",57,"Gestión Pública Local","Propósito 5. Construir Bogotà - Regiòn con gobierno abierto, transparente y ciudadanìa consciente. ","O23011605570000002021",null,"79687787","KEVIN SEBASTIAN MELO RIVERA","Persona Natural",null,null,null,null,19250000,-733333,1,5500000,24016667,13016667,"2022-02-04","2022-02-04","2022-02-04",105,1,"1 MES","N/A","N/A","N/A","N/A","TERMINADO",0.54198473918133605]
["FDLC-CPS-285-2024",2024,"FDLC-CPS-285-2024","https://community.secop.gov.co/Public/Tendering/OpportunityDetail/Index?noticeUID=CO1.NTC.6754116&isFromPublicArea=True&isModal=true&asPopupView=true","CPS","CONTRATACION DIRECTA","No aplica","PRESTAR SERVICIOS PROFESIONALES AL FONDO DE DESARROLLO LOCAL DE LA CANDELARIA EN ASUNTOS RELACIONADOS CON LA GESTIÓN Y ATENCIÓN DEL RIESGO Y CAMBIO CLIMÁTICO EN LA LOCALIDAD","INVERSION","Un Nuevo Contrato Social y Ambiental para la Bogotá del Siglo XXI",30,"Eficiencia en la atención de emergencias","Propòsito 2. Cambiar nuestros hàbitos de vida para reverdecer a Bogotà y adaptarnos y mitigar la crisis climàtica.","O23011602300000001702",null,"1010209957","MARLON STEVEN MOLANO MONTOYA","Persona Natural",null,null,null,null,16705500,-477300,1,4773000,21001200,11455200,"2022-02-04","2022-02-04","2022-02-04",105,1,"1 MES","N/A","N/A","N/A","N/A","TERMINADO",0.54545454545454541]
["FDLC-CPS-286-2024",2024,"FDLC-CPS-286-2024","https://community.secop.gov.co/Public/Tendering/OpportunityDetail/Index?noticeUID=CO1.NTC.6758597&isFromPublicArea=True&isModal=true&asPopupView=true","CPS","CONTRATACION DIRECTA","No aplica","PRESTAR SERVICIOS PROFESIONALES PARA APOYAR JURÍDICAMENTE A LA JUNTA ADMINISTRADORA LOCAL DE LA CANDELARIA CON EL FIN DE CONTRIBUIR AL ADECUADO CUMPLIMIENTO DE LAS ATRIBUCIONES A SU CARGO","INVERSION","Un Nuevo Contrato Social y Ambiental para la Bogotá del Siglo XXI",57,"Gestión Pública Local","Propósito 5. Construir Bogotà - Regiòn con gobierno abierto, transparente y ciudadanìa consciente. ","O23011605570000002021",null,"79651441","RICHARD ANDRES DIAZ NIÑO","Persona Natural",null,null,null,null,15000000,null,1,5000000,20000000,11166666,"2022-02-04","2022-02-04","2022-02-04",90,1,"1 MES","N/A","N/A","N/A","N/A","TERMINADO",0.55833330000000003]
["FDLC-CPS-287-2024",2024,"FDLC-CPS-287-2024","https://community.secop.gov.co/Public/Tendering/OpportunityDetail/Index?noticeUID=CO1.NTC.6782674&isFromPublicArea=True&isModal=true&asPopupView=true","CPS","CONTRATACION DIRECTA","No aplica","PRESTAR SERVICIOS TECNICOS DE APOYO A LA GESTIÓN EN EL DESARROLLO DE LAS ACTIVIDADES DE CARÁCTER LOGISTICO;  ADMINISTRATIVO; DOCUMENTAL PARA EL LOGRO DEL CUMPLIMIENTO DE LAS METAS DEL PLAN DE DESARROLLO LOCAL Y PROMOVER UNA MEJOR CALIDAD DE VIDA.","INVERSION","Un Nuevo Contrato Social y Ambiental para la Bogotá del Siglo XXI",20,"Bogotá, referente en cultura, deporte, recreación y actividad física, con parques para el desarrollo y la salud","Propósito 1. Hacer un nuevo contrato social con igualdad de oportunidades para la inclusiòn social, productiva y polìtica ","O23011601200000001611",null,"88141104","MARIA ALEJANDRA PEÑA HERRERA","Persona Natural",null,null,null,null,10500000,null,1,3000000,13500000,6100000,"2022-02-04","2022-02-04","2022-02-04",105,1,"1 MES","N/A","N/A","N/A","N/A","TERMINADO",0.45185185185185184]
["FDLC-CPS-288-2024",2024,"FDLC-CPS-288-2024","https://community.secop.gov.co/Public/Tendering/OpportunityDetail/Index?noticeUID=CO1.NTC.6783863&isFromPublicArea=True&isModal=true&asPopupView=true","CPS","CONTRATACION DIRECTA","No aplica","PRESTAR SERVICIOS DE APOYO AL FONDO DE DESARROLLO LOCAL DE LA CANDELARIA PARA LA GESTION DE LOS ASUNTOS RELACIONADOS CON SEGURIDAD CIUDADANA; CONVIVENCIA; PREVENCIÓN DE CONFLICTIVIDADES; VIOLENCIAS Y DELITOS EN LA LOCALIDAD EN EL USO Y GESTIÓN DE ACTIVIDADES EN EL ESPACIO PÚBLICO.","INVERSION","Un Nuevo Contrato Social y Ambiental para la Bogotá del Siglo XXI",57,"Gestión Pública Local","Propósito 5. Construir Bogotà - Regiòn con gobierno abierto, transparente y ciudadanìa consciente. ","O23011605570000002023",null,"3838495","ANGIE JOHANA LIZARAZO DUARTE","Persona Natural",null,null,null,null,9129500,null,1,2883000,12012500,5766000,"2022-02-04","2022-02-04","2022-02-04",105,1,"1 MES","N/A","N/A","N/A","N/A","TERMINADO",0.48]
["FDLC-CPS-289-2024",2024,"FDLC-CPS-289-2024","https://community.secop.gov.co/Public/Tendering/OpportunityDetail/Index?noticeUID=CO1.NTC.6788813&isFromPublicArea=True&isModal=true&asPopupView=true","CPS","CONTRATACION DIRECTA","No aplica","PRESTAR SERVICIOS PROFESIONALES PARA APOYAR JURÍDICAMENTE LA EJECUCIÓN DE LAS ACCIONES REQUERIDAS PARA LA DEPURACIÓNDE LAS ACTUACIONES ADMINISTRATIVAS QUE CURSAN EN LA ALCALDÍA LOCAL DE LA CANDELARIA.","INVERSION","Un Nuevo Contrato Social y Ambiental para la Bogotá del Siglo XXI",57,"Gestión Pública Local","Propósito 5. Construir Bogotà - Regiòn con gobierno abierto, transparente y ciudadanìa consciente. ","O23011605570000002023",null,"79593962","FABIO HERNÁN DAZA MORENO","Persona Natural",null,null,null,null,17286833,null,1,5459000,22745833,11099966,"2022-05-03","2022-05-03","2022-05-03",105,1,"1 MES","N/A","N/A","N/A","N/A","TERMINADO",0.48799997784209531]
["FDLC-CPS-290-2024",2024,"FDLC-CPS-290-2024","https://community.secop.gov.co/Public/Tendering/OpportunityDetail/Index?noticeUID=CO1.NTC.6791818&isFromPublicArea=True&isModal=true&asPopupView=true","CPS","CONTRATACION DIRECTA","No aplica","PRESTAR SERVICIOS PROFESIONALES AL FONDO DE DESARROLLO LOCAL DE LA CANDELARIA EN LA PLANEACIÓN; SEGUIMIENTO Y EJECUCIÓN DE LAS ACTIVIDADES DE EDUCACIÓN AMBIENTAL EN CUMPLIMIENTO DE LAS METAS DEL PLAN DE DESARROLLO LOCAL.","INVERSION","Un Nuevo Contrato Social y Ambiental para la Bogotá del Siglo XXI",24,"Bogotá región emprendedora e innovadora","Propósito 1. Hacer un nuevo contrato social con igualdad de oportunidades para la inclusiòn social, productiva y polìtica","O23011601240000001626",null,"3838495","ALEX ALBERTO ARRIETA VILLABA","Persona Natural",null,null,null,null,17286833,null,null,0,17286833,10918000,"2022-05-03","2022-05-03","2022-05-03",120,null,"NO APLICA","N/A","N/A","N/A","N/A","TERMINADO",0.63157895954684118]
["FDLC-CPS-291-2024",2024,"FDLC-CIA-001-2024-1","https://community.secop.gov.co/Public/Tendering/OpportunityDetail/Index?noticeUID=CO1.NTC.6763108&isFromPublicArea=True&isModal=true&asPopupView=true","CONVENIO INTERADMINISTRATIVO","CONTRATACION DIRECTA","No aplica","AUNAR RECURSOS TÉCNICOS; ADMINISTRATIVOS; LEGALES Y FINANCIEROS; CON EL FIN DE EJECUTAR EL PROGRAMA JÓVENES A LA E CON EL FONDO DE DESARROLLO LOCAL DE LA CANDELARIA; FACILITANDO EL ACCESO Y LA PERMANENCIA DE LAS Y LOS JÓVENES EN LA CIUDAD DE BOGOTÁ","INVERSION","Un Nuevo Contrato Social y Ambiental para la Bogotá del Siglo XXI",17,"Jóvenes con capacidades: Proyecto de vida para la ciudadanía, la innovación y el trabajo del siglo XXI","Propósito 1. Hacer un nuevo contrato social con igualdad de oportunidades para la inclusiòn social, productiva y polìtica ","O23011601170000001607",null,"1010160868","AGENCIA DISTRITAL PARA LA EDUCACIÓN SUPERIOR LA CIENCIA Y LA TECNOLOGÍA ATENEA","Persona Natural",null,null,null,null,1255000000,null,null,0,1255000000,1255000000,"2022-05-03","2022-05-03","2022-05-03",2654,null,"NO APLICA","N/A","N/A","N/A","N/A","EJECUCION",1]
["FDLC-CPS-292-2024",2024,"FDLC-CPS-292-2024","https://community.secop.gov.co/Public/Tendering/OpportunityDetail/Index?noticeUID=CO1.NTC.6787770&isFromPublicArea=True&isModal=true&asPopupView=true","CPS","CONTRATACION DIRECTA","No aplica","PRESTAR SERVICIOS PROFESIONALES PARA LA PROMOCIÓN Y FORTALECIMIENTO DE LOS PROCESOS CULTURALES Y EXPRESIONES ARTÍSTICAS EN LA ALCALDÍA LOCAL DE LA CANDELARIA","INVERSION","Un Nuevo Contrato Social y Ambiental para la Bogotá del Siglo XXI",21,"Creación y vida cotidiana: Apropiación ciudadana del arte, la cultura y el patrimonio, para la democracia cultural","Propósito 1. Hacer un nuevo contrato social con igualdad de oportunidades para la inclusiòn social, productiva y polìtica ","O23011601210000001625",null,"79687787","LUIS ALBERTO MARTINEZ CASTILLO","Persona Natural",null,null,null,null,15114500,null,1,4773000,19887500,10182400,"2022-05-03","2022-05-03","2022-05-03",105,1,"1 MES","N/A","N/A","N/A","N/A","TERMINADO",0.51200000000000001]
["FDLC-CPS-293-2024",2024,"FDLC-CPS-293-2024","https://community.secop.gov.co/Public/Tendering/OpportunityDetail/Index?noticeUID=CO1.NTC.6968801&isFromPublicArea=True&isModal=true&asPopupView=true","CPS","CONTRATACION DIRECTA","No aplica","PRESTAR SERVICIOS PROFESIONALES PARA LA IMPLEMENTACIÓN DE ACCIONES Y ESTRATEGIAS DE LOS PROYECTOS DE OBRAS PUBLICAS E INFRAESTRUCTURA QUE DESARROLLE EL FONDO DE DESARROLLO LOCAL DE LA CANDELARIA","INVERSION","Un Nuevo Contrato Social y Ambiental para la Bogotá del Siglo XXI",49,"Movilidad segura, sostenible y accesible","Propòsito 4. Hacer de Bogotà - Region un modelo de movilidad multimodal, incluyente y sostenible ","O23011604490000002020",null,"1010209957","OLGA LUCIA CUERVO BALLESTEROS","Persona Natural",null,null,null,null,10918000,null,1,5459000,16377000,5459000,"2022-05-03","2022-05-03","2022-05-03",60,1,"1 MES","N/A","N/A","N/A","N/A","TERMINADO",0.33333333333333331]
["FDLC-CPS-294-2024",2024,"FDLC-CPS-294-2024","https://community.secop.gov.co/Public/Tendering/OpportunityDetail/Index?noticeUID=CO1.NTC.6815238&isFromPublicArea=True&isModal=true&asPopupView=true","CPS","CONTRATACION DIRECTA","No aplica","PRESTAR SERVICIOS DE APOYO ADMINISTRATIVO Y ASISTENCIAL EN LA GESTIÓN DE LA ALCALDÍA LOCAL DE LA CANDELARIA EN EL TRÁMITE DE LOS COMPARENDOS Y QUERELLAS; DE CONFORMIDAD CON LA LEY 1801 DE 2016","INVERSION","Un Nuevo Contrato Social y Ambiental para la Bogotá del Siglo XXI",57,"Gestión Pública Local","Propósito 5. Construir Bogotà - Regiòn con gobierno abierto, transparente y ciudadanìa consciente. ","O23011605570000002023",null,"79651441","JESICA  ESTEFANIA  CARRILLO  CUBILLOS","Persona Natural",null,null,null,null,8552900,null,1,2883000,11435900,5573800,"2022-05-03","2022-05-03","2022-05-03",89,1,"1 MES","N/A","N/A","N/A","N/A","TERMINADO",0.48739495798319327]
["FDLC-CPS-295-2024",2024,"FDLC-CPS-295-2024","https://community.secop.gov.co/Public/Tendering/OpportunityDetail/Index?noticeUID=CO1.NTC.6856293&isFromPublicArea=True&isModal=true&asPopupView=true","CPS","CONTRATACION DIRECTA","No aplica","PRESTAR SERVICIOS DE APOYO TÉCNICO AL FONDO DE DESARROLLO LOCAL DE LA CANDELARIA PARA APOYAR LA GESTIÓN CONTABLE; PAGOS Y A LOS PROFESIONALES QUE INTERVENGAN EN DICHO PROCESO","INVERSION","Un Nuevo Contrato Social y Ambiental para la Bogotá del Siglo XXI",57,"Gestión Pública Local","Propósito 5. Construir Bogotà - Regiòn con gobierno abierto, transparente y ciudadanìa consciente. ","O23011605570000002021",null,"88141104","JOSE RENE AGUIRRE TIJARO","Persona Natural",null,null,null,null,10000000,null,1,4000000,14000000,6666667,"2022-05-03","2022-05-03","2022-05-03",75,1,"1 MES","N/A","N/A","N/A","N/A","TERMINADO",0.47619050000000002]
["FDLC-CPS-296-2024",2024,"FDLC-CPS-296-2024","https://community.secop.gov.co/Public/Tendering/OpportunityDetail/Index?noticeUID=CO1.NTC.6807260&isFromPublicArea=True&isModal=true&asPopupView=true","CPS","CONTRATACION DIRECTA","No aplica","PRESTAR SERVICIOS PROFESIONALES PARA EL SEGUIMIENTO JURÍDICO DE LOS PROYECTOS DE INFRAESTRUCTURA; ASÍ COMO LOS DEMÁS  ASUNTOS CONTRACTUALES QUE SE REQUIERAN EN LA ALCALDIA LOCAL DE LA CANDELARIA","INVERSION","Un Nuevo Contrato Social y Ambiental para la Bogotá del Siglo XXI",49,"Movilidad segura, sostenible y accesible","Propòsito 4. Hacer de Bogotà - Region un modelo de movilidad multimodal, incluyente y sostenible ","O23011604490000002020",null,"79593962","SANTIAGO ANDRES MURILLO GOMEZ","Persona Natural",null,null,null,null,16377000,null,1,5459000,21836000,15103233,"2022-05-05","2022-05-05","2022-05-05",90,1,"1 MES","N/A","N/A","N/A","N/A","TERMINADO",0.69166665140135553]
["FDLC-CPS-297-2024",2024,"FDLC-CPS-297-2024","https://community.secop.gov.co/Public/Tendering/OpportunityDetail/Index?noticeUID=CO1.NTC.6837417&isFromPublicArea=True&isModal=true&asPopupView=true","CPS","CONTRATACION DIRECTA","No aplica","PRESTAR SERVICIOS DE APOYO A LA GESTIÓN AL FONDO DE DESARROLLO LOCAL DE LA CANDELARIA EN EL DESARROLLO DE ACTIVIDADES QUE AYUDEN EN LA PREVENCIÓN; MITIGACIÓN Y MONITOREO DE PROBLEMAS AMBIENTALES Y EL FORTALECIMIENTO DE PRÁCTICAS DE LA AGRICULTURA URBANA","INVERSION","Un Nuevo Contrato Social y Ambiental para la Bogotá del Siglo XXI",33,"Más árboles y más y mejor espacio público","Propósito 2. Cambiar nuestros hàbitos de vida para reverdecer a Bogotà y adaptarnos y mitigar la crisis climàtica.","O23011602330000001703",null,"3838495","EDWIN ALBERTO FINO BECERRA","Persona Natural",null,null,null,null,5640000,null,1,1880000,7520000,3321333,"2022-05-05","2022-05-05","2022-05-05",90,1,"1 MES","N/A","N/A","N/A","N/A","TERMINADO",0.44166662234042553]
["FDLC-CPS-298-2024",2024,"FDLC-IMC-008-2024","https://community.secop.gov.co/Public/Tendering/OpportunityDetail/Index?noticeUID=CO1.NTC.6761291&isFromPublicArea=True&isModal=true&asPopupView=true","PRESTACION DE SERVICIOS","MINIMA CUANTIA","No aplica","PRESTACIÓN DE SERVICIOS AL FONDO DE DESARROLLO LOCAL DE LA CANDELARIA PARA REALIZAR LA AUDITORIA DE RECERTIFICACIÓN (2024) DE LA LOCALIDAD DE LA CANDELARIA COMO ÁREA TURÍSTICA SOSTENIBLE; DE ACUERDO CON LOS LINEAMIENTOS QUE EXIGE LA NORMA TÉCNICA SECTORIAL COLOMBIANA NTS TS 001-1.","INVERSION","Un Nuevo Contrato Social y Ambiental para la Bogotá del Siglo XXI",57,"Gestión Pública Local","Propósito 5. Construir Bogotà - Regiòn con gobierno abierto, transparente y ciudadanìa consciente. ","O23011605570000002021",null,"1010160868","COMPAÑIA ANDINA DE INSPECCION Y CERTIFICACION SA","Persona Natural",null,null,null,null,4615000,null,null,0,4615000,null,"2022-05-05","2022-05-05","2022-05-05",60,1,"60 DIAS","N/A","N/A","N/A","N/A","TERMINADO",0]
["FDLC-OC-299-2024",2024,"ORDEN DE COMPRA 134116","https://www.colombiacompra.gov.co/tienda-virtual-del-estado-colombiano/ordenes-compra/134116","ORDEN DE COMPRA","ACUERDO MARCO DE PRECIOS","No aplica","PRESTACIÓN INTEGRAL DE LOS SERVICIOS DE ASEO CAFETERÍA MANTENIMIENTO MENOR Y JARDINERIA REQUERIDOS PARA LAS DEPENDENCIAS A CARGO DEL FONDO DE DESARROLLO LOCAL DE LA CANDELARIA”.","FUNCIONAMIENTO","Un Nuevo Contrato Social y Ambiental para la Bogotá del Siglo XXI","No aplica","No aplica","No aplica","O21202020060363399-O21202020080585330",null,"79687787","UNIÓN TEMPORAL ECOLIMPIEZA 4G","Persona Natural",null,null,null,null,141842905,null,1,null,141842905,23492471,"2022-05-05","2022-05-05","2022-05-05",120,1,"1 MES","N/A","N/A","N/A","N/A","TERMINADO",0.16562316599480248]
["FDLC-CPS-300-2024",2024,"FDLC-CPS-300-2024","https://community.secop.gov.co/Public/Tendering/OpportunityDetail/Index?noticeUID=CO1.NTC.6837278&isFromPublicArea=True&isModal=true&asPopupView=true","CPS","CONTRATACION DIRECTA","No aplica","PRESTAR SERVICIOS PROFESIONALES PARA ORIENTAR Y ASESORAR TÉCNICA Y JURÍDICAMENTE A LOS CIUDADANOS SOBRE EL ACCESO A LA JUSTICIA; LAS RUTAS LEGALES DISPONIBLES Y LA RESOLUCIÓN DE CONFLICTOS","INVERSION","Un Nuevo Contrato Social y Ambiental para la Bogotá del Siglo XXI",48,"Plataforma institucional para la seguridad y justicia","Propòsito 3. Inspirar confianza y legitimidad para vivir sin miedo y ser epicentro de cultura ciudadana, paz y reconciliaciòn ","O23011603480000001787",null,"1010209957","HELBER AUGUSTO LÓPEZ GORDILLO","Persona Natural",null,null,null,null,13364400,null,1,4773000,18137400,6045800,"2022-05-05","2022-05-05","2022-05-05",84,1,"1 MES",1026290472,"ANTONIO SANCHEZ RODRIGUEZ CESION DE ","2024-10-23",10818800,"TERMINADO",0.33333333333333331]
["FDLC-CPS-301-2024",2024,"FDLC-CPS-301-2024","https://community.secop.gov.co/Public/Tendering/OpportunityDetail/Index?noticeUID=CO1.NTC.6837449&isFromPublicArea=True&isModal=true&asPopupView=true","CPS","CONTRATACION DIRECTA","No aplica","PRESTAR SERVICIOS PROFESIONALES AL FONDO DE DESARROLLO LOCAL DE LA CANDELARIA PARA ORIENTAR; REVISAR; CONCEPTUALIZAR Y REALIZANDO ACOMPAÑAMIENTO JURÍDICO EN LOS TRÁMITES Y ASUNTOS ADMINISTRATIVOS; CONTRACTUALES; POLICIVOS Y DE DERECHO PÚBLICO DE LA ALCALDÍA LOCAL DE CANDELARIA","INVERSION","Un Nuevo Contrato Social y Ambiental para la Bogotá del Siglo XXI",57,"Gestión Pública Local","Propósito 5. Construir Bogotà - Regiòn con gobierno abierto, transparente y ciudadanìa consciente. ","O23011605570000002023",null,"79651441","JUAN CARLOS VARGAS BARREIRO","Persona Natural",null,null,null,null,18586667,null,1,6800000,25386667,null,"2022-05-05","2022-05-05","2022-05-05",82,1,"1 MES","N/A","N/A","N/A","N/A","TERMINADO",0]
["FDLC-CPS-302-2024",2024,"FDLC-CPS-302-2024","https://community.secop.gov.co/Public/Tendering/OpportunityDetail/Index?noticeUID=CO1.NTC.6837394&isFromPublicArea=True&isModal=true&asPopupView=true","CPS","CONTRATACION DIRECTA","No aplica","PRESTAR SERVICIOS ASISTENCIALES AL ÁREA DE GESTIÓN DE DESARROLLO LOCAL EN LOS PROCESOS RELACIONADOS CON LAS ACTIVIDADES DE GESTION ADMINISTRATIVA DE LA ALCALDÍA LOCAL DE LA CANDELARIA","INVERSION","Un Nuevo Contrato Social y Ambiental para la Bogotá del Siglo XXI",57,"Gestión Pública Local","Propósito 5. Construir Bogotà - Regiòn con gobierno abierto, transparente y ciudadanìa consciente. ","O23011605570000002021",null,"88141104","JOSE LUIS ALMANZA RUIZ     ","Persona Natural",null,null,null,null,7880200,null,1,2883000,10763200,4901100,"2022-05-05","2022-05-05","2022-05-05",82,1,"1 MES","N/A","N/A","N/A","N/A","TERMINADO",0.45535714285714285]
["FDLC-CPS-303-2024",2024,"FDLC-CPS-303-2024","https://community.secop.gov.co/Public/Tendering/OpportunityDetail/Index?noticeUID=CO1.NTC.6852125&isFromPublicArea=True&isModal=true&asPopupView=true","CPS","CONTRATACION DIRECTA","No aplica","Prestar los servicios profesionales para la operación seguimiento y cumplimiento de los procesos y procedimientos del Servicio Apoyo Económico Tipo C requeridos para el oportuno y adecuado registro cruce y reporte de los datos en el Sistema Misional ¿ SIRBE que contribuyan a la garantía de los derechos de la población mayor en el marco de la Política Pública Social para el Envejecimiento y la Vejez en el Distrito Capital a cargo de la Alcaldía Loca de la Candelaria","INVERSION","Un Nuevo Contrato Social y Ambiental para la Bogotá del Siglo XXI",1,"Subsidios y transferencias para la equidad","Propósito 1. Hacer un nuevo contrato social con igualdad de oportunidades para la inclusiòn social, productiva y polìtica ","O23011601010000001605",null,"79593962","AZUCENA SALAZAR GIRALDO","Persona Natural",null,null,null,null,17983333,null,1,6500000,24483333,9966667,"2022-06-03","2022-06-03","2022-06-03",85,1,"1 MES","N/A","N/A","N/A","N/A","TERMINADO",0.40707966517467209]
["FDLC-CPS-304-2024",2024,"FDLC-CPS-304-2024","https://community.secop.gov.co/Public/Tendering/OpportunityDetail/Index?noticeUID=CO1.NTC.6854348&isFromPublicArea=True&isModal=true&asPopupView=true","CPS","CONTRATACION DIRECTA","No aplica","PRESTAR SERVICIOS DE APOYO EN LAS ACTIVIDADES DE SEGURIDAD Y CONVIVENCIA CIUDADANA DE ACUERDO A LAS NECESIDADES Y ESTRATEGIAS DE LA ALCALDIA LOCAL DE LA CANDELARIA","INVERSION","Un Nuevo Contrato Social y Ambiental para la Bogotá del Siglo XXI",45,"Espacio público más seguro y construido colectivamente","Propósito 3. Inspirar confianza y legitimidad para vivir sin miedo y ser epicentro de cultura ciudadana, paz y reconciliaciòn ","O23011603450000001786",null,"3838495","ISIDRO HERRERA ANGEL","Persona Natural",null,null,null,null,5452000,null,1,1880000,7332000,2882667,"2022-06-03","2022-06-03","2022-06-03",84,1,"1 MES","N/A","N/A","N/A","N/A","TERMINADO",0.39316243862520456]
["FDLC-CPS-305-2024",2024,"FDLC-CPS-305-2024","https://community.secop.gov.co/Public/Tendering/OpportunityDetail/Index?noticeUID=CO1.NTC.6852449&isFromPublicArea=True&isModal=true&asPopupView=true","CPS","CONTRATACION DIRECTA","No aplica","PRESTAR SERVICIOS PROFESIONALES AL FONDO DE DESARROLLO LOCAL DE LA CANDELARIA COMO ADMINISTRADOR DE RED LOCAL Y COMO ENLACE CON LA SECRETARÍA DISTRITAL DE GOBIERNO BRINDANDO SOPORTE EN MATERIA DE SISTEMAS (SOFTWARE Y HARDWARE) A LOS USUARIOS INTERNOS Y EXTERNOS DE LA ENTIDAD","INVERSION","Un Nuevo Contrato Social y Ambiental para la Bogotá del Siglo XXI",57,"Gestión Pública Local","Propósito 5. Construir Bogotà - Regiòn con gobierno abierto, transparente y ciudadanìa consciente. ","O23011605570000002021",null,"1010160868","AGUSTIN LARA BELTRAN","Persona Natural",null,null,null,null,19133333,null,1,7000000,26133333,11900000,"2022-06-03","2022-06-03","2022-06-03",82,1,"1 MES","N/A","N/A","N/A","N/A","TERMINADO",0.45535714866526977]
["FDLC-CPS-306-2024",2024,"FDLC-CPS-306-2024","https://community.secop.gov.co/Public/Tendering/OpportunityDetail/Index?noticeUID=CO1.NTC.6864564&isFromPublicArea=True&isModal=true&asPopupView=true","CPS","CONTRATACION DIRECTA","No aplica","PRESTAR SERVICIOS DE APOYO EN LAS ACTIVIDADES DE SEGURIDAD Y CONVIVENCIA CIUDADANA DE ACUERDO A LAS NECESIDADES Y ESTRATEGIAS DE LA ALCALDIA LOCAL DE LA CANDELARIA","INVERSION","Un Nuevo Contrato Social y Ambiental para la Bogotá del Siglo XXI",45,"Espacio público más seguro y construido colectivamente","Propósito 3. Inspirar confianza y legitimidad para vivir sin miedo y ser epicentro de cultura ciudadana, paz y reconciliaciòn ","O23011603450000001786",null,"79687787","YULIANA ELISA BERNAL PARADO","Persona Natural",null,null,null,null,5452000,null,1,1880000,7332000,2820000,"2022-06-03","2022-06-03","2022-06-03",63,1,"1 MES","N/A","N/A","N/A","N/A","TERMINADO",0.38461538461538464]
["FDLC-CPS-307-2024",2024,"FDLC-CPS-307-2024","https://community.secop.gov.co/Public/Tendering/OpportunityDetail/Index?noticeUID=CO1.NTC.6880464&isFromPublicArea=True&isModal=true&asPopupView=true","CPS","CONTRATACION DIRECTA","No aplica","PRESTAR SERVICIOS DE APOYO EN LAS ACTIVIDADES DE SEGURIDAD Y CONVIVENCIA CIUDADANA DE ACUERDO A LAS NECESIDADES Y ESTRATEGIAS DE LA ALCALDIA LOCAL DE LA CANDELARIA","INVERSION","Un Nuevo Contrato Social y Ambiental para la Bogotá del Siglo XXI",45,"Espacio público más seguro y construido colectivamente","Propósito 3. Inspirar confianza y legitimidad para vivir sin miedo y ser epicentro de cultura ciudadana, paz y reconciliaciòn ","O23011603450000001786",null,"1010209957","ORLANDO GOMEZ ROMERO","Persona Natural",null,null,null,null,4700000,null,1,1880000,6580000,2694667,"2022-06-03","2022-06-03","2022-06-03",75,1,"1 MES","N/A","N/A","N/A","N/A","TERMINADO",0.4095238601823708]
["FDLC-CPS-308-2024",2024,"FDLC-CPS-308-2024","https://community.secop.gov.co/Public/Tendering/OpportunityDetail/Index?noticeUID=CO1.NTC.6873296&isFromPublicArea=True&isModal=true&asPopupView=true","CPS","CONTRATACION DIRECTA","No aplica","PRESTAR SERVICIOS DE APOYO EN LAS ACTIVIDADES DE SEGURIDAD Y CONVIVENCIA CIUDADANA DE ACUERDO A LAS NECESIDADES Y ESTRATEGIAS DE LA ALCALDIA LOCAL DE LA CANDELARIA","INVERSION","Un Nuevo Contrato Social y Ambiental para la Bogotá del Siglo XXI",45,"Espacio público más seguro y construido colectivamente","Propósito 3. Inspirar confianza y legitimidad para vivir sin miedo y ser epicentro de cultura ciudadana, paz y reconciliaciòn ","O23011603450000001786",null,"79651441","ELBA JULIANA VELASQUEZ CORTES","Persona Natural",null,null,null,null,4637333,null,1,1880000,6517333,2694667,"2022-06-03","2022-06-03","2022-06-03",74,1,"1 MES","N/A","N/A","N/A","N/A","TERMINADO",0.41346161075396948]
["FDLC-CPS-309-2024",2024,"FDLC-CPS-309-2024","https://community.secop.gov.co/Public/Tendering/OpportunityDetail/Index?noticeUID=CO1.NTC.6873902&isFromPublicArea=True&isModal=true&asPopupView=true","CPS","CONTRATACION DIRECTA","No aplica","PRESTAR SERVICIOS DE APOYO EN LAS ACTIVIDADES DE SEGURIDAD Y CONVIVENCIA CIUDADANA DE ACUERDO A LAS NECESIDADES Y ESTRATEGIAS DE LA ALCALDIA LOCAL DE LA CANDELARIA","INVERSION","Un Nuevo Contrato Social y Ambiental para la Bogotá del Siglo XXI",45,"Espacio público más seguro y construido colectivamente","Propósito 3. Inspirar confianza y legitimidad para vivir sin miedo y ser epicentro de cultura ciudadana, paz y reconciliaciòn ","O23011603450000001786",null,"88141104"," GINO PAOLO CAÑON BERNAL","Persona Natural",null,null,null,null,4261333,null,null,0,4261333,501333,"2022-06-03","2022-06-03","2022-06-03",69,0,"NO APLICA",53003093,"DIANA MILENA FAGUA RODRIGUEZ CESION DE","2024-11-23",2506666,"TERMINADO",0.11764698980342536]
["FDLC-CPS-310-2024",2024,"FDLC-CPS-310-2024","https://community.secop.gov.co/Public/Tendering/OpportunityDetail/Index?noticeUID=CO1.NTC.6866979&isFromPublicArea=True&isModal=true&asPopupView=true","CPS","CONTRATACION DIRECTA","No aplica","PRESTAR SERVICIOS DE APOYO A LA GESTIÓN AL FONDO DE DESARROLLO LOCAL DE LA CANDELARIA EN EL DESARROLLO DE ACTIVIDADES QUE AYUDEN EN LA PREVENCIÓN; MITIGACIÓN Y MONITOREO DE PROBLEMAS AMBIENTALES Y EL FORTALECIMIENTO DE PRÁCTICAS DE LA AGRICULTURA URBANA","INVERSION","Un Nuevo Contrato Social y Ambiental para la Bogotá del Siglo XXI",33,"Más árboles y más y mejor espacio público","Propósito 2. Cambiar nuestros hàbitos de vida para reverdecer a Bogotà y adaptarnos y mitigar la crisis climàtica.","O23011602330000001703",null,"79593962","EMPERATRIZ GONZALEZ PALENCIA","Persona Natural",null,null,null,null,5013333,null,1,1880000,6893333,2820000,"2022-07-05","2022-07-05","2022-07-05",80,1,"1 MES","N/A","N/A","N/A","N/A","TERMINADO",0.40909092887286891]
["FDLC-CPS-311-2024",2024,"FDLC-CPS-311-2024","https://community.secop.gov.co/Public/Tendering/OpportunityDetail/Index?noticeUID=CO1.NTC.6881187&isFromPublicArea=True&isModal=true&asPopupView=true","CPS","CONTRATACION DIRECTA","No aplica","PRESTAR SERVICIOS DE APOYO A LA GESTIÓN AL FONDO DE DESARROLLO LOCAL DE LA CANDELARIA EN EL DESARROLLO DE ACTIVIDADES QUE AYUDEN EN LA PREVENCIÓN; MITIGACIÓN Y MONITOREO DE PROBLEMAS AMBIENTALES Y EL FORTALECIMIENTO DE PRÁCTICAS DE LA AGRICULTURA URBANA","INVERSION","Un Nuevo Contrato Social y Ambiental para la Bogotá del Siglo XXI",33,"Más árboles y más y mejor espacio público","Propósito 2. Cambiar nuestros hàbitos de vida para reverdecer a Bogotà y adaptarnos y mitigar la crisis climàtica.","O23011602330000001703",null,"3838495","JULIETH SILEIDY RINCON REYES","Persona Natural",null,null,null,null,4762667,null,1,1880000,6642667,1942667,"2022-07-05","2022-07-05","2022-07-05",76,1,"1 MES",79996744,"WILFREDO BERNAL FORIGUA  CESION DE ","2024-11-15",2945334,"TERMINADO",0.29245286569385459]
["FDLC-CPS-312-2024",2024,"FDLC-CPS-312-2024","https://community.secop.gov.co/Public/Tendering/OpportunityDetail/Index?noticeUID=CO1.NTC.6913855&isFromPublicArea=True&isModal=true&asPopupView=true","CPS","CONTRATACION DIRECTA","No aplica","PRESTAR SERVICIOS DE APOYO TÉCNICO AL FONDO DE DESARROLLO LOCAL DE LA CANDELARIA PARA EL SEGUIMIENTO Y EJECUCION DE LOS PROGRAMAS AMBIENTALES Y JURIDICOS EN LA LOCALIDAD","INVERSION","Un Nuevo Contrato Social y Ambiental para la Bogotá del Siglo XXI",33,"Más árboles y más y mejor espacio público","Propósito 2. Cambiar nuestros hàbitos de vida para reverdecer a Bogotà y adaptarnos y mitigar la crisis climàtica.","O23011602330000001703",null,"1010160868","LAURA VALENTINA MARTINEZ DOMINGUEZ","Persona Natural",null,null,null,null,6400000,null,1,3200000,9600000,3413333,"2022-07-05","2022-07-05","2022-07-05",60,1,"1 MES","N/A","N/A","N/A","N/A","TERMINADO",0.35555552083333336]
["FDLC-CPS-313-2024",2024,"FDLC-CPS-313- 2024","https://community.secop.gov.co/Public/Tendering/OpportunityDetail/Index?noticeUID=CO1.NTC.6967567&isFromPublicArea=True&isModal=true&asPopupView=true","CPS","CONTRATACION DIRECTA","No aplica","PRESTAR SUS SERVICIOS PROFESIONALES PARA LA IMPLEMENTACIÓN DE LAS ACCIONES Y LINEAMIENTOS TÉCNICOS SURTIDOS DEL PROGRAMA DE GESTIÓN DOCUMENTAL Y DEMÁS INSTRUMENTOS TÉCNICOS ARCHIVÍSTICOS","INVERSION","Un Nuevo Contrato Social y Ambiental para la Bogotá del Siglo XXI",57,"Gestión Pública Local","Propósito 5. Construir Bogotà - Regiòn con gobierno abierto, transparente y ciudadanìa consciente. ","O23011605570000002021",null,"79687787","NATALIA SORIANO HINCAPIE","Persona Natural",null,null,null,null,10936000,null,1,5468000,16404000,5650266,"2022-07-05","2022-07-05","2022-07-05",60,1,"1 MES","N/A","N/A","N/A","N/A","TERMINADO",0.34444440380395025]
["FDLC-OC-314-2024",2024,"ORDEN DE COMPRA 136097","https://www.colombiacompra.gov.co/tienda-virtual-del-estado-colombiano/ordenes-compra/136097","ORDEN DE COMPRA","SELECCION ABREVIADA ACUERDO MARCO DE PRECIOS","No aplica","ADQUISICIÓN A MONTO AGOTABLE DE EQUIPOS DE COMPUTO DE ESCRITORIO PARA EL CUMPLIMIENTO DE LAS FUNCIONES ADMINISTRATIVAS DEL FONDO DE DESARROLLO LOCAL",null,"Un Nuevo Contrato Social y Ambiental para la Bogotá del Siglo XXI","No aplica","No aplica","No aplica","O23011605570000002021",null,"1010209957","SISTETRONICS SAS","Persona Natural",null,null,null,null,97266816,null,null,0,{"$f":"+W325+X325+Z325","v":97266816},null,"2022-07-05","2022-07-05","2022-07-05",90,0,"NO APLICA","N/A","N/A","N/A","N/A","TERMINADO",0]
["FDLC-CPS-315-2024",2024,"FDLC-CPS-315-2024","https://community.secop.gov.co/Public/Tendering/OpportunityDetail/Index?noticeUID=CO1.NTC.6910428&isFromPublicArea=True&isModal=true&asPopupView=true","CPS","CONTRATACION DIRECTA","No aplica","PRESTAR SERVICIOS TÉCNICOS PARA LA OPERACIÓN; SEGUIMIENTO Y CUMPLIMIENTO DE LOS PROCESOS Y PROCEDIMIENTOS DEL SERVICIO APOYOS ECONÓMICOS TIPO C; REQUERIDOS PARA EL OPORTUNO Y ADECUADO REGISTRO; CRUCE Y REPORTE DE LOS DATOS EN EL SISTEMA MISIONAL SIRBE; QUE CONTRIBUYAN A LA GARANTÍA DE LOS DERECHOS D","INVERSION","Un Nuevo Contrato Social y Ambiental para la Bogotá del Siglo XXI",1,"Subsidios y transferencias para la equidad","Propósito 1. Hacer un nuevo contrato social con igualdad de oportunidades para la inclusiòn social, productiva y polìtica ","O23011601010000001605",null,"79651441","PEDRO SIERRA GARCIA","Persona Natural",null,null,null,null,7350000,null,1,3150000,10500000,3990000,"2022-07-05","2022-07-05","2022-07-05",70,1,"1 MES","N/A","N/A","N/A","N/A","TERMINADO",0.38]
["FDLC-CPS-316-2024",2024,"FDLC-CPS-316- 2024","https://community.secop.gov.co/Public/Tendering/OpportunityDetail/Index?noticeUID=CO1.NTC.6991709&isFromPublicArea=True&isModal=true&asPopupView=true","CPS","CONTRATACION DIRECTA","No aplica","PRESTAR SERVICIOS PROFESIONALES PARA APOYAR JURÍDICAMENTE LA EJECUCIÓN DE LAS ACCIONES REQUERIDAS PARA LA DEPURACIÓN DE LAS ACTUACIONES ADMINISTRATIVAS QUE CURSAN EN LA ALCALDÍA LOCAL DE LA CANDELARIA.",null,"Un Nuevo Contrato Social y Ambiental para la Bogotá del Siglo XXI",57,"Gestión Pública Local","Propósito 5. Construir Bogotà - Regiòn con gobierno abierto, transparente y ciudadanìa consciente. ","O23011605570000002023",null,"88141104","EDEL ZARAY RAMIREZ LEON","Persona Natural",null,null,null,null,9826200,null,1,4913000,14739200,4185233,"2022-07-05","2022-07-05","2022-07-05",54,1,"27 DIAS","N/A","N/A","N/A","N/A","TERMINADO",0.2839525211680417]
["FDLC-CPS-317-2024",2024,"FDLC-CPS-317-2024","https://community.secop.gov.co/Public/Tendering/OpportunityDetail/Index?noticeUID=CO1.NTC.6910419&isFromPublicArea=True&isModal=true&asPopupView=true","CPS","CONTRATACION DIRECTA","No aplica","PRESTACIÓN DE SERVICIOS DE APOYO PARA EFECTUAR ACTIVIDADES DE ARCHIVO; ORGANIZACIÓN; DIGITALIZACIÓN E INVENTARIO DOCUMENTAL; DE ACUERDO CON LAS NECESIDADES DE LA ALCALDÍA LOCAL DE LA CANDELARIA","INVERSION","Un Nuevo Contrato Social y Ambiental para la Bogotá del Siglo XXI",57,"Gestión Pública Local","Propósito 5. Construir Bogotà - Regiòn con gobierno abierto, transparente y ciudadanìa consciente. ","O23011605570000002023",null,"79593962","YESID FERNANDO PEDRAZA GONZALEZ","Persona Natural",null,null,null,null,6533333,null,1,2800000,9333333,3546667,"2022-08-03","2022-08-03","2022-08-03",70,1,"1 MES","N/A","N/A","N/A","N/A","TERMINADO",0.38000004928571607]
["FDLC-CPS-318-2024",2024,"FDLC-CPS-318-2024","https://community.secop.gov.co/Public/Tendering/OpportunityDetail/Index?noticeUID=CO1.NTC.6938400&isFromPublicArea=True&isModal=true&asPopupView=true","CPS","CONTRATACION DIRECTA","No aplica","PRESTAR SERVICIOS PROFESIONALES EN LA ALCALDÍA LOCAL DE LA CANDELARIA PARA LA IMPLEMENTACIÓN; EJECUCIÓN; Y SEGUIMIENTO DE PROYECTOS DE GESTIÓN PÚBLICA; GESTIÓN INTERINSTITUCIONAL; PARTICIPACIÓN EN INSTANCIAS LOCALES E IMPLEMENTACIÓN DE ACCIONES Y ESTRATEGIAS CULTURALES Y ARTÍSTICAS DE LA LOCALIDAD.","INVERSION","Un Nuevo Contrato Social y Ambiental para la Bogotá del Siglo XXI",21,"Creación y vida cotidiana: Apropiación ciudadana del arte, la cultura y el patrimonio, para la democracia cultural","Propósito 1. Hacer un nuevo contrato social con igualdad de oportunidades para la inclusiòn social, productiva y polìtica ","O23011601210000001625",null,"3838495","IVONNE JULIETH ROJAS ROJAS","Persona Natural",null,null,null,null,11333333,null,1,5000000,16333333,5500000,"2022-08-03","2022-08-03","2022-08-03",68,1,"1 MES","N/A","N/A","N/A","N/A","TERMINADO",0.33673470074968775]
["FDLC-CPS-319-2024",2024,"FDLC-CPS-319-2024","https://community.secop.gov.co/Public/Tendering/OpportunityDetail/Index?noticeUID=CO1.NTC.6907294&isFromPublicArea=True&isModal=true&asPopupView=true","CPS","CONTRATACION DIRECTA","No aplica","PRESTACIÓN DE SERVICIOS PROFESIONALES EN LA RECOPILACIÓN Y ANALISIS DE DATOS; ASI COMO LA IMPLEMENTACIÓN DE ACCIONES Y ESTRATEGIAS CULTURALES; MUSICALES Y ARTÍSTICAS ENFOCADAS A LAS INSTANCIAS DE PARTICIPACIÓN DE LA LOCALIDAD LA CANDELARIA","INVERSION","Un Nuevo Contrato Social y Ambiental para la Bogotá del Siglo XXI",21,"Creación y vida cotidiana: Apropiación ciudadana del arte, la cultura y el patrimonio, para la democracia cultural","Propósito 1. Hacer un nuevo contrato social con igualdad de oportunidades para la inclusiòn social, productiva y polìtica ","O23011601210000001625",null,"1010160868","CRISTIAN EDUAR RODRIGUEZ PIRAQUIVE","Persona Natural",null,null,null,null,11773400,null,null,0,11773400,6364000,"2022-08-03","2022-08-03","2022-08-03",74,0,"NO APLICA","N/A","N/A","N/A","N/A","TERMINADO",0.54054054054054057]
["FDLC-CPS-320-2024",2024,"FDLC-CPS-320-2024","https://community.secop.gov.co/Public/Tendering/OpportunityDetail/Index?noticeUID=CO1.NTC.6907193&isFromPublicArea=True&isModal=true&asPopupView=true","CPS","CONTRATACION DIRECTA","No aplica","PRESTAR SERVICIOS TÉCNICOS DE APOYO AL FONDO DE DESARROLLO LOCAL DE LA CANDELARIA PARA LA GESTION DE LOS ASUNTOS RELACIONADOS CON SEGURIDAD CIUDADANA; CONVIVENCIA; PREVENCIÓN DE CONFLICTIVIDADES; VIOLENCIAS Y DELITOS EN LA LOCALIDAD","INVERSION","Un Nuevo Contrato Social y Ambiental para la Bogotá del Siglo XXI",57,"Gestión Pública Local","Propósito 5. Construir Bogotà - Regiòn con gobierno abierto, transparente y ciudadanìa consciente. ","O23011605570000002023",null,"79687787","MARIA DEL PILAR CRUZ PINZON","Persona Natural",null,null,null,null,7400000,null,1,3000000,10400000,4000000,"2022-08-03","2022-08-03","2022-08-03",74,1,"1 MES","N/A","N/A","N/A","N/A","TERMINADO",0.38461538461538464]
["FDLC-CPS-321-2024",2024,"FDLC-CPS-321-2024","https://community.secop.gov.co/Public/Tendering/OpportunityDetail/Index?noticeUID=CO1.NTC.6907936&isFromPublicArea=True&isModal=true&asPopupView=true","CPS","CONTRATACION DIRECTA","No aplica","PRESTAR SERVICIOS PROFESIONALES AL FONDO DE DESARROLLO LOCAL PARA APOYAR LA FORMULACIÓN; EJECUCIÓN; SEGUIMIENTO Y MEJORA CONTINUA DE LAS HERRAMIENTAS QUE CONFORMAN LA GESTIÓN AMBIENTAL INSTITUCIONAL DE LA ALCALDIA LOCAL","INVERSION","Un Nuevo Contrato Social y Ambiental para la Bogotá del Siglo XXI",33,"Más árboles y más y mejor espacio público","Propósito 2. Cambiar nuestros hàbitos de vida para reverdecer a Bogotà y adaptarnos y mitigar la crisis climàtica.","O23011602330000001703",null,"1010209957","ANGELICA MARIA ESPINO","Persona Natural",null,null,null,null,12166667,null,null,0,12166667,6666667,"2022-08-03","2022-08-03","2022-08-03",73,0,"NO APLICA","N/A","N/A","N/A","N/A","TERMINADO",0.54794521786451456]
["FDLC-CPS-322-2024",2024,"FDLC-IMC-009-2024","https://community.secop.gov.co/Public/Tendering/OpportunityDetail/Index?noticeUID=CO1.NTC.6800064&isFromPublicArea=True&isModal=true&asPopupView=true","PRESTACION DE SERVICIOS","MINIMA CUANTIA","No aplica","PRESTAR EL SERVICIO DE MANTENIMIENTO PREVENTIVO Y CORRECTIVO; INCLUIDO EL SUMINISTRO DE REPUESTOS; MANO DE OBRA Y REVISIÓN TÉCNICO MECÁNICA Y DE EMISIONES CONTAMINANTES; JUNTO CON LA EXPEDICIÓN DEL CERTIFICADO PARA LOS VEHICULOS QUE CONFORMAN EL PARQUE AUTOMOTOR DEL FONDO DE DESARROLLO LOCAL DE LA C","FUNCIONAMIENTO","Un Nuevo Contrato Social y Ambiental para la Bogotá del Siglo XXI","No aplica","No aplica","No aplica","O2120202008078714102",null,"79651441","TOYOCAR'S INGENIERIA AUTOMOTRIZ SAS","Persona Natural",null,null,null,null,21800000,null,null,0,21800000,1072254,"2022-08-03","2022-08-03","2022-08-03",180,0,"NO APLICA","N/A","N/A","N/A","N/A","EJECUCION",4.9185963302752295E-2]
["FDLC-CIA-323-2024",2024,"FDLC-CIA-323-2024","https://www.contratos.gov.co/consultas/detalleProceso.do?numConstancia=24-22-98379&g","CONVENIO INTERADMINISTRATIVO","CONTRATACION DIRECTA","No aplica","Aunar esfuerzos técnicos y financieros entre la Secretaría de Cultura Recreación y Deporte -SCRD y los Fondos de desarrollo local de Santa Fe y de la Candelaria en torno a las acciones necesarias referentes a la estructuración del proyecto cultural y artístico “BARRIOS VIVOS NAVIDEÑOS NAVIDAD 2024","INVERSION","Un Nuevo Contrato Social y Ambiental para la Bogotá del Siglo XXI",21,"Creación y vida cotidiana: Apropiación ciudadana del arte, la cultura y el patrimonio, para la democracia cultural","Propósito 1. Hacer un nuevo contrato social con igualdad de oportunidades para la inclusiòn social, productiva y polìtica ","O23011601210000001625",null,"88141104","SECRETARIA DE CULTURA RECREACION  Y DEPORTE","Persona Natural",null,null,null,null,3034824356,null,null,0,3034824356,3034824356,"2022-09-01","2022-09-01","2022-09-01",69,0,"NO APLICA","N/A","N/A","N/A","N/A","TERMINADO",1]
["FDLC-CPS-324-2024",2024,"FDLC-CPS-324-2024","https://community.secop.gov.co/Public/Tendering/OpportunityDetail/Index?noticeUID=CO1.NTC.6913343&isFromPublicArea=True&isModal=true&asPopupView=true","CPS","CONTRATACION DIRECTA","No aplica","PRESTAR SERVICIOS PROFESIONALES ESPECIALIZADOS AL FONDO DE DESARROLLO LOCAL DE LA CANDELARIA; PARA ACOMPAÑAR AL ALCALDE(SA); EN LA GESTIÓN; PROMOCION Y ATENCIÓN DE LAS INSTANCIAS DE PARTICIPACIÓN INTERINSTITUCIONALES Y LOCALES; COMO TAMBIEN; DE LOS PROCESOS COMUNITARIOS Y LOGISTICOS QUE SE REQUIERA","INVERSION","Un Nuevo Contrato Social y Ambiental para la Bogotá del Siglo XXI",55,"Fortalecimiento de Cultura Ciudadana y su institucionalidad","Propósito 5. Construir Bogotà - Regiòn con gobierno abierto, transparente y ciudadanìa consciente. ","O23011605550000002019",null,"79593962","CARLOS ANDRES SAENZ RIVEROS","Persona Natural",null,null,null,null,18250000,null,1,7500000,25750000,10000000,"2022-09-02","2022-09-02","2022-09-02",73,1,"1 MES","N/A","N/A","N/A","N/A","TERMINADO",0.38834951456310679]
["FDLC-CPS-325-2024",2024,"FDLC-CPS-325-2024","https://community.secop.gov.co/Public/Tendering/OpportunityDetail/Index?noticeUID=CO1.NTC.6949547&isFromPublicArea=True&isModal=true&asPopupView=true","CPS","CONTRATACION DIRECTA","No aplica","PRESTAR SERVICIOS PROFESIONALES PARA ADELANTAR LA ORGANIZACIÓN DE TALLERES; SEMINARIOS; EVENTOS Y ACTIVIDADES PARA EL DESARROLLO DE COMPETENCIAS ARTÍSTICAS EN LA LOCALIDAD","INVERSION","Un Nuevo Contrato Social y Ambiental para la Bogotá del Siglo XXI",24,"Bogotá región emprendedora e innovadora","Propósito 1. Hacer un nuevo contrato social con igualdad de oportunidades para la inclusiòn social, productiva y polìtica ","O23011601240000001627",null,"3838495","CAMILA ANDREA  VALDERRAMA RIVERA","Persona Natural",null,null,null,null,10833333,null,1,5000000,15833333,5500000,"2022-09-02","2022-09-02","2022-09-02",65,1,"1 MES","N/A","N/A","N/A","N/A","TERMINADO",0.34736842836565113]
["FDLC-CPS-326-2024",2024,"FDLC-CPS-326-2024","https://community.secop.gov.co/Public/Tendering/OpportunityDetail/Index?noticeUID=CO1.NTC.6967231&isFromPublicArea=True&isModal=true&asPopupView=true","CPS","CONTRATACION DIRECTA","No aplica","PRESTAR LOS SERVICIOS PROFESIONALES ESPECIALIZADOS AL DESPACHO DEL FONDO DE DESARROLLO LOCAL DE LA CANDELARIA EN EL CURSO DE LA GESTIÓN ADMINISTRATIVA Y FINANCIERA PARA EL DESARROLLO LOCAL","INVERSION","Un Nuevo Contrato Social y Ambiental para la Bogotá del Siglo XXI",57,"Gestión Pública Local","Propósito 5. Construir Bogotà - Regiòn con gobierno abierto, transparente y ciudadanìa consciente. ","O23011605570000002021",null,"1010160868","RENEE MAURICIO QUIMBAY BARRERA","Persona Natural",null,null,null,null,15000000,null,1,7500000,22500000,7500000,"2022-09-02","2022-09-02","2022-09-02",60,1,"1 MES","N/A","N/A","N/A","N/A","TERMINADO",0.33333333333333331]
["FDLC-CPS-327-2024",2024,"FDLC-CPS-327-2024","https://community.secop.gov.co/Public/Tendering/OpportunityDetail/Index?noticeUID=CO1.NTC.6969151&isFromPublicArea=True&isModal=true&asPopupView=true","CPS","CONTRATACION DIRECTA","No aplica","PRESTAR SERVICIOS PROFESIONALES ESPECIALIZADOS AL FONDO DE DESARROLLO LOCAL DE LA CANDELARIA EN EL DESARROLLO DE LOS PROCESOS Y ACTIVIDADES JURÍDICAS; ADMINISTRATIVAS; CONTRACTUALES Y POLICIVAS QUE SE ADELANTAN EN EL DESPACHO DE LA ALCALDESA LOCAL","INVERSION","Un Nuevo Contrato Social y Ambiental para la Bogotá del Siglo XXI",57,"Gestión Pública Local","Propósito 5. Construir Bogotà - Regiòn con gobierno abierto, transparente y ciudadanìa consciente. ","O23011605570000002021",null,"79687787","GUILLERMO PERDOMO RAMIREZ","Persona Natural",null,null,null,null,15000000,null,1,7500000,22500000,7750000,"2022-09-02","2022-09-02","2022-09-02",60,1,"1 MES","N/A","N/A","N/A","N/A","TERMINADO",0.34444444444444444]
["FDLC-CPS-328-2024",2024,"FDLC-CPS-328-2024","https://community.secop.gov.co/Public/Tendering/OpportunityDetail/Index?noticeUID=CO1.NTC.6945591&isFromPublicArea=True&isModal=true&asPopupView=true","CPS","CONTRATACION DIRECTA","No aplica","PRESTAR SERVICIOS DE APOYO ADMINISTRATIVO Y ASISTENCIAL EN LOS PROCESOS DE LOS ASUNTOS JURÍDICOS Y ACTUACIONES ADMINISTRATIVAS ADELANTADOS POR LA ALCALDÍA LOCAL DE LA CANDELARIA","INVERSION","Un Nuevo Contrato Social y Ambiental para la Bogotá del Siglo XXI",57,"Gestión Pública Local","Propósito 5. Construir Bogotà - Regiòn con gobierno abierto, transparente y ciudadanìa consciente. ","O23011605570000002023",null,"1010209957","WILSON HAISBER RAMIREZ REINA","Persona Natural",null,null,null,null,6342600,null,1,2883000,9225600,3171300,"2022-09-02","2022-09-02","2022-09-02",68,1,"1 MES","N/A","N/A","N/A","N/A","TERMINADO",0.34375]
["FDLC-CPS-329-2024",2024,"FDLC-CPS-329-2024","https://community.secop.gov.co/Public/Tendering/OpportunityDetail/Index?noticeUID=CO1.NTC.6946624&isFromPublicArea=True&isModal=true&asPopupView=true","CPS","CONTRATACION DIRECTA","No aplica","PRESTAR SERVICIOS DE APOYO EN LAS ACTIVIDADES DE SEGURIDAD Y CONVIVENCIA CIUDADANA DE ACUERDO A LAS NECESIDADES Y ESTRATEGIAS DE LA ALCALDIA LOCAL DE LA CANDELARIA",null,"Un Nuevo Contrato Social y Ambiental para la Bogotá del Siglo XXI",45,"Espacio público más seguro y construido colectivamente","Propósito 3. Inspirar confianza y legitimidad para vivir sin miedo y ser epicentro de cultura ciudadana, paz y reconciliaciòn ","O23011603450000001786",null,"79651441","YOLIMA SOLIS PAYA","Persona Natural",null,null,null,null,4198666,null,1,1880000,6078666,1880000,"2022-09-02","2022-09-02","2022-09-02",67,1,"1 MES","N/A","N/A","N/A","N/A","TERMINADO",0.30927838443500599]
["FDLC-CCV-330-2024",2024,"FDLC-IMC-010-2024","https://community.secop.gov.co/Public/Tendering/OpportunityDetail/Index?noticeUID=CO1.NTC.6881688&isFromPublicArea=True&isModal=true&asPopupView=true","COMPRAVENTA","MINIMA CUANTIA","No aplica","ADQUIRIR CAJAS Y CARPETAS PARA LA ORGANIZACIÓN DEL ARCHIVO Y GESTIÓN DOCUMENTAL DEL FONDO DE DESARROLLO LOCAL DE LA CANDELARIA","FUNCIONAMIENTO","Un Nuevo Contrato Social y Ambiental para la Bogotá del Siglo XXI","No aplica","No aplica","No aplica","O2120201003023219999",null,"88141104","GRUPO OFFICE AND FILE SAS","Persona Natural",null,null,null,null,6664000,null,null,0,6664000,null,"2022-09-02","2022-09-02","2022-09-02",90,0,"NO APLICA","N/A","N/A","N/A","N/A","TERMINADO",{"$f":"IF(ISERROR(AB341/AA341),\"-\",(AB341/AA341))","v":0}]
["FDLC-CPS-331-2024",2024,"FDLC-CPS-331-2024","https://community.secop.gov.co/Public/Tendering/OpportunityDetail/Index?noticeUID=CO1.NTC.6975279&isFromPublicArea=True&isModal=true&asPopupView=true","CPS","CONTRATACION DIRECTA","No aplica","PRESTAR SERVICIOS PROFESIONALES PARA EL ACOMPAÑAMIENTO A LOS PROYECTOS DE OBRAS PUBLICAS E INFRAESTRUCTURA QUE DESARROLLE EL FONDO DE DESARROLLO LOCAL DE LA CANDELARIA","INVERSION","Un Nuevo Contrato Social y Ambiental para la Bogotá del Siglo XXI",49,"Movilidad segura, sostenible y accesible","Propòsito 4. Hacer de Bogotà - Region un modelo de movilidad multimodal, incluyente y sostenible ","O23011604490000002020",null,"79593962","LAURA DANIELA JACOME HERNANDEZ","Persona Natural",null,null,null,null,14000000,null,1,1166667,15166667,7000000,"2022-10-04","2022-10-04","2022-10-04",60,1,"5 DIAS","N/A","N/A","N/A","N/A","TERMINADO",0.4615384513947593]
["FDLC-CPS-332-2024",2024,"FDLC-CPS-332-2024","https://community.secop.gov.co/Public/Tendering/OpportunityDetail/Index?noticeUID=CO1.NTC.6975700&isFromPublicArea=True&isModal=true&asPopupView=true","CPS","CONTRATACION DIRECTA","No aplica","PRESTAR SERVICIOS PROFESIONALES PARA APOYAR AL ALCALDE (SA); EN LOS PROCESOS TENDIENTES A DESARROLLAR LOS PROYECTOS DEL PLAN DE DESARROLLO LOCAL PARA LA VIGENCIA 2024","INVERSION","Un Nuevo Contrato Social y Ambiental para la Bogotá del Siglo XXI",57,"Gestión Pública Local","Propósito 5. Construir Bogotà - Regiòn con gobierno abierto, transparente y ciudadanìa consciente. ","O23011605570000002021",null,"3838495","JENNY LILIANA CAMACHO ANGEL","Persona Natural",null,null,null,null,11600000,null,1,5800000,17400000,5800000,"2022-10-04","2022-10-04","2022-10-04",60,1,"1 MES","N/A","N/A","N/A","N/A","TERMINADO",0.33333333333333331]
["FDLC-CPS-333- 2024",2024,"FDLC-CPS-333- 2024","https://community.secop.gov.co/Public/Tendering/OpportunityDetail/Index?noticeUID=CO1.NTC.6980226&isFromPublicArea=True&isModal=true&asPopupView=true","CPS","CONTRATACION DIRECTA","No aplica","PRESTAR SUS SERVICIOS PROFESIONALES EN LOS PROYECTOS DE OBRAS PUBLICAS E INFRAESTRUCTURA QUE DESARROLLE EL FONDO DE DESARROLLO LOCAL DE LA CANDELARIA","INVERSION","Un Nuevo Contrato Social y Ambiental para la Bogotá del Siglo XXI",49,"Movilidad segura, sostenible y accesible","Propòsito 4. Hacer de Bogotà - Region un modelo de movilidad multimodal, incluyente y sostenible ","O23011604490000002020",null,"1010160868","FELIPE ANDRES LEON CASTILLO","Persona Natural",null,null,null,null,10000000,null,null,0,10000000,5000000,"2022-10-04","2022-10-04","2022-10-04",60,0,"NO APLICA","N/A","N/A","N/A","N/A","TERMINADO",0.5]
["FDLC-CPS-334-2024",2024,"FDLC-CPS-334-2024","https://community.secop.gov.co/Public/Tendering/OpportunityDetail/Index?noticeUID=CO1.NTC.6981198&isFromPublicArea=True&isModal=true&asPopupView=true","CPS","CONTRATACION DIRECTA","No aplica","PRESTAR SERVICIOS DE APOYO ADMINISTRATIVO Y ASISTENCIAL AL FONDO DE DESARROLLO LOCAL DE LA CANDELARIA; EN EL CENTRO DE INFORMACIÓN Y DOCUMENTACIÓN (CDI); PARA LA NOTIFICACIÓN DE CORRESPONDENCIA DE LA ENTIDAD. CONFORME A LAS INSTRUCCIONES PARA EL TRÁMITE DE RADICACIÓN; DIGITALIZACIÓN Y REPARTO DE LAS COMUNICACIONES EN EL CENTRO DE DOCUMENTACIÓN E INFORMACIÓN CDI.","INVERSION","Un Nuevo Contrato Social y Ambiental para la Bogotá del Siglo XXI",57,"Gestión Pública Local","Propósito 5. Construir Bogotà - Regiòn con gobierno abierto, transparente y ciudadanìa consciente. ","O23011605570000002021",null,"79687787","DIEGO FERNANDO FORERO SEDANO","Persona Natural",null,null,null,null,3750000,null,1,1833000,5583000,2166667,"2022-10-04","2022-10-04","2022-10-04",45,1,"22 DIAS","N/A","N/A","N/A","N/A","TERMINADO",0.38808293032419844]
["FDLC-CPS-335-2024",2024,"FDLC-CPS-335-2024","https://community.secop.gov.co/Public/Tendering/OpportunityDetail/Index?noticeUID=CO1.NTC.6984349&isFromPublicArea=True&isModal=true&asPopupView=true","CPS","CONTRATACION DIRECTA","No aplica","PRESTAR SERVICIOS PROFESIONALES AL FONDO DE DESARROLLO LOCAL DE LA CANDELARIA PARA EL DESARROLLO DE LAS ACTIVIDADES RELACIONADAS CON LOS PROCESOS DE CONTRATACIÓN; EN LAS ETAPAS PRECONTRACTUAL; CONTRACTUAL Y POSTCONTRACTUAL.","INVERSION","Un Nuevo Contrato Social y Ambiental para la Bogotá del Siglo XXI",57,"Gestión Pública Local","Propósito 5. Construir Bogotà - Regiòn con gobierno abierto, transparente y ciudadanìa consciente. ","O23011605570000002021",null,"1010209957","PAULA ALEJANDRA BARACALDO JACOME","Persona Natural",null,null,null,null,10000000,null,1,5000000,15000000,4833333,"2022-10-04","2022-10-04","2022-10-04",60,1,"1 MES","N/A","N/A","N/A","N/A","TERMINADO",0.32222220000000001]
["FDLC-CPS-336-2024",2024,"FDLC-CPS-336-2024","https://community.secop.gov.co/Public/Tendering/OpportunityDetail/Index?noticeUID=CO1.NTC.6984280&isFromPublicArea=True&isModal=true&asPopupView=true","CPS","CONTRATACION DIRECTA","No aplica","PRESTAR SERVICIOS DE APOYO A LA GESTIÓN COMO RECREADOR; PARA PLANEAR Y EJECUTAR ACTIVIDADES RECREATIVAS Y RECREODEPORTIVAS DE LA LOCALIDAD; ACOMPAÑANDO LOS PROCESOS CON LOS DIFERENTES GRUPOS POBLACIONALES EN LA ALCALDIA LOCAL DE LA CANDELARIA.","INVERSION","Un Nuevo Contrato Social y Ambiental para la Bogotá del Siglo XXI",20,"Bogotá, referente en cultura, deporte, recreación y actividad física, con parques para el desarrollo y la salud","Propósito 1. Hacer un nuevo contrato social con igualdad de oportunidades para la inclusiòn social, productiva y polìtica ","O23011601200000001611",null,"79651441","DAVID GERARDO MUÑOZ MEDINA","Persona Natural",null,null,null,null,6000000,null,1,3000000,9000000,2900000,"2022-10-04","2022-10-04","2022-10-04",60,1,"1 MES","N/A","N/A","N/A","N/A","TERMINADO",0.32222222222222224]
["FDLC-CPS-337-2024",2024,"FDLC-CPS-337-2024","https://community.secop.gov.co/Public/Tendering/OpportunityDetail/Index?noticeUID=CO1.NTC.7019664&isFromPublicArea=True&isModal=true&asPopupView=true","CPS","CONTRATACION DIRECTA","No aplica","PRESTACIÓN DE SERVICIOS PROFESIONALES AL FONDO DE DESARROLLO LOCAL DE LA CANDELARIA EN LA IMPLEMENTACIÓN DE ACCIONES Y ESTRATEGIAS CULTURALES; MUSICALES Y ARTÍSTICAS","INVERSION","Un Nuevo Contrato Social y Ambiental para la Bogotá del Siglo XXI",21,"Creación y vida cotidiana: Apropiación ciudadana del arte, la cultura y el patrimonio, para la democracia cultural","Propósito 1. Hacer un nuevo contrato social con igualdad de oportunidades para la inclusiòn social, productiva y polìtica ","O23011601210000001625",null,"88141104","LAURA NATALIA BARCELO NIETO","Persona Natural",null,null,null,null,10800000,null,1,5200000,16000000,4600000,"2022-10-04","2022-10-04","2022-10-04",54,1,"26 DIAS","N/A","N/A","N/A","N/A","TERMINADO",0.28749999999999998]
["FDLC-CPS-338-2024",2024,"FDLC-CPS-338-2024","https://community.secop.gov.co/Public/Tendering/OpportunityDetail/Index?noticeUID=CO1.NTC.6983245&isFromPublicArea=True&isModal=true&asPopupView=true","CPS","CONTRATACION DIRECTA","No aplica","PRESTAR SERVICIOS PROFESIONALES AL FONDO DE DESARROLLO LOCAL DE LA CANDELARIA PARA EL DESARROLLO DE LAS ACTIVIDADES RELACIONADAS CON LOS PROCESOS DE CONTRATACIÓN EN LAS ETAPAS PRECONTRACTUAL; CONTRACTUAL Y POSTCONTRACTUAL QUE SE REQUIERAN POR PARTE DEL DESPACHO DE LA ALCALDESA LOCAL","INVERSION","Un Nuevo Contrato Social y Ambiental para la Bogotá del Siglo XXI",57,"Gestión Pública Local","Propósito 5. Construir Bogotà - Regiòn con gobierno abierto, transparente y ciudadanìa consciente. ","O23011605570000002021",null,"3838495","DANIELA PARADA RODRIGUEZ","Persona Natural",null,null,null,null,14000000,null,1,7000000,21000000,7000000,"2022-11-03","2022-11-03","2022-11-03",60,1,"1 MES","N/A","N/A","N/A","N/A","TERMINADO",0.33333333333333331]
["FDLC-CPS-339-2024",2024,"FDLC-CPS-339-2024","https://community.secop.gov.co/Public/Tendering/OpportunityDetail/Index?noticeUID=CO1.NTC.6983082&isFromPublicArea=True&isModal=true&asPopupView=true","CPS","CONTRATACION DIRECTA","No aplica","PRESTAR SERVICIOS PROFESIONALES ESPECIALIZADOS PARA APOYAR EL USO DE LOS APLICATIVOS DE CONTRATACIÓN; ASÍ COMO LAS RESPUESTAS A LOS ORGANOS DE CONTROL Y TODO LO RELACIONADO CON LA ACTIVIDAD PRECONTRACTUAL; CONTRACTUAL Y POSTCONTRACTUAL DE LA EJECUCIÓN DE LOS RECURSOS DEL FDLC","INVERSION","Un Nuevo Contrato Social y Ambiental para la Bogotá del Siglo XXI",57,"Gestión Pública Local","Propósito 5. Construir Bogotà - Regiòn con gobierno abierto, transparente y ciudadanìa consciente. ","O23011605570000002021",null,"79593962","LUISA FERNANDA VELASCO LIZARAZO","Persona Natural",null,null,null,null,11250000,null,1,5250000,16500000,7500000,"2022-11-03","2022-11-03","2022-11-03",45,1,"22 DIAS","N/A","N/A","N/A","N/A","TERMINADO",0.45454545454545453]
["FDLC-CPS-340-2024",2024,"FDLC-CPS-340-2024","https://community.secop.gov.co/Public/Tendering/OpportunityDetail/Index?noticeUID=CO1.NTC.6997853&isFromPublicArea=True&isModal=true&asPopupView=true","CPS","CONTRATACION DIRECTA","No aplica","PRESTAR SERVICIOS PROFESIONALES PARA APOYAR LA FORMULACIÓN GESTIÓN Y SEGUIMIENTO DE ACTIVIDADES ENFOCADAS A LA GESTIÓN AMBIENTAL EXTERNA E INTERNA ENCAMINADAS A LA MITIGACIÓN DE LOS DIFERENTES IMPACTOSAMBIENTALES Y LA CONSERVACIÓN DE LOS RECURSOS NATURALES DE LA LOCALIDAD","INVERSION","Un Nuevo Contrato Social y Ambiental para la Bogotá del Siglo XXI",34,"Bogotá protectora de los animales","Propòsito 2. Cambiar nuestros hàbitos de vida para reverdecer a Bogotà y adaptarnos y mitigar la crisis climàtica.","O23011602340000001704",null,"1010160868","DAISSY TATIANA FAJARDO VELASCO","Persona Natural",null,null,null,null,11200000,null,1,5600000,16800000,5000000,"2022-11-03","2022-11-03","2022-11-03",59,1,"28 DIAS","N/A","N/A","N/A","N/A","TERMINADO",0.29761904761904762]
["FDLC-CPS-341-2024",2024,"FDLC-CPS-341-2024","https://community.secop.gov.co/Public/Tendering/OpportunityDetail/Index?noticeUID=CO1.NTC.6991702&isFromPublicArea=True&isModal=true&asPopupView=true","CPS","CONTRATACION DIRECTA","No aplica","PRESTAR SERVICIOS PROFESIONALES PARA APOYAR JURÍDICAMENTE LA EJECUCIÓN DE LAS ACCIONES REQUERIDAS PARA LA DEPURACIÓN DE LAS ACTUACIONES ADMINISTRATIVAS QUE CURSAN EN LA ALCALDÍA LOCAL DE LA CANDELARIA","INVERSION","Un Nuevo Contrato Social y Ambiental para la Bogotá del Siglo XXI",57,"Gestión Pública Local","Propósito 5. Construir Bogotà - Regiòn con gobierno abierto, transparente y ciudadanìa consciente. ","O23011605570000002023",null,"79687787","DAVID ANTONIO RODRIGUEZ PULIDO","Persona Natural",null,null,null,null,10190133,null,1,5095067,15285200,4549667,"2022-11-03","2022-11-03","2022-11-03",56,1,"27 DIAS","N/A","N/A","N/A","N/A","TERMINADO",0.29765178080757859]
["FDLC-CPS-342-2024",2024,"FDLC-CPS-342-2024","https://community.secop.gov.co/Public/Tendering/OpportunityDetail/Index?noticeUID=CO1.NTC.6991465&isFromPublicArea=True&isModal=true&asPopupView=true","CPS","CONTRATACION DIRECTA","No aplica","PRESTAR SERVICIOS PROFESIONALES EN EL DESPACHO DE LA ALCALDÍA DE LA CANDELARIA PARA EL FORTALECIMIENTO DE LA GESTIÓN JURÍDICA Y CONTRACTUAL EN EL MARCO DEL MODELO DE GESTIÓN DE LA ENTIDAD ACOMPAÑANDO LA AGENDA DE LA ALCALDESA PARA EL SEGUIMIENTO DE LOS COMPROMISOS LOCALES Y CON ENTIDADES DEL ORDEN DISTRITAL","INVERSION","Un Nuevo Contrato Social y Ambiental para la Bogotá del Siglo XXI",57,"Gestión Pública Local","Propósito 5. Construir Bogotà - Regiòn con gobierno abierto, transparente y ciudadanìa consciente. ","O23011605570000002021",null,"1010209957","VALENTINA BAUTISTA GRIJALBA","Persona Natural",null,null,null,null,10173333,null,1,4905000,15078333,4541667,"2022-11-03","2022-11-03","2022-11-03",56,1,"27 DIAS","N/A","N/A","N/A","N/A","TERMINADO",0.30120484804255221]
["FDLC-CPS-343-2024",2024,"FDLC-CPS-343-2024","https://community.secop.gov.co/Public/Tendering/OpportunityDetail/Index?noticeUID=CO1.NTC.7009531&isFromPublicArea=True&isModal=true&asPopupView=true","CPS","CONTRATACION DIRECTA","No aplica","PRESTAR SERVICIOS PROFESIONALES AL FONDO DE DESARROLLO LOCAL DE LA CANDELARIA PARA REALIZAR LOS TRÁMITES NECESARIOS PARA EL SEGUIMIENTO A LA EJECUCIÓN Y LIQUIDACIÓN DE CONTRATOS RELACIONADOS CON PROYECTOS DEL SECTOR CULTURA Y CREATIVO DE LA LOCALIDAD.","INVERSION","Un Nuevo Contrato Social y Ambiental para la Bogotá del Siglo XXI",24,"Bogotá región emprendedora e innovadora","Propósito 1. Hacer un nuevo contrato social con igualdad de oportunidades para la inclusiòn social, productiva y polìtica ","O23011601240000001627",null,"79651441","YARSELY SUAREZ SUAREZ","Persona Natural",null,null,null,null,10800000,null,1,5200000,16000000,4800000,"2022-11-03","2022-11-03","2022-11-03",54,1,"26 DIAS","N/A","N/A","N/A","N/A","TERMINADO",0.3]
["FDLC-CPS-344-2024",2024,"FDLC-CPS-344-2024","https://community.secop.gov.co/Public/Tendering/OpportunityDetail/Index?noticeUID=CO1.NTC.7014716&isFromPublicArea=True&isModal=true&asPopupView=true","CPS","CONTRATACION DIRECTA","No aplica","PRESTACIÓN DE SERVICIOS DE APOYO TÉCNICO AL FONDO DE DESARROLLO LOCAL DE LA CANDELARIA EN LOS ASUNTOS RELACIONADOS CON LOS PROCESOS DEL ALMACEN DE LA ENTIDAD","INVERSION","Un Nuevo Contrato Social y Ambiental para la Bogotá del Siglo XXI",57,"Gestión Pública Local","Propósito 5. Construir Bogotà - Regiòn con gobierno abierto, transparente y ciudadanìa consciente. ","O23011605570000002021",null,"88141104","YULI ANGELICA PUIN GOMEZ","Persona Natural",null,null,null,null,7066666,null,1,3466667,10533333,3009856,"2022-11-03","2022-11-03","2022-11-03",54,1,"26 DIAS","N/A","N/A","N/A","N/A","TERMINADO",0.28574583182739977]
["FDLC-CPS-345-2024",2024,"FDLC-CPS-345-2024","https://community.secop.gov.co/Public/Tendering/OpportunityDetail/Index?noticeUID=CO1.NTC.7010575&isFromPublicArea=True&isModal=true&asPopupView=true","CPS","CONTRATACION DIRECTA","No aplica","PRESTAR SERVICIOS PROFESIONALES AL FONDO DE DESARROLLO LOCAL DE LA CANDELARIA PARA APOYAR Y FORTALECER LAS GESTIONES CONTABLES DE LA ENTIDAD","INVERSION","Un Nuevo Contrato Social y Ambiental para la Bogotá del Siglo XXI",57,"Gestión Pública Local","Propósito 5. Construir Bogotà - Regiòn con gobierno abierto, transparente y ciudadanìa consciente. ","O23011605570000002021",null,79593962,"MARY FERNANDA TORRADO PEÑARANDA ","Persona Natural",null,null,null,null,10246667,null,1,4833333,15080000,4446667,"2022-12-05","2022-12-05","2022-12-05",53,1,"25 DIAS","N/A","N/A","N/A","N/A","TERMINADO",0.2948718169761273]
["FDLC-CPS-346-2024",2024,"FDLC-CPS-346-2024","https://community.secop.gov.co/Public/Tendering/OpportunityDetail/Index?noticeUID=CO1.NTC.7007650&isFromPublicArea=True&isModal=true&asPopupView=true","CPS","CONTRATACION DIRECTA","No aplica","PRESTACION DE SERVICIOS TÉCNICOS AL FONDO DESARROLLO LOCAL DE LA CANDELARIA PARA GESTIONAR LOS PUNTOS VIVE DIGITAL Y FOMENTAR EN LA COMUNIDAD EL USO DE LAS TICS COMO ESTRATEGIA DE APOYO A LOS EMPRENDIMIENTOS CULTURALES YCREATIVOS LOCALES","INVERSION","Un Nuevo Contrato Social y Ambiental para la Bogotá del Siglo XXI",57,"Gestión Pública Local","Propósito 5. Construir Bogotà - Regiòn con gobierno abierto, transparente y ciudadanìa consciente. ","O23011605570000002021",null,3838495,"LINFER JOSE VILLACOB MEDRANO ","Persona Natural",null,null,null,null,4900000,null,1,2300000,7200000,1900000,"2022-12-05","2022-12-05","2022-12-05",49,1,"23 DIAS","N/A","N/A","N/A","N/A","TERMINADO",0.2638888888888889]
["FDLC-CPS-347-2024",2024,"FDLC-CPS-347-2024","https://community.secop.gov.co/Public/Tendering/OpportunityDetail/Index?noticeUID=CO1.NTC.7013193&isFromPublicArea=True&isModal=true&asPopupView=true","CPS","CONTRATACION DIRECTA","No aplica","PRESTAR SERVICIOS PROFESIONALES AL FONDO DE DESARROLLO LOCAL DE LA CANDELARIA PARA REALIZAR LA GESTIÓN DE CALIDAD SEGÚN LOS LINEAMIENTOS DE LA SECRETARÍA DISTRITAL DE GOBIERNO","INVERSION","Un Nuevo Contrato Social y Ambiental para la Bogotá del Siglo XXI",57,"Gestión Pública Local","Propósito 5. Construir Bogotà - Regiòn con gobierno abierto, transparente y ciudadanìa consciente. ","O23011605570000002021",null,1010160868,"YEINER GARCIA MARIN","Persona Natural",null,null,null,null,9660133,null,1,4566666,14226799,3280800,"2022-12-05","2022-12-05","2022-12-05",53,1,"25 DIAS","N/A","N/A","N/A","N/A","TERMINADO",0.23060703957369469]
["FDLC-CPS-348-2024",2024,"FDLC-CPS-348-2024","https://community.secop.gov.co/Public/Tendering/OpportunityDetail/Index?noticeUID=CO1.NTC.7012956&isFromPublicArea=True&isModal=true&asPopupView=true","CPS","CONTRATACION DIRECTA","No aplica","PRESTAR SERVICIOS PROFESIONALES PARA EL ACOMPAÑAMIENTO Y PROMOCIÓN DE LAS ACTIVIDADES CULTURALES Y ARTISITAL QUE SE REALICEN EN LA ALCALDÍA LOCAL DE LA CANDELARIA","INVERSION","Un Nuevo Contrato Social y Ambiental para la Bogotá del Siglo XXI",24,"Bogotá región emprendedora e innovadora","Propósito 1. Hacer un nuevo contrato social con igualdad de oportunidades para la inclusiòn social, productiva y polìtica ","O23011601240000001627",null,79687787,"ANDREA DEL PILAR AREVALO VASQUEZ","Persona Natural",null,null,null,null,7159500,null,1,3182000,10341500,2863800,"2022-12-05","2022-12-05","2022-12-05",45,0,"20 DIAS","N/A","N/A","N/A","N/A","TERMINADO",0.27692307692307694]
["FDLC-CPS-349-2024",2024,"FDLC-CPS-349-2024","https://community.secop.gov.co/Public/Tendering/OpportunityDetail/Index?noticeUID=CO1.NTC.7017040&isFromPublicArea=True&isModal=true&asPopupView=true","CPS","CONTRATACION DIRECTA","No aplica","PRESTAR SERVICIOS DE APOYO EN LAS ACTIVIDADES DE SEGURIDAD Y CONVIVENCIA CIUDADANA DE ACUERDO A LAS NECESIDADES Y ESTRATEGIAS DE LA ALCALDIA LOCAL DE LA CANDELARIA","INVERSION","Un Nuevo Contrato Social y Ambiental para la Bogotá del Siglo XXI",45,"Espacio público más seguro y construido colectivamente","Propósito 3. Inspirar confianza y legitimidad para vivir sin miedo y ser epicentro de cultura ciudadana, paz y reconciliaciòn ","O23011603450000001786",null,"79687787","IVAN FELIPE SIERRA SANCHEZ","Persona Natural",null,null,null,null,3384000,null,null,0,3384000,1190667,"2022-12-05","2022-12-05","2022-12-05",54,0,"NO APLICA","N/A","N/A","N/A","N/A","TERMINADO",0.35185195035460992]
["FDLC-CPS-350-2024",2024,"FDLC-CPS-350-2024","https://community.secop.gov.co/Public/Tendering/OpportunityDetail/Index?noticeUID=CO1.NTC.7018772&isFromPublicArea=True&isModal=true&asPopupView=true","CPS","CONTRATACION DIRECTA","No aplica","PRESTAR SERVICIOS DE APOYO EN LAS ACTIVIDADES DE SEGURIDAD Y CONVIVENCIA CIUDADANA DE ACUERDO A LAS NECESIDADES Y ESTRATEGIAS DE LA ALCALDIA LOCAL DE LA CANDELARIA","INVERSION","Un Nuevo Contrato Social y Ambiental para la Bogotá del Siglo XXI",45,"Espacio público más seguro y construido colectivamente","Propósito 3. Inspirar confianza y legitimidad para vivir sin miedo y ser epicentro de cultura ciudadana, paz y reconciliaciòn ","O23011603450000001786",null,1010209957,"TITO JOSE MUTIS VALEST","Persona Natural",null,null,null,null,3384000,null,1,1692000,5076000,1128000,"2022-12-05","2022-12-05","2022-12-05",54,1,"24 DIAS","N/A","N/A","N/A","N/A","TERMINADO",0.22222222222222221]
["FDLC-CPS-351-2024",2024,"FDLC-CPS-351-2024","https://community.secop.gov.co/Public/Tendering/OpportunityDetail/Index?noticeUID=CO1.NTC.7019041&isFromPublicArea=True&isModal=true&asPopupView=true","CPS","CONTRATACION DIRECTA","No aplica","PRESTAR SERVICIOS PROFESIONALES EN LA ALCALDÍA LOCAL DE LA CANDELARIA PARA LLEVAR A CABO LA ACTUACIONES JURÍDICAS; ADMINISTRATIVAS; CONTRACTUALES Y DE SEGUIMIENTO A LOS PROCESOS DE ESPACIO PUBLICO QUE SE ADELANTEN EN LA LOCALIDAD","INVERSION","Un Nuevo Contrato Social y Ambiental para la Bogotá del Siglo XXI",45,"Espacio público más seguro y construido colectivamente","Propósito 3. Inspirar confianza y legitimidad para vivir sin miedo y ser epicentro de cultura ciudadana, paz y reconciliaciòn ","O23011603450000001786",null,79651441,"JAVIER AUGUSTO GUARDIOLA ROBLES","Persona Natural",null,null,null,null,11306667,null,1,5333333,16640000,4906667,"2022-12-05","2022-12-05","2022-12-05",53,1,"25 DIAS","N/A","N/A","N/A","N/A","TERMINADO",0.29487181490384617]
["FDLC-CPS-352-A-2024",2024,"FDLC-CPS-352-2024","https://community.secop.gov.co/Public/Tendering/OpportunityDetail/Index?noticeUID=CO1.NTC.7018697&isFromPublicArea=True&isModal=true&asPopupView=true","CPS","CONTRATACION DIRECTA","No aplica","PRESTAR SERVICIOS DE APOYO EN LOS EVENTOS Y ACTIVIDADES DE LA ADMINISTRACIÓN LOCAL Y EN TODAS AQUELLAS ACTIVIDADES REQUERIDAS PARA EL FUNCIONAMIENTO DE LA ALCALDÍA LOCAL Y SUS CASAS COMUNITARIAS.","INVERSION","Un Nuevo Contrato Social y Ambiental para la Bogotá del Siglo XXI",24,"Bogotá región emprendedora e innovadora","Propósito 1. Hacer un nuevo contrato social con igualdad de oportunidades para la inclusiòn social, productiva y polìtica ","O23011601240000001627",null,88141104,"MIGUEL MUSTAFA DECHAMPS RAHMAN","Persona Natural",null,null,null,null,4132300,null,null,0,4132300,1153200,"2022-12-05","2022-12-05","2022-12-05",43,0,"NO APLICA","N/A","N/A","N/A","N/A","TERMINADO",0.27906976744186046]
["FDLC-CPS-353-2024",2024,"FDLC-CPS-353-2024","https://community.secop.gov.co/Public/Tendering/OpportunityDetail/Index?noticeUID=CO1.NTC.7019032&isFromPublicArea=True&isModal=true&asPopupView=true","CPS","CONTRATACION DIRECTA","No aplica","PRESTAR SERVICIOS DE APOYO EN LAS ACTIVIDADES DE SEGURIDAD Y CONVIVENCIA CIUDADANA DE ACUERDO A LAS NECESIDADES Y ESTRATEGIAS DE LA ALCALDIA LOCAL DE LA CANDELARIA","INVERSION","Un Nuevo Contrato Social y Ambiental para la Bogotá del Siglo XXI",45,"Espacio público más seguro y construido colectivamente","Propósito 3. Inspirar confianza y legitimidad para vivir sin miedo y ser epicentro de cultura ciudadana, paz y reconciliaciòn ","O23011603450000001786",null,"830113831","AURA ALICIA ZAMBRANO LOPEZ","Persona Jurídica",null,null,null,null,3384000,null,1,1692000,5076000,1065333,"2022-02-04","2022-02-04","2022-02-04",54,1,"24 DIAS","N/A","N/A","N/A","N/A","TERMINADO",0.20987647754137115]
["FDLC-CPS-354-2024",2024,"FDLC-CPS-354-2024","https://community.secop.gov.co/Public/Tendering/OpportunityDetail/Index?noticeUID=CO1.NTC.7021533&isFromPublicArea=True&isModal=true&asPopupView=true","CPS","CONTRATACION DIRECTA","No aplica","PRESTAR SERVICIOS DE APOYO AL FONDO DE DESARROLLO LOCAL DE LA CANDELARIA COMO CONDUCTOR(A) DE LOS VEHICULOS A CARGO DE LA ENTIDAD Y APOYO LOGISTICO QUE LE SEAN ASIGNADOS","INVERSION","Un Nuevo Contrato Social y Ambiental para la Bogotá del Siglo XXI",57,"Gestión Pública Local","Propósito 5. Construir Bogotà - Regiòn con gobierno abierto, transparente y ciudadanìa consciente. ","O23011605570000002021",null,"830003564","ARMANDO CORONADO LEZAMA","Persona Jurídica",null,null,null,null,4805000,null,1,2283000,7088000,1825900,"2022-02-04","2022-02-04","2022-02-04",50,1,"23 DIAS","N/A","N/A","N/A","N/A","TERMINADO",0.25760440180586908]
["FDLC-CPS-355-2024",2024,"FDLC-CPS-355-2024","https://community.secop.gov.co/Public/Tendering/OpportunityDetail/Index?noticeUID=CO1.NTC.7022646&isFromPublicArea=True&isModal=true&asPopupView=true","CPS","CONTRATACION DIRECTA","No aplica","PRESTAR SERVICIOS DE APOYO A LA GESTIÓN COMO RECREADOR; PARA PLANEAR Y EJECUTAR ACTIVIDADES RECREATIVAS Y RECREODEPORTIVAS DE LA LOCALIDAD; ACOMPAÑANDO LOS PROCESOS CON LOS DIFERENTES GRUPOS POBLACIONALES EN LA ALCALDIA LOCAL DE LA CANDELARIA.","INVERSION","Un Nuevo Contrato Social y Ambiental para la Bogotá del Siglo XXI",20,"Bogotá, referente en cultura, deporte, recreación y actividad física, con parques para el desarrollo y la salud","Propósito 1. Hacer un nuevo contrato social con igualdad de oportunidades para la inclusiòn social, productiva y polìtica ","O23011601200000001611",null,"860066942","JOSE LUIS RAMIREZ ANTOLINEZ","Persona Jurídica",null,null,null,null,5000000,null,1,2300000,7300000,1700000,"2022-02-04","2022-02-04","2022-02-04",50,1,"23 DIAS","N/A","N/A","N/A","N/A","TERMINADO",0.23287671232876711]
["FDLC-CPS-356-2024",2024,"FDLC-CPS-356-2024","https://community.secop.gov.co/Public/Tendering/OpportunityDetail/Index?noticeUID=CO1.NTC.7089358&isFromPublicArea=True&isModal=true&asPopupView=true","CPS","CONTRATACION DIRECTA","No aplica","PRESTAR SERVICIOS DE APOYO ADMINISTRATIVO Y ASISTENCIAL AL ÁREA DE GESTIÓN POLICIVA DE LA ALCALDÍA LOCAL DE LA CANDELARIA EN LAS LABORES OPERATIVAS DE IMPULSO DE LAS ACTUACIONES ADMINISTRATIVAS","INVERSION","Un Nuevo Contrato Social y Ambiental para la Bogotá del Siglo XXI",57,"Gestión Pública Local","Propósito 5. Construir Bogotà - Regiòn con gobierno abierto, transparente y ciudadanìa consciente. ","O23011605570000002023",null,"800251440","FABIAN ALONSO MORENO RODRIGUEZ","Persona Jurídica",null,null,null,null,3510000,null,1,1710000,5220000,810000,"2022-02-04","2022-02-04","2022-02-04",39,1,"19 DIAS","N/A","N/A","N/A","N/A","TERMINADO",0.15517241379310345]
["FDLC-CPS-357-2024",2024,"FDLC-CPS-357-2024","https://community.secop.gov.co/Public/Tendering/OpportunityDetail/Index?noticeUID=CO1.NTC.7109313&isFromPublicArea=True&isModal=true&asPopupView=true","CPS","CONTRATACION DIRECTA","No aplica","PRESTAR SERVICIOS TECNICOS AL FONDO DE DESARROLLO LOCAL DE LA CANDELARIA PARA REALIZAR LA GESTIÓN DE CALIDAD SEGÚN LOS LINEAMIENTOS DE LA SECRETARÍA DISTRITAL DE GOBIERNO","INVERSION","Un Nuevo Contrato Social y Ambiental para la Bogotá del Siglo XXI",57,"Gestión Pública Local","Propósito 5. Construir Bogotà - Regiòn con gobierno abierto, transparente y ciudadanìa consciente. ","O23011605570000002021",null,"830113831","JAQUELINE REMOLINA","Persona Jurídica",null,null,null,null,5100000,null,1,2400000,7500000,null,"2022-05-03","2022-05-03","2022-05-03",34,1,"16 DIAS","N/A","N/A","N/A","N/A","TERMINADO",0]
["FDLC-CPS-358-2024",2024,"FDLC-CPS-358-2024","https://community.secop.gov.co/Public/Tendering/OpportunityDetail/Index?noticeUID=CO1.NTC.7077971&isFromPublicArea=True&isModal=true&asPopupView=true","CPS","CONTRATACION DIRECTA","No aplica","Prestar los servicios de Gestor Cultural de Convivencia para el Fondo de Desarrollo Local de la Candelaria; apoyando la ejecución de actividades operativas y logísticas para la promoción de la convivencia pacífica; la prevención de conflictos y el desarrollo de acciones culturales enfocadas en la tr","INVERSION","Un Nuevo Contrato Social y Ambiental para la Bogotá del Siglo XXI",21,"Creación y vida cotidiana: Apropiación ciudadana del arte, la cultura y el patrimonio, para la democracia cultural","Propósito 1. Hacer un nuevo contrato social con igualdad de oportunidades para la inclusiòn social, productiva y polìtica ","O23011601210000001625",null,"800251440","CARLOS EDUARDO CORREA THIAN","Persona Jurídica",null,null,null,null,3360000,null,1,1600000,4960000,800000,"2022-05-03","2022-05-03","2022-05-03",42,1,"20 DIAS","N/A","N/A","N/A","N/A","TERMINADO",0.16129032258064516]
["FDLC-CIA-359-2024",2024,"FDLC-CIA-359-2024","https://www.contratos.gov.co/consultas/detalleProceso.do?numConstancia=24-22-99845","CONVENIO INTERADMINISTRATIVO","CONTRATACION DIRECTA","No aplica","ADECIÓN Y ADICIÓN SCRD-COCREA.zip - CONVENIO INTERADMINISTRATIVO No. 654 DE 2024 SUSCRITO ENTRE LA SECRETARÍA DISTRITAL DE CULTURA, RECREACIÓN Y DEPORTE -SCRD- Y LA CORPORACIÓN COLOMBIA CREA TALENTO -COCREA","INVERSION","Un Nuevo Contrato Social y Ambiental para la Bogotá del Siglo XXI",21,"Creación y vida cotidiana: Apropiación ciudadana del arte, la cultura y el patrimonio, para la democracia cultural","Propósito 1. Hacer un nuevo contrato social con igualdad de oportunidades para la inclusiòn social, productiva y polìtica ","O23011601210000001625",null,"860066942","CORPORACION COLOMBIA CREA TALENTO","Persona Jurídica",null,null,null,null,2965175644,null,null,0,2965175644,2965175644,"2022-05-03","2022-05-03","2022-05-03",42,0,"NO APLICA","N/A","N/A","N/A","N/A","TERMINADO",1]
["FDLC-CPS-360-2024",2024,"FDLC-CPS-360-2024","https://community.secop.gov.co/Public/Tendering/OpportunityDetail/Index?noticeUID=CO1.NTC.7085929&isFromPublicArea=True&isModal=true&asPopupView=true","CPS","CONTRATACION DIRECTA","No aplica","OBJETO: Aunar esfuerzos entre la Secretaría Distrital de Cultura, Recreación y Deporte y la Corporación Colombia Crea Talento, en aspectos administrativos, técnicos, financieros, artísticos y culturales para desarrollar el proyecto denominado “OBRAS PERFORMÁTICAS Y ESCENOGRÁFICAS - NAVIDAD 2024”, que incluye producción, oferta artística, emprendimiento cultural, en escenarios convencionales y no convencionales, de conformidad con el anexo técnico definido para tal fin","INVERSION","Un Nuevo Contrato Social y Ambiental para la Bogotá del Siglo XXI",21,"Creación y vida cotidiana: Apropiación ciudadana del arte, la cultura y el patrimonio, para la democracia cultural","Propósito 1. Hacer un nuevo contrato social con igualdad de oportunidades para la inclusiòn social, productiva y polìtica ","O23011601210000001625",null,"830003564","MARIA VICTORIA TORRES TORRES","Persona Jurídica",null,null,null,null,3280000,null,null,0,3280000,720000,"2022-05-03","2022-05-03","2022-05-03",41,0,"NO APLICA","N/A","N/A","N/A","N/A","TERMINADO",0.21951219512195122]
["FDLC-CPS-361-2024",2024,"FDLC-CPS-361-2024","https://community.secop.gov.co/Public/Tendering/OpportunityDetail/Index?noticeUID=CO1.NTC.7086592&isFromPublicArea=True&isModal=true&asPopupView=true","CPS","CONTRATACION DIRECTA","No aplica","PRESTAR SERVICIOS TÉCNICO EN EL FONDO DE DESARROLLO LOCAL DE LA CANDELARIA EN LOS PROCESOS Y ACTIVIDADES DE GESTIÓN ADMINISTRATIVA DE LOS PROYECTOS CULTURALES; ARTÍSTICOS Y PATRIMONIALES DE LA ENTIDAD Y DEMÁS ASIGNADOS","INVERSION","Un Nuevo Contrato Social y Ambiental para la Bogotá del Siglo XXI",24,"Bogotá región emprendedora e innovadora","Propósito 1. Hacer un nuevo contrato social con igualdad de oportunidades para la inclusiòn social, productiva y polìtica ","O23011601240000001627",null,"830113831","ANYELA REGINA GOMEZ MUNAR","Persona Jurídica",null,null,null,null,4666667,null,1,2333333,7000000,1050000,"2022-06-03","2022-06-03","2022-06-03",40,1,"20 DIAS","N/A","N/A","N/A","N/A","TERMINADO",0.15]
["FDLC-CPS-362-2024",2024,"FDLC-CPS-362-2024","https://community.secop.gov.co/Public/Tendering/OpportunityDetail/Index?noticeUID=CO1.NTC.7089349&isFromPublicArea=True&isModal=true&asPopupView=true","CPS","CONTRATACION DIRECTA","No aplica","PRESTAR SERVICIOS DE APOYO A LA GESTIÓN EN EL FONDO DE DESARROLLO LOCAL DE LA CANDELARIA EN LAS ACTIVIDADES DE GESTIÓN DE LOS PROCESOS CULTURALES; DE INNOVACIÓN Y DE PARTICIPACIÓN POLÍTICA DESDE EL ENFOQUE DE GÉNERO.","INVERSION","Un Nuevo Contrato Social y Ambiental para la Bogotá del Siglo XXI",24,"Bogotá región emprendedora e innovadora","Propósito 1. Hacer un nuevo contrato social con igualdad de oportunidades para la inclusiòn social, productiva y polìtica ","O23011601240000001627",null,"800251440","YEYMY CAMILA OTALORA CAMELO","Persona Jurídica",null,null,null,null,3844000,null,1,1825900,5669900,864900,"2022-06-03","2022-06-03","2022-06-03",40,1,"19 DIAS","N/A","N/A","N/A","N/A","TERMINADO",0.15254237288135594]
["FDLC-CPS-363-2024",2024,"FDLC-CPS-363-2024","https://community.secop.gov.co/Public/Tendering/OpportunityDetail/Index?noticeUID=CO1.NTC.7087010&isFromPublicArea=True&isModal=true&asPopupView=true","CPS","CONTRATACION DIRECTA","No aplica","PRESTAR LOS SERVICIOS PROFESIONALES PARA ACOMPAÑAR LOS PROCESOS JURIDICOS QUE SE ADELANTEN EN LA ALCALDÍA LOCAL DE LA CANDELARIA ASI COMO EL DESARROLLO DE LAS ACTIVIDADES REQUERIDAS QUE PUEDAN GARANTIZAR EL NORMAL FUNCIONAMIENTO DE LA LOCALIDAD","INVERSION","Un Nuevo Contrato Social y Ambiental para la Bogotá del Siglo XXI",45,"Espacio público más seguro y construido colectivamente","Propósito 3. Inspirar confianza y legitimidad para vivir sin miedo y ser epicentro de cultura ciudadana, paz y reconciliaciòn ","O23011603450000001786",null,"860066942","CESAR AUGUSTO RODRIGUEZ PINILLA","Persona Jurídica",null,null,null,null,5459000,null,1,2001633,7460633,null,"2022-06-03","2022-06-03","2022-06-03",30,1,"11 DIAS","N/A","N/A","N/A","N/A","TERMINADO",0]
["FDLC-CPS-364-2024",2024,"FDLC-CPS-364-2024","https://community.secop.gov.co/Public/Tendering/OpportunityDetail/Index?noticeUID=CO1.NTC.7125016&isFromPublicArea=True&isModal=False","CPS","CONTRATACION DIRECTA","No aplica","PRESTAR LOS SERVICIOS PROFESIONALES PARA  ACOMPAÑAR LOS PROCESOS JURIDICOS QUE SE ADELANTEN EN LA ALCALDÍA LOCAL DE LA CANDELARIA ASI COMO EL DESARROLLO DE LAS ACTIVIDADES REQUERIDAS QUE PUEDAN GARANTIZAR EL NORMAL FUNCIONAMIENTO DE LA LOCALIDAD.","INVERSION","Un Nuevo Contrato Social y Ambiental para la Bogotá del Siglo XXI",45,"Espacio público más seguro y construido colectivamente","Propósito 3. Inspirar confianza y legitimidad para vivir sin miedo y ser epicentro de cultura ciudadana, paz y reconciliaciòn ","O23011603450000001786",null,"830003564","RONALD ARNULFO TIRADO PEREZ","Persona Jurídica",null,null,null,null,5459000,null,1,2001633,7460633,null,"2022-06-03","2022-06-03","2022-06-03",30,1,"11 DIAS","N/A","N/A","N/A","N/A","TERMINADO",0]
["FDLC-CPS-365-2024",2024,"FDLC-CPS-365-2024","https://community.secop.gov.co/Public/Tendering/OpportunityDetail/Index?noticeUID=CO1.NTC.7128796&isFromPublicArea=True&isModal=False","CPS","CONTRATACION DIRECTA","No aplica","PRESTAR SERVICIOS TÉCNICO EN EL FONDO DE DESARROLLO LOCAL DE LA CANDELARIA EN LOS PROCESOS Y ACTIVIDADES DE GESTIÓN ADMINISTRATIVA DE LOS PROYECTOS CULTURALES, ARTÍSTICOS Y PATRIMONIALES DE LA ENTIDAD Y DEMÁS ASIGNADOS","INVERSION","Un Nuevo Contrato Social y Ambiental para la Bogotá del Siglo XXI",24,"Bogotá región emprendedora e innovadora","Propósito 1. Hacer un nuevo contrato social con igualdad de oportunidades para la inclusiòn social, productiva y polìtica ","O23011601240000001627",null,"830113831","MONICA JAZMINE URBINA TRIVIÑO","Persona Jurídica",null,null,null,null,3500000,null,1,1400000,4900000,null,"2022-07-05","2022-07-05","2022-07-05",29,1,"12 DIAS","N/A","N/A","N/A","N/A","TERMINADO",0]
["FDLC-CPS-366-2024",2024,"FDLC-CPS-366-2024","https://community.secop.gov.co/Public/Tendering/OpportunityDetail/Index?noticeUID=CO1.NTC.7112532&isFromPublicArea=True&isModal=true&asPopupView=true","CPS","CONTRATACION DIRECTA","No aplica","PRESTAR SERVICIOS DE APOYO A LA IMPLEMENTACIÓN Y EJECUCIÓN DE ACTIVIDADES RECREODEPORTIVAS Y ACTIVIDADES DE SEGURIDAD CUIDADANA; ACOMPAÑANDO LOS PROCESOS Y ESTRATEGIAS CON LOS DIFERENTES GRUPOS POBLACIONALES QUE DESARROLLE EL FONDO DE DESARROLLO LOCAL DE LA CANDELARIA","INVERSION","Un Nuevo Contrato Social y Ambiental para la Bogotá del Siglo XXI",20,"Bogotá, referente en cultura, deporte, recreación y actividad física, con parques para el desarrollo y la salud","Propósito 1. Hacer un nuevo contrato social con igualdad de oportunidades para la inclusiòn social, productiva y polìtica ","O23011601200000001611",null,"800251440","JORDY FREICER MOSQUERA","Persona Jurídica",null,null,null,null,2800000,null,1,1360000,4160000,null,"2022-07-05","2022-07-05","2022-07-05",35,1,"17 DIAS","N/A","N/A","N/A","N/A","TERMINADO",0]
["FDLC-CPS-367-2024",2024,"FDLC-CPS-367-2024","https://community.secop.gov.co/Public/Tendering/OpportunityDetail/Index?noticeUID=CO1.NTC.7124839&isFromPublicArea=True&isModal=False","CPS","CONTRATACION DIRECTA","No aplica","Prestar los servicios de Gestor Cultural de Convivencia para el Fondo de Desarrollo Local de la Candelaria, apoyando la ejecución de actividades operativas y logísticas para la promoción de la convivencia pacífica, la prevención de conflictos y el desarrollo de acciones culturales enfocadas en la transformación social y la mejora de la convivencia, conforme a los proyectos y programas del Plan de Desarrollo Distrital vigente.","INVERSION","Un Nuevo Contrato Social y Ambiental para la Bogotá del Siglo XXI",21,"Creación y vida cotidiana: Apropiación ciudadana del arte, la cultura y el patrimonio, para la democracia cultural","Propósito 1. Hacer un nuevo contrato social con igualdad de oportunidades para la inclusiòn social, productiva y polìtica ","O23011601210000001625",null,"860066942","INDIRA BETANCOURT MACUASE","Persona Jurídica",null,null,null,null,2320000,null,1,960000,3280000,null,"2022-07-05","2022-07-05","2022-07-05",29,1,"12 DIAS","N/A","N/A","N/A","N/A","TERMINADO",0]
["FDLC-CPS-368-2024",2024,"FDLC-CPS-368-2024","https://community.secop.gov.co/Public/Tendering/OpportunityDetail/Index?noticeUID=CO1.NTC.7213901&isFromPublicArea=True&isModal=False","CPS","CONTRATACION DIRECTA","No aplica","Prestar servicios técnicos para adelantar actividades de prensa y comunicaciones en la creación, realización, producción y edición audiovisual, así como en el registro y edición de fotografías de la localidad, eventos, proyectos y/o convocatorias que se realicen en la Alcaldía Local de La Candelaria","INVERSION","Un Nuevo Contrato Social y Ambiental para la Bogotá del Siglo XXI",57,"Gestión Pública Local","Propósito 5. Construir Bogotà - Regiòn con gobierno abierto, transparente y ciudadanìa consciente. ","O23011605570000002021",null,"830003564","MIGUEL ESTEBAN HERRERA PARADA","Persona Jurídica",null,null,null,null,4366000,null,null,0,4366000,null,"2022-07-05","2022-07-05","2022-07-05",30,0,"NO APLICA","N/A","N/A","N/A","N/A","TERMINADO",0]
["FDLC-CPS-369-2024",2024,"FDLC-CPS-369-2024","https://community.secop.gov.co/Public/Tendering/OpportunityDetail/Index?noticeUID=CO1.NTC.7106025&isFromPublicArea=True&isModal=true&asPopupView=true","CPS","CONTRATACION DIRECTA","No aplica","PRESTACIÓN DE SERVICIOS DE APOYO PARA EFECTUAR ACTIVIDADES DE ARCHIVO; ORGANIZACIÓN; DIGITALIZACIÓN E INVENTARIO DOCUMENTAL; DE ACUERDO CON LAS NECESIDADES DE LA ALCALDÍA LOCAL DE LA CANDELARIA EN LOS PROCESOS CORRESPONDIENTES A INSPECCIÓN; VIGILANCIA Y CONTROL QUE SE LLEVEN A CABO EN LA LOCALIDAD","INVERSION","Un Nuevo Contrato Social y Ambiental para la Bogotá del Siglo XXI",57,"Gestión Pública Local","Propósito 5. Construir Bogotà - Regiòn con gobierno abierto, transparente y ciudadanìa consciente. ","O23011605570000002023",null,"830113831","JUAN ANGEL LOPEZ ARDILA","Persona Jurídica",null,null,null,null,3267400,null,1,1633700,4901100,null,"2022-08-03","2022-08-03","2022-08-03",34,1,"17 DIAS","N/A","N/A","N/A","N/A","TERMINADO",0]
["FDLC-CPS-370-2024",2024,"FDLC-CPS-370-2024","https://community.secop.gov.co/Public/Tendering/OpportunityDetail/Index?noticeUID=CO1.NTC.7106137&isFromPublicArea=True&isModal=true&asPopupView=true","CPS","CONTRATACION DIRECTA","No aplica","PRESTAR SERVICIOS DE APOYO EN LAS ACTIVIDADES DE SEGURIDAD Y CONVIVENCIA CIUDADANA DE ACUERDO A LAS NECESIDADES Y ESTRATEGIAS DE LA ALCALDIA LOCAL DE LA CANDELARIA","INVERSION","Un Nuevo Contrato Social y Ambiental para la Bogotá del Siglo XXI",45,"Espacio público más seguro y construido colectivamente","Propósito 3. Inspirar confianza y legitimidad para vivir sin miedo y ser epicentro de cultura ciudadana, paz y reconciliaciòn ","O23011603450000001786",null,"800251440","NELLY CONTRERAS ROJAS","Persona Jurídica",null,null,null,null,2130667,null,1,1065333,3196000,null,"2022-08-03","2022-08-03","2022-08-03",34,1,"17 DIAS","N/A","N/A","N/A","N/A","TERMINADO",0]
["FDLC-CPS-371-2024",2024,"FDLC-CPS-371-2024","https://community.secop.gov.co/Public/Tendering/OpportunityDetail/Index?noticeUID=CO1.NTC.7108957&isFromPublicArea=True&isModal=true&asPopupView=true","CPS","CONTRATACION DIRECTA","No aplica","PRESTAR SERVICIOS DE APOYO EN LAS ACTIVIDADES DE SEGURIDAD Y CONVIVENCIA CIUDADANA DE ACUERDO A LAS NECESIDADES Y ESTRATEGIAS DE LA ALCALDIA LOCAL DE LA CANDELARIA","INVERSION","Un Nuevo Contrato Social y Ambiental para la Bogotá del Siglo XXI",45,"Espacio público más seguro y construido colectivamente","Propósito 3. Inspirar confianza y legitimidad para vivir sin miedo y ser epicentro de cultura ciudadana, paz y reconciliaciòn ","O23011603450000001786",null,"860066942","JULIA EDITH HERNANDEZ DIAZ","Persona Jurídica",null,null,null,null,2130667,null,1,1065334,3196001,null,"2022-08-03","2022-08-03","2022-08-03",34,1,"16 DIAS","N/A","N/A","N/A","N/A","TERMINADO",0]
["FDLC-CPS-372-2024",2024,"FDLC-CPS-372-2024","https://community.secop.gov.co/Public/Tendering/OpportunityDetail/Index?noticeUID=CO1.NTC.7105666&isFromPublicArea=True&isModal=true&asPopupView=true","CPS","CONTRATACION DIRECTA","No aplica","PRESTAR SERVICIOS DE APOYO EN LAS ACTIVIDADES DE SEGURIDAD Y CONVIVENCIA CIUDADANA DE ACUERDO A LAS NECESIDADES Y ESTRATEGIAS DE LA ALCALDIA LOCAL DE LA CANDELARIA","INVERSION","Un Nuevo Contrato Social y Ambiental para la Bogotá del Siglo XXI",45,"Espacio público más seguro y construido colectivamente","Propósito 3. Inspirar confianza y legitimidad para vivir sin miedo y ser epicentro de cultura ciudadana, paz y reconciliaciòn ","O23011603450000001786",null,"830003564","HAROLD ESTEVENS CASAS VARGAS","Persona Jurídica",null,null,null,null,2005333,null,1,1002667,3008000,null,"2022-08-03","2022-08-03","2022-08-03",32,1,"16 DIAS","N/A","N/A","N/A","N/A","TERMINADO",0]
["FDLC-CCV-373-2024",2024,"FDLC-IMC-011-2024","https://community.secop.gov.co/Public/Tendering/OpportunityDetail/Index?noticeUID=CO1.NTC.7051371&isFromPublicArea=True&isModal=true&asPopupView=true","COMPRAVENTA","MINIMA CUANTIA","No aplica","ADQUISICIÓN DE ELEMENTOS NECESARIOS PARA DAR CUMPLIMIENTO AL PLAN INSTITUCIONAL DE SISTEMA DE GESTIÓN DE SEGURIDAD Y SALUD EN EL TRABAJO DEL FONDO DE DESARROLLO LOCAL DE LA CANDELARIA","FUNCIONAMIENTO","Un Nuevo Contrato Social y Ambiental para la Bogotá del Siglo XXI","No aplica","No aplica","No aplica","O23011605570000002021",null,"830113831","INTEGRIDAD, INGENIERIA Y PROTECCION INTEINPRO SAS","Persona Jurídica",null,null,null,null,8419993,null,null,0,8419993,null,"2022-09-02","2022-09-02","2022-09-02",30,0,"NO APLICA","N/A","N/A","N/A","N/A","TERMINADO",0]
["FDLC-CPS-374-2024",2024,"FDLC-CPS-374-2024","https://community.secop.gov.co/Public/Tendering/OpportunityDetail/Index?noticeUID=CO1.NTC.7151222&isFromPublicArea=True&isModal=False","CPS","CONTRATACION DIRECTA","No aplica","PRESTAR SERVICIOS PROFESIONALES PARA ATENDER Y GARANTIZAR LA IMPLEMENTACIÓN Y SEGUIMIENTO DE LOS PROCESOS Y AVANCES DE LAS AYUDAS TÉCNICAS Y PROYECTOS SOCIALES QUE SE DESARROLLAN EN LA ALCALDÍA LOCAL DE LA CANDELARIA","INVERSION","Un Nuevo Contrato Social y Ambiental para la Bogotá del Siglo XXI",6,"Sistema Distrital del Cuidado","Propósito 1. Hacer un nuevo contrato social con igualdad de oportunidades para la inclusiòn social, productiva y polìtica ","O23011601060000001664",null,"800251440","WILMER ALEXANDER BARRIOS","Persona Jurídica",null,null,null,null,4666666,null,1,2166667,6833333,null,"2022-09-02","2022-09-02","2022-09-02",29,1,"12 DIAS","N/A","N/A","N/A","N/A","TERMINADO",0]
["FDLC-CCV-376-2024",2024,"FDLC-IMC-012-2024","https://community.secop.gov.co/Public/Tendering/OpportunityDetail/Index?noticeUID=CO1.NTC.7059949&isFromPublicArea=True&isModal=False","COMPRAVENTA","MINIMA CUANTIA","No aplica","REALIZAR LA ADQUISICIÓN DE ELEMENTOS PARA EL FORTALECIMIENTO DE ACCIONES DEL PLAN INSTITUCIONAL DE GESTIÓN AMBIENTAL - PIGA DEL FONDO DE DESARROLLO LOCAL DE LA CANDELARIA","INVERSION","Un Nuevo Contrato Social y Ambiental para la Bogotá del Siglo XXI",57,"Gestión Pública Local","Propósito 5. Construir Bogotà - Regiòn con gobierno abierto, transparente y ciudadanìa consciente. ","O23011605570000002021",null,"860066942","INN GENIOS","Persona Jurídica",null,null,null,null,10338720,null,null,0,10338720,null,"2022-09-02","2022-09-02","2022-09-02",30,0,"NO APLICA","N/A","N/A","N/A","N/A","TERMINADO",0]
["FDLC-CPS-377-2024",2024,"FDLC-CPS-377-2024","https://community.secop.gov.co/Public/Tendering/OpportunityDetail/Index?noticeUID=CO1.NTC.7150693&isFromPublicArea=True&isModal=False","CPS","CONTRATACION DIRECTA","No aplica","PRESTAR SERVICIOS DE APOYO EN LAS ACTIVIDADES DE SEGURIDAD Y CONVIVENCIA CIUDADANA DE ACUERDO A LAS NECESIDADES Y ESTRATEGIAS DE LA ALCALDIA LOCAL DE LA CANDELARIA","INVERSION","Un Nuevo Contrato Social y Ambiental para la Bogotá del Siglo XXI",45,"Espacio público más seguro y construido colectivamente","Propósito 3. Inspirar confianza y legitimidad para vivir sin miedo y ser epicentro de cultura ciudadana, paz y reconciliaciòn ","O23011603450000001786",null,"830003564","MARTHA RODRIGUEZ BABATIVA","Persona Jurídica",null,null,null,null,1629333,null,1,689333,2318666,null,"2022-09-02","2022-09-02","2022-09-02",26,1,"11 DIAS","N/A","N/A","N/A","N/A","TERMINADO",0]
["FDLC-CPS-378-2024",2024,"FDLC-CPS-378-2024","https://community.secop.gov.co/Public/Tendering/OpportunityDetail/Index?noticeUID=CO1.NTC.7213766&isFromPublicArea=True&isModal=False","CPS","CONTRATACION DIRECTA","No aplica","PRESTAR SERVICIOS PROFESIONALES AL FONDO DE DESARROLLO LOCAL DE LA CANDELARIA PARA APOYAR EN LA EVALUACIÓN Y SEGUIMIENTO DE LOS PROYECTOS DE INVERSIÓN DE LA LOCALIDAD PARA EL CUMPLIMIENTO DE LAS METAS DEL PLAN DE DESARROLLO LOCAL","INVERSION","Un Nuevo Contrato Social y Ambiental para la Bogotá del Siglo XXI",57,"Gestión Pública Local","Propósito 5. Construir Bogotà - Regiòn con gobierno abierto, transparente y ciudadanìa consciente. ","O23011605570000002021",null,"830113831","JUAN GABRIEL DELGADO DIAZ","Persona Jurídica",null,null,null,null,4773000,null,null,0,4773000,null,"2022-10-04","2022-10-04","2022-10-04",30,0,"NO APLICA","N/A","N/A","N/A","N/A","TERMINADO",0]
["FDLC-CPS-379-2024",2024,"FDLC-CPS-379-2024","https://community.secop.gov.co/Public/Tendering/OpportunityDetail/Index?noticeUID=CO1.NTC.7152977&isFromPublicArea=True&isModal=False","CPS","CONTRATACION DIRECTA","No aplica","PRESTAR SERVICIOS DE APOYO EN LAS ACTIVIDADES DE SEGURIDAD Y CONVIVENCIA CIUDADANA DE ACUERDO A LAS NECESIDADES Y ESTRATEGIAS DE LA ALCALDIA LOCAL DE LA CANDELARIA","INVERSION","Un Nuevo Contrato Social y Ambiental para la Bogotá del Siglo XXI",45,"Espacio público más seguro y construido colectivamente","Propósito 3. Inspirar confianza y legitimidad para vivir sin miedo y ser epicentro de cultura ciudadana, paz y reconciliaciòn ","O23011603450000001786",null,"800251440","ANA MARIA RODRIGUEZ BEJARANO","Persona Jurídica",null,null,null,null,1754666,null,1,626667,{"$f":"+W389+X389+Z389","v":2381333},null,"2022-10-04","2022-10-04","2022-10-04",28,1,"10 DIAS","N/A","N/A","N/A","N/A","TERMINADO",0]
["FDLC-CPS-380-2024",2024,"FDLC-CPS-380-2024","https://community.secop.gov.co/Public/Tendering/OpportunityDetail/Index?noticeUID=CO1.NTC.7161404&isFromPublicArea=True&isModal=False","CPS","CONTRATACION DIRECTA","No aplica","PRESTAR SERVICIOS DE APOYO EN LAS ACTIVIDADES DE SEGURIDAD Y CONVIVENCIA CIUDADANA DE ACUERDO A LAS NECESIDADES Y ESTRATEGIAS DE LA ALCALDIA LOCAL DE LA CANDELARIA","INVERSION","Un Nuevo Contrato Social y Ambiental para la Bogotá del Siglo XXI",45,"Espacio público más seguro y construido colectivamente","Propósito 3. Inspirar confianza y legitimidad para vivir sin miedo y ser epicentro de cultura ciudadana, paz y reconciliaciòn ","O23011603450000001786",null,"860066942","JULY ANDREA MONTAÑO PEÑA","Persona Jurídica",null,null,null,null,1692000,null,1,626667,2318667,null,"2022-10-04","2022-10-04","2022-10-04",27,1,"10 DIAS","N/A","N/A","N/A","N/A","TERMINADO",0]
["FDLC-CPS-381-2024",2024,"FDLC-CPS-381-2024","https://community.secop.gov.co/Public/Tendering/OpportunityDetail/Index?noticeUID=CO1.NTC.7155802&isFromPublicArea=True&isModal=False","CPS","CONTRATACION DIRECTA","No aplica","PRESTAR SERVICIOS DE APOYO EN LAS ACTIVIDADES DE SEGURIDAD Y CONVIVENCIA CIUDADANA DE ACUERDO A LAS NECESIDADES Y ESTRATEGIAS DE LA ALCALDIA LOCAL DE LA CANDELARIA","INVERSION","Un Nuevo Contrato Social y Ambiental para la Bogotá del Siglo XXI",45,"Espacio público más seguro y construido colectivamente","Propósito 3. Inspirar confianza y legitimidad para vivir sin miedo y ser epicentro de cultura ciudadana, paz y reconciliaciòn ","O23011603450000001786",null,"830003564","ANGELA ASTRID MONCADA NUVAN","Persona Jurídica",null,null,null,null,1692000,null,1,626667,2318667,null,"2022-10-04","2022-10-04","2022-10-04",26,1,"10 DIAS","N/A","N/A","N/A","N/A","TERMINADO",0]
["FDLC-CPS-382-2024",2024,"FDLC-CPS-382-2024","https://community.secop.gov.co/Public/Tendering/OpportunityDetail/Index?noticeUID=CO1.NTC.7161741&isFromPublicArea=True&isModal=False","CPS","CONTRATACION DIRECTA","No aplica","PRESTAR LOS SERVICIOS PROFESIONALES PARA ACOMPAÑAR LOS PROCESOS JURIDICOS QUE SE ADELANTEN EN LA ALCALDÍA LOCAL DE LA CANDELARIA ASI COMO EL DESARROLLO DE LAS ACTIVIDADES REQUERIDAS QUE PUEDAN GARANTIZAR EL NORMAL FUNCIONAMIENTO DE LA LOCALIDAD.","INVERSION","Un Nuevo Contrato Social y Ambiental para la Bogotá del Siglo XXI",45,"Espacio público más seguro y construido colectivamente","Propósito 3. Inspirar confianza y legitimidad para vivir sin miedo y ser epicentro de cultura ciudadana, paz y reconciliaciòn ","O23011603450000001786",null,"830113831","ANDRES FELIPE ARBELAEZ VARGAS","Persona Jurídica",null,null,null,null,4913100,null,1,2183600,7096700,null,"2022-11-03","2022-11-03","2022-11-03",27,1,"12 DIAS","N/A","N/A","N/A","N/A","TERMINADO",0]
["FDLC-CPS-383-2024",2024,"FDLC-SAMC-002-2024","https://community.secop.gov.co/Public/Tendering/OpportunityDetail/Index?noticeUID=CO1.NTC.7040046&isFromPublicArea=True&isModal=False","PRESTACION DE SERVICIOS","SELECCION ABREVIADA MENOR CUANTIA","No aplica","PRESTAR LOS SERVICIOS PARA LA REALIZACIÓN DE ACTIVIDADES QUE PROMUEVAN MEJORAR LA CONVIVENCIA Y FORTALECER LOS CONOCIMIENTOS DE LOS CIUDADANOS EN METODOS DE ACCESO A LA JUSTICIA EN LA LOCALIDAD DE LA CANDELARIA","INVERSION","Un Nuevo Contrato Social y Ambiental para la Bogotá del Siglo XXI",48,"Plataforma institucional para la seguridad y justicia","Propòsito 3. Inspirar confianza y legitimidad para vivir sin miedo y ser epicentro de cultura ciudadana, paz y reconciliaciòn ","O23011603480000001787",null,"830113831","CORPORACIÓN ESCALANDO FUTURO","Persona Jurídica",null,null,null,null,50188800,null,null,0,50188800,null,"2022-11-03","2022-11-03","2022-11-03",120,0,"NO APLICA","N/A","N/A","N/A","N/A","EJECUCION",0]
["FDLC-CPS-384-2024",2024,"FDLC-LP-003-2024","https://community.secop.gov.co/Public/Tendering/OpportunityDetail/Index?noticeUID=CO1.NTC.6992455&isFromPublicArea=True&isModal=False","PRESTACION DE SERVICIOS","LICITACION PUBLICA","No aplica","PRESTAR LOS SERVICIOS LOGÍSTICOS Y TÉCNICOS NECESARIOS PARA LA REALIZACIÓN DE EVENTOS, FIESTAS Y FESTIVALES DE LA LOCALIDAD DE LA CANDELARIA","INVERSION","Un Nuevo Contrato Social y Ambiental para la Bogotá del Siglo XXI",21,"Creación y vida cotidiana: Apropiación ciudadana del arte, la cultura y el patrimonio, para la democracia cultural","Propósito 1. Hacer un nuevo contrato social con igualdad de oportunidades para la inclusiòn social, productiva y polìtica ","O23011601210000001625",null,"800251440","UNLOFT PRODUCCION DE MARCA S.A.S","Persona Jurídica",null,null,null,null,669348040,null,1,87105132,756453172,null,"2022-11-03","2022-11-03","2022-11-03",60,0,"NO APLICA","N/A","N/A","N/A","N/A","TERMINADO",0]
["FDLC-CPS-385-2024",2024,"FDLC-CPS-385-2024","https://community.secop.gov.co/Public/Tendering/OpportunityDetail/Index?noticeUID=CO1.NTC.7180697&isFromPublicArea=True&isModal=False","CPS","CONTRATACION DIRECTA","No aplica","PRESTAR SERVICIOS PROFESIONALES AL FONDO DE DESARROLLO LOCAL DE LA CANDELARIA PARA APOYAR EN LA PLANEACIÓN, FORMULACIÓN, EVALUACIÓN Y SEGUIMIENTO DE LOS PROYECTOS SOCIALES Y DE SALUD EN LA LOCALIDAD PARA EL CUMPLIMIENTO DE LAS METAS DEL PLAN DE DESARROLLO LOCAL","INVERSION","Un Nuevo Contrato Social y Ambiental para la Bogotá del Siglo XXI",6,"Sistema Distrital del Cuidado","Propósito 1. Hacer un nuevo contrato social con igualdad de oportunidades para la inclusiòn social, productiva y polìtica ","O23011601060000001664",null,"860066942","VIVIANA LIZETH MONROY RAMIREZ","Persona Jurídica",null,null,null,null,6000000,null,1,2000000,8000000,null,"2022-11-03","2022-11-03","2022-11-03",21,1,"10 DIAS","N/A","N/A","N/A","N/A","TERMINADO",0]
["FDLC-CPS-386-2024",2024,"FDLC-CPS-386-2024","https://community.secop.gov.co/Public/Tendering/OpportunityDetail/Index?noticeUID=CO1.NTC.7188155&isFromPublicArea=True&isModal=False","CPS","CONTRATACION DIRECTA","No aplica","PRESTACIÓN DE SERVICIOS DE APOYO TÉCNICO AL FONDO DE DESARROLLO LOCAL DE LA CANDELARIA EN LOS ASUNTOS RELACIONADOS CON LOS PROCESOS DEL ALMACEN DE LA ENTIDAD.","INVERSION","Un Nuevo Contrato Social y Ambiental para la Bogotá del Siglo XXI",57,"Gestión Pública Local","Propósito 5. Construir Bogotà - Regiòn con gobierno abierto, transparente y ciudadanìa consciente. ","O23011605570000002021",null,"830003564","JUAN CARLOS PUENTES NARVAEZ","Persona Jurídica",null,null,null,null,4000000,null,null,0,4000000,null,"2022-11-03","2022-11-03","2022-11-03",20,0,"NO APLICA","N/A","N/A","N/A","N/A","TERMINADO",0]
["FDLC-CPS-387-2024",2024,"FDLC-CPS-387-2024","https://community.secop.gov.co/Public/Tendering/OpportunityDetail/Index?noticeUID=CO1.NTC.7205234&isFromPublicArea=True&isModal=False","CPS","CONTRATACION DIRECTA","No aplica","PRESTAR SERVICIOS DE APOYO EN LAS ACTIVIDADES DE SEGURIDAD Y CONVIVENCIA CIUDADANA DE ACUERDO A LAS NECESIDADES Y ESTRATEGIAS DE LA ALCALDIA LOCAL DE LA CANDELARIA","INVERSION","Un Nuevo Contrato Social y Ambiental para la Bogotá del Siglo XXI",45,"Espacio público más seguro y construido colectivamente","Propósito 3. Inspirar confianza y legitimidad para vivir sin miedo y ser epicentro de cultura ciudadana, paz y reconciliaciòn ","O23011603450000001786",null,"830113831","ANGEL RODRIGO PEREZ LEMUS","Persona Jurídica",null,null,null,null,1253333,null,1,376000,1629333,null,"2022-12-05","2022-12-05","2022-12-05",20,1,"6 DIAS","N/A","N/A","N/A","N/A","TERMINADO",0]
["FDLC-CIA-388-2024",2024,"FDLC-CIA-388-2024","https://www.contratos.gov.co/consultas/detalleProceso.do?numConstancia=24-22-101270&g","CONVENIO INTERADMINISTRATIVO","CONTRATACION DIRECTA","No aplica","Aunar esfuerzos técnicos, administrativos y financieros con el fin de desarrollar acciones articuladas entre la SCRD, la FUGA y los Fondos de Desarrollo Local de La Candelaria, Los Mártires y Santa Fe, orientadas a la estructuración, planeación y ejecución del programa Más Cultura Local 2024, con el propósito de fortalecer a los agentes culturales y creativos e impulsar los procesos de transformación social y económica en las localidades de Bogotá","INVERSION","Un Nuevo Contrato Social y Ambiental para la Bogotá del Siglo XXI",21,"No aplica","No aplica","O23011601210000001625",null,"860066942","FUNDACION GILBERTO ALZATE AVENDAÑO - SECRETARIA DE CULTURA","Persona Jurídica",null,null,null,null,628187500,null,null,0,628187500,null,"2022-12-05","2022-12-05","2022-12-05",362,0,"NO APLICA","N/A","N/A","N/A","N/A","EJECUCION",0]
["FDLC-CIA-388-2025",2024,"FDLC-CIA-388-2025","https://www.contratos.gov.co/consultas/detalleProceso.do?numConstancia=24-22-101270&g","CONVENIO INTERADMINISTRATIVO",null,"No aplica","Aunar esfuerzos técnicos, administrativos y financieros con el fin de desarrollar acciones articuladas entre la SCRD, la FUGA y los Fondos de Desarrollo Local de La Candelaria, Los Mártires y Santa Fe, orientadas a la estructuración, planeación y ejecución del programa Más Cultura Local 2024, con el propósito de fortalecer a los agentes culturales y creativos e impulsar los procesos de transformación social y económica en las localidades de Bogotá","INVERSION","Un Nuevo Contrato Social y Ambiental para la Bogotá del Siglo XXI",21,"creaciòn y vida cotidiana: apropiaciòn ciudadana del arte, la cultura y el patrimonio, para la democracia cultural","Propósito 1. Hacer un nuevo contrato social con igualdad de oportunidades para la inclusiòn social, productiva y polìtica ","O23011601240000001627",null,null,"SECRETARIA DISTRITAL DE CULTURA RECREACION Y DEPORTE",null,null,null,null,null,271762500,null,null,0,271762500,null,null,null,null,null,null,null,null,null,null,null,null,0]
["FDLC-CPS-389-2024",2024,"FDLC-SAMC-001-2024","https://community.secop.gov.co/Public/Tendering/OpportunityDetail/Index?noticeUID=CO1.NTC.7007579&isFromPublicArea=True&isModal=False","PRESTACION DE SERVICIOS","SELECCION ABREVIADA MENOR CUANTIA","No aplica","PRESTAR SERVICIOS OPERATIVOS, LOGÍSTICOS Y TÉCNICOS, ASÍ COMO EL SUMINISTRO DE BIENES PARA LA REALIZACIÓN DE EVENTOS Y ACTIVIDADES DEPORTIVAS, RECREATIVAS Y DE ACTIVIDAD FÍSICA, REQUERIDAS EN EL MARCO DEL PROYECTO DE INVERSIÓN 1611: \"LA CANDELARIA ACTIVA: REFERENTE EN CULTURA, DEPORTE, RECREACIÓN\"","INVERSION","Un Nuevo Contrato Social y Ambiental para la Bogotá del Siglo XXI",20,"Bogotá, referente en cultura, deporte, recreación y actividad física, con parques para el desarrollo y la salud","Propósito 1. Hacer un nuevo contrato social con igualdad de oportunidades para la inclusiòn social, productiva y polìtica ","O23011601200000001611",null,"830003564","CONSULTORES Y ASESORES TIC","Persona Jurídica",null,null,null,null,293102753,null,null,0,293102753,null,"2022-12-05","2022-12-05","2022-12-05",150,0,"NO APLICA","N/A","N/A","N/A","N/A","EJECUCION",0]
["FDLC-CPS-390-2024",2024,"FDLC-CPS-390-2024","https://community.secop.gov.co/Public/Tendering/OpportunityDetail/Index?noticeUID=CO1.NTC.7201818&isFromPublicArea=True&isModal=False","CPS","CONTRATACION DIRECTA","No aplica","PRESTAR SERVICIOS DE APOYO A LA IMPLEMENTACIÓN Y EJECUCIÓN DE ACTIVIDADES RECREODEPORTIVAS Y ACTIVIDADES DE SEGURIDAD CUIDADANA, ACOMPAÑANDO LOS PROCESOS Y ESTRATEGIAS CON LOS DIFERENTES GRUPOS POBLACIONALES QUE DESARROLLE EL FONDO DE DESARROLLO LOCAL DE LA CANDELARIA.","INVERSION","Un Nuevo Contrato Social y Ambiental para la Bogotá del Siglo XXI",20,"Bogotá, referente en cultura, deporte, recreación y actividad física, con parques para el desarrollo y la salud","Propósito 1. Hacer un nuevo contrato social con igualdad de oportunidades para la inclusiòn social, productiva y polìtica ","O23011601200000001611",null,"800251440","HEIMER ARMANDO CASTRO CASAS","Persona Jurídica",null,null,null,null,2080000,null,21,0,2080000,null,"2022-12-05","2022-12-05","2022-12-05",45,0,"NO APLICA","N/A","N/A","N/A","N/A","TERMINADO",0]
["FDLC-CPS-392-2024",2024,"FDLC-CPS-392-2024","https://community.secop.gov.co/Public/Tendering/OpportunityDetail/Index?noticeUID=CO1.NTC.7216464&isFromPublicArea=True&isModal=False","CPS","CONTRATACION DIRECTA","No aplica","Prestación de servicios de apoyo para efectuar actividades de archivo, organización, digitalización e Inventario documental, de acuerdo con las necesidades de la Alcaldía Local de la Candelaria en los procesos y avances correspondientes a las ayudas técnicas y proyectos sociales que se desarrollan en la alcaldía local de la candelaria","INVERSION","Un Nuevo Contrato Social y Ambiental para la Bogotá del Siglo XXI",6,"Sistema Distrital del Cuidado","Propósito 1. Hacer un nuevo contrato social con igualdad de oportunidades para la inclusiòn social, productiva y polìtica ","O23011601060000001664",null,"800251440","ALFONSO CASTAÑEDA BUSTAMANTE","Persona Jurídica",null,null,null,null,2880000,null,null,0,2880000,null,"2022-12-05","2022-12-05","2022-12-05",30,0,"NO APLICA","N/A","N/A","N/A","N/A","TERMINADO",0]
["FDLC-CCV-393-2024",2024,"FDLC-SASI-001-2024","https://community.secop.gov.co/Public/Tendering/OpportunityDetail/Index?noticeUID=CO1.NTC.7107239&isFromPublicArea=True&isModal=False","COMPRAVENTA","SUBASTA INVERSA","No aplica","ADQUISICIÓN DE LICENCIAS POR SUSCRIPCIÓN DE LAS HERRAMIENTAS TECNOLÓGICAS DE MICROSOFT OFFICE DE ACUERDO A LA NECESIDADES DE LA ALCALDÍA LOCAL DE LA CANDELARIA","FUNCIONAMIENTO","Un Nuevo Contrato Social y Ambiental para la Bogotá del Siglo XXI","No aplica","No aplica","No aplica","No aplica",null,"860063875","TECNOPHONE COLOMBIA SAS","Persona Jurídica",null,null,null,null,60000000,null,null,0,60000000,null,"2022-03-24","2022-03-24","2022-03-24",30,0,"NO APLICA","N/A","N/A","N/A","N/A","TERMINADO",0]
["FDLC-CPS-394-2024",2024,"FDLC-IMC-013-2024","https://community.secop.gov.co/Public/Tendering/OpportunityDetail/Index?noticeUID=CO1.NTC.7160189&isFromPublicArea=True&isModal=False","PRESTACION DE SERVICIOS","MINIMA CUANTIA","No aplica","PRESTAR LOS SERVICIOS PARA REALIZAR LAS ACTIVIDADES NECESARIAS PARA LA ORGANIZACIÓN, PLANIFICACIÓN REALIZACIÓN DE LA CONMEMORACIÓN DEL DÍA COMUNAL DE LA LOCALIDAD DE LA CANDELARIA","INVERSION","Un Nuevo Contrato Social y Ambiental para la Bogotá del Siglo XXI",55,"Fortalecimiento de Cultura Ciudadana y su institucionalidad","Propósito 5. Construir Bogotà - Regiòn con gobierno abierto, transparente y ciudadanìa consciente. ","O23011605550000002019",null,"860063875","CORPORACION ESCALANDO FUTURO","Persona Jurídica",null,null,null,null,14990000,null,null,0,14990000,null,"2022-04-25","2022-04-25","2022-04-25",30,0,"NO APLICA","N/A","N/A","N/A","N/A","TERMINADO",0]
["FDLC-CPS-395-2024",2024,"FDLC-CPS-395-2024","https://community.secop.gov.co/Public/Tendering/OpportunityDetail/Index?noticeUID=CO1.NTC.7216465&isFromPublicArea=True&isModal=true&asPopupView=true","CPS","CONTRATACION DIRECTA","No aplica","Prestar servicios profesionales para apoyar en la formulación y evaluación de procesos relacionados con el desarrollo turístico de la localidad de Candelaria.","INVERSION","Un Nuevo Contrato Social y Ambiental para la Bogotá del Siglo XXI",57,"Gestión Pública Local","Propósito 5. Construir Bogotà - Regiòn con gobierno abierto, transparente y ciudadanìa consciente. ","O23011605570000002021",null,"860063875","LORENA ELIZABETH MORA LIZARAZO","Persona Jurídica",null,null,null,null,5000000,null,null,0,5000000,null,"2022-05-19","2022-05-19","2022-05-19",30,0,"NO APLICA","N/A","N/A","N/A","N/A","TERMINADO",0]
["FDLC-SEG-396-2024",2024,"FDLC-IMC-014-2024","https://community.secop.gov.co/Public/Tendering/OpportunityDetail/Index?noticeUID=CO1.NTC.7174245&isFromPublicArea=True&isModal=true&asPopupView=true","SEGUROS","MINIMA CUANTIA","No aplica","CONTRATAR UNA PÓLIZA COLECTIVA DE SEGURO DE VIDA PARA LOS EDILES DE LA JUNTA ADMINISTRADORA DE LA LOCALIDAD DE LA CANDELARIA","FUNCIONAMIENTO","Un Nuevo Contrato Social y Ambiental para la Bogotá del Siglo XXI","No aplica","No aplica","No aplica","No aplica",null,"860063875","COMPAÑIA MUNDIAL DE SEGUROS SA","Persona Jurídica",null,null,null,null,9246904,null,null,0,9246904,null,"2022-06-15","2022-06-15","2022-06-15",492,0,"NO APLICA","N/A","N/A","N/A","N/A","EJECUCION",{"$f":"IF(ISERROR(AB406/AA406),\"-\",(AB406/AA406))","v":0}]
["FDLC-CPS-397-2024",2024,"FDLC-LP-004-2024","https://community.secop.gov.co/Public/Tendering/OpportunityDetail/Index?noticeUID=CO1.NTC.7044200&isFromPublicArea=True&isModal=true&asPopupView=true","PRESTACION DE SERVICIOS","LICITACION PUBLICA","No aplica","REALIZAR LAS ACTIVIDADES DE APROPIACIÓN; RESIGNIFICACIÓN AMBIENTAL; DESARROLLO DE ACCIONES DE AGRICULTURA URBANA; IMPLEMENTACIÓN; REHABILITACIÓN; RESTAURACIÓN Y MANTENIMIENTO DE LAS COBERTURAS VEGETALES EN LA LOCALIDAD DE LA CANDELARIA; EN ALCANCE AL PLAN DE DESARROLLO LOCAL 2021 - 2024","INVERSION","Un Nuevo Contrato Social y Ambiental para la Bogotá del Siglo XXI",33,"Más árboles y más y mejor espacio público","Propósito 2. Cambiar nuestros hàbitos de vida para reverdecer a Bogotà y adaptarnos y mitigar la crisis climàtica.","O23011602330000001703",null,"860063875","CONSORCIO AMBIENTAL O&F ","Persona Jurídica",null,null,null,null,812178256,null,null,0,812178256,null,"2022-07-19","2022-07-19","2022-07-19",210,0,"NO APLICA","N/A","N/A","N/A","N/A","EJECUCION",0]
["FDLC-CIA-398-2024",2024,"FDLC-CIA-398-2024","https://community.secop.gov.co/Public/Tendering/OpportunityDetail/Index?noticeUID=CO1.NTC.7210643&isFromPublicArea=True&isModal=true&asPopupView=true","CONVENIO INTERADMINISTRATIVO","CONTRATACION DIRECTA","No aplica","Aunar esfuerzos técnicos, administrativos y financieros, para promover el ejercicio y la restitución de la autonomía e inclusión social de las personas con discapacidad (PcD) por medio del otorgamiento de DISPOSITIVOS DE ASISTENCIA PERSONAL ayudas técnicas desde una perspectiva de derechos humanos que permitan la inclusión social en las diferentes acciones de la vida cotidiana en el marco del proyecto 1664\" Banco de Ayudas Técnicas","INVERSION","Un Nuevo Contrato Social y Ambiental para la Bogotá del Siglo XXI",6,"Sistema Distrital del Cuidado","Propósito 1. Hacer un nuevo contrato social con igualdad de oportunidades para la inclusiòn social, productiva y polìtica ","O23011601060000001664",null,"860063875","SUBRED INTEGRADA DE SERVICIOS DE SALUD SUR E.S.E.","Persona Jurídica",null,null,null,null,150000000,null,null,0,150000000,null,"2022-07-19","2022-07-19","2022-07-19",210,0,"NO APLICA","N/A","N/A","N/A","N/A","EJECUCION",0]
["FDLC-CPS-399-2024",2024,"FDLC-CPS-399-2024","https://community.secop.gov.co/Public/Tendering/OpportunityDetail/Index?noticeUID=CO1.NTC.7231151&isFromPublicArea=True&isModal=true&asPopupView=true","CPS","CONTRATACION DIRECTA","No aplica","Prestación de servicios de apoyo para efectuar actividades de archivo, organización, digitalización e Inventario documental, de acuerdo con las necesidades de la Alcaldía Local de la Candelaria en los procesos y avances correspondientes a las ayudas técnicas y proyectos sociales que se desarrollan en la alcaldía local de la candelaria.","INVERSION","Un Nuevo Contrato Social y Ambiental para la Bogotá del Siglo XXI",6,"Sistema Distrital del Cuidado","Propósito 1. Hacer un nuevo contrato social con igualdad de oportunidades para la inclusiòn social, productiva y polìtica ","O23011601060000001664",null,"860063875","NATALIA PINTOR QUINTERO","Persona Jurídica",null,null,null,null,2880000,null,null,0,2880000,null,"2022-08-22","2022-08-22","2022-08-22",30,0,"NO APLICA","N/A","N/A","N/A","N/A","TERMINADO",0]
["FDLC-CCV-400-2024",2024,"FDLC-IMC-017-2024","https://community.secop.gov.co/Public/Tendering/OpportunityDetail/Index?noticeUID=CO1.NTC.7201731&isFromPublicArea=True&isModal=true&asPopupView=true","COMPRAVENTA","MINIMA CUANTIA","No aplica","CONTRATAR EL DISEÑO, ELABORACIÓN Y ENTREGA DE CHAQUETAS INSTITUCIONALES PARA LOS FUNCIONARIOS DE PLANTA Y CONTRATISTAS DE LA ALCALDÍA LOCAL DE LA CANDELARIA","INVERSION","Un Nuevo Contrato Social y Ambiental para la Bogotá del Siglo XXI",57,"Gestión Pública Local","Propósito 5. Construir Bogotà - Regiòn con gobierno abierto, transparente y ciudadanìa consciente. ","O23011605570000002021",null,"860063875","CORPORACION ENCAMINADA AL DESARROLLO INTEGRAL DE LA COMUNIDAD - CEDEINCO","Persona Jurídica",null,null,null,null,32400000,null,null,0,32400000,null,"2022-08-23","2022-08-23","2022-08-23",30,1,"1 MES","N/A","N/A","N/A","N/A","TERMINADO",0]
["FDLC-CPS-401-2024",2024,"FDLC-SAMC-003-2024","https://community.secop.gov.co/Public/Tendering/OpportunityDetail/Index?noticeUID=CO1.NTC.7186468&isFromPublicArea=True&isModal=False","PRESTACION DE SERVICIOS","SELECCION ABREVIADA MENOR CUANTIA","No aplica","PRESTAR SERVICIOS PARA REALIZAR ACCIONES DE CAPACITACION Y FORTALECIMIENTO A ORGANIZACIONES SOCIALES, E INSTANCIAS DE PARTICIPACIÓN CIUDADANA EN LA LOCALIDAD DE LA CANDELARIA","INVERSION","Un Nuevo Contrato Social y Ambiental para la Bogotá del Siglo XXI",55,"Fortalecimiento de Cultura Ciudadana y su institucionalidad","Propósito 5. Construir Bogotà - Regiòn con gobierno abierto, transparente y ciudadanìa consciente. ","O23011605550000002019",null,"860063875","FUNDACION G3","Persona Jurídica",null,null,null,null,183248958,null,null,0,183248958,null,"2022-08-23","2022-08-23","2022-08-23",180,0,"NO APLICA","N/A","N/A","N/A","N/A","EJECUCION",0]
["FDLC-CPS-402-2024",2024,"FDLC-LP-005-2024","https://community.secop.gov.co/Public/Tendering/OpportunityDetail/Index?noticeUID=CO1.NTC.7068875&isFromPublicArea=True&isModal=true&asPopupView=true","PRESTACION DE SERVICIOS","LICITACION PUBLICA","No aplica","PRESTAR LOS SERVICIOS LOGISTICOS Y TECNICOS PARA LA REALIZACIÓN DE CAPACITACIONES, INTERVENCIONES FÍSICAS Y JORNADAS DE PREVENCIÓN CON EL FIN DE FORTALECER LAS CAPACIDADES LOCALES DE RESPUESTA A DESASTRES Y EMERGENCIAS, LA REDUCCIÓN DEL RIESGO Y LA ADAPTACIÓN AL CAMBIO CLIMÁTICO, EN EL MARCO DEL PROYECTO 1702 “LA CANDELARIA PREVENTIVA: EFICIENCIA EN LA ATENCIÓN DE EMERGENCIAS","INVERSION","Un Nuevo Contrato Social y Ambiental para la Bogotá del Siglo XXI",30,"Eficiencia en la atención de emergencias","Propòsito 2. Cambiar nuestros hàbitos de vida para reverdecer a Bogotà y adaptarnos y mitigar la crisis climàtica.","O23011602300000001702",null,"860063875","CONSORCIO CANDELARIA 2024","Persona Jurídica",null,null,null,null,525343929,null,null,0,525343929,null,"2022-09-23","2022-09-23","2022-09-23",180,0,"NO APLICA","N/A","N/A","N/A","N/A","EJECUCION",0]
["FDLC-CPS-403-2024",2024,"FDLC-CPS-403-2024","https://community.secop.gov.co/Public/Tendering/OpportunityDetail/Index?noticeUID=CO1.NTC.7237468&isFromPublicArea=True&isModal=true&asPopupView=true","CPS","Contratación directa","No aplica","PRESTAR SERVICIOS DE APOYO EN CALIDAD DE GESTOR PARA LA ATENCIÓN Y ACOMPAÑAMIENTO DE ACTIVIDADES EN EL MARCO DE LAS ESTRATEGIAS DE ACCESO A LA JUSTICIA INTEGRAL DE ACUERDO CON LAS NECESIDADES Y ESTRATEGIAS DE LA ALCALDIA LOCAL DE LA CANDELARIA","INVERSION","Un Nuevo Contrato Social y Ambiental para la Bogotá del Siglo XXI",48,"Plataforma institucional para la seguridad y justicia","Propòsito 3. Inspirar confianza y legitimidad para vivir sin miedo y ser epicentro de cultura ciudadana, paz y reconciliaciòn ","O23011603480000001787",null,"860063875","YORDI HEREDIA CALERO","Persona Jurídica",null,null,null,null,1880000,null,null,0,1880000,null,"2022-09-23","2022-09-23","2022-09-23",30,null,"NO APLICA","N/A","N/A","N/A","N/A","TERMINADO",0]
["FDLC-OC-404-2024",2024,"ORDEN DE COMPRA 140249","https://www.colombiacompra.gov.co/tienda-virtual-del-estado-colombiano/ordenes-compra/140249","ORDEN DE COMPRA","SELECCION ABREVIADA MENOR CUANTIA","No aplica","REALIZAR LA ADQUISICIÓN DE MOBILIARIO PARA LOS ESPACIOS DE LA ALCALDIA LOCAL DE LA CANDELARIA","INVERSION","Un Nuevo Contrato Social y Ambiental para la Bogotá del Siglo XXI",57,"Gestión Pública Local","Propósito 5. Construir Bogotà - Regiòn con gobierno abierto, transparente y ciudadanìa consciente. ","O23011605570000002021",null,"860063875","FERRICENTROS SAS","Persona Jurídica",null,null,null,null,16130832,null,null,null,16130832,null,"2022-09-23","2022-09-23","2022-09-23",30,0,"NO APLICA","N/A","N/A","N/A","N/A","TERMINADO",0]
["FDLC-CPS-405-2024",2024,"FDLC-IMC-015-2024","https://community.secop.gov.co/Public/Tendering/OpportunityDetail/Index?noticeUID=CO1.NTC.7191476&isFromPublicArea=True&isModal=true&asPopupView=true","PRESTACION DE SERVICIOS","MINIMA CUANTIA","No aplica","REALIZAR LA ORGANIZACIÓN Y EJECUCIÓN DE ACTIVIDADES RECREATIVAS PARA VINCULAR A LA CIUDADANÍA Y VENDEDORES INFORMALES EN ACTIVIDADES CON IDRD PARA LA PROMOCIÓN DEL APROVECHAMIENTO Y USO DEL ESPACIO PÚBLICO EN LA LOCALIDAD DE LA CANDELARIA","INVERSION","Un Nuevo Contrato Social y Ambiental para la Bogotá del Siglo XXI",45,"Espacio público más seguro y construido colectivamente","Propósito 3. Inspirar confianza y legitimidad para vivir sin miedo y ser epicentro de cultura ciudadana, paz y reconciliaciòn ","O23011603450000001786",null,"860063875","CORPORACIÓN ESCALANDO FUTURO","Persona Jurídica",null,null,null,null,14817290,null,null,0,14817290,null,"2022-10-21","2022-10-21","2022-10-21",30,1,"1 MES","N/A","N/A","N/A","N/A","EJECUCION",0]
["FDLC-CPS-406-2024",2024,"FDLC-SAMC-004-2024","https://community.secop.gov.co/Public/Tendering/OpportunityDetail/Index?noticeUID=CO1.NTC.7182332&isFromPublicArea=True&isModal=true&asPopupView=true","PRESTACION DE SERVICIOS","SELECCION ABREVIADA MENOR CUANTIA","No aplica","PRESTAR LOS SERVICIOS PARA REALIZAR LA TOMA FÍSICA DE INVENTARIOS DE LOS BIENES MUEBLES E INMUEBLES DEL FONDO DE DESARROLLO LOCAL DE LA CANDELARIA; ASÍ COMO LA MEDICIÓN POSTERIOR DE LOS BIENES CLASIFICADOS COMO PROPIEDAD PLANTA Y EQUIPO DE CONFORMIDAD CON LAS DISPOSICIONES LEGALES VIGENTES ","INVERSION","Un Nuevo Contrato Social y Ambiental para la Bogotá del Siglo XXI",57,"Gestión Pública Local","Propósito 5. Construir Bogotà - Regiòn con gobierno abierto, transparente y ciudadanìa consciente. ","O23011605570000002021",null,"860063875","L&Q REVISORES FISCALES AUDITORES EXTERNOS S.A.S","Persona Jurídica",null,null,null,null,89371378,null,null,0,89371378,null,"2022-10-21","2022-10-21","2022-10-21",120,0,"NO APLICA","N/A","N/A","N/A","N/A","EJECUCION",0]
["FDLC-SUM-406-2024",2024,"FDLC-IMC-016-2024","https://community.secop.gov.co/Public/Tendering/OpportunityDetail/Index?noticeUID=CO1.NTC.7201650&isFromPublicArea=True&isModal=true&asPopupView=true","SUMINISTRO","MINIMA CUANTIA","No aplica","CONTRATAR EL SUMINISTRO DE REFRIGERIOS Y ALMUERZOS A PRECIOS UNITARIOS Y A MONTO AGOTABLE, DE ACUERDO A LAS ESPECIFICACIONES REQUERIDAS POR EL FONDO DE DESARROLLO LOCAL DE LA CANDELARIA EN EL MARCO DE LAS ACTIVIDADES QUE SE LLEVEN A CABO EN LA LOCALIDAD POR PARTE DE LA ALCALDÍA LOCAL EN EL CUMPLIMIENTO DE SU MISIÓN INSTITUCIONAL","INVERSION","Un Nuevo Contrato Social y Ambiental para la Bogotá del Siglo XXI",57,"Gestión Pública Local","Propósito 5. Construir Bogotà - Regiòn con gobierno abierto, transparente y ciudadanìa consciente. ","O23011605570000002021",null,"860063875","ATLAS CONTINENTAL GROUP S.A.S","Persona Jurídica",null,null,null,null,36400000,null,null,0,36400000,null,"2022-10-21","2022-10-21","2022-10-21",180,0,"NO APLICA","N/A","N/A","N/A","N/A","EJECUCION",0]
["FDLC-COP-407-2024",2024,"FDLC-SAMC-006-2024","https://community.secop.gov.co/Public/Tendering/OpportunityDetail/Index?noticeUID=CO1.NTC.7184793&isFromPublicArea=True&isModal=true&asPopupView=true","Obra","SELECCION ABREVIADA MENOR CUANTIA","No aplica","PROMOVER LA INCLUSIÓN Y BIENESTAR DE LOS VENDEDORES INFORMALES; VINCULÁNDOLOS A CÍRCULOS ECONÓMICOS PRODUCTIVOS; A TRAVÉS DEL MANTENIMIENTO Y EMBELLECIMIENTO DEL ESPACIO PÚBLICO DE LA CANDELARIA","INVERSION","Un Nuevo Contrato Social y Ambiental para la Bogotá del Siglo XXI",45,"Espacio público más seguro y construido colectivamente","Propósito 3. Inspirar confianza y legitimidad para vivir sin miedo y ser epicentro de cultura ciudadana, paz y reconciliaciòn ","O23011603450000001786",null,"860063875","SGI DE COLOMBIA SAS","Persona Jurídica",null,null,null,null,145023094,null,null,0,145023094,null,"2022-11-21","2022-11-21","2022-11-21",30,1,"45 DIAS","N/A","N/A","N/A","N/A","EJECUCION",0]
["FDLC-CPS-408-2024",2024,"FDLC-IMC-018-2024","https://community.secop.gov.co/Public/Tendering/OpportunityDetail/Index?noticeUID=CO1.NTC.7214028&isFromPublicArea=True&isModal=true&asPopupView=true","PRESTACION DE SERVICIOS","MINIMA CUANTIA","No aplica","CONTRATAR EL DISEÑO; LA IMPRESIÓN Y REALIZACIÓN DEL EVENTO DE LANZAMIENTO DE LA SEGUNDA VERSIÓN DEL PASAPORTE REPÚBLICA DE LA CANDELARIA","INVERSION","Un Nuevo Contrato Social y Ambiental para la Bogotá del Siglo XXI",24,"Bogotá región emprendedora e innovadora","Propósito 1. Hacer un nuevo contrato social con igualdad de oportunidades para la inclusiòn social, productiva y polìtica ","O23011601240000001627",null,"860063875","CORPORACION ENCAMINADA AL DESARROLLO INTEGRAL DE LA COMUNIDAD","Persona Jurídica",null,null,null,null,31000000,null,null,0,31000000,null,"2022-11-21","2022-11-21","2022-11-21",30,1,"45 DIAS","N/A","N/A","N/A","N/A","EJECUCION",0]
["FDLC-CCV-409-2024",2024,"FDLC-IMC-021-2024","https://community.secop.gov.co/Public/Tendering/OpportunityDetail/Index?noticeUID=CO1.NTC.7222127&isFromPublicArea=True&isModal=true&asPopupView=true","COMPRAVENTA","MINIMA CUANTIA","No aplica","REALIZAR LA ADQUISICIÓN DE SILLAS ERGONÓMICAS PARA LAS DEPENDENCIAS Y ESPACIOS QUE CONTRIBUYEN A LA GESTIÓN Y DESARROLLO DE LAS FUNCIONES DE LA ALCALDÍA LOCAL DE LA CANDELARIA","INVERSION","Un Nuevo Contrato Social y Ambiental para la Bogotá del Siglo XXI",57,"Gestión Pública Local","Propósito 5. Construir Bogotà - Regiòn con gobierno abierto, transparente y ciudadanìa consciente. ","O23011605570000002021",null,"860063875","Mosthye Vicente Medina Rodríguez - WORLD M&D, EFECTIVIDAD E INNOVACION","Persona Jurídica",null,null,null,null,20860000,null,null,0,20860000,null,"2022-11-21","2022-11-21","2022-11-21",30,0,"NO APLICA","N/A","N/A","N/A","N/A","TERMINADO",0]
["FDLC-CIA-410-2024",2024,"FDLC-CD-003-2024","https://community.secop.gov.co/Public/Tendering/OpportunityDetail/Index?noticeUID=CO1.NTC.7244963&isFromPublicArea=True&isModal=true&asPopupView=true","CONVENIO INTERADMINISTRATIVO","Contratación Directa (con ofertas)","No aplica","AUNAR ESFUERZOS TÉCNICOS; ADMINISTRATIVOS Y FINANCIEROS; PARA PROMOVER EL DESARROLLO CULTURAL DE LAS ACTIVIDADES PROGRAMADAS PARA EL FESTIVAL GOSPEL Y HIP HOP EN LA LOCALIDAD DE LA CANDELARIA","INVERSION","Un Nuevo Contrato Social y Ambiental para la Bogotá del Siglo XXI",21,"Creación y vida cotidiana: Apropiación ciudadana del arte, la cultura y el patrimonio, para la democracia cultural","Propósito 1. Hacer un nuevo contrato social con igualdad de oportunidades para la inclusiòn social, productiva y polìtica ","O23011601210000001625",null,"860063875","FUNDACION GILBERTO ALZATE AVENDAÑO","Persona Jurídica",null,null,null,null,45089000,null,null,0,45089000,null,"2022-12-21","2022-12-21","2022-12-21",60,0,"NO APLICA","N/A","N/A","N/A","N/A","TERMINADO",0]
["FDLC-CCV-411-2024",2024,"FDLC-IMC-020-2024","https://community.secop.gov.co/Public/Tendering/OpportunityDetail/Index?noticeUID=CO1.NTC.7222564&isFromPublicArea=True&isModal=true&asPopupView=true","COMPRAVENTA","MINIMA CUANTIA","No aplica","ADQUIRIR CERTIFICADO SSL CON SERVICIO DE SOPORTE TÊCNICO PARA EL SITIO WEB (www.lacandelaria.gov.co) DE LA ALCALDIA LOCAL DE LA CANDELARIA","INVERSION","Un Nuevo Contrato Social y Ambiental para la Bogotá del Siglo XXI",57,"Gestión Pública Local","Propósito 5. Construir Bogotà - Regiòn con gobierno abierto, transparente y ciudadanìa consciente. ","O23011605570000002021",null,"800007813","CERTICAMARA S.A.","Persona Jurídica",null,null,null,null,6291466,null,null,0,6291466,null,"2022-02-04","2022-02-04","2022-02-04",30,0,"NO APLICA","N/A","N/A","N/A","N/A","TERMINADO",0]
["FDLC-COP-412-2024",2024,"FDLC-SAMC-005-2024","https://community.secop.gov.co/Public/Tendering/OpportunityDetail/Index?noticeUID=CO1.NTC.7202726&isFromPublicArea=True&isModal=true&asPopupView=true","Obra","SELECCION ABREVIADA MENOR CUANTIA","No aplica","REALIZAR EL DIAGNOSTICO Y LAS OBRAS DE CONSERVACIÓN Y ACCIONES DE CICLO INFRAESTRUCTURA PRIORIZADA POR EL FDLC A PRECIOS UNITARIOS Y A MONTO AGOTABLE","INVERSION","Un Nuevo Contrato Social y Ambiental para la Bogotá del Siglo XXI",49,"Movilidad segura, sostenible y accesible","Propòsito 4. Hacer de Bogotà - Region un modelo de movilidad multimodal, incluyente y sostenible ","O23011604490000002020",null,"800007813","GLORIA ELVIRA CEDIEL ECHEVERRI","Persona Jurídica",null,null,null,null,200000000,null,null,0,200000000,null,"2022-02-04","2022-02-04","2022-02-04",90,0,"NO APLICA","N/A","N/A","N/A","N/A","EJECUCION",0]
["FDLC-COP-413-2024",2024,"FDLC-SAMC-007-2024","https://community.secop.gov.co/Public/Tendering/OpportunityDetail/Index?noticeUID=CO1.NTC.7209559&isFromPublicArea=True&isModal=true&asPopupView=true","Obra","SELECCION ABREVIADA MENOR CUANTIA","No aplica","REALIZAR LAS OBRAS DE MANTENIMIENTO PREVENTIVO Y CORRECTIVO DE LOS BIENES INMUEBLES DEL FONDO DE DESARROLLO LOCAL DE LA CANDELARIA A MONTO AGOTABLE","INVERSION","Un Nuevo Contrato Social y Ambiental para la Bogotá del Siglo XXI",57,"Gestión Pública Local","Propósito 5. Construir Bogotà - Regiòn con gobierno abierto, transparente y ciudadanìa consciente. ","O23011605570000002021",null,"800007813","QRAQEN S.A.S","Persona Jurídica",null,null,null,null,100000000,null,null,0,100000000,null,"2022-02-14","2022-02-14","2022-02-14",90,0,"NO APLICA","N/A","N/A","N/A","N/A","EJECUCION",0]
["FDLC-CIA-414-2024",2024,"FDLC-CD-004-2024","https://community.secop.gov.co/Public/Tendering/OpportunityDetail/Index?noticeUID=CO1.NTC.7239278&isFromPublicArea=True&isModal=true&asPopupView=true","CONVENIO INTERADMINISTRATIVO","Contratación Directa (con ofertas)","No aplica","AUNAR ESFUERZOS TECNICOS; ADMNISTRATIVOS; LOGÍSTICOS Y FINANCIEROS PARA REALIZAR EL DISEÑO E IMPLEMENTACIÓN DE ESTRATEGIAS QUE CONTRIBUYAN A LA GARANTÍA DE LOS DERECHOS DE LAS MUJERES; A PARTIR DE ACCIONES DE DESARROLLO DE CAPACIDADES Y; LA PREVENCION DE VIOLENCIA INTRAFAMILIAR Y/O SEXUAL EN LA LOCALIDAD DE LA CANDELARIA","INVERSION","Un Nuevo Contrato Social y Ambiental para la Bogotá del Siglo XXI",6,"Sistema Distrital del Cuidado","Propósito 1. Hacer un nuevo contrato social con igualdad de oportunidades para la inclusiòn social, productiva y polìtica ","O23011601060000001662",null,"800007813","UNIVERSIDAD DISTRITAL FRANCISCO JOSE DE CALDAS","Persona Jurídica",null,null,null,null,500000000,null,null,0,455000000,null,"2022-03-03","2022-03-03","2022-03-03",180,0,"NO APLICA","N/A","N/A","N/A","N/A","EJECUCION",0]
["FDLC-CPS-415-2024",2024,"FDLC-IMC-019-2024","https://community.secop.gov.co/Public/Tendering/OpportunityDetail/Index?noticeUID=CO1.NTC.7217999&isFromPublicArea=True&isModal=true&asPopupView=true","PRESTACION DE SERVICIOS","MINIMA CUANTIA","No aplica","PROMOVER LA FORMALIZACIÓN DE LOS VENDEDORES INFORMALES MEDIANTE SU INTEGRACIÓN EN CÍRCULOS ECONÓMICOS PRODUCTIVOS EN LA LOCALIDAD DE LA CANDELARIA; A TRAVÉS DE LA DOTACIÓN DE INDUMENTARIA; Y SENSIBILIZACION ORIENTADAS A LA CONVIVENCIA Y EL CUIDADO DEL ESPACIO PUBLICO EN COORDINACIÓN CON LA CIUDADANÍ","INVERSION","Un Nuevo Contrato Social y Ambiental para la Bogotá del Siglo XXI",null,null,"Propósito 3. Inspirar confianza y legitimidad para vivir sin miedo y ser epicentro de cultura ciudadana, paz y reconciliaciòn ","O23011603450000001786",null,"800007813","DOBLECRUZ INGENIERIA Y ARQUITECTURA S.A.S","Persona Jurídica",null,null,null,null,35463997,null,null,0,35463997,null,"2022-03-10","2022-03-10","2022-03-10",30,1,"1 MES","N/A","N/A","N/A","N/A","EJECUCION",0]
["FDLC-OC-416-2024",2024,"ORDEN DE COMPRA 140250","https://www.colombiacompra.gov.co/tienda-virtual-del-estado-colombiano/ordenes-compra/140250","ORDEN DE COMPRA","SELECCION ABREVIADA MENOR CUANTIA","No aplica","REALIZAR LA ADQUISICIÓN DE MOBILIARIO PARA LOS ESPACIOS DE LA ALCALDIA LOCAL DE LA CANDELARIA","INVERSION","Un Nuevo Contrato Social y Ambiental para la Bogotá del Siglo XXI",null,null,"Propósito 5. Construir Bogotà - Regiòn con gobierno abierto, transparente y ciudadanìa consciente. ","O23011605570000002021",null,"800007813","MAKRO SUPERMAYORISTA S.A.S","Persona Jurídica",null,null,null,null,3937500,null,null,0,3937500,null,"2022-03-24","2022-03-24","2022-03-24",30,0,"NO APLICA","N/A","N/A","N/A","N/A","TERMINADO",0]
["Total",null,null,null,null,null,null,null,null,null,null,null,null,null,null,null,null,null,null,null,null,null,{"$f":"SUM(W14:W427)","v":20693255703},{"$f":"SUM(X14:X427)","v":-48843131},{"$f":"SUM(Y14:Y427)","v":308},{"$f":"SUM(Z14:Z427)","v":1859624183},{"$f":"SUM(AA14:AA427)","v":22459036755}," ",null,null,null,null,null,null,null,null,null,null,null,{"$f":"SUM(AN14:AN427)","v":267.36245647583462}]
[" "," "," "," "," "," "," "," "," "," "," "," "," "," "," ",null,null,null,null,null,null,null,null,null,null,null,null,null," "," "," "," ",null," "," "," "," "," "," "," "]
[null,null,null,"NOTA: La diferencia en la ejecuciò presupuestal corresponde a:"]
[null,null,null,"Adicioones contratos 2023",null,null,null,null,null,null,null,null,null,null,null,null,null,null,null,null,null,null,null,null,null,null,{"$f":"SUBTOTAL(9,AA14:AA427)","v":22459036755},{"$f":"SUBTOTAL(9,AB14:AB427)","v":15103394140}]
[null,null,null,"Pago honorarios Ediles"]
[null,null,null,"Pagos de resoluciones"]
[null,null,null,"Pagos de servicios pùblicos"]
[null,null,null,"Pagos de ARL"]
[null,null,null,"Pagos seguridad social ediles"]
[]
[]
[]
[]
[]
[null,null,null,null,null,null,null,null,null,null,null,null,null,null,null,null,null,null,null,null,null,null,null,null,null,null,{"$f":"SUBTOTAL(9,AA131:AA427)","v":19248203356},{"$f":"SUBTOTAL(9,AB131:AB427)","v":11996049887}]

{"sheet":"Proposito_programa","index":1,"n_rows":59,"n_cols":5,"rows_kept":59,"cut":false,"hidden":false,"merged":[]}
[]
[null,"PDD","No. Programa","Programa","Propósito"]
["Acuerdo 761 2020","Un Nuevo Contrato Social y Ambiental para la Bogotá del Siglo XXI",1,"Subsidios y transferencias para la equidad","Propósito 1: Hacer un nuevo contrato social para incrementar la inclusión social, productiva y política"]
["Pag. 51","Un Nuevo Contrato Social y Ambiental para la Bogotá del Siglo XXI",{"$f":"+C3+1","v":2},"Igualdad de oportunidades y desarrollo de capacidades para las mujeres","Propósito 1: Hacer un nuevo contrato social para incrementar la inclusión social, productiva y política"]
[null,"Un Nuevo Contrato Social y Ambiental para la Bogotá del Siglo XXI",{"$f":"+C4+1","v":3},"Movilidad social integral","Propósito 1: Hacer un nuevo contrato social para incrementar la inclusión social, productiva y política"]
[null,"Un Nuevo Contrato Social y Ambiental para la Bogotá del Siglo XXI",4,"Prevención de la exclusión por razones étnicas, religiosas, sociales, políticas y de orientación sexual","Propósito 1: Hacer un nuevo contrato social para incrementar la inclusión social, productiva y política"]
[null,"Un Nuevo Contrato Social y Ambiental para la Bogotá del Siglo XXI",5,"Promoción de la igualdad, el desarrollo de capacidades y el reconocimiento de las mujeres","Propósito 1: Hacer un nuevo contrato social para incrementar la inclusión social, productiva y política"]
[null,"Un Nuevo Contrato Social y Ambiental para la Bogotá del Siglo XXI",6,"Sistema Distrital de Cuidado","Propósito 1: Hacer un nuevo contrato social para incrementar la inclusión social, productiva y política"]
[null,"Un Nuevo Contrato Social y Ambiental para la Bogotá del Siglo XXI",7,"Mejora de la gestión de instituciones de salud","Propósito 1: Hacer un nuevo contrato social para incrementar la inclusión social, productiva y política"]
[null,"Un Nuevo Contrato Social y Ambiental para la Bogotá del Siglo XXI",8,"Prevención y atención de maternidad temprana","Propósito 1: Hacer un nuevo contrato social para incrementar la inclusión social, productiva y política"]
[null,"Un Nuevo Contrato Social y Ambiental para la Bogotá del Siglo XXI",9,"Prevención y cambios para mejorar la salud de la población","Propósito 1: Hacer un nuevo contrato social para incrementar la inclusión social, productiva y política"]
[null,"Un Nuevo Contrato Social y Ambiental para la Bogotá del Siglo XXI",10,"Salud para la vida y el bienestar","Propósito 1: Hacer un nuevo contrato social para incrementar la inclusión social, productiva y política"]
[null,"Un Nuevo Contrato Social y Ambiental para la Bogotá del Siglo XXI",11,"Salud y bienestar para niñas y niños","Propósito 1: Hacer un nuevo contrato social para incrementar la inclusión social, productiva y política"]
[null,"Un Nuevo Contrato Social y Ambiental para la Bogotá del Siglo XXI",12,"Educación inicial: Bases sólidas para la vida.","Propósito 1: Hacer un nuevo contrato social para incrementar la inclusión social, productiva y política"]
[null,"Un Nuevo Contrato Social y Ambiental para la Bogotá del Siglo XXI",13,"Educación para todos y todas: acceso y permanencia con equidad y énfasis en educación rural","Propósito 1: Hacer un nuevo contrato social para incrementar la inclusión social, productiva y política"]
[null,"Un Nuevo Contrato Social y Ambiental para la Bogotá del Siglo XXI",14,"Formación integral: más y mejor tiempo en los colegios","Propósito 1: Hacer un nuevo contrato social para incrementar la inclusión social, productiva y política"]
[null,"Un Nuevo Contrato Social y Ambiental para la Bogotá del Siglo XXI",15,"Plan Distrital de Lectura, Escritura y Oralidad: \"Leer para la vida\"","Propósito 1: Hacer un nuevo contrato social para incrementar la inclusión social, productiva y política"]
[null,"Un Nuevo Contrato Social y Ambiental para la Bogotá del Siglo XXI",16,"Transformación pedagógica y mejoramiento de la gestión educativa. Es con los maestros y maestras.","Propósito 1: Hacer un nuevo contrato social para incrementar la inclusión social, productiva y política"]
[null,"Un Nuevo Contrato Social y Ambiental para la Bogotá del Siglo XXI",17,"Jóvenes con capacidades: Proyecto de vida para la ciudadanía, la innovación y el trabajo del siglo XXI","Propósito 1: Hacer un nuevo contrato social para incrementar la inclusión social, productiva y política"]
[null,"Un Nuevo Contrato Social y Ambiental para la Bogotá del Siglo XXI",18,"Cierre de brechas para la inclusión productiva urbano rural","Propósito 1: Hacer un nuevo contrato social para incrementar la inclusión social, productiva y política"]
[null,"Un Nuevo Contrato Social y Ambiental para la Bogotá del Siglo XXI",19,"Vivienda y entornos dignos en el territorio urbano y rural","Propósito 1: Hacer un nuevo contrato social para incrementar la inclusión social, productiva y política"]
[null,"Un Nuevo Contrato Social y Ambiental para la Bogotá del Siglo XXI",20,"Bogotá, referente en cultura, deporte, recreación y actividad física, con parques para el desarrollo y la salud","Propósito 1: Hacer un nuevo contrato social para incrementar la inclusión social, productiva y política"]
[null,"Un Nuevo Contrato Social y Ambiental para la Bogotá del Siglo XXI",21,"Creación y vida cotidiana: Apropiación ciudadana del arte, la cultura y el patrimonio, para la democracia cultural","Propósito 1: Hacer un nuevo contrato social para incrementar la inclusión social, productiva y política"]
[null,"Un Nuevo Contrato Social y Ambiental para la Bogotá del Siglo XXI",22,"Transformación cultural para la conciencia ambiental y el cuidado de la fauna doméstica","Propósito 1: Hacer un nuevo contrato social para incrementar la inclusión social, productiva y política"]
[null,"Un Nuevo Contrato Social y Ambiental para la Bogotá del Siglo XXI",23,"Bogotá rural","Propósito 1: Hacer un nuevo contrato social para incrementar la inclusión social, productiva y política"]
[null,"Un Nuevo Contrato Social y Ambiental para la Bogotá del Siglo XXI",24,"Bogotá región emprendedora e innovadora","Propósito 1: Hacer un nuevo contrato social para incrementar la inclusión social, productiva y política"]
[null,"Un Nuevo Contrato Social y Ambiental para la Bogotá del Siglo XXI",25,"Bogotá región productiva y competitiva","Propósito 1: Hacer un nuevo contrato social para incrementar la inclusión social, productiva y política"]
[null,"Un Nuevo Contrato Social y Ambiental para la Bogotá del Siglo XXI",26,"Bogotá - región, el mejor destino para visitar","Propósito 1: Hacer un nuevo contrato social para incrementar la inclusión social, productiva y política"]
[null,"Un Nuevo Contrato Social y Ambiental para la Bogotá del Siglo XXI",27,"Cambio cultural para la gestión de la crisis climática","Propósito 2 : Cambiar Nuestros Hábitos de Vida para Reverdecer a Bogotá y Adaptarnos y Mitigar la Crisis Climática"]
[null,"Un Nuevo Contrato Social y Ambiental para la Bogotá del Siglo XXI",{"$f":"+C29+1","v":28},"Bogotá protectora de sus recursos naturales","Propósito 2 : Cambiar Nuestros Hábitos de Vida para Reverdecer a Bogotá y Adaptarnos y Mitigar la Crisis Climática"]
[null,"Un Nuevo Contrato Social y Ambiental para la Bogotá del Siglo XXI",{"$f":"+C30+1","v":29},"Asentamientos y entornos protectores","Propósito 2 : Cambiar Nuestros Hábitos de Vida para Reverdecer a Bogotá y Adaptarnos y Mitigar la Crisis Climática"]
[null,"Un Nuevo Contrato Social y Ambiental para la Bogotá del Siglo XXI",30,"Eficiencia en la atención de emergencias","Propósito 2 : Cambiar Nuestros Hábitos de Vida para Reverdecer a Bogotá y Adaptarnos y Mitigar la Crisis Climática"]
[null,"Un Nuevo Contrato Social y Ambiental para la Bogotá del Siglo XXI",31," Protección y valoración del patrimonio tangible e intangible en Bogotá y la región","Propósito 2 : Cambiar Nuestros Hábitos de Vida para Reverdecer a Bogotá y Adaptarnos y Mitigar la Crisis Climática"]
[null,"Un Nuevo Contrato Social y Ambiental para la Bogotá del Siglo XXI",32,"Revitalización urbana para la competitividad","Propósito 2 : Cambiar Nuestros Hábitos de Vida para Reverdecer a Bogotá y Adaptarnos y Mitigar la Crisis Climática"]
[null,"Un Nuevo Contrato Social y Ambiental para la Bogotá del Siglo XXI",33,"Más árboles y más y mejor espacio público","Propósito 2 : Cambiar Nuestros Hábitos de Vida para Reverdecer a Bogotá y Adaptarnos y Mitigar la Crisis Climática"]
[null,"Un Nuevo Contrato Social y Ambiental para la Bogotá del Siglo XXI",34,"Bogotá protectora de los animales","Propósito 2 : Cambiar Nuestros Hábitos de Vida para Reverdecer a Bogotá y Adaptarnos y Mitigar la Crisis Climática"]
[null,"Un Nuevo Contrato Social y Ambiental para la Bogotá del Siglo XXI",35,"Manejo y prevención de contaminación","Propósito 2 : Cambiar Nuestros Hábitos de Vida para Reverdecer a Bogotá y Adaptarnos y Mitigar la Crisis Climática"]
[null,"Un Nuevo Contrato Social y Ambiental para la Bogotá del Siglo XXI",36,"Manejo y saneamiento de los cuerpos de agua","Propósito 2 : Cambiar Nuestros Hábitos de Vida para Reverdecer a Bogotá y Adaptarnos y Mitigar la Crisis Climática"]
[null,"Un Nuevo Contrato Social y Ambiental para la Bogotá del Siglo XXI",37,"Provisión y mejoramiento de servicios públicos","Propósito 2 : Cambiar Nuestros Hábitos de Vida para Reverdecer a Bogotá y Adaptarnos y Mitigar la Crisis Climática"]
[null,"Un Nuevo Contrato Social y Ambiental para la Bogotá del Siglo XXI",38,"Ecoeficiencia, reciclaje, manejo de residuos e inclusión de la población recicladora","Propósito 2 : Cambiar Nuestros Hábitos de Vida para Reverdecer a Bogotá y Adaptarnos y Mitigar la Crisis Climática"]
[null,"Un Nuevo Contrato Social y Ambiental para la Bogotá del Siglo XXI",39,"Bogotá territorio de paz y atención integral a las víctimas del conflicto armado","Propósito 3: Inspirar confianza y legitimidad para vivir sin miedo y ser epicentro de cultura ciudadana, paz y reconciliación"]
[null,"Un Nuevo Contrato Social y Ambiental para la Bogotá del Siglo XXI",{"$f":"+C41+1","v":40},"Más mujeres viven una vida libre de violencias, se sienten seguras y acceden con confianza al sistema de justicia","Propósito 3: Inspirar confianza y legitimidad para vivir sin miedo y ser epicentro de cultura ciudadana, paz y reconciliación"]
[null,"Un Nuevo Contrato Social y Ambiental para la Bogotá del Siglo XXI",{"$f":"+C42+1","v":41},"Sin machismo ni violencias contra las mujeres, las niñas y los niños","Propósito 3: Inspirar confianza y legitimidad para vivir sin miedo y ser epicentro de cultura ciudadana, paz y reconciliación"]
[null,"Un Nuevo Contrato Social y Ambiental para la Bogotá del Siglo XXI",42,"Conciencia y cultura ciudadana para la seguridad, la convivencia y la construcción de confianza","Propósito 3: Inspirar confianza y legitimidad para vivir sin miedo y ser epicentro de cultura ciudadana, paz y reconciliación"]
[null,"Un Nuevo Contrato Social y Ambiental para la Bogotá del Siglo XXI",43,"Cultura ciudadana para la confianza, la convivencia y la participación desde la vida cotidiana","Propósito 3: Inspirar confianza y legitimidad para vivir sin miedo y ser epicentro de cultura ciudadana, paz y reconciliación"]
[null,"Un Nuevo Contrato Social y Ambiental para la Bogotá del Siglo XXI",44,"Autoconciencia, respeto y cuidado en el espacio público","Propósito 3: Inspirar confianza y legitimidad para vivir sin miedo y ser epicentro de cultura ciudadana, paz y reconciliación"]
[null,"Un Nuevo Contrato Social y Ambiental para la Bogotá del Siglo XXI",45,"Espacio público más seguro y construido colectivamente","Propósito 3: Inspirar confianza y legitimidad para vivir sin miedo y ser epicentro de cultura ciudadana, paz y reconciliación"]
[null,"Un Nuevo Contrato Social y Ambiental para la Bogotá del Siglo XXI",46,"Atención a jóvenes y adultos infractores con impacto en su proyecto de vida","Propósito 3: Inspirar confianza y legitimidad para vivir sin miedo y ser epicentro de cultura ciudadana, paz y reconciliación"]
[null,"Un Nuevo Contrato Social y Ambiental para la Bogotá del Siglo XXI",47,"Calidad de Vida y Derechos de la Población privada de la libertad","Propósito 3: Inspirar confianza y legitimidad para vivir sin miedo y ser epicentro de cultura ciudadana, paz y reconciliación"]
[null,"Un Nuevo Contrato Social y Ambiental para la Bogotá del Siglo XXI",48,"Plataforma institucional para la seguridad y justicia","Propósito 3: Inspirar confianza y legitimidad para vivir sin miedo y ser epicentro de cultura ciudadana, paz y reconciliación"]
[null,"Un Nuevo Contrato Social y Ambiental para la Bogotá del Siglo XXI",49,"Movilidad segura, sostenible y accesible","Propósito 4: Hacer de Bogotá Región un modelo de movilidad multimodal, incluyente y sostenible"]
[null,"Un Nuevo Contrato Social y Ambiental para la Bogotá del Siglo XXI",{"$f":"+C51+1","v":50},"Red de metros","Propósito 4: Hacer de Bogotá Región un modelo de movilidad multimodal, incluyente y sostenible"]
[null,"Un Nuevo Contrato Social y Ambiental para la Bogotá del Siglo XXI",51,"Gobierno Abierto","Propósito 5: Construir Bogotá - Región con gobierno abierto, transparente y ciudadanía consciente"]
[null,"Un Nuevo Contrato Social y Ambiental para la Bogotá del Siglo XXI",{"$f":"+C53+1","v":52},"Integración regional, distrital y local","Propósito 5: Construir Bogotá - Región con gobierno abierto, transparente y ciudadanía consciente"]
[null,"Un Nuevo Contrato Social y Ambiental para la Bogotá del Siglo XXI",53,"Información para la toma de decisiones","Propósito 5: Construir Bogotá - Región con gobierno abierto, transparente y ciudadanía consciente"]
[null,"Un Nuevo Contrato Social y Ambiental para la Bogotá del Siglo XXI",54,"Transformación digital y gestión de TIC para un territorio inteligente","Propósito 5: Construir Bogotá - Región con gobierno abierto, transparente y ciudadanía consciente"]
[null,"Un Nuevo Contrato Social y Ambiental para la Bogotá del Siglo XXI",55,"Fortalecimiento de cultura ciudadana y su institucionalidad","Propósito 5: Construir Bogotá - Región con gobierno abierto, transparente y ciudadanía consciente"]
[null,"Un Nuevo Contrato Social y Ambiental para la Bogotá del Siglo XXI",56,"Gestión pública efectiva","Propósito 5: Construir Bogotá - Región con gobierno abierto, transparente y ciudadanía consciente"]
[null,"Un Nuevo Contrato Social y Ambiental para la Bogotá del Siglo XXI",57,"Gestión pública local","Propósito 5: Construir Bogotá - Región con gobierno abierto, transparente y ciudadanía consciente"]

{"sheet":"Tipo","index":2,"n_rows":67,"n_cols":5,"rows_kept":67,"cut":false,"hidden":true,"merged":[]}
[null,null,"Modalidad de Selección","afectacion","Naturaleza Jurídica"]
[1,null,"Concurso de méritos","Funcionamiento","Persona Natural"]
[2,null,"Contratación directa","Inversión","Persona Jurídica"]
[3,null,"Contratación mínima cuantia","Operación","Unión Temporal"]
[4,null,"Selección abreviada",null,"Consorcio"]
[5,null,"Licitación pública",null,"Sociedad con objeto único"]
[6,null,"Otros",null,"Persona jurídica extranjera"]
[7,null,"Régimen especial",null,"Sin ánimo de lucro"]
[8,null,null,null,"Cabildo indígena"]
[9,null,null,null,"Consejo comunitario de las comunidades negras"]
[10,null,"Selección abreviada",null,"Organizaciones de segundo nivel"]
[11,null,"Subasta inversa ",null,"Formas o expresiones organizativas, afrocolombianas, raizales y palenqueras"]
[12,null,"Bolsas de productos",null,"Organizaciones de base de comunidades negras "]
[13,null,"Acuerdo marco de precios ",null,"Asociaciones de autoridades tradicionales indígenas"]
[14,null,"Selección abreviada por menor cuantía "]
[15]
[16,null,"contratacion directa"]
[17,null,"Urgencia manifiesta"]
[18,null,"Contratación de empréstitos"]
[19,null,"Contratos interadministrativos"]
[20,null,"Contratación de bienes y servicios en el sector Defensa "]
[null,"SECTOR","Contratos para el desarrollo de actividades científicas y tecnológicas"]
[1,"Gestión Pública","Contratos de encargo fiduciario que celebren las entidades territoriales cuando inician el Acuerdo de Reestructuración de Pasivos"]
[{"$f":"+A23+1","v":2},"Gobierno","Cuando no exista pluralidad de oferentes en el mercado"]
[{"$f":"+A24+1","v":3},"Hacienda","Prestación de servicios profesionales y de apoyo a la gestión, o para la ejecución de trabajos artísticos que sólo puedan encomendarse a determinadas personas naturales"]
[4,"Planeación","El arrendamiento o adquisición de inmuebles"]
[5,"Desarrollo Económico, Industria y Turismo","Contratación de bienes y servicios de la Dirección Nacional de Inteligencia (DNI)"]
[6,"Educación"]
[7,"Salud"]
[8,"Integración Social","Decreto 92 de 2017"]
[9,"Cultura, Recreación y Deporte","No aplica"]
[10,"Ambiente"]
[11,"Movilidad","SECOP I"]
[12,"Hábitat","SECOP II"]
[13,"Mujeres"]
[14,"Seguridad, Convivencia y Justicia","Bogotá Mejor para Todos"]
[15,"Gestión Juridíca","Un Nuevo Contrato Social y Ambiental para la Bogotá del Siglo XXI"]
[16,"descentralizado territorialmente"]
[]
[null,"16 - AL","Estado"]
[null,null,"Celebrado o por iniciar"]
[null,"Plan de desarrollo distrital","En ejecución"]
[null,"Un nuevo contrato social y ambiental para la Bogotá del Siglo XXI","Terminado"]
[null,null,"Liquidado"]
[]
[null,"Tipo"]
[null,"Obra pública"]
[null,"Consultoría"]
[null,"Interventoría"]
[null,"Contratos de prestación de servicios"]
[null,"Contratos de prestación de servicios profesionales y de apoyo a la gestión"]
[null,"Compraventa de bienes muebles"]
[null,"Compraventa de bienes inmuebles"]
[null,"Arrendamiento de bienes muebles"]
[null,"Arrendamiento de bienes inmuebles"]
[null,"Seguro"]
[null,"Suministro"]
[null,"Empréstitos"]
[null,"Fiducia mercantil o encargo fiduciario"]
[null,"Concesión "]
[null,"Convenios de cooperacion"]
[null,"Convenios/Contratos interadministrativos"]
[null,"Convenios de apoyo o convenios de asociación "]
[null,"Convenios solidarios"]
[null,"Asociaciones Público Privadas"]
[null,"Otros"]
[null,"Otros gastos"]